{"text_format":"1","workbook":"xlsx","n_sheets":3,"sheets":["Capacity Statement","Capacity_DB","Lists"],"not_rendered":{"charts":0,"images":0,"macros":0,"external_links":0,"defined_names":2,"comments":0,"pivot_tables":0},"unopened":[],"bounds":{"document_bytes":16777216,"sheet_cells":100000,"rows_first":2000,"rows_last":500,"rows_between":2000,"halvings":0,"cell_chars":16384,"cell_head_chars":4096},"cells_cut":0,"cells_raw":0,"read":"whole","date_system":"1900"}

{"sheet":"Capacity Statement","index":0,"n_rows":47,"n_cols":29,"rows_kept":47,"cut":false,"hidden":false,"merged":[[5,0,5,28]]}
["Selected FY","FY29/30"]
["Selected Route","General Freight: Johannesburg to Durban"]
["Capacity Factor",0.65]
["Route Spare Capacity",{"$f":"IFERROR(_xlfn.AGGREGATE(15,6,AB8:AB47/((B8:B47<>\"\")*(B8:B47<>\"N/A\")*(ISERROR(SEARCH(\"Line Closed\",C8:C47)))),1),\"\")","v":49}]
["Bottleneck Section(s)",{"$f":"IFERROR(_xlfn.TEXTJOIN(\", \",TRUE,IF((AB8:AB47=B4)*(B8:B47<>\"\")*(B8:B47<>\"N/A\")*(ISERROR(SEARCH(\"Line Closed\",C8:C47))),B8:B47,\"\")),\"\")","v":" CHAILEY (I) - DALTON (E) "}]
["NB: Hidden TOC columns can be expanded to view detailed TOC allocations."]
["Section Sequencing","Section","Depot","Theoretical Daily Capacity","Practical Daily Capacity","Train Paths Lost to TSR","Train Paths Lost to MA","Train Paths Recovered through Infrastructure Upgrades","Unused Train Paths Recovered from TOCs","Daily Available Train Paths","Weekly Practical Train Paths","TOC 1 Allocated Train Paths","TOC 2 Allocated Train Paths","TOC 3 Allocated Train Paths","TOC 4 Allocated Train Paths","TOC 5 Allocated Train Paths","TOC 6 Allocated Train Paths","TOC 7 Allocated Train Paths","TOC 8 Allocated Train Paths","TOC 9 Allocated Train Paths","TOC 10 Allocated Train Paths","TOC 11 Allocated Train Paths","TOC 12 Allocated Train Paths","TOC 13 Allocated Train Paths","TOC 14 Allocated Train Paths","TOC 15 Allocated Train Paths","Weekly Train Paths Allocated to TOCs","Weekly Spare Capacity","Constraint Indicator"]
[1,{"$f":"IFERROR(_xlfn.SINGLE(_xlfn.XLOOKUP($B$1&\"|\"&$B$2&\"|\"&A8,Capacity_DB!$A:$A,Capacity_DB!$E:$E,\"\")),\"\")","v":"CITY DEEP - JUPITER"},{"$f":"IF(OR($B8=\"\",$B8=\"N/A\"),\"\",IFERROR(_xlfn.SINGLE(_xlfn.XLOOKUP($B$1&\"|\"&$B$2&\"|\"&A8,Capacity_DB!$A:$A,Capacity_DB!$F:$F,\"\")),\"\"))","v":"VEREENIGING"},{"$f":"IF(OR($B8=\"\",$B8=\"N/A\"),\"\",IFERROR(_xlfn.SINGLE(_xlfn.XLOOKUP($B$1&\"|\"&$B$2&\"|\"&A8,Capacity_DB!$A:$A,Capacity_DB!$G:$G,\"\")),\"\"))","v":72},{"$f":"IF(OR(B8=\"\",B8=\"N/A\"),\"\",ROUND(D8*$B$3,0))","v":47},{"$f":"IF(OR($B8=\"\",$B8=\"N/A\"),\"\",IFERROR(_xlfn.SINGLE(_xlfn.XLOOKUP($B$1&\"|\"&$B$2&\"|\"&A8,Capacity_DB!$A:$A,Capacity_DB!$H:$H,0)),0))","v":0},{"$f":"IF(OR($B8=\"\",$B8=\"N/A\"),\"\",IFERROR(_xlfn.SINGLE(_xlfn.XLOOKUP($B$1&\"|\"&$B$2&\"|\"&A8,Capacity_DB!$A:$A,Capacity_DB!$I:$I,0)),0))","v":0},{"$f":"IF(OR($B8=\"\",$B8=\"N/A\"),\"\",IFERROR(_xlfn.SINGLE(_xlfn.XLOOKUP($B$1&\"|\"&$B$2&\"|\"&A8,Capacity_DB!$A:$A,Capacity_DB!$J:$J,0)),0))","v":0},{"$f":"IF(OR($B8=\"\",$B8=\"N/A\"),\"\",IFERROR(_xlfn.SINGLE(_xlfn.XLOOKUP($B$1&\"|\"&$B$2&\"|\"&A8,Capacity_DB!$A:$A,Capacity_DB!$K:$K,0)),0))","v":0},{"$f":"IF(OR(B8=\"\",B8=\"N/A\"),\"\",MAX(0,E8-F8-G8+H8+I8))","v":47},{"$f":"IF(J8=\"\",\"\",IF(ISNUMBER(SEARCH(\"Line Closed\",C8)),0,J8*7))","v":329},{"$f":"IF(OR($B8=\"\",$B8=\"N/A\"),\"\",IFERROR(_xlfn.SINGLE(_xlfn.XLOOKUP($B$1&\"|\"&$B$2&\"|\"&A8,Capacity_DB!$A:$A,Capacity_DB!$L:$L,0)),0))","v":0},{"$f":"IF(OR($B8=\"\",$B8=\"N/A\"),\"\",IFERROR(_xlfn.SINGLE(_xlfn.XLOOKUP($B$1&\"|\"&$B$2&\"|\"&A8,Capacity_DB!$A:$A,Capacity_DB!$M:$M,0)),0))","v":0},{"$f":"IF(OR($B8=\"\",$B8=\"N/A\"),\"\",IFERROR(_xlfn.SINGLE(_xlfn.XLOOKUP($B$1&\"|\"&$B$2&\"|\"&A8,Capacity_DB!$A:$A,Capacity_DB!$N:$N,0)),0))","v":0},{"$f":"IF(OR($B8=\"\",$B8=\"N/A\"),\"\",IFERROR(_xlfn.SINGLE(_xlfn.XLOOKUP($B$1&\"|\"&$B$2&\"|\"&A8,Capacity_DB!$A:$A,Capacity_DB!$O:$O,0)),0))","v":0},{"$f":"IF(OR($B8=\"\",$B8=\"N/A\"),\"\",IFERROR(_xlfn.SINGLE(_xlfn.XLOOKUP($B$1&\"|\"&$B$2&\"|\"&A8,Capacity_DB!$A:$A,Capacity_DB!$P:$P,0)),0))","v":0},{"$f":"IF(OR($B8=\"\",$B8=\"N/A\"),\"\",IFERROR(_xlfn.SINGLE(_xlfn.XLOOKUP($B$1&\"|\"&$B$2&\"|\"&A8,Capacity_DB!$A:$A,Capacity_DB!$Q:$Q,0)),0))","v":0},{"$f":"IF(OR($B8=\"\",$B8=\"N/A\"),\"\",IFERROR(_xlfn.SINGLE(_xlfn.XLOOKUP($B$1&\"|\"&$B$2&\"|\"&A8,Capacity_DB!$A:$A,Capacity_DB!$R:$R,0)),0))","v":0},{"$f":"IF(OR($B8=\"\",$B8=\"N/A\"),\"\",IFERROR(_xlfn.SINGLE(_xlfn.XLOOKUP($B$1&\"|\"&$B$2&\"|\"&A8,Capacity_DB!$A:$A,Capacity_DB!$S:$S,0)),0))","v":0},{"$f":"IF(OR($B8=\"\",$B8=\"N/A\"),\"\",IFERROR(_xlfn.SINGLE(_xlfn.XLOOKUP($B$1&\"|\"&$B$2&\"|\"&A8,Capacity_DB!$A:$A,Capacity_DB!$T:$T,0)),0))","v":0},{"$f":"IF(OR($B8=\"\",$B8=\"N/A\"),\"\",IFERROR(_xlfn.SINGLE(_xlfn.XLOOKUP($B$1&\"|\"&$B$2&\"|\"&A8,Capacity_DB!$A:$A,Capacity_DB!$U:$U,0)),0))","v":0},{"$f":"IF(OR($B8=\"\",$B8=\"N/A\"),\"\",IFERROR(_xlfn.SINGLE(_xlfn.XLOOKUP($B$1&\"|\"&$B$2&\"|\"&A8,Capacity_DB!$A:$A,Capacity_DB!$V:$V,0)),0))","v":0},{"$f":"IF(OR($B8=\"\",$B8=\"N/A\"),\"\",IFERROR(_xlfn.SINGLE(_xlfn.XLOOKUP($B$1&\"|\"&$B$2&\"|\"&A8,Capacity_DB!$A:$A,Capacity_DB!$W:$W,0)),0))","v":0},{"$f":"IF(OR($B8=\"\",$B8=\"N/A\"),\"\",IFERROR(_xlfn.SINGLE(_xlfn.XLOOKUP($B$1&\"|\"&$B$2&\"|\"&A8,Capacity_DB!$A:$A,Capacity_DB!$X:$X,0)),0))","v":0},{"$f":"IF(OR($B8=\"\",$B8=\"N/A\"),\"\",IFERROR(_xlfn.SINGLE(_xlfn.XLOOKUP($B$1&\"|\"&$B$2&\"|\"&A8,Capacity_DB!$A:$A,Capacity_DB!$Y:$Y,0)),0))","v":0},{"$f":"IF(OR($B8=\"\",$B8=\"N/A\"),\"\",IFERROR(_xlfn.SINGLE(_xlfn.XLOOKUP($B$1&\"|\"&$B$2&\"|\"&A8,Capacity_DB!$A:$A,Capacity_DB!$Z:$Z,0)),0))","v":0},{"$f":"IF(OR($B8=\"\",$B8=\"N/A\"),\"\",SUM(L8:Z8))","v":0},{"$f":"IF(K8=\"\",\"\",MAX(0,K8-AA8))","v":329},{"$f":"IF(OR(B8=\"\",B8=\"N/A\",ISNUMBER(SEARCH(\"Line Closed\",C8))),\"\",IF(AB8=$B$4,\"BOTTLENECK: \"&TEXT(AB8,\"0\"),\"\"))","v":""}]
[2,{"$f":"IFERROR(_xlfn.SINGLE(_xlfn.XLOOKUP($B$1&\"|\"&$B$2&\"|\"&A9,Capacity_DB!$A:$A,Capacity_DB!$E:$E,\"\")),\"\")","v":"KASERNE WEST - JUPITER"},{"$f":"IF(OR($B9=\"\",$B9=\"N/A\"),\"\",IFERROR(_xlfn.SINGLE(_xlfn.XLOOKUP($B$1&\"|\"&$B$2&\"|\"&A9,Capacity_DB!$A:$A,Capacity_DB!$F:$F,\"\")),\"\"))","v":"VEREENIGING"},{"$f":"IF(OR($B9=\"\",$B9=\"N/A\"),\"\",IFERROR(_xlfn.SINGLE(_xlfn.XLOOKUP($B$1&\"|\"&$B$2&\"|\"&A9,Capacity_DB!$A:$A,Capacity_DB!$G:$G,\"\")),\"\"))","v":72},{"$f":"IF(OR(B9=\"\",B9=\"N/A\"),\"\",ROUND(D9*$B$3,0))","v":47},{"$f":"IF(OR($B9=\"\",$B9=\"N/A\"),\"\",IFERROR(_xlfn.SINGLE(_xlfn.XLOOKUP($B$1&\"|\"&$B$2&\"|\"&A9,Capacity_DB!$A:$A,Capacity_DB!$H:$H,0)),0))","v":0},{"$f":"IF(OR($B9=\"\",$B9=\"N/A\"),\"\",IFERROR(_xlfn.SINGLE(_xlfn.XLOOKUP($B$1&\"|\"&$B$2&\"|\"&A9,Capacity_DB!$A:$A,Capacity_DB!$I:$I,0)),0))","v":0},{"$f":"IF(OR($B9=\"\",$B9=\"N/A\"),\"\",IFERROR(_xlfn.SINGLE(_xlfn.XLOOKUP($B$1&\"|\"&$B$2&\"|\"&A9,Capacity_DB!$A:$A,Capacity_DB!$J:$J,0)),0))","v":0},{"$f":"IF(OR($B9=\"\",$B9=\"N/A\"),\"\",IFERROR(_xlfn.SINGLE(_xlfn.XLOOKUP($B$1&\"|\"&$B$2&\"|\"&A9,Capacity_DB!$A:$A,Capacity_DB!$K:$K,0)),0))","v":0},47,{"$f":"IF(J9=\"\",\"\",IF(ISNUMBER(SEARCH(\"Line Closed\",C9)),0,J9*7))","v":329},{"$f":"IF(OR($B9=\"\",$B9=\"N/A\"),\"\",IFERROR(_xlfn.SINGLE(_xlfn.XLOOKUP($B$1&\"|\"&$B$2&\"|\"&A9,Capacity_DB!$A:$A,Capacity_DB!$L:$L,0)),0))","v":0},{"$f":"IF(OR($B9=\"\",$B9=\"N/A\"),\"\",IFERROR(_xlfn.SINGLE(_xlfn.XLOOKUP($B$1&\"|\"&$B$2&\"|\"&A9,Capacity_DB!$A:$A,Capacity_DB!$M:$M,0)),0))","v":0},{"$f":"IF(OR($B9=\"\",$B9=\"N/A\"),\"\",IFERROR(_xlfn.SINGLE(_xlfn.XLOOKUP($B$1&\"|\"&$B$2&\"|\"&A9,Capacity_DB!$A:$A,Capacity_DB!$N:$N,0)),0))","v":0},{"$f":"IF(OR($B9=\"\",$B9=\"N/A\"),\"\",IFERROR(_xlfn.SINGLE(_xlfn.XLOOKUP($B$1&\"|\"&$B$2&\"|\"&A9,Capacity_DB!$A:$A,Capacity_DB!$O:$O,0)),0))","v":0},{"$f":"IF(OR($B9=\"\",$B9=\"N/A\"),\"\",IFERROR(_xlfn.SINGLE(_xlfn.XLOOKUP($B$1&\"|\"&$B$2&\"|\"&A9,Capacity_DB!$A:$A,Capacity_DB!$P:$P,0)),0))","v":0},{"$f":"IF(OR($B9=\"\",$B9=\"N/A\"),\"\",IFERROR(_xlfn.SINGLE(_xlfn.XLOOKUP($B$1&\"|\"&$B$2&\"|\"&A9,Capacity_DB!$A:$A,Capacity_DB!$Q:$Q,0)),0))","v":0},{"$f":"IF(OR($B9=\"\",$B9=\"N/A\"),\"\",IFERROR(_xlfn.SINGLE(_xlfn.XLOOKUP($B$1&\"|\"&$B$2&\"|\"&A9,Capacity_DB!$A:$A,Capacity_DB!$R:$R,0)),0))","v":0},{"$f":"IF(OR($B9=\"\",$B9=\"N/A\"),\"\",IFERROR(_xlfn.SINGLE(_xlfn.XLOOKUP($B$1&\"|\"&$B$2&\"|\"&A9,Capacity_DB!$A:$A,Capacity_DB!$S:$S,0)),0))","v":0},{"$f":"IF(OR($B9=\"\",$B9=\"N/A\"),\"\",IFERROR(_xlfn.SINGLE(_xlfn.XLOOKUP($B$1&\"|\"&$B$2&\"|\"&A9,Capacity_DB!$A:$A,Capacity_DB!$T:$T,0)),0))","v":0},{"$f":"IF(OR($B9=\"\",$B9=\"N/A\"),\"\",IFERROR(_xlfn.SINGLE(_xlfn.XLOOKUP($B$1&\"|\"&$B$2&\"|\"&A9,Capacity_DB!$A:$A,Capacity_DB!$U:$U,0)),0))","v":0},{"$f":"IF(OR($B9=\"\",$B9=\"N/A\"),\"\",IFERROR(_xlfn.SINGLE(_xlfn.XLOOKUP($B$1&\"|\"&$B$2&\"|\"&A9,Capacity_DB!$A:$A,Capacity_DB!$V:$V,0)),0))","v":0},{"$f":"IF(OR($B9=\"\",$B9=\"N/A\"),\"\",IFERROR(_xlfn.SINGLE(_xlfn.XLOOKUP($B$1&\"|\"&$B$2&\"|\"&A9,Capacity_DB!$A:$A,Capacity_DB!$W:$W,0)),0))","v":0},{"$f":"IF(OR($B9=\"\",$B9=\"N/A\"),\"\",IFERROR(_xlfn.SINGLE(_xlfn.XLOOKUP($B$1&\"|\"&$B$2&\"|\"&A9,Capacity_DB!$A:$A,Capacity_DB!$X:$X,0)),0))","v":0},{"$f":"IF(OR($B9=\"\",$B9=\"N/A\"),\"\",IFERROR(_xlfn.SINGLE(_xlfn.XLOOKUP($B$1&\"|\"&$B$2&\"|\"&A9,Capacity_DB!$A:$A,Capacity_DB!$Y:$Y,0)),0))","v":0},{"$f":"IF(OR($B9=\"\",$B9=\"N/A\"),\"\",IFERROR(_xlfn.SINGLE(_xlfn.XLOOKUP($B$1&\"|\"&$B$2&\"|\"&A9,Capacity_DB!$A:$A,Capacity_DB!$Z:$Z,0)),0))","v":0},0,{"$f":"IF(K9=\"\",\"\",MAX(0,K9-AA9))","v":329},{"$f":"IF(OR(B9=\"\",B9=\"N/A\",ISNUMBER(SEARCH(\"Line Closed\",C9))),\"\",IF(AB9=$B$4,\"BOTTLENECK: \"&TEXT(AB9,\"0\"),\"\"))","v":""}]
[3,{"$f":"IFERROR(_xlfn.SINGLE(_xlfn.XLOOKUP($B$1&\"|\"&$B$2&\"|\"&A10,Capacity_DB!$A:$A,Capacity_DB!$E:$E,\"\")),\"\")","v":"JUPITER - INDIA"},{"$f":"IF(OR($B10=\"\",$B10=\"N/A\"),\"\",IFERROR(_xlfn.SINGLE(_xlfn.XLOOKUP($B$1&\"|\"&$B$2&\"|\"&A10,Capacity_DB!$A:$A,Capacity_DB!$F:$F,\"\")),\"\"))","v":"VEREENIGING"},{"$f":"IF(OR($B10=\"\",$B10=\"N/A\"),\"\",IFERROR(_xlfn.SINGLE(_xlfn.XLOOKUP($B$1&\"|\"&$B$2&\"|\"&A10,Capacity_DB!$A:$A,Capacity_DB!$G:$G,\"\")),\"\"))","v":72},47,{"$f":"IF(OR($B10=\"\",$B10=\"N/A\"),\"\",IFERROR(_xlfn.SINGLE(_xlfn.XLOOKUP($B$1&\"|\"&$B$2&\"|\"&A10,Capacity_DB!$A:$A,Capacity_DB!$H:$H,0)),0))","v":0},{"$f":"IF(OR($B10=\"\",$B10=\"N/A\"),\"\",IFERROR(_xlfn.SINGLE(_xlfn.XLOOKUP($B$1&\"|\"&$B$2&\"|\"&A10,Capacity_DB!$A:$A,Capacity_DB!$I:$I,0)),0))","v":0},{"$f":"IF(OR($B10=\"\",$B10=\"N/A\"),\"\",IFERROR(_xlfn.SINGLE(_xlfn.XLOOKUP($B$1&\"|\"&$B$2&\"|\"&A10,Capacity_DB!$A:$A,Capacity_DB!$J:$J,0)),0))","v":0},{"$f":"IF(OR($B10=\"\",$B10=\"N/A\"),\"\",IFERROR(_xlfn.SINGLE(_xlfn.XLOOKUP($B$1&\"|\"&$B$2&\"|\"&A10,Capacity_DB!$A:$A,Capacity_DB!$K:$K,0)),0))","v":0},47,329,{"$f":"IF(OR($B10=\"\",$B10=\"N/A\"),\"\",IFERROR(_xlfn.SINGLE(_xlfn.XLOOKUP($B$1&\"|\"&$B$2&\"|\"&A10,Capacity_DB!$A:$A,Capacity_DB!$L:$L,0)),0))","v":0},{"$f":"IF(OR($B10=\"\",$B10=\"N/A\"),\"\",IFERROR(_xlfn.SINGLE(_xlfn.XLOOKUP($B$1&\"|\"&$B$2&\"|\"&A10,Capacity_DB!$A:$A,Capacity_DB!$M:$M,0)),0))","v":0},{"$f":"IF(OR($B10=\"\",$B10=\"N/A\"),\"\",IFERROR(_xlfn.SINGLE(_xlfn.XLOOKUP($B$1&\"|\"&$B$2&\"|\"&A10,Capacity_DB!$A:$A,Capacity_DB!$N:$N,0)),0))","v":0},{"$f":"IF(OR($B10=\"\",$B10=\"N/A\"),\"\",IFERROR(_xlfn.SINGLE(_xlfn.XLOOKUP($B$1&\"|\"&$B$2&\"|\"&A10,Capacity_DB!$A:$A,Capacity_DB!$O:$O,0)),0))","v":0},{"$f":"IF(OR($B10=\"\",$B10=\"N/A\"),\"\",IFERROR(_xlfn.SINGLE(_xlfn.XLOOKUP($B$1&\"|\"&$B$2&\"|\"&A10,Capacity_DB!$A:$A,Capacity_DB!$P:$P,0)),0))","v":0},{"$f":"IF(OR($B10=\"\",$B10=\"N/A\"),\"\",IFERROR(_xlfn.SINGLE(_xlfn.XLOOKUP($B$1&\"|\"&$B$2&\"|\"&A10,Capacity_DB!$A:$A,Capacity_DB!$Q:$Q,0)),0))","v":0},{"$f":"IF(OR($B10=\"\",$B10=\"N/A\"),\"\",IFERROR(_xlfn.SINGLE(_xlfn.XLOOKUP($B$1&\"|\"&$B$2&\"|\"&A10,Capacity_DB!$A:$A,Capacity_DB!$R:$R,0)),0))","v":0},{"$f":"IF(OR($B10=\"\",$B10=\"N/A\"),\"\",IFERROR(_xlfn.SINGLE(_xlfn.XLOOKUP($B$1&\"|\"&$B$2&\"|\"&A10,Capacity_DB!$A:$A,Capacity_DB!$S:$S,0)),0))","v":0},{"$f":"IF(OR($B10=\"\",$B10=\"N/A\"),\"\",IFERROR(_xlfn.SINGLE(_xlfn.XLOOKUP($B$1&\"|\"&$B$2&\"|\"&A10,Capacity_DB!$A:$A,Capacity_DB!$T:$T,0)),0))","v":0},{"$f":"IF(OR($B10=\"\",$B10=\"N/A\"),\"\",IFERROR(_xlfn.SINGLE(_xlfn.XLOOKUP($B$1&\"|\"&$B$2&\"|\"&A10,Capacity_DB!$A:$A,Capacity_DB!$U:$U,0)),0))","v":0},{"$f":"IF(OR($B10=\"\",$B10=\"N/A\"),\"\",IFERROR(_xlfn.SINGLE(_xlfn.XLOOKUP($B$1&\"|\"&$B$2&\"|\"&A10,Capacity_DB!$A:$A,Capacity_DB!$V:$V,0)),0))","v":0},{"$f":"IF(OR($B10=\"\",$B10=\"N/A\"),\"\",IFERROR(_xlfn.SINGLE(_xlfn.XLOOKUP($B$1&\"|\"&$B$2&\"|\"&A10,Capacity_DB!$A:$A,Capacity_DB!$W:$W,0)),0))","v":0},{"$f":"IF(OR($B10=\"\",$B10=\"N/A\"),\"\",IFERROR(_xlfn.SINGLE(_xlfn.XLOOKUP($B$1&\"|\"&$B$2&\"|\"&A10,Capacity_DB!$A:$A,Capacity_DB!$X:$X,0)),0))","v":0},{"$f":"IF(OR($B10=\"\",$B10=\"N/A\"),\"\",IFERROR(_xlfn.SINGLE(_xlfn.XLOOKUP($B$1&\"|\"&$B$2&\"|\"&A10,Capacity_DB!$A:$A,Capacity_DB!$Y:$Y,0)),0))","v":0},{"$f":"IF(OR($B10=\"\",$B10=\"N/A\"),\"\",IFERROR(_xlfn.SINGLE(_xlfn.XLOOKUP($B$1&\"|\"&$B$2&\"|\"&A10,Capacity_DB!$A:$A,Capacity_DB!$Z:$Z,0)),0))","v":0},0,329,""]
[4,{"$f":"IFERROR(_xlfn.SINGLE(_xlfn.XLOOKUP($B$1&\"|\"&$B$2&\"|\"&A11,Capacity_DB!$A:$A,Capacity_DB!$E:$E,\"\")),\"\")","v":"INDIA (E) - UNION (E)"},{"$f":"IF(OR($B11=\"\",$B11=\"N/A\"),\"\",IFERROR(_xlfn.SINGLE(_xlfn.XLOOKUP($B$1&\"|\"&$B$2&\"|\"&A11,Capacity_DB!$A:$A,Capacity_DB!$F:$F,\"\")),\"\"))","v":"VEREENIGING"},{"$f":"IF(OR($B11=\"\",$B11=\"N/A\"),\"\",IFERROR(_xlfn.SINGLE(_xlfn.XLOOKUP($B$1&\"|\"&$B$2&\"|\"&A11,Capacity_DB!$A:$A,Capacity_DB!$G:$G,\"\")),\"\"))","v":72},47,{"$f":"IF(OR($B11=\"\",$B11=\"N/A\"),\"\",IFERROR(_xlfn.SINGLE(_xlfn.XLOOKUP($B$1&\"|\"&$B$2&\"|\"&A11,Capacity_DB!$A:$A,Capacity_DB!$H:$H,0)),0))","v":0},{"$f":"IF(OR($B11=\"\",$B11=\"N/A\"),\"\",IFERROR(_xlfn.SINGLE(_xlfn.XLOOKUP($B$1&\"|\"&$B$2&\"|\"&A11,Capacity_DB!$A:$A,Capacity_DB!$I:$I,0)),0))","v":0},{"$f":"IF(OR($B11=\"\",$B11=\"N/A\"),\"\",IFERROR(_xlfn.SINGLE(_xlfn.XLOOKUP($B$1&\"|\"&$B$2&\"|\"&A11,Capacity_DB!$A:$A,Capacity_DB!$J:$J,0)),0))","v":0},{"$f":"IF(OR($B11=\"\",$B11=\"N/A\"),\"\",IFERROR(_xlfn.SINGLE(_xlfn.XLOOKUP($B$1&\"|\"&$B$2&\"|\"&A11,Capacity_DB!$A:$A,Capacity_DB!$K:$K,0)),0))","v":0},47,329,{"$f":"IF(OR($B11=\"\",$B11=\"N/A\"),\"\",IFERROR(_xlfn.SINGLE(_xlfn.XLOOKUP($B$1&\"|\"&$B$2&\"|\"&A11,Capacity_DB!$A:$A,Capacity_DB!$L:$L,0)),0))","v":0},{"$f":"IF(OR($B11=\"\",$B11=\"N/A\"),\"\",IFERROR(_xlfn.SINGLE(_xlfn.XLOOKUP($B$1&\"|\"&$B$2&\"|\"&A11,Capacity_DB!$A:$A,Capacity_DB!$M:$M,0)),0))","v":0},{"$f":"IF(OR($B11=\"\",$B11=\"N/A\"),\"\",IFERROR(_xlfn.SINGLE(_xlfn.XLOOKUP($B$1&\"|\"&$B$2&\"|\"&A11,Capacity_DB!$A:$A,Capacity_DB!$N:$N,0)),0))","v":0},{"$f":"IF(OR($B11=\"\",$B11=\"N/A\"),\"\",IFERROR(_xlfn.SINGLE(_xlfn.XLOOKUP($B$1&\"|\"&$B$2&\"|\"&A11,Capacity_DB!$A:$A,Capacity_DB!$O:$O,0)),0))","v":0},{"$f":"IF(OR($B11=\"\",$B11=\"N/A\"),\"\",IFERROR(_xlfn.SINGLE(_xlfn.XLOOKUP($B$1&\"|\"&$B$2&\"|\"&A11,Capacity_DB!$A:$A,Capacity_DB!$P:$P,0)),0))","v":0},{"$f":"IF(OR($B11=\"\",$B11=\"N/A\"),\"\",IFERROR(_xlfn.SINGLE(_xlfn.XLOOKUP($B$1&\"|\"&$B$2&\"|\"&A11,Capacity_DB!$A:$A,Capacity_DB!$Q:$Q,0)),0))","v":0},{"$f":"IF(OR($B11=\"\",$B11=\"N/A\"),\"\",IFERROR(_xlfn.SINGLE(_xlfn.XLOOKUP($B$1&\"|\"&$B$2&\"|\"&A11,Capacity_DB!$A:$A,Capacity_DB!$R:$R,0)),0))","v":0},{"$f":"IF(OR($B11=\"\",$B11=\"N/A\"),\"\",IFERROR(_xlfn.SINGLE(_xlfn.XLOOKUP($B$1&\"|\"&$B$2&\"|\"&A11,Capacity_DB!$A:$A,Capacity_DB!$S:$S,0)),0))","v":0},{"$f":"IF(OR($B11=\"\",$B11=\"N/A\"),\"\",IFERROR(_xlfn.SINGLE(_xlfn.XLOOKUP($B$1&\"|\"&$B$2&\"|\"&A11,Capacity_DB!$A:$A,Capacity_DB!$T:$T,0)),0))","v":0},{"$f":"IF(OR($B11=\"\",$B11=\"N/A\"),\"\",IFERROR(_xlfn.SINGLE(_xlfn.XLOOKUP($B$1&\"|\"&$B$2&\"|\"&A11,Capacity_DB!$A:$A,Capacity_DB!$U:$U,0)),0))","v":0},{"$f":"IF(OR($B11=\"\",$B11=\"N/A\"),\"\",IFERROR(_xlfn.SINGLE(_xlfn.XLOOKUP($B$1&\"|\"&$B$2&\"|\"&A11,Capacity_DB!$A:$A,Capacity_DB!$V:$V,0)),0))","v":0},{"$f":"IF(OR($B11=\"\",$B11=\"N/A\"),\"\",IFERROR(_xlfn.SINGLE(_xlfn.XLOOKUP($B$1&\"|\"&$B$2&\"|\"&A11,Capacity_DB!$A:$A,Capacity_DB!$W:$W,0)),0))","v":0},{"$f":"IF(OR($B11=\"\",$B11=\"N/A\"),\"\",IFERROR(_xlfn.SINGLE(_xlfn.XLOOKUP($B$1&\"|\"&$B$2&\"|\"&A11,Capacity_DB!$A:$A,Capacity_DB!$X:$X,0)),0))","v":0},{"$f":"IF(OR($B11=\"\",$B11=\"N/A\"),\"\",IFERROR(_xlfn.SINGLE(_xlfn.XLOOKUP($B$1&\"|\"&$B$2&\"|\"&A11,Capacity_DB!$A:$A,Capacity_DB!$Y:$Y,0)),0))","v":0},{"$f":"IF(OR($B11=\"\",$B11=\"N/A\"),\"\",IFERROR(_xlfn.SINGLE(_xlfn.XLOOKUP($B$1&\"|\"&$B$2&\"|\"&A11,Capacity_DB!$A:$A,Capacity_DB!$Z:$Z,0)),0))","v":0},0,329,""]
[5,{"$f":"IFERROR(_xlfn.SINGLE(_xlfn.XLOOKUP($B$1&\"|\"&$B$2&\"|\"&A12,Capacity_DB!$A:$A,Capacity_DB!$E:$E,\"\")),\"\")","v":"UNIONKM3 (E)-ROOIKOP (E)"},{"$f":"IF(OR($B12=\"\",$B12=\"N/A\"),\"\",IFERROR(_xlfn.SINGLE(_xlfn.XLOOKUP($B$1&\"|\"&$B$2&\"|\"&A12,Capacity_DB!$A:$A,Capacity_DB!$F:$F,\"\")),\"\"))","v":"VEREENIGING"},{"$f":"IF(OR($B12=\"\",$B12=\"N/A\"),\"\",IFERROR(_xlfn.SINGLE(_xlfn.XLOOKUP($B$1&\"|\"&$B$2&\"|\"&A12,Capacity_DB!$A:$A,Capacity_DB!$G:$G,\"\")),\"\"))","v":72},47,{"$f":"IF(OR($B12=\"\",$B12=\"N/A\"),\"\",IFERROR(_xlfn.SINGLE(_xlfn.XLOOKUP($B$1&\"|\"&$B$2&\"|\"&A12,Capacity_DB!$A:$A,Capacity_DB!$H:$H,0)),0))","v":0},{"$f":"IF(OR($B12=\"\",$B12=\"N/A\"),\"\",IFERROR(_xlfn.SINGLE(_xlfn.XLOOKUP($B$1&\"|\"&$B$2&\"|\"&A12,Capacity_DB!$A:$A,Capacity_DB!$I:$I,0)),0))","v":0},{"$f":"IF(OR($B12=\"\",$B12=\"N/A\"),\"\",IFERROR(_xlfn.SINGLE(_xlfn.XLOOKUP($B$1&\"|\"&$B$2&\"|\"&A12,Capacity_DB!$A:$A,Capacity_DB!$J:$J,0)),0))","v":0},{"$f":"IF(OR($B12=\"\",$B12=\"N/A\"),\"\",IFERROR(_xlfn.SINGLE(_xlfn.XLOOKUP($B$1&\"|\"&$B$2&\"|\"&A12,Capacity_DB!$A:$A,Capacity_DB!$K:$K,0)),0))","v":0},47,329,{"$f":"IF(OR($B12=\"\",$B12=\"N/A\"),\"\",IFERROR(_xlfn.SINGLE(_xlfn.XLOOKUP($B$1&\"|\"&$B$2&\"|\"&A12,Capacity_DB!$A:$A,Capacity_DB!$L:$L,0)),0))","v":0},{"$f":"IF(OR($B12=\"\",$B12=\"N/A\"),\"\",IFERROR(_xlfn.SINGLE(_xlfn.XLOOKUP($B$1&\"|\"&$B$2&\"|\"&A12,Capacity_DB!$A:$A,Capacity_DB!$M:$M,0)),0))","v":0},{"$f":"IF(OR($B12=\"\",$B12=\"N/A\"),\"\",IFERROR(_xlfn.SINGLE(_xlfn.XLOOKUP($B$1&\"|\"&$B$2&\"|\"&A12,Capacity_DB!$A:$A,Capacity_DB!$N:$N,0)),0))","v":0},{"$f":"IF(OR($B12=\"\",$B12=\"N/A\"),\"\",IFERROR(_xlfn.SINGLE(_xlfn.XLOOKUP($B$1&\"|\"&$B$2&\"|\"&A12,Capacity_DB!$A:$A,Capacity_DB!$O:$O,0)),0))","v":0},{"$f":"IF(OR($B12=\"\",$B12=\"N/A\"),\"\",IFERROR(_xlfn.SINGLE(_xlfn.XLOOKUP($B$1&\"|\"&$B$2&\"|\"&A12,Capacity_DB!$A:$A,Capacity_DB!$P:$P,0)),0))","v":0},{"$f":"IF(OR($B12=\"\",$B12=\"N/A\"),\"\",IFERROR(_xlfn.SINGLE(_xlfn.XLOOKUP($B$1&\"|\"&$B$2&\"|\"&A12,Capacity_DB!$A:$A,Capacity_DB!$Q:$Q,0)),0))","v":0},{"$f":"IF(OR($B12=\"\",$B12=\"N/A\"),\"\",IFERROR(_xlfn.SINGLE(_xlfn.XLOOKUP($B$1&\"|\"&$B$2&\"|\"&A12,Capacity_DB!$A:$A,Capacity_DB!$R:$R,0)),0))","v":0},{"$f":"IF(OR($B12=\"\",$B12=\"N/A\"),\"\",IFERROR(_xlfn.SINGLE(_xlfn.XLOOKUP($B$1&\"|\"&$B$2&\"|\"&A12,Capacity_DB!$A:$A,Capacity_DB!$S:$S,0)),0))","v":0},{"$f":"IF(OR($B12=\"\",$B12=\"N/A\"),\"\",IFERROR(_xlfn.SINGLE(_xlfn.XLOOKUP($B$1&\"|\"&$B$2&\"|\"&A12,Capacity_DB!$A:$A,Capacity_DB!$T:$T,0)),0))","v":0},{"$f":"IF(OR($B12=\"\",$B12=\"N/A\"),\"\",IFERROR(_xlfn.SINGLE(_xlfn.XLOOKUP($B$1&\"|\"&$B$2&\"|\"&A12,Capacity_DB!$A:$A,Capacity_DB!$U:$U,0)),0))","v":0},{"$f":"IF(OR($B12=\"\",$B12=\"N/A\"),\"\",IFERROR(_xlfn.SINGLE(_xlfn.XLOOKUP($B$1&\"|\"&$B$2&\"|\"&A12,Capacity_DB!$A:$A,Capacity_DB!$V:$V,0)),0))","v":0},{"$f":"IF(OR($B12=\"\",$B12=\"N/A\"),\"\",IFERROR(_xlfn.SINGLE(_xlfn.XLOOKUP($B$1&\"|\"&$B$2&\"|\"&A12,Capacity_DB!$A:$A,Capacity_DB!$W:$W,0)),0))","v":0},{"$f":"IF(OR($B12=\"\",$B12=\"N/A\"),\"\",IFERROR(_xlfn.SINGLE(_xlfn.XLOOKUP($B$1&\"|\"&$B$2&\"|\"&A12,Capacity_DB!$A:$A,Capacity_DB!$X:$X,0)),0))","v":0},{"$f":"IF(OR($B12=\"\",$B12=\"N/A\"),\"\",IFERROR(_xlfn.SINGLE(_xlfn.XLOOKUP($B$1&\"|\"&$B$2&\"|\"&A12,Capacity_DB!$A:$A,Capacity_DB!$Y:$Y,0)),0))","v":0},{"$f":"IF(OR($B12=\"\",$B12=\"N/A\"),\"\",IFERROR(_xlfn.SINGLE(_xlfn.XLOOKUP($B$1&\"|\"&$B$2&\"|\"&A12,Capacity_DB!$A:$A,Capacity_DB!$Z:$Z,0)),0))","v":0},0,329,""]
[6,{"$f":"IFERROR(_xlfn.SINGLE(_xlfn.XLOOKUP($B$1&\"|\"&$B$2&\"|\"&A13,Capacity_DB!$A:$A,Capacity_DB!$E:$E,\"\")),\"\")","v":"ROOIKOP (I) - RIETVALLEI (E)"},{"$f":"IF(OR($B13=\"\",$B13=\"N/A\"),\"\",IFERROR(_xlfn.SINGLE(_xlfn.XLOOKUP($B$1&\"|\"&$B$2&\"|\"&A13,Capacity_DB!$A:$A,Capacity_DB!$F:$F,\"\")),\"\"))","v":"VEREENIGING"},{"$f":"IF(OR($B13=\"\",$B13=\"N/A\"),\"\",IFERROR(_xlfn.SINGLE(_xlfn.XLOOKUP($B$1&\"|\"&$B$2&\"|\"&A13,Capacity_DB!$A:$A,Capacity_DB!$G:$G,\"\")),\"\"))","v":42},27,{"$f":"IF(OR($B13=\"\",$B13=\"N/A\"),\"\",IFERROR(_xlfn.SINGLE(_xlfn.XLOOKUP($B$1&\"|\"&$B$2&\"|\"&A13,Capacity_DB!$A:$A,Capacity_DB!$H:$H,0)),0))","v":0},{"$f":"IF(OR($B13=\"\",$B13=\"N/A\"),\"\",IFERROR(_xlfn.SINGLE(_xlfn.XLOOKUP($B$1&\"|\"&$B$2&\"|\"&A13,Capacity_DB!$A:$A,Capacity_DB!$I:$I,0)),0))","v":0},{"$f":"IF(OR($B13=\"\",$B13=\"N/A\"),\"\",IFERROR(_xlfn.SINGLE(_xlfn.XLOOKUP($B$1&\"|\"&$B$2&\"|\"&A13,Capacity_DB!$A:$A,Capacity_DB!$J:$J,0)),0))","v":0},{"$f":"IF(OR($B13=\"\",$B13=\"N/A\"),\"\",IFERROR(_xlfn.SINGLE(_xlfn.XLOOKUP($B$1&\"|\"&$B$2&\"|\"&A13,Capacity_DB!$A:$A,Capacity_DB!$K:$K,0)),0))","v":0},27,189,{"$f":"IF(OR($B13=\"\",$B13=\"N/A\"),\"\",IFERROR(_xlfn.SINGLE(_xlfn.XLOOKUP($B$1&\"|\"&$B$2&\"|\"&A13,Capacity_DB!$A:$A,Capacity_DB!$L:$L,0)),0))","v":0},{"$f":"IF(OR($B13=\"\",$B13=\"N/A\"),\"\",IFERROR(_xlfn.SINGLE(_xlfn.XLOOKUP($B$1&\"|\"&$B$2&\"|\"&A13,Capacity_DB!$A:$A,Capacity_DB!$M:$M,0)),0))","v":0},{"$f":"IF(OR($B13=\"\",$B13=\"N/A\"),\"\",IFERROR(_xlfn.SINGLE(_xlfn.XLOOKUP($B$1&\"|\"&$B$2&\"|\"&A13,Capacity_DB!$A:$A,Capacity_DB!$N:$N,0)),0))","v":0},{"$f":"IF(OR($B13=\"\",$B13=\"N/A\"),\"\",IFERROR(_xlfn.SINGLE(_xlfn.XLOOKUP($B$1&\"|\"&$B$2&\"|\"&A13,Capacity_DB!$A:$A,Capacity_DB!$O:$O,0)),0))","v":0},{"$f":"IF(OR($B13=\"\",$B13=\"N/A\"),\"\",IFERROR(_xlfn.SINGLE(_xlfn.XLOOKUP($B$1&\"|\"&$B$2&\"|\"&A13,Capacity_DB!$A:$A,Capacity_DB!$P:$P,0)),0))","v":0},{"$f":"IF(OR($B13=\"\",$B13=\"N/A\"),\"\",IFERROR(_xlfn.SINGLE(_xlfn.XLOOKUP($B$1&\"|\"&$B$2&\"|\"&A13,Capacity_DB!$A:$A,Capacity_DB!$Q:$Q,0)),0))","v":0},{"$f":"IF(OR($B13=\"\",$B13=\"N/A\"),\"\",IFERROR(_xlfn.SINGLE(_xlfn.XLOOKUP($B$1&\"|\"&$B$2&\"|\"&A13,Capacity_DB!$A:$A,Capacity_DB!$R:$R,0)),0))","v":0},{"$f":"IF(OR($B13=\"\",$B13=\"N/A\"),\"\",IFERROR(_xlfn.SINGLE(_xlfn.XLOOKUP($B$1&\"|\"&$B$2&\"|\"&A13,Capacity_DB!$A:$A,Capacity_DB!$S:$S,0)),0))","v":0},{"$f":"IF(OR($B13=\"\",$B13=\"N/A\"),\"\",IFERROR(_xlfn.SINGLE(_xlfn.XLOOKUP($B$1&\"|\"&$B$2&\"|\"&A13,Capacity_DB!$A:$A,Capacity_DB!$T:$T,0)),0))","v":0},{"$f":"IF(OR($B13=\"\",$B13=\"N/A\"),\"\",IFERROR(_xlfn.SINGLE(_xlfn.XLOOKUP($B$1&\"|\"&$B$2&\"|\"&A13,Capacity_DB!$A:$A,Capacity_DB!$U:$U,0)),0))","v":0},{"$f":"IF(OR($B13=\"\",$B13=\"N/A\"),\"\",IFERROR(_xlfn.SINGLE(_xlfn.XLOOKUP($B$1&\"|\"&$B$2&\"|\"&A13,Capacity_DB!$A:$A,Capacity_DB!$V:$V,0)),0))","v":0},{"$f":"IF(OR($B13=\"\",$B13=\"N/A\"),\"\",IFERROR(_xlfn.SINGLE(_xlfn.XLOOKUP($B$1&\"|\"&$B$2&\"|\"&A13,Capacity_DB!$A:$A,Capacity_DB!$W:$W,0)),0))","v":0},{"$f":"IF(OR($B13=\"\",$B13=\"N/A\"),\"\",IFERROR(_xlfn.SINGLE(_xlfn.XLOOKUP($B$1&\"|\"&$B$2&\"|\"&A13,Capacity_DB!$A:$A,Capacity_DB!$X:$X,0)),0))","v":0},{"$f":"IF(OR($B13=\"\",$B13=\"N/A\"),\"\",IFERROR(_xlfn.SINGLE(_xlfn.XLOOKUP($B$1&\"|\"&$B$2&\"|\"&A13,Capacity_DB!$A:$A,Capacity_DB!$Y:$Y,0)),0))","v":0},{"$f":"IF(OR($B13=\"\",$B13=\"N/A\"),\"\",IFERROR(_xlfn.SINGLE(_xlfn.XLOOKUP($B$1&\"|\"&$B$2&\"|\"&A13,Capacity_DB!$A:$A,Capacity_DB!$Z:$Z,0)),0))","v":0},0,189,""]
[7,{"$f":"IFERROR(_xlfn.SINGLE(_xlfn.XLOOKUP($B$1&\"|\"&$B$2&\"|\"&A14,Capacity_DB!$A:$A,Capacity_DB!$E:$E,\"\")),\"\")","v":"RIETVALLEI (I) - VOORUITSIG (E )"},{"$f":"IF(OR($B14=\"\",$B14=\"N/A\"),\"\",IFERROR(_xlfn.SINGLE(_xlfn.XLOOKUP($B$1&\"|\"&$B$2&\"|\"&A14,Capacity_DB!$A:$A,Capacity_DB!$F:$F,\"\")),\"\"))","v":"HEIDELBERG"},{"$f":"IF(OR($B14=\"\",$B14=\"N/A\"),\"\",IFERROR(_xlfn.SINGLE(_xlfn.XLOOKUP($B$1&\"|\"&$B$2&\"|\"&A14,Capacity_DB!$A:$A,Capacity_DB!$G:$G,\"\")),\"\"))","v":72},47,{"$f":"IF(OR($B14=\"\",$B14=\"N/A\"),\"\",IFERROR(_xlfn.SINGLE(_xlfn.XLOOKUP($B$1&\"|\"&$B$2&\"|\"&A14,Capacity_DB!$A:$A,Capacity_DB!$H:$H,0)),0))","v":0},{"$f":"IF(OR($B14=\"\",$B14=\"N/A\"),\"\",IFERROR(_xlfn.SINGLE(_xlfn.XLOOKUP($B$1&\"|\"&$B$2&\"|\"&A14,Capacity_DB!$A:$A,Capacity_DB!$I:$I,0)),0))","v":0},{"$f":"IF(OR($B14=\"\",$B14=\"N/A\"),\"\",IFERROR(_xlfn.SINGLE(_xlfn.XLOOKUP($B$1&\"|\"&$B$2&\"|\"&A14,Capacity_DB!$A:$A,Capacity_DB!$J:$J,0)),0))","v":0},{"$f":"IF(OR($B14=\"\",$B14=\"N/A\"),\"\",IFERROR(_xlfn.SINGLE(_xlfn.XLOOKUP($B$1&\"|\"&$B$2&\"|\"&A14,Capacity_DB!$A:$A,Capacity_DB!$K:$K,0)),0))","v":0},47,329,{"$f":"IF(OR($B14=\"\",$B14=\"N/A\"),\"\",IFERROR(_xlfn.SINGLE(_xlfn.XLOOKUP($B$1&\"|\"&$B$2&\"|\"&A14,Capacity_DB!$A:$A,Capacity_DB!$L:$L,0)),0))","v":0},{"$f":"IF(OR($B14=\"\",$B14=\"N/A\"),\"\",IFERROR(_xlfn.SINGLE(_xlfn.XLOOKUP($B$1&\"|\"&$B$2&\"|\"&A14,Capacity_DB!$A:$A,Capacity_DB!$M:$M,0)),0))","v":0},{"$f":"IF(OR($B14=\"\",$B14=\"N/A\"),\"\",IFERROR(_xlfn.SINGLE(_xlfn.XLOOKUP($B$1&\"|\"&$B$2&\"|\"&A14,Capacity_DB!$A:$A,Capacity_DB!$N:$N,0)),0))","v":0},{"$f":"IF(OR($B14=\"\",$B14=\"N/A\"),\"\",IFERROR(_xlfn.SINGLE(_xlfn.XLOOKUP($B$1&\"|\"&$B$2&\"|\"&A14,Capacity_DB!$A:$A,Capacity_DB!$O:$O,0)),0))","v":0},{"$f":"IF(OR($B14=\"\",$B14=\"N/A\"),\"\",IFERROR(_xlfn.SINGLE(_xlfn.XLOOKUP($B$1&\"|\"&$B$2&\"|\"&A14,Capacity_DB!$A:$A,Capacity_DB!$P:$P,0)),0))","v":0},{"$f":"IF(OR($B14=\"\",$B14=\"N/A\"),\"\",IFERROR(_xlfn.SINGLE(_xlfn.XLOOKUP($B$1&\"|\"&$B$2&\"|\"&A14,Capacity_DB!$A:$A,Capacity_DB!$Q:$Q,0)),0))","v":0},{"$f":"IF(OR($B14=\"\",$B14=\"N/A\"),\"\",IFERROR(_xlfn.SINGLE(_xlfn.XLOOKUP($B$1&\"|\"&$B$2&\"|\"&A14,Capacity_DB!$A:$A,Capacity_DB!$R:$R,0)),0))","v":0},{"$f":"IF(OR($B14=\"\",$B14=\"N/A\"),\"\",IFERROR(_xlfn.SINGLE(_xlfn.XLOOKUP($B$1&\"|\"&$B$2&\"|\"&A14,Capacity_DB!$A:$A,Capacity_DB!$S:$S,0)),0))","v":0},{"$f":"IF(OR($B14=\"\",$B14=\"N/A\"),\"\",IFERROR(_xlfn.SINGLE(_xlfn.XLOOKUP($B$1&\"|\"&$B$2&\"|\"&A14,Capacity_DB!$A:$A,Capacity_DB!$T:$T,0)),0))","v":0},{"$f":"IF(OR($B14=\"\",$B14=\"N/A\"),\"\",IFERROR(_xlfn.SINGLE(_xlfn.XLOOKUP($B$1&\"|\"&$B$2&\"|\"&A14,Capacity_DB!$A:$A,Capacity_DB!$U:$U,0)),0))","v":0},{"$f":"IF(OR($B14=\"\",$B14=\"N/A\"),\"\",IFERROR(_xlfn.SINGLE(_xlfn.XLOOKUP($B$1&\"|\"&$B$2&\"|\"&A14,Capacity_DB!$A:$A,Capacity_DB!$V:$V,0)),0))","v":0},{"$f":"IF(OR($B14=\"\",$B14=\"N/A\"),\"\",IFERROR(_xlfn.SINGLE(_xlfn.XLOOKUP($B$1&\"|\"&$B$2&\"|\"&A14,Capacity_DB!$A:$A,Capacity_DB!$W:$W,0)),0))","v":0},{"$f":"IF(OR($B14=\"\",$B14=\"N/A\"),\"\",IFERROR(_xlfn.SINGLE(_xlfn.XLOOKUP($B$1&\"|\"&$B$2&\"|\"&A14,Capacity_DB!$A:$A,Capacity_DB!$X:$X,0)),0))","v":0},{"$f":"IF(OR($B14=\"\",$B14=\"N/A\"),\"\",IFERROR(_xlfn.SINGLE(_xlfn.XLOOKUP($B$1&\"|\"&$B$2&\"|\"&A14,Capacity_DB!$A:$A,Capacity_DB!$Y:$Y,0)),0))","v":0},{"$f":"IF(OR($B14=\"\",$B14=\"N/A\"),\"\",IFERROR(_xlfn.SINGLE(_xlfn.XLOOKUP($B$1&\"|\"&$B$2&\"|\"&A14,Capacity_DB!$A:$A,Capacity_DB!$Z:$Z,0)),0))","v":0},0,329,""]
[8,{"$f":"IFERROR(_xlfn.SINGLE(_xlfn.XLOOKUP($B$1&\"|\"&$B$2&\"|\"&A15,Capacity_DB!$A:$A,Capacity_DB!$E:$E,\"\")),\"\")","v":"VOORUITSIG (E) - CLAVIS (I)"},{"$f":"IF(OR($B15=\"\",$B15=\"N/A\"),\"\",IFERROR(_xlfn.SINGLE(_xlfn.XLOOKUP($B$1&\"|\"&$B$2&\"|\"&A15,Capacity_DB!$A:$A,Capacity_DB!$F:$F,\"\")),\"\"))","v":"HEIDELBERG"},{"$f":"IF(OR($B15=\"\",$B15=\"N/A\"),\"\",IFERROR(_xlfn.SINGLE(_xlfn.XLOOKUP($B$1&\"|\"&$B$2&\"|\"&A15,Capacity_DB!$A:$A,Capacity_DB!$G:$G,\"\")),\"\"))","v":72},47,{"$f":"IF(OR($B15=\"\",$B15=\"N/A\"),\"\",IFERROR(_xlfn.SINGLE(_xlfn.XLOOKUP($B$1&\"|\"&$B$2&\"|\"&A15,Capacity_DB!$A:$A,Capacity_DB!$H:$H,0)),0))","v":0},{"$f":"IF(OR($B15=\"\",$B15=\"N/A\"),\"\",IFERROR(_xlfn.SINGLE(_xlfn.XLOOKUP($B$1&\"|\"&$B$2&\"|\"&A15,Capacity_DB!$A:$A,Capacity_DB!$I:$I,0)),0))","v":0},{"$f":"IF(OR($B15=\"\",$B15=\"N/A\"),\"\",IFERROR(_xlfn.SINGLE(_xlfn.XLOOKUP($B$1&\"|\"&$B$2&\"|\"&A15,Capacity_DB!$A:$A,Capacity_DB!$J:$J,0)),0))","v":0},{"$f":"IF(OR($B15=\"\",$B15=\"N/A\"),\"\",IFERROR(_xlfn.SINGLE(_xlfn.XLOOKUP($B$1&\"|\"&$B$2&\"|\"&A15,Capacity_DB!$A:$A,Capacity_DB!$K:$K,0)),0))","v":0},47,329,{"$f":"IF(OR($B15=\"\",$B15=\"N/A\"),\"\",IFERROR(_xlfn.SINGLE(_xlfn.XLOOKUP($B$1&\"|\"&$B$2&\"|\"&A15,Capacity_DB!$A:$A,Capacity_DB!$L:$L,0)),0))","v":0},{"$f":"IF(OR($B15=\"\",$B15=\"N/A\"),\"\",IFERROR(_xlfn.SINGLE(_xlfn.XLOOKUP($B$1&\"|\"&$B$2&\"|\"&A15,Capacity_DB!$A:$A,Capacity_DB!$M:$M,0)),0))","v":0},{"$f":"IF(OR($B15=\"\",$B15=\"N/A\"),\"\",IFERROR(_xlfn.SINGLE(_xlfn.XLOOKUP($B$1&\"|\"&$B$2&\"|\"&A15,Capacity_DB!$A:$A,Capacity_DB!$N:$N,0)),0))","v":0},{"$f":"IF(OR($B15=\"\",$B15=\"N/A\"),\"\",IFERROR(_xlfn.SINGLE(_xlfn.XLOOKUP($B$1&\"|\"&$B$2&\"|\"&A15,Capacity_DB!$A:$A,Capacity_DB!$O:$O,0)),0))","v":0},{"$f":"IF(OR($B15=\"\",$B15=\"N/A\"),\"\",IFERROR(_xlfn.SINGLE(_xlfn.XLOOKUP($B$1&\"|\"&$B$2&\"|\"&A15,Capacity_DB!$A:$A,Capacity_DB!$P:$P,0)),0))","v":0},{"$f":"IF(OR($B15=\"\",$B15=\"N/A\"),\"\",IFERROR(_xlfn.SINGLE(_xlfn.XLOOKUP($B$1&\"|\"&$B$2&\"|\"&A15,Capacity_DB!$A:$A,Capacity_DB!$Q:$Q,0)),0))","v":0},{"$f":"IF(OR($B15=\"\",$B15=\"N/A\"),\"\",IFERROR(_xlfn.SINGLE(_xlfn.XLOOKUP($B$1&\"|\"&$B$2&\"|\"&A15,Capacity_DB!$A:$A,Capacity_DB!$R:$R,0)),0))","v":0},{"$f":"IF(OR($B15=\"\",$B15=\"N/A\"),\"\",IFERROR(_xlfn.SINGLE(_xlfn.XLOOKUP($B$1&\"|\"&$B$2&\"|\"&A15,Capacity_DB!$A:$A,Capacity_DB!$S:$S,0)),0))","v":0},{"$f":"IF(OR($B15=\"\",$B15=\"N/A\"),\"\",IFERROR(_xlfn.SINGLE(_xlfn.XLOOKUP($B$1&\"|\"&$B$2&\"|\"&A15,Capacity_DB!$A:$A,Capacity_DB!$T:$T,0)),0))","v":0},{"$f":"IF(OR($B15=\"\",$B15=\"N/A\"),\"\",IFERROR(_xlfn.SINGLE(_xlfn.XLOOKUP($B$1&\"|\"&$B$2&\"|\"&A15,Capacity_DB!$A:$A,Capacity_DB!$U:$U,0)),0))","v":0},{"$f":"IF(OR($B15=\"\",$B15=\"N/A\"),\"\",IFERROR(_xlfn.SINGLE(_xlfn.XLOOKUP($B$1&\"|\"&$B$2&\"|\"&A15,Capacity_DB!$A:$A,Capacity_DB!$V:$V,0)),0))","v":0},{"$f":"IF(OR($B15=\"\",$B15=\"N/A\"),\"\",IFERROR(_xlfn.SINGLE(_xlfn.XLOOKUP($B$1&\"|\"&$B$2&\"|\"&A15,Capacity_DB!$A:$A,Capacity_DB!$W:$W,0)),0))","v":0},{"$f":"IF(OR($B15=\"\",$B15=\"N/A\"),\"\",IFERROR(_xlfn.SINGLE(_xlfn.XLOOKUP($B$1&\"|\"&$B$2&\"|\"&A15,Capacity_DB!$A:$A,Capacity_DB!$X:$X,0)),0))","v":0},{"$f":"IF(OR($B15=\"\",$B15=\"N/A\"),\"\",IFERROR(_xlfn.SINGLE(_xlfn.XLOOKUP($B$1&\"|\"&$B$2&\"|\"&A15,Capacity_DB!$A:$A,Capacity_DB!$Y:$Y,0)),0))","v":0},{"$f":"IF(OR($B15=\"\",$B15=\"N/A\"),\"\",IFERROR(_xlfn.SINGLE(_xlfn.XLOOKUP($B$1&\"|\"&$B$2&\"|\"&A15,Capacity_DB!$A:$A,Capacity_DB!$Z:$Z,0)),0))","v":0},0,329,""]
[9,{"$f":"IFERROR(_xlfn.SINGLE(_xlfn.XLOOKUP($B$1&\"|\"&$B$2&\"|\"&A16,Capacity_DB!$A:$A,Capacity_DB!$E:$E,\"\")),\"\")","v":"CLAVIS(E) - NEWCASTLE (I)"},{"$f":"IF(OR($B16=\"\",$B16=\"N/A\"),\"\",IFERROR(_xlfn.SINGLE(_xlfn.XLOOKUP($B$1&\"|\"&$B$2&\"|\"&A16,Capacity_DB!$A:$A,Capacity_DB!$F:$F,\"\")),\"\"))","v":"HEIDELBERG"},{"$f":"IF(OR($B16=\"\",$B16=\"N/A\"),\"\",IFERROR(_xlfn.SINGLE(_xlfn.XLOOKUP($B$1&\"|\"&$B$2&\"|\"&A16,Capacity_DB!$A:$A,Capacity_DB!$G:$G,\"\")),\"\"))","v":72},47,{"$f":"IF(OR($B16=\"\",$B16=\"N/A\"),\"\",IFERROR(_xlfn.SINGLE(_xlfn.XLOOKUP($B$1&\"|\"&$B$2&\"|\"&A16,Capacity_DB!$A:$A,Capacity_DB!$H:$H,0)),0))","v":0},{"$f":"IF(OR($B16=\"\",$B16=\"N/A\"),\"\",IFERROR(_xlfn.SINGLE(_xlfn.XLOOKUP($B$1&\"|\"&$B$2&\"|\"&A16,Capacity_DB!$A:$A,Capacity_DB!$I:$I,0)),0))","v":0},{"$f":"IF(OR($B16=\"\",$B16=\"N/A\"),\"\",IFERROR(_xlfn.SINGLE(_xlfn.XLOOKUP($B$1&\"|\"&$B$2&\"|\"&A16,Capacity_DB!$A:$A,Capacity_DB!$J:$J,0)),0))","v":0},{"$f":"IF(OR($B16=\"\",$B16=\"N/A\"),\"\",IFERROR(_xlfn.SINGLE(_xlfn.XLOOKUP($B$1&\"|\"&$B$2&\"|\"&A16,Capacity_DB!$A:$A,Capacity_DB!$K:$K,0)),0))","v":0},47,329,{"$f":"IF(OR($B16=\"\",$B16=\"N/A\"),\"\",IFERROR(_xlfn.SINGLE(_xlfn.XLOOKUP($B$1&\"|\"&$B$2&\"|\"&A16,Capacity_DB!$A:$A,Capacity_DB!$L:$L,0)),0))","v":0},{"$f":"IF(OR($B16=\"\",$B16=\"N/A\"),\"\",IFERROR(_xlfn.SINGLE(_xlfn.XLOOKUP($B$1&\"|\"&$B$2&\"|\"&A16,Capacity_DB!$A:$A,Capacity_DB!$M:$M,0)),0))","v":0},{"$f":"IF(OR($B16=\"\",$B16=\"N/A\"),\"\",IFERROR(_xlfn.SINGLE(_xlfn.XLOOKUP($B$1&\"|\"&$B$2&\"|\"&A16,Capacity_DB!$A:$A,Capacity_DB!$N:$N,0)),0))","v":0},{"$f":"IF(OR($B16=\"\",$B16=\"N/A\"),\"\",IFERROR(_xlfn.SINGLE(_xlfn.XLOOKUP($B$1&\"|\"&$B$2&\"|\"&A16,Capacity_DB!$A:$A,Capacity_DB!$O:$O,0)),0))","v":0},{"$f":"IF(OR($B16=\"\",$B16=\"N/A\"),\"\",IFERROR(_xlfn.SINGLE(_xlfn.XLOOKUP($B$1&\"|\"&$B$2&\"|\"&A16,Capacity_DB!$A:$A,Capacity_DB!$P:$P,0)),0))","v":0},{"$f":"IF(OR($B16=\"\",$B16=\"N/A\"),\"\",IFERROR(_xlfn.SINGLE(_xlfn.XLOOKUP($B$1&\"|\"&$B$2&\"|\"&A16,Capacity_DB!$A:$A,Capacity_DB!$Q:$Q,0)),0))","v":0},{"$f":"IF(OR($B16=\"\",$B16=\"N/A\"),\"\",IFERROR(_xlfn.SINGLE(_xlfn.XLOOKUP($B$1&\"|\"&$B$2&\"|\"&A16,Capacity_DB!$A:$A,Capacity_DB!$R:$R,0)),0))","v":0},{"$f":"IF(OR($B16=\"\",$B16=\"N/A\"),\"\",IFERROR(_xlfn.SINGLE(_xlfn.XLOOKUP($B$1&\"|\"&$B$2&\"|\"&A16,Capacity_DB!$A:$A,Capacity_DB!$S:$S,0)),0))","v":0},{"$f":"IF(OR($B16=\"\",$B16=\"N/A\"),\"\",IFERROR(_xlfn.SINGLE(_xlfn.XLOOKUP($B$1&\"|\"&$B$2&\"|\"&A16,Capacity_DB!$A:$A,Capacity_DB!$T:$T,0)),0))","v":0},{"$f":"IF(OR($B16=\"\",$B16=\"N/A\"),\"\",IFERROR(_xlfn.SINGLE(_xlfn.XLOOKUP($B$1&\"|\"&$B$2&\"|\"&A16,Capacity_DB!$A:$A,Capacity_DB!$U:$U,0)),0))","v":0},{"$f":"IF(OR($B16=\"\",$B16=\"N/A\"),\"\",IFERROR(_xlfn.SINGLE(_xlfn.XLOOKUP($B$1&\"|\"&$B$2&\"|\"&A16,Capacity_DB!$A:$A,Capacity_DB!$V:$V,0)),0))","v":0},{"$f":"IF(OR($B16=\"\",$B16=\"N/A\"),\"\",IFERROR(_xlfn.SINGLE(_xlfn.XLOOKUP($B$1&\"|\"&$B$2&\"|\"&A16,Capacity_DB!$A:$A,Capacity_DB!$W:$W,0)),0))","v":0},{"$f":"IF(OR($B16=\"\",$B16=\"N/A\"),\"\",IFERROR(_xlfn.SINGLE(_xlfn.XLOOKUP($B$1&\"|\"&$B$2&\"|\"&A16,Capacity_DB!$A:$A,Capacity_DB!$X:$X,0)),0))","v":0},{"$f":"IF(OR($B16=\"\",$B16=\"N/A\"),\"\",IFERROR(_xlfn.SINGLE(_xlfn.XLOOKUP($B$1&\"|\"&$B$2&\"|\"&A16,Capacity_DB!$A:$A,Capacity_DB!$Y:$Y,0)),0))","v":0},{"$f":"IF(OR($B16=\"\",$B16=\"N/A\"),\"\",IFERROR(_xlfn.SINGLE(_xlfn.XLOOKUP($B$1&\"|\"&$B$2&\"|\"&A16,Capacity_DB!$A:$A,Capacity_DB!$Z:$Z,0)),0))","v":0},0,329,""]
[10,{"$f":"IFERROR(_xlfn.SINGLE(_xlfn.XLOOKUP($B$1&\"|\"&$B$2&\"|\"&A17,Capacity_DB!$A:$A,Capacity_DB!$E:$E,\"\")),\"\")","v":"NEWCASTLE (E) - ALCOCKSPRUIT (E)"},{"$f":"IF(OR($B17=\"\",$B17=\"N/A\"),\"\",IFERROR(_xlfn.SINGLE(_xlfn.XLOOKUP($B$1&\"|\"&$B$2&\"|\"&A17,Capacity_DB!$A:$A,Capacity_DB!$F:$F,\"\")),\"\"))","v":"HEIDELBERG"},{"$f":"IF(OR($B17=\"\",$B17=\"N/A\"),\"\",IFERROR(_xlfn.SINGLE(_xlfn.XLOOKUP($B$1&\"|\"&$B$2&\"|\"&A17,Capacity_DB!$A:$A,Capacity_DB!$G:$G,\"\")),\"\"))","v":72},47,{"$f":"IF(OR($B17=\"\",$B17=\"N/A\"),\"\",IFERROR(_xlfn.SINGLE(_xlfn.XLOOKUP($B$1&\"|\"&$B$2&\"|\"&A17,Capacity_DB!$A:$A,Capacity_DB!$H:$H,0)),0))","v":0},{"$f":"IF(OR($B17=\"\",$B17=\"N/A\"),\"\",IFERROR(_xlfn.SINGLE(_xlfn.XLOOKUP($B$1&\"|\"&$B$2&\"|\"&A17,Capacity_DB!$A:$A,Capacity_DB!$I:$I,0)),0))","v":0},{"$f":"IF(OR($B17=\"\",$B17=\"N/A\"),\"\",IFERROR(_xlfn.SINGLE(_xlfn.XLOOKUP($B$1&\"|\"&$B$2&\"|\"&A17,Capacity_DB!$A:$A,Capacity_DB!$J:$J,0)),0))","v":0},{"$f":"IF(OR($B17=\"\",$B17=\"N/A\"),\"\",IFERROR(_xlfn.SINGLE(_xlfn.XLOOKUP($B$1&\"|\"&$B$2&\"|\"&A17,Capacity_DB!$A:$A,Capacity_DB!$K:$K,0)),0))","v":0},47,329,{"$f":"IF(OR($B17=\"\",$B17=\"N/A\"),\"\",IFERROR(_xlfn.SINGLE(_xlfn.XLOOKUP($B$1&\"|\"&$B$2&\"|\"&A17,Capacity_DB!$A:$A,Capacity_DB!$L:$L,0)),0))","v":0},{"$f":"IF(OR($B17=\"\",$B17=\"N/A\"),\"\",IFERROR(_xlfn.SINGLE(_xlfn.XLOOKUP($B$1&\"|\"&$B$2&\"|\"&A17,Capacity_DB!$A:$A,Capacity_DB!$M:$M,0)),0))","v":0},{"$f":"IF(OR($B17=\"\",$B17=\"N/A\"),\"\",IFERROR(_xlfn.SINGLE(_xlfn.XLOOKUP($B$1&\"|\"&$B$2&\"|\"&A17,Capacity_DB!$A:$A,Capacity_DB!$N:$N,0)),0))","v":0},{"$f":"IF(OR($B17=\"\",$B17=\"N/A\"),\"\",IFERROR(_xlfn.SINGLE(_xlfn.XLOOKUP($B$1&\"|\"&$B$2&\"|\"&A17,Capacity_DB!$A:$A,Capacity_DB!$O:$O,0)),0))","v":0},{"$f":"IF(OR($B17=\"\",$B17=\"N/A\"),\"\",IFERROR(_xlfn.SINGLE(_xlfn.XLOOKUP($B$1&\"|\"&$B$2&\"|\"&A17,Capacity_DB!$A:$A,Capacity_DB!$P:$P,0)),0))","v":0},{"$f":"IF(OR($B17=\"\",$B17=\"N/A\"),\"\",IFERROR(_xlfn.SINGLE(_xlfn.XLOOKUP($B$1&\"|\"&$B$2&\"|\"&A17,Capacity_DB!$A:$A,Capacity_DB!$Q:$Q,0)),0))","v":0},{"$f":"IF(OR($B17=\"\",$B17=\"N/A\"),\"\",IFERROR(_xlfn.SINGLE(_xlfn.XLOOKUP($B$1&\"|\"&$B$2&\"|\"&A17,Capacity_DB!$A:$A,Capacity_DB!$R:$R,0)),0))","v":0},{"$f":"IF(OR($B17=\"\",$B17=\"N/A\"),\"\",IFERROR(_xlfn.SINGLE(_xlfn.XLOOKUP($B$1&\"|\"&$B$2&\"|\"&A17,Capacity_DB!$A:$A,Capacity_DB!$S:$S,0)),0))","v":0},{"$f":"IF(OR($B17=\"\",$B17=\"N/A\"),\"\",IFERROR(_xlfn.SINGLE(_xlfn.XLOOKUP($B$1&\"|\"&$B$2&\"|\"&A17,Capacity_DB!$A:$A,Capacity_DB!$T:$T,0)),0))","v":0},{"$f":"IF(OR($B17=\"\",$B17=\"N/A\"),\"\",IFERROR(_xlfn.SINGLE(_xlfn.XLOOKUP($B$1&\"|\"&$B$2&\"|\"&A17,Capacity_DB!$A:$A,Capacity_DB!$U:$U,0)),0))","v":0},{"$f":"IF(OR($B17=\"\",$B17=\"N/A\"),\"\",IFERROR(_xlfn.SINGLE(_xlfn.XLOOKUP($B$1&\"|\"&$B$2&\"|\"&A17,Capacity_DB!$A:$A,Capacity_DB!$V:$V,0)),0))","v":0},{"$f":"IF(OR($B17=\"\",$B17=\"N/A\"),\"\",IFERROR(_xlfn.SINGLE(_xlfn.XLOOKUP($B$1&\"|\"&$B$2&\"|\"&A17,Capacity_DB!$A:$A,Capacity_DB!$W:$W,0)),0))","v":0},{"$f":"IF(OR($B17=\"\",$B17=\"N/A\"),\"\",IFERROR(_xlfn.SINGLE(_xlfn.XLOOKUP($B$1&\"|\"&$B$2&\"|\"&A17,Capacity_DB!$A:$A,Capacity_DB!$X:$X,0)),0))","v":0},{"$f":"IF(OR($B17=\"\",$B17=\"N/A\"),\"\",IFERROR(_xlfn.SINGLE(_xlfn.XLOOKUP($B$1&\"|\"&$B$2&\"|\"&A17,Capacity_DB!$A:$A,Capacity_DB!$Y:$Y,0)),0))","v":0},{"$f":"IF(OR($B17=\"\",$B17=\"N/A\"),\"\",IFERROR(_xlfn.SINGLE(_xlfn.XLOOKUP($B$1&\"|\"&$B$2&\"|\"&A17,Capacity_DB!$A:$A,Capacity_DB!$Z:$Z,0)),0))","v":0},0,329,""]
[11,{"$f":"IFERROR(_xlfn.SINGLE(_xlfn.XLOOKUP($B$1&\"|\"&$B$2&\"|\"&A18,Capacity_DB!$A:$A,Capacity_DB!$E:$E,\"\")),\"\")","v":"ALCOCKSPRUIT (I) - GLENCOE (I)"},{"$f":"IF(OR($B18=\"\",$B18=\"N/A\"),\"\",IFERROR(_xlfn.SINGLE(_xlfn.XLOOKUP($B$1&\"|\"&$B$2&\"|\"&A18,Capacity_DB!$A:$A,Capacity_DB!$F:$F,\"\")),\"\"))","v":"HEIDELBERG"},{"$f":"IF(OR($B18=\"\",$B18=\"N/A\"),\"\",IFERROR(_xlfn.SINGLE(_xlfn.XLOOKUP($B$1&\"|\"&$B$2&\"|\"&A18,Capacity_DB!$A:$A,Capacity_DB!$G:$G,\"\")),\"\"))","v":72},47,{"$f":"IF(OR($B18=\"\",$B18=\"N/A\"),\"\",IFERROR(_xlfn.SINGLE(_xlfn.XLOOKUP($B$1&\"|\"&$B$2&\"|\"&A18,Capacity_DB!$A:$A,Capacity_DB!$H:$H,0)),0))","v":0},{"$f":"IF(OR($B18=\"\",$B18=\"N/A\"),\"\",IFERROR(_xlfn.SINGLE(_xlfn.XLOOKUP($B$1&\"|\"&$B$2&\"|\"&A18,Capacity_DB!$A:$A,Capacity_DB!$I:$I,0)),0))","v":0},{"$f":"IF(OR($B18=\"\",$B18=\"N/A\"),\"\",IFERROR(_xlfn.SINGLE(_xlfn.XLOOKUP($B$1&\"|\"&$B$2&\"|\"&A18,Capacity_DB!$A:$A,Capacity_DB!$J:$J,0)),0))","v":0},{"$f":"IF(OR($B18=\"\",$B18=\"N/A\"),\"\",IFERROR(_xlfn.SINGLE(_xlfn.XLOOKUP($B$1&\"|\"&$B$2&\"|\"&A18,Capacity_DB!$A:$A,Capacity_DB!$K:$K,0)),0))","v":0},47,329,{"$f":"IF(OR($B18=\"\",$B18=\"N/A\"),\"\",IFERROR(_xlfn.SINGLE(_xlfn.XLOOKUP($B$1&\"|\"&$B$2&\"|\"&A18,Capacity_DB!$A:$A,Capacity_DB!$L:$L,0)),0))","v":0},{"$f":"IF(OR($B18=\"\",$B18=\"N/A\"),\"\",IFERROR(_xlfn.SINGLE(_xlfn.XLOOKUP($B$1&\"|\"&$B$2&\"|\"&A18,Capacity_DB!$A:$A,Capacity_DB!$M:$M,0)),0))","v":0},{"$f":"IF(OR($B18=\"\",$B18=\"N/A\"),\"\",IFERROR(_xlfn.SINGLE(_xlfn.XLOOKUP($B$1&\"|\"&$B$2&\"|\"&A18,Capacity_DB!$A:$A,Capacity_DB!$N:$N,0)),0))","v":0},{"$f":"IF(OR($B18=\"\",$B18=\"N/A\"),\"\",IFERROR(_xlfn.SINGLE(_xlfn.XLOOKUP($B$1&\"|\"&$B$2&\"|\"&A18,Capacity_DB!$A:$A,Capacity_DB!$O:$O,0)),0))","v":0},{"$f":"IF(OR($B18=\"\",$B18=\"N/A\"),\"\",IFERROR(_xlfn.SINGLE(_xlfn.XLOOKUP($B$1&\"|\"&$B$2&\"|\"&A18,Capacity_DB!$A:$A,Capacity_DB!$P:$P,0)),0))","v":0},{"$f":"IF(OR($B18=\"\",$B18=\"N/A\"),\"\",IFERROR(_xlfn.SINGLE(_xlfn.XLOOKUP($B$1&\"|\"&$B$2&\"|\"&A18,Capacity_DB!$A:$A,Capacity_DB!$Q:$Q,0)),0))","v":0},{"$f":"IF(OR($B18=\"\",$B18=\"N/A\"),\"\",IFERROR(_xlfn.SINGLE(_xlfn.XLOOKUP($B$1&\"|\"&$B$2&\"|\"&A18,Capacity_DB!$A:$A,Capacity_DB!$R:$R,0)),0))","v":0},{"$f":"IF(OR($B18=\"\",$B18=\"N/A\"),\"\",IFERROR(_xlfn.SINGLE(_xlfn.XLOOKUP($B$1&\"|\"&$B$2&\"|\"&A18,Capacity_DB!$A:$A,Capacity_DB!$S:$S,0)),0))","v":0},{"$f":"IF(OR($B18=\"\",$B18=\"N/A\"),\"\",IFERROR(_xlfn.SINGLE(_xlfn.XLOOKUP($B$1&\"|\"&$B$2&\"|\"&A18,Capacity_DB!$A:$A,Capacity_DB!$T:$T,0)),0))","v":0},{"$f":"IF(OR($B18=\"\",$B18=\"N/A\"),\"\",IFERROR(_xlfn.SINGLE(_xlfn.XLOOKUP($B$1&\"|\"&$B$2&\"|\"&A18,Capacity_DB!$A:$A,Capacity_DB!$U:$U,0)),0))","v":0},{"$f":"IF(OR($B18=\"\",$B18=\"N/A\"),\"\",IFERROR(_xlfn.SINGLE(_xlfn.XLOOKUP($B$1&\"|\"&$B$2&\"|\"&A18,Capacity_DB!$A:$A,Capacity_DB!$V:$V,0)),0))","v":0},{"$f":"IF(OR($B18=\"\",$B18=\"N/A\"),\"\",IFERROR(_xlfn.SINGLE(_xlfn.XLOOKUP($B$1&\"|\"&$B$2&\"|\"&A18,Capacity_DB!$A:$A,Capacity_DB!$W:$W,0)),0))","v":0},{"$f":"IF(OR($B18=\"\",$B18=\"N/A\"),\"\",IFERROR(_xlfn.SINGLE(_xlfn.XLOOKUP($B$1&\"|\"&$B$2&\"|\"&A18,Capacity_DB!$A:$A,Capacity_DB!$X:$X,0)),0))","v":0},{"$f":"IF(OR($B18=\"\",$B18=\"N/A\"),\"\",IFERROR(_xlfn.SINGLE(_xlfn.XLOOKUP($B$1&\"|\"&$B$2&\"|\"&A18,Capacity_DB!$A:$A,Capacity_DB!$Y:$Y,0)),0))","v":0},{"$f":"IF(OR($B18=\"\",$B18=\"N/A\"),\"\",IFERROR(_xlfn.SINGLE(_xlfn.XLOOKUP($B$1&\"|\"&$B$2&\"|\"&A18,Capacity_DB!$A:$A,Capacity_DB!$Z:$Z,0)),0))","v":0},0,329,""]
[12,{"$f":"IFERROR(_xlfn.SINGLE(_xlfn.XLOOKUP($B$1&\"|\"&$B$2&\"|\"&A19,Capacity_DB!$A:$A,Capacity_DB!$E:$E,\"\")),\"\")","v":"GLENCOE (E) - VRYHEID (I)"},{"$f":"IF(OR($B19=\"\",$B19=\"N/A\"),\"\",IFERROR(_xlfn.SINGLE(_xlfn.XLOOKUP($B$1&\"|\"&$B$2&\"|\"&A19,Capacity_DB!$A:$A,Capacity_DB!$F:$F,\"\")),\"\"))","v":"LADYSMITH"},{"$f":"IF(OR($B19=\"\",$B19=\"N/A\"),\"\",IFERROR(_xlfn.SINGLE(_xlfn.XLOOKUP($B$1&\"|\"&$B$2&\"|\"&A19,Capacity_DB!$A:$A,Capacity_DB!$G:$G,\"\")),\"\"))","v":14},9,{"$f":"IF(OR($B19=\"\",$B19=\"N/A\"),\"\",IFERROR(_xlfn.SINGLE(_xlfn.XLOOKUP($B$1&\"|\"&$B$2&\"|\"&A19,Capacity_DB!$A:$A,Capacity_DB!$H:$H,0)),0))","v":0},{"$f":"IF(OR($B19=\"\",$B19=\"N/A\"),\"\",IFERROR(_xlfn.SINGLE(_xlfn.XLOOKUP($B$1&\"|\"&$B$2&\"|\"&A19,Capacity_DB!$A:$A,Capacity_DB!$I:$I,0)),0))","v":0},{"$f":"IF(OR($B19=\"\",$B19=\"N/A\"),\"\",IFERROR(_xlfn.SINGLE(_xlfn.XLOOKUP($B$1&\"|\"&$B$2&\"|\"&A19,Capacity_DB!$A:$A,Capacity_DB!$J:$J,0)),0))","v":0},{"$f":"IF(OR($B19=\"\",$B19=\"N/A\"),\"\",IFERROR(_xlfn.SINGLE(_xlfn.XLOOKUP($B$1&\"|\"&$B$2&\"|\"&A19,Capacity_DB!$A:$A,Capacity_DB!$K:$K,0)),0))","v":0},9,63,{"$f":"IF(OR($B19=\"\",$B19=\"N/A\"),\"\",IFERROR(_xlfn.SINGLE(_xlfn.XLOOKUP($B$1&\"|\"&$B$2&\"|\"&A19,Capacity_DB!$A:$A,Capacity_DB!$L:$L,0)),0))","v":0},{"$f":"IF(OR($B19=\"\",$B19=\"N/A\"),\"\",IFERROR(_xlfn.SINGLE(_xlfn.XLOOKUP($B$1&\"|\"&$B$2&\"|\"&A19,Capacity_DB!$A:$A,Capacity_DB!$M:$M,0)),0))","v":0},{"$f":"IF(OR($B19=\"\",$B19=\"N/A\"),\"\",IFERROR(_xlfn.SINGLE(_xlfn.XLOOKUP($B$1&\"|\"&$B$2&\"|\"&A19,Capacity_DB!$A:$A,Capacity_DB!$N:$N,0)),0))","v":0},{"$f":"IF(OR($B19=\"\",$B19=\"N/A\"),\"\",IFERROR(_xlfn.SINGLE(_xlfn.XLOOKUP($B$1&\"|\"&$B$2&\"|\"&A19,Capacity_DB!$A:$A,Capacity_DB!$O:$O,0)),0))","v":0},{"$f":"IF(OR($B19=\"\",$B19=\"N/A\"),\"\",IFERROR(_xlfn.SINGLE(_xlfn.XLOOKUP($B$1&\"|\"&$B$2&\"|\"&A19,Capacity_DB!$A:$A,Capacity_DB!$P:$P,0)),0))","v":0},{"$f":"IF(OR($B19=\"\",$B19=\"N/A\"),\"\",IFERROR(_xlfn.SINGLE(_xlfn.XLOOKUP($B$1&\"|\"&$B$2&\"|\"&A19,Capacity_DB!$A:$A,Capacity_DB!$Q:$Q,0)),0))","v":0},{"$f":"IF(OR($B19=\"\",$B19=\"N/A\"),\"\",IFERROR(_xlfn.SINGLE(_xlfn.XLOOKUP($B$1&\"|\"&$B$2&\"|\"&A19,Capacity_DB!$A:$A,Capacity_DB!$R:$R,0)),0))","v":0},{"$f":"IF(OR($B19=\"\",$B19=\"N/A\"),\"\",IFERROR(_xlfn.SINGLE(_xlfn.XLOOKUP($B$1&\"|\"&$B$2&\"|\"&A19,Capacity_DB!$A:$A,Capacity_DB!$S:$S,0)),0))","v":0},{"$f":"IF(OR($B19=\"\",$B19=\"N/A\"),\"\",IFERROR(_xlfn.SINGLE(_xlfn.XLOOKUP($B$1&\"|\"&$B$2&\"|\"&A19,Capacity_DB!$A:$A,Capacity_DB!$T:$T,0)),0))","v":0},{"$f":"IF(OR($B19=\"\",$B19=\"N/A\"),\"\",IFERROR(_xlfn.SINGLE(_xlfn.XLOOKUP($B$1&\"|\"&$B$2&\"|\"&A19,Capacity_DB!$A:$A,Capacity_DB!$U:$U,0)),0))","v":0},{"$f":"IF(OR($B19=\"\",$B19=\"N/A\"),\"\",IFERROR(_xlfn.SINGLE(_xlfn.XLOOKUP($B$1&\"|\"&$B$2&\"|\"&A19,Capacity_DB!$A:$A,Capacity_DB!$V:$V,0)),0))","v":0},{"$f":"IF(OR($B19=\"\",$B19=\"N/A\"),\"\",IFERROR(_xlfn.SINGLE(_xlfn.XLOOKUP($B$1&\"|\"&$B$2&\"|\"&A19,Capacity_DB!$A:$A,Capacity_DB!$W:$W,0)),0))","v":0},{"$f":"IF(OR($B19=\"\",$B19=\"N/A\"),\"\",IFERROR(_xlfn.SINGLE(_xlfn.XLOOKUP($B$1&\"|\"&$B$2&\"|\"&A19,Capacity_DB!$A:$A,Capacity_DB!$X:$X,0)),0))","v":0},{"$f":"IF(OR($B19=\"\",$B19=\"N/A\"),\"\",IFERROR(_xlfn.SINGLE(_xlfn.XLOOKUP($B$1&\"|\"&$B$2&\"|\"&A19,Capacity_DB!$A:$A,Capacity_DB!$Y:$Y,0)),0))","v":0},{"$f":"IF(OR($B19=\"\",$B19=\"N/A\"),\"\",IFERROR(_xlfn.SINGLE(_xlfn.XLOOKUP($B$1&\"|\"&$B$2&\"|\"&A19,Capacity_DB!$A:$A,Capacity_DB!$Z:$Z,0)),0))","v":0},0,63,""]
[13,{"$f":"IFERROR(_xlfn.SINGLE(_xlfn.XLOOKUP($B$1&\"|\"&$B$2&\"|\"&A20,Capacity_DB!$A:$A,Capacity_DB!$E:$E,\"\")),\"\")","v":"GLENCOE (E) - DANSKRAAL-NOORD (I)"},{"$f":"IF(OR($B20=\"\",$B20=\"N/A\"),\"\",IFERROR(_xlfn.SINGLE(_xlfn.XLOOKUP($B$1&\"|\"&$B$2&\"|\"&A20,Capacity_DB!$A:$A,Capacity_DB!$F:$F,\"\")),\"\"))","v":"LADYSMITH"},{"$f":"IF(OR($B20=\"\",$B20=\"N/A\"),\"\",IFERROR(_xlfn.SINGLE(_xlfn.XLOOKUP($B$1&\"|\"&$B$2&\"|\"&A20,Capacity_DB!$A:$A,Capacity_DB!$G:$G,\"\")),\"\"))","v":72},47,{"$f":"IF(OR($B20=\"\",$B20=\"N/A\"),\"\",IFERROR(_xlfn.SINGLE(_xlfn.XLOOKUP($B$1&\"|\"&$B$2&\"|\"&A20,Capacity_DB!$A:$A,Capacity_DB!$H:$H,0)),0))","v":0},{"$f":"IF(OR($B20=\"\",$B20=\"N/A\"),\"\",IFERROR(_xlfn.SINGLE(_xlfn.XLOOKUP($B$1&\"|\"&$B$2&\"|\"&A20,Capacity_DB!$A:$A,Capacity_DB!$I:$I,0)),0))","v":0},{"$f":"IF(OR($B20=\"\",$B20=\"N/A\"),\"\",IFERROR(_xlfn.SINGLE(_xlfn.XLOOKUP($B$1&\"|\"&$B$2&\"|\"&A20,Capacity_DB!$A:$A,Capacity_DB!$J:$J,0)),0))","v":0},{"$f":"IF(OR($B20=\"\",$B20=\"N/A\"),\"\",IFERROR(_xlfn.SINGLE(_xlfn.XLOOKUP($B$1&\"|\"&$B$2&\"|\"&A20,Capacity_DB!$A:$A,Capacity_DB!$K:$K,0)),0))","v":0},47,329,{"$f":"IF(OR($B20=\"\",$B20=\"N/A\"),\"\",IFERROR(_xlfn.SINGLE(_xlfn.XLOOKUP($B$1&\"|\"&$B$2&\"|\"&A20,Capacity_DB!$A:$A,Capacity_DB!$L:$L,0)),0))","v":0},{"$f":"IF(OR($B20=\"\",$B20=\"N/A\"),\"\",IFERROR(_xlfn.SINGLE(_xlfn.XLOOKUP($B$1&\"|\"&$B$2&\"|\"&A20,Capacity_DB!$A:$A,Capacity_DB!$M:$M,0)),0))","v":0},{"$f":"IF(OR($B20=\"\",$B20=\"N/A\"),\"\",IFERROR(_xlfn.SINGLE(_xlfn.XLOOKUP($B$1&\"|\"&$B$2&\"|\"&A20,Capacity_DB!$A:$A,Capacity_DB!$N:$N,0)),0))","v":0},{"$f":"IF(OR($B20=\"\",$B20=\"N/A\"),\"\",IFERROR(_xlfn.SINGLE(_xlfn.XLOOKUP($B$1&\"|\"&$B$2&\"|\"&A20,Capacity_DB!$A:$A,Capacity_DB!$O:$O,0)),0))","v":0},{"$f":"IF(OR($B20=\"\",$B20=\"N/A\"),\"\",IFERROR(_xlfn.SINGLE(_xlfn.XLOOKUP($B$1&\"|\"&$B$2&\"|\"&A20,Capacity_DB!$A:$A,Capacity_DB!$P:$P,0)),0))","v":0},{"$f":"IF(OR($B20=\"\",$B20=\"N/A\"),\"\",IFERROR(_xlfn.SINGLE(_xlfn.XLOOKUP($B$1&\"|\"&$B$2&\"|\"&A20,Capacity_DB!$A:$A,Capacity_DB!$Q:$Q,0)),0))","v":0},{"$f":"IF(OR($B20=\"\",$B20=\"N/A\"),\"\",IFERROR(_xlfn.SINGLE(_xlfn.XLOOKUP($B$1&\"|\"&$B$2&\"|\"&A20,Capacity_DB!$A:$A,Capacity_DB!$R:$R,0)),0))","v":0},{"$f":"IF(OR($B20=\"\",$B20=\"N/A\"),\"\",IFERROR(_xlfn.SINGLE(_xlfn.XLOOKUP($B$1&\"|\"&$B$2&\"|\"&A20,Capacity_DB!$A:$A,Capacity_DB!$S:$S,0)),0))","v":0},{"$f":"IF(OR($B20=\"\",$B20=\"N/A\"),\"\",IFERROR(_xlfn.SINGLE(_xlfn.XLOOKUP($B$1&\"|\"&$B$2&\"|\"&A20,Capacity_DB!$A:$A,Capacity_DB!$T:$T,0)),0))","v":0},{"$f":"IF(OR($B20=\"\",$B20=\"N/A\"),\"\",IFERROR(_xlfn.SINGLE(_xlfn.XLOOKUP($B$1&\"|\"&$B$2&\"|\"&A20,Capacity_DB!$A:$A,Capacity_DB!$U:$U,0)),0))","v":0},{"$f":"IF(OR($B20=\"\",$B20=\"N/A\"),\"\",IFERROR(_xlfn.SINGLE(_xlfn.XLOOKUP($B$1&\"|\"&$B$2&\"|\"&A20,Capacity_DB!$A:$A,Capacity_DB!$V:$V,0)),0))","v":0},{"$f":"IF(OR($B20=\"\",$B20=\"N/A\"),\"\",IFERROR(_xlfn.SINGLE(_xlfn.XLOOKUP($B$1&\"|\"&$B$2&\"|\"&A20,Capacity_DB!$A:$A,Capacity_DB!$W:$W,0)),0))","v":0},{"$f":"IF(OR($B20=\"\",$B20=\"N/A\"),\"\",IFERROR(_xlfn.SINGLE(_xlfn.XLOOKUP($B$1&\"|\"&$B$2&\"|\"&A20,Capacity_DB!$A:$A,Capacity_DB!$X:$X,0)),0))","v":0},{"$f":"IF(OR($B20=\"\",$B20=\"N/A\"),\"\",IFERROR(_xlfn.SINGLE(_xlfn.XLOOKUP($B$1&\"|\"&$B$2&\"|\"&A20,Capacity_DB!$A:$A,Capacity_DB!$Y:$Y,0)),0))","v":0},{"$f":"IF(OR($B20=\"\",$B20=\"N/A\"),\"\",IFERROR(_xlfn.SINGLE(_xlfn.XLOOKUP($B$1&\"|\"&$B$2&\"|\"&A20,Capacity_DB!$A:$A,Capacity_DB!$Z:$Z,0)),0))","v":0},0,329,""]
[14,{"$f":"IFERROR(_xlfn.SINGLE(_xlfn.XLOOKUP($B$1&\"|\"&$B$2&\"|\"&A21,Capacity_DB!$A:$A,Capacity_DB!$E:$E,\"\")),\"\")","v":"DANSKRAAL-NOORD (E) - ESTCOURT (I)"},{"$f":"IF(OR($B21=\"\",$B21=\"N/A\"),\"\",IFERROR(_xlfn.SINGLE(_xlfn.XLOOKUP($B$1&\"|\"&$B$2&\"|\"&A21,Capacity_DB!$A:$A,Capacity_DB!$F:$F,\"\")),\"\"))","v":"LADYSMITH"},{"$f":"IF(OR($B21=\"\",$B21=\"N/A\"),\"\",IFERROR(_xlfn.SINGLE(_xlfn.XLOOKUP($B$1&\"|\"&$B$2&\"|\"&A21,Capacity_DB!$A:$A,Capacity_DB!$G:$G,\"\")),\"\"))","v":72},47,{"$f":"IF(OR($B21=\"\",$B21=\"N/A\"),\"\",IFERROR(_xlfn.SINGLE(_xlfn.XLOOKUP($B$1&\"|\"&$B$2&\"|\"&A21,Capacity_DB!$A:$A,Capacity_DB!$H:$H,0)),0))","v":0},{"$f":"IF(OR($B21=\"\",$B21=\"N/A\"),\"\",IFERROR(_xlfn.SINGLE(_xlfn.XLOOKUP($B$1&\"|\"&$B$2&\"|\"&A21,Capacity_DB!$A:$A,Capacity_DB!$I:$I,0)),0))","v":0},{"$f":"IF(OR($B21=\"\",$B21=\"N/A\"),\"\",IFERROR(_xlfn.SINGLE(_xlfn.XLOOKUP($B$1&\"|\"&$B$2&\"|\"&A21,Capacity_DB!$A:$A,Capacity_DB!$J:$J,0)),0))","v":0},{"$f":"IF(OR($B21=\"\",$B21=\"N/A\"),\"\",IFERROR(_xlfn.SINGLE(_xlfn.XLOOKUP($B$1&\"|\"&$B$2&\"|\"&A21,Capacity_DB!$A:$A,Capacity_DB!$K:$K,0)),0))","v":0},47,329,{"$f":"IF(OR($B21=\"\",$B21=\"N/A\"),\"\",IFERROR(_xlfn.SINGLE(_xlfn.XLOOKUP($B$1&\"|\"&$B$2&\"|\"&A21,Capacity_DB!$A:$A,Capacity_DB!$L:$L,0)),0))","v":0},{"$f":"IF(OR($B21=\"\",$B21=\"N/A\"),\"\",IFERROR(_xlfn.SINGLE(_xlfn.XLOOKUP($B$1&\"|\"&$B$2&\"|\"&A21,Capacity_DB!$A:$A,Capacity_DB!$M:$M,0)),0))","v":0},{"$f":"IF(OR($B21=\"\",$B21=\"N/A\"),\"\",IFERROR(_xlfn.SINGLE(_xlfn.XLOOKUP($B$1&\"|\"&$B$2&\"|\"&A21,Capacity_DB!$A:$A,Capacity_DB!$N:$N,0)),0))","v":0},{"$f":"IF(OR($B21=\"\",$B21=\"N/A\"),\"\",IFERROR(_xlfn.SINGLE(_xlfn.XLOOKUP($B$1&\"|\"&$B$2&\"|\"&A21,Capacity_DB!$A:$A,Capacity_DB!$O:$O,0)),0))","v":0},{"$f":"IF(OR($B21=\"\",$B21=\"N/A\"),\"\",IFERROR(_xlfn.SINGLE(_xlfn.XLOOKUP($B$1&\"|\"&$B$2&\"|\"&A21,Capacity_DB!$A:$A,Capacity_DB!$P:$P,0)),0))","v":0},{"$f":"IF(OR($B21=\"\",$B21=\"N/A\"),\"\",IFERROR(_xlfn.SINGLE(_xlfn.XLOOKUP($B$1&\"|\"&$B$2&\"|\"&A21,Capacity_DB!$A:$A,Capacity_DB!$Q:$Q,0)),0))","v":0},{"$f":"IF(OR($B21=\"\",$B21=\"N/A\"),\"\",IFERROR(_xlfn.SINGLE(_xlfn.XLOOKUP($B$1&\"|\"&$B$2&\"|\"&A21,Capacity_DB!$A:$A,Capacity_DB!$R:$R,0)),0))","v":0},{"$f":"IF(OR($B21=\"\",$B21=\"N/A\"),\"\",IFERROR(_xlfn.SINGLE(_xlfn.XLOOKUP($B$1&\"|\"&$B$2&\"|\"&A21,Capacity_DB!$A:$A,Capacity_DB!$S:$S,0)),0))","v":0},{"$f":"IF(OR($B21=\"\",$B21=\"N/A\"),\"\",IFERROR(_xlfn.SINGLE(_xlfn.XLOOKUP($B$1&\"|\"&$B$2&\"|\"&A21,Capacity_DB!$A:$A,Capacity_DB!$T:$T,0)),0))","v":0},{"$f":"IF(OR($B21=\"\",$B21=\"N/A\"),\"\",IFERROR(_xlfn.SINGLE(_xlfn.XLOOKUP($B$1&\"|\"&$B$2&\"|\"&A21,Capacity_DB!$A:$A,Capacity_DB!$U:$U,0)),0))","v":0},{"$f":"IF(OR($B21=\"\",$B21=\"N/A\"),\"\",IFERROR(_xlfn.SINGLE(_xlfn.XLOOKUP($B$1&\"|\"&$B$2&\"|\"&A21,Capacity_DB!$A:$A,Capacity_DB!$V:$V,0)),0))","v":0},{"$f":"IF(OR($B21=\"\",$B21=\"N/A\"),\"\",IFERROR(_xlfn.SINGLE(_xlfn.XLOOKUP($B$1&\"|\"&$B$2&\"|\"&A21,Capacity_DB!$A:$A,Capacity_DB!$W:$W,0)),0))","v":0},{"$f":"IF(OR($B21=\"\",$B21=\"N/A\"),\"\",IFERROR(_xlfn.SINGLE(_xlfn.XLOOKUP($B$1&\"|\"&$B$2&\"|\"&A21,Capacity_DB!$A:$A,Capacity_DB!$X:$X,0)),0))","v":0},{"$f":"IF(OR($B21=\"\",$B21=\"N/A\"),\"\",IFERROR(_xlfn.SINGLE(_xlfn.XLOOKUP($B$1&\"|\"&$B$2&\"|\"&A21,Capacity_DB!$A:$A,Capacity_DB!$Y:$Y,0)),0))","v":0},{"$f":"IF(OR($B21=\"\",$B21=\"N/A\"),\"\",IFERROR(_xlfn.SINGLE(_xlfn.XLOOKUP($B$1&\"|\"&$B$2&\"|\"&A21,Capacity_DB!$A:$A,Capacity_DB!$Z:$Z,0)),0))","v":0},0,329,""]
[15,{"$f":"IFERROR(_xlfn.SINGLE(_xlfn.XLOOKUP($B$1&\"|\"&$B$2&\"|\"&A22,Capacity_DB!$A:$A,Capacity_DB!$E:$E,\"\")),\"\")","v":"ESTCOURT (E) - RUSHBROOK (E)"},{"$f":"IF(OR($B22=\"\",$B22=\"N/A\"),\"\",IFERROR(_xlfn.SINGLE(_xlfn.XLOOKUP($B$1&\"|\"&$B$2&\"|\"&A22,Capacity_DB!$A:$A,Capacity_DB!$F:$F,\"\")),\"\"))","v":"LADYSMITH"},{"$f":"IF(OR($B22=\"\",$B22=\"N/A\"),\"\",IFERROR(_xlfn.SINGLE(_xlfn.XLOOKUP($B$1&\"|\"&$B$2&\"|\"&A22,Capacity_DB!$A:$A,Capacity_DB!$G:$G,\"\")),\"\"))","v":72},47,{"$f":"IF(OR($B22=\"\",$B22=\"N/A\"),\"\",IFERROR(_xlfn.SINGLE(_xlfn.XLOOKUP($B$1&\"|\"&$B$2&\"|\"&A22,Capacity_DB!$A:$A,Capacity_DB!$H:$H,0)),0))","v":0},{"$f":"IF(OR($B22=\"\",$B22=\"N/A\"),\"\",IFERROR(_xlfn.SINGLE(_xlfn.XLOOKUP($B$1&\"|\"&$B$2&\"|\"&A22,Capacity_DB!$A:$A,Capacity_DB!$I:$I,0)),0))","v":0},{"$f":"IF(OR($B22=\"\",$B22=\"N/A\"),\"\",IFERROR(_xlfn.SINGLE(_xlfn.XLOOKUP($B$1&\"|\"&$B$2&\"|\"&A22,Capacity_DB!$A:$A,Capacity_DB!$J:$J,0)),0))","v":0},{"$f":"IF(OR($B22=\"\",$B22=\"N/A\"),\"\",IFERROR(_xlfn.SINGLE(_xlfn.XLOOKUP($B$1&\"|\"&$B$2&\"|\"&A22,Capacity_DB!$A:$A,Capacity_DB!$K:$K,0)),0))","v":0},47,329,{"$f":"IF(OR($B22=\"\",$B22=\"N/A\"),\"\",IFERROR(_xlfn.SINGLE(_xlfn.XLOOKUP($B$1&\"|\"&$B$2&\"|\"&A22,Capacity_DB!$A:$A,Capacity_DB!$L:$L,0)),0))","v":0},{"$f":"IF(OR($B22=\"\",$B22=\"N/A\"),\"\",IFERROR(_xlfn.SINGLE(_xlfn.XLOOKUP($B$1&\"|\"&$B$2&\"|\"&A22,Capacity_DB!$A:$A,Capacity_DB!$M:$M,0)),0))","v":0},{"$f":"IF(OR($B22=\"\",$B22=\"N/A\"),\"\",IFERROR(_xlfn.SINGLE(_xlfn.XLOOKUP($B$1&\"|\"&$B$2&\"|\"&A22,Capacity_DB!$A:$A,Capacity_DB!$N:$N,0)),0))","v":0},{"$f":"IF(OR($B22=\"\",$B22=\"N/A\"),\"\",IFERROR(_xlfn.SINGLE(_xlfn.XLOOKUP($B$1&\"|\"&$B$2&\"|\"&A22,Capacity_DB!$A:$A,Capacity_DB!$O:$O,0)),0))","v":0},{"$f":"IF(OR($B22=\"\",$B22=\"N/A\"),\"\",IFERROR(_xlfn.SINGLE(_xlfn.XLOOKUP($B$1&\"|\"&$B$2&\"|\"&A22,Capacity_DB!$A:$A,Capacity_DB!$P:$P,0)),0))","v":0},{"$f":"IF(OR($B22=\"\",$B22=\"N/A\"),\"\",IFERROR(_xlfn.SINGLE(_xlfn.XLOOKUP($B$1&\"|\"&$B$2&\"|\"&A22,Capacity_DB!$A:$A,Capacity_DB!$Q:$Q,0)),0))","v":0},{"$f":"IF(OR($B22=\"\",$B22=\"N/A\"),\"\",IFERROR(_xlfn.SINGLE(_xlfn.XLOOKUP($B$1&\"|\"&$B$2&\"|\"&A22,Capacity_DB!$A:$A,Capacity_DB!$R:$R,0)),0))","v":0},{"$f":"IF(OR($B22=\"\",$B22=\"N/A\"),\"\",IFERROR(_xlfn.SINGLE(_xlfn.XLOOKUP($B$1&\"|\"&$B$2&\"|\"&A22,Capacity_DB!$A:$A,Capacity_DB!$S:$S,0)),0))","v":0},{"$f":"IF(OR($B22=\"\",$B22=\"N/A\"),\"\",IFERROR(_xlfn.SINGLE(_xlfn.XLOOKUP($B$1&\"|\"&$B$2&\"|\"&A22,Capacity_DB!$A:$A,Capacity_DB!$T:$T,0)),0))","v":0},{"$f":"IF(OR($B22=\"\",$B22=\"N/A\"),\"\",IFERROR(_xlfn.SINGLE(_xlfn.XLOOKUP($B$1&\"|\"&$B$2&\"|\"&A22,Capacity_DB!$A:$A,Capacity_DB!$U:$U,0)),0))","v":0},{"$f":"IF(OR($B22=\"\",$B22=\"N/A\"),\"\",IFERROR(_xlfn.SINGLE(_xlfn.XLOOKUP($B$1&\"|\"&$B$2&\"|\"&A22,Capacity_DB!$A:$A,Capacity_DB!$V:$V,0)),0))","v":0},{"$f":"IF(OR($B22=\"\",$B22=\"N/A\"),\"\",IFERROR(_xlfn.SINGLE(_xlfn.XLOOKUP($B$1&\"|\"&$B$2&\"|\"&A22,Capacity_DB!$A:$A,Capacity_DB!$W:$W,0)),0))","v":0},{"$f":"IF(OR($B22=\"\",$B22=\"N/A\"),\"\",IFERROR(_xlfn.SINGLE(_xlfn.XLOOKUP($B$1&\"|\"&$B$2&\"|\"&A22,Capacity_DB!$A:$A,Capacity_DB!$X:$X,0)),0))","v":0},{"$f":"IF(OR($B22=\"\",$B22=\"N/A\"),\"\",IFERROR(_xlfn.SINGLE(_xlfn.XLOOKUP($B$1&\"|\"&$B$2&\"|\"&A22,Capacity_DB!$A:$A,Capacity_DB!$Y:$Y,0)),0))","v":0},{"$f":"IF(OR($B22=\"\",$B22=\"N/A\"),\"\",IFERROR(_xlfn.SINGLE(_xlfn.XLOOKUP($B$1&\"|\"&$B$2&\"|\"&A22,Capacity_DB!$A:$A,Capacity_DB!$Z:$Z,0)),0))","v":0},0,329,""]
[16,{"$f":"IFERROR(_xlfn.SINGLE(_xlfn.XLOOKUP($B$1&\"|\"&$B$2&\"|\"&A23,Capacity_DB!$A:$A,Capacity_DB!$E:$E,\"\")),\"\")","v":"RUSHBROOK (I) - UMLAAS ROAD (I)"},{"$f":"IF(OR($B23=\"\",$B23=\"N/A\"),\"\",IFERROR(_xlfn.SINGLE(_xlfn.XLOOKUP($B$1&\"|\"&$B$2&\"|\"&A23,Capacity_DB!$A:$A,Capacity_DB!$F:$F,\"\")),\"\"))","v":"LADYSMITH"},{"$f":"IF(OR($B23=\"\",$B23=\"N/A\"),\"\",IFERROR(_xlfn.SINGLE(_xlfn.XLOOKUP($B$1&\"|\"&$B$2&\"|\"&A23,Capacity_DB!$A:$A,Capacity_DB!$G:$G,\"\")),\"\"))","v":72},47,{"$f":"IF(OR($B23=\"\",$B23=\"N/A\"),\"\",IFERROR(_xlfn.SINGLE(_xlfn.XLOOKUP($B$1&\"|\"&$B$2&\"|\"&A23,Capacity_DB!$A:$A,Capacity_DB!$H:$H,0)),0))","v":0},{"$f":"IF(OR($B23=\"\",$B23=\"N/A\"),\"\",IFERROR(_xlfn.SINGLE(_xlfn.XLOOKUP($B$1&\"|\"&$B$2&\"|\"&A23,Capacity_DB!$A:$A,Capacity_DB!$I:$I,0)),0))","v":0},{"$f":"IF(OR($B23=\"\",$B23=\"N/A\"),\"\",IFERROR(_xlfn.SINGLE(_xlfn.XLOOKUP($B$1&\"|\"&$B$2&\"|\"&A23,Capacity_DB!$A:$A,Capacity_DB!$J:$J,0)),0))","v":0},{"$f":"IF(OR($B23=\"\",$B23=\"N/A\"),\"\",IFERROR(_xlfn.SINGLE(_xlfn.XLOOKUP($B$1&\"|\"&$B$2&\"|\"&A23,Capacity_DB!$A:$A,Capacity_DB!$K:$K,0)),0))","v":0},47,329,{"$f":"IF(OR($B23=\"\",$B23=\"N/A\"),\"\",IFERROR(_xlfn.SINGLE(_xlfn.XLOOKUP($B$1&\"|\"&$B$2&\"|\"&A23,Capacity_DB!$A:$A,Capacity_DB!$L:$L,0)),0))","v":0},{"$f":"IF(OR($B23=\"\",$B23=\"N/A\"),\"\",IFERROR(_xlfn.SINGLE(_xlfn.XLOOKUP($B$1&\"|\"&$B$2&\"|\"&A23,Capacity_DB!$A:$A,Capacity_DB!$M:$M,0)),0))","v":0},{"$f":"IF(OR($B23=\"\",$B23=\"N/A\"),\"\",IFERROR(_xlfn.SINGLE(_xlfn.XLOOKUP($B$1&\"|\"&$B$2&\"|\"&A23,Capacity_DB!$A:$A,Capacity_DB!$N:$N,0)),0))","v":0},{"$f":"IF(OR($B23=\"\",$B23=\"N/A\"),\"\",IFERROR(_xlfn.SINGLE(_xlfn.XLOOKUP($B$1&\"|\"&$B$2&\"|\"&A23,Capacity_DB!$A:$A,Capacity_DB!$O:$O,0)),0))","v":0},{"$f":"IF(OR($B23=\"\",$B23=\"N/A\"),\"\",IFERROR(_xlfn.SINGLE(_xlfn.XLOOKUP($B$1&\"|\"&$B$2&\"|\"&A23,Capacity_DB!$A:$A,Capacity_DB!$P:$P,0)),0))","v":0},{"$f":"IF(OR($B23=\"\",$B23=\"N/A\"),\"\",IFERROR(_xlfn.SINGLE(_xlfn.XLOOKUP($B$1&\"|\"&$B$2&\"|\"&A23,Capacity_DB!$A:$A,Capacity_DB!$Q:$Q,0)),0))","v":0},{"$f":"IF(OR($B23=\"\",$B23=\"N/A\"),\"\",IFERROR(_xlfn.SINGLE(_xlfn.XLOOKUP($B$1&\"|\"&$B$2&\"|\"&A23,Capacity_DB!$A:$A,Capacity_DB!$R:$R,0)),0))","v":0},{"$f":"IF(OR($B23=\"\",$B23=\"N/A\"),\"\",IFERROR(_xlfn.SINGLE(_xlfn.XLOOKUP($B$1&\"|\"&$B$2&\"|\"&A23,Capacity_DB!$A:$A,Capacity_DB!$S:$S,0)),0))","v":0},{"$f":"IF(OR($B23=\"\",$B23=\"N/A\"),\"\",IFERROR(_xlfn.SINGLE(_xlfn.XLOOKUP($B$1&\"|\"&$B$2&\"|\"&A23,Capacity_DB!$A:$A,Capacity_DB!$T:$T,0)),0))","v":0},{"$f":"IF(OR($B23=\"\",$B23=\"N/A\"),\"\",IFERROR(_xlfn.SINGLE(_xlfn.XLOOKUP($B$1&\"|\"&$B$2&\"|\"&A23,Capacity_DB!$A:$A,Capacity_DB!$U:$U,0)),0))","v":0},{"$f":"IF(OR($B23=\"\",$B23=\"N/A\"),\"\",IFERROR(_xlfn.SINGLE(_xlfn.XLOOKUP($B$1&\"|\"&$B$2&\"|\"&A23,Capacity_DB!$A:$A,Capacity_DB!$V:$V,0)),0))","v":0},{"$f":"IF(OR($B23=\"\",$B23=\"N/A\"),\"\",IFERROR(_xlfn.SINGLE(_xlfn.XLOOKUP($B$1&\"|\"&$B$2&\"|\"&A23,Capacity_DB!$A:$A,Capacity_DB!$W:$W,0)),0))","v":0},{"$f":"IF(OR($B23=\"\",$B23=\"N/A\"),\"\",IFERROR(_xlfn.SINGLE(_xlfn.XLOOKUP($B$1&\"|\"&$B$2&\"|\"&A23,Capacity_DB!$A:$A,Capacity_DB!$X:$X,0)),0))","v":0},{"$f":"IF(OR($B23=\"\",$B23=\"N/A\"),\"\",IFERROR(_xlfn.SINGLE(_xlfn.XLOOKUP($B$1&\"|\"&$B$2&\"|\"&A23,Capacity_DB!$A:$A,Capacity_DB!$Y:$Y,0)),0))","v":0},{"$f":"IF(OR($B23=\"\",$B23=\"N/A\"),\"\",IFERROR(_xlfn.SINGLE(_xlfn.XLOOKUP($B$1&\"|\"&$B$2&\"|\"&A23,Capacity_DB!$A:$A,Capacity_DB!$Z:$Z,0)),0))","v":0},0,329,""]
[17,{"$f":"IFERROR(_xlfn.SINGLE(_xlfn.XLOOKUP($B$1&\"|\"&$B$2&\"|\"&A24,Capacity_DB!$A:$A,Capacity_DB!$E:$E,\"\")),\"\")","v":"UMLAAS ROAD (E) - CATO RIDGE (I)"},{"$f":"IF(OR($B24=\"\",$B24=\"N/A\"),\"\",IFERROR(_xlfn.SINGLE(_xlfn.XLOOKUP($B$1&\"|\"&$B$2&\"|\"&A24,Capacity_DB!$A:$A,Capacity_DB!$F:$F,\"\")),\"\"))","v":"DURBAN"},{"$f":"IF(OR($B24=\"\",$B24=\"N/A\"),\"\",IFERROR(_xlfn.SINGLE(_xlfn.XLOOKUP($B$1&\"|\"&$B$2&\"|\"&A24,Capacity_DB!$A:$A,Capacity_DB!$G:$G,\"\")),\"\"))","v":72},47,{"$f":"IF(OR($B24=\"\",$B24=\"N/A\"),\"\",IFERROR(_xlfn.SINGLE(_xlfn.XLOOKUP($B$1&\"|\"&$B$2&\"|\"&A24,Capacity_DB!$A:$A,Capacity_DB!$H:$H,0)),0))","v":0},{"$f":"IF(OR($B24=\"\",$B24=\"N/A\"),\"\",IFERROR(_xlfn.SINGLE(_xlfn.XLOOKUP($B$1&\"|\"&$B$2&\"|\"&A24,Capacity_DB!$A:$A,Capacity_DB!$I:$I,0)),0))","v":0},{"$f":"IF(OR($B24=\"\",$B24=\"N/A\"),\"\",IFERROR(_xlfn.SINGLE(_xlfn.XLOOKUP($B$1&\"|\"&$B$2&\"|\"&A24,Capacity_DB!$A:$A,Capacity_DB!$J:$J,0)),0))","v":0},{"$f":"IF(OR($B24=\"\",$B24=\"N/A\"),\"\",IFERROR(_xlfn.SINGLE(_xlfn.XLOOKUP($B$1&\"|\"&$B$2&\"|\"&A24,Capacity_DB!$A:$A,Capacity_DB!$K:$K,0)),0))","v":0},47,329,{"$f":"IF(OR($B24=\"\",$B24=\"N/A\"),\"\",IFERROR(_xlfn.SINGLE(_xlfn.XLOOKUP($B$1&\"|\"&$B$2&\"|\"&A24,Capacity_DB!$A:$A,Capacity_DB!$L:$L,0)),0))","v":0},{"$f":"IF(OR($B24=\"\",$B24=\"N/A\"),\"\",IFERROR(_xlfn.SINGLE(_xlfn.XLOOKUP($B$1&\"|\"&$B$2&\"|\"&A24,Capacity_DB!$A:$A,Capacity_DB!$M:$M,0)),0))","v":0},{"$f":"IF(OR($B24=\"\",$B24=\"N/A\"),\"\",IFERROR(_xlfn.SINGLE(_xlfn.XLOOKUP($B$1&\"|\"&$B$2&\"|\"&A24,Capacity_DB!$A:$A,Capacity_DB!$N:$N,0)),0))","v":0},{"$f":"IF(OR($B24=\"\",$B24=\"N/A\"),\"\",IFERROR(_xlfn.SINGLE(_xlfn.XLOOKUP($B$1&\"|\"&$B$2&\"|\"&A24,Capacity_DB!$A:$A,Capacity_DB!$O:$O,0)),0))","v":0},{"$f":"IF(OR($B24=\"\",$B24=\"N/A\"),\"\",IFERROR(_xlfn.SINGLE(_xlfn.XLOOKUP($B$1&\"|\"&$B$2&\"|\"&A24,Capacity_DB!$A:$A,Capacity_DB!$P:$P,0)),0))","v":0},{"$f":"IF(OR($B24=\"\",$B24=\"N/A\"),\"\",IFERROR(_xlfn.SINGLE(_xlfn.XLOOKUP($B$1&\"|\"&$B$2&\"|\"&A24,Capacity_DB!$A:$A,Capacity_DB!$Q:$Q,0)),0))","v":0},{"$f":"IF(OR($B24=\"\",$B24=\"N/A\"),\"\",IFERROR(_xlfn.SINGLE(_xlfn.XLOOKUP($B$1&\"|\"&$B$2&\"|\"&A24,Capacity_DB!$A:$A,Capacity_DB!$R:$R,0)),0))","v":0},{"$f":"IF(OR($B24=\"\",$B24=\"N/A\"),\"\",IFERROR(_xlfn.SINGLE(_xlfn.XLOOKUP($B$1&\"|\"&$B$2&\"|\"&A24,Capacity_DB!$A:$A,Capacity_DB!$S:$S,0)),0))","v":0},{"$f":"IF(OR($B24=\"\",$B24=\"N/A\"),\"\",IFERROR(_xlfn.SINGLE(_xlfn.XLOOKUP($B$1&\"|\"&$B$2&\"|\"&A24,Capacity_DB!$A:$A,Capacity_DB!$T:$T,0)),0))","v":0},{"$f":"IF(OR($B24=\"\",$B24=\"N/A\"),\"\",IFERROR(_xlfn.SINGLE(_xlfn.XLOOKUP($B$1&\"|\"&$B$2&\"|\"&A24,Capacity_DB!$A:$A,Capacity_DB!$U:$U,0)),0))","v":0},{"$f":"IF(OR($B24=\"\",$B24=\"N/A\"),\"\",IFERROR(_xlfn.SINGLE(_xlfn.XLOOKUP($B$1&\"|\"&$B$2&\"|\"&A24,Capacity_DB!$A:$A,Capacity_DB!$V:$V,0)),0))","v":0},{"$f":"IF(OR($B24=\"\",$B24=\"N/A\"),\"\",IFERROR(_xlfn.SINGLE(_xlfn.XLOOKUP($B$1&\"|\"&$B$2&\"|\"&A24,Capacity_DB!$A:$A,Capacity_DB!$W:$W,0)),0))","v":0},{"$f":"IF(OR($B24=\"\",$B24=\"N/A\"),\"\",IFERROR(_xlfn.SINGLE(_xlfn.XLOOKUP($B$1&\"|\"&$B$2&\"|\"&A24,Capacity_DB!$A:$A,Capacity_DB!$X:$X,0)),0))","v":0},{"$f":"IF(OR($B24=\"\",$B24=\"N/A\"),\"\",IFERROR(_xlfn.SINGLE(_xlfn.XLOOKUP($B$1&\"|\"&$B$2&\"|\"&A24,Capacity_DB!$A:$A,Capacity_DB!$Y:$Y,0)),0))","v":0},{"$f":"IF(OR($B24=\"\",$B24=\"N/A\"),\"\",IFERROR(_xlfn.SINGLE(_xlfn.XLOOKUP($B$1&\"|\"&$B$2&\"|\"&A24,Capacity_DB!$A:$A,Capacity_DB!$Z:$Z,0)),0))","v":0},0,329,""]
[18,{"$f":"IFERROR(_xlfn.SINGLE(_xlfn.XLOOKUP($B$1&\"|\"&$B$2&\"|\"&A25,Capacity_DB!$A:$A,Capacity_DB!$E:$E,\"\")),\"\")","v":"CATO RIDGE (E) - BOOTH (I)"},{"$f":"IF(OR($B25=\"\",$B25=\"N/A\"),\"\",IFERROR(_xlfn.SINGLE(_xlfn.XLOOKUP($B$1&\"|\"&$B$2&\"|\"&A25,Capacity_DB!$A:$A,Capacity_DB!$F:$F,\"\")),\"\"))","v":"DURBAN"},{"$f":"IF(OR($B25=\"\",$B25=\"N/A\"),\"\",IFERROR(_xlfn.SINGLE(_xlfn.XLOOKUP($B$1&\"|\"&$B$2&\"|\"&A25,Capacity_DB!$A:$A,Capacity_DB!$G:$G,\"\")),\"\"))","v":72},47,{"$f":"IF(OR($B25=\"\",$B25=\"N/A\"),\"\",IFERROR(_xlfn.SINGLE(_xlfn.XLOOKUP($B$1&\"|\"&$B$2&\"|\"&A25,Capacity_DB!$A:$A,Capacity_DB!$H:$H,0)),0))","v":0},{"$f":"IF(OR($B25=\"\",$B25=\"N/A\"),\"\",IFERROR(_xlfn.SINGLE(_xlfn.XLOOKUP($B$1&\"|\"&$B$2&\"|\"&A25,Capacity_DB!$A:$A,Capacity_DB!$I:$I,0)),0))","v":0},{"$f":"IF(OR($B25=\"\",$B25=\"N/A\"),\"\",IFERROR(_xlfn.SINGLE(_xlfn.XLOOKUP($B$1&\"|\"&$B$2&\"|\"&A25,Capacity_DB!$A:$A,Capacity_DB!$J:$J,0)),0))","v":0},{"$f":"IF(OR($B25=\"\",$B25=\"N/A\"),\"\",IFERROR(_xlfn.SINGLE(_xlfn.XLOOKUP($B$1&\"|\"&$B$2&\"|\"&A25,Capacity_DB!$A:$A,Capacity_DB!$K:$K,0)),0))","v":0},47,329,{"$f":"IF(OR($B25=\"\",$B25=\"N/A\"),\"\",IFERROR(_xlfn.SINGLE(_xlfn.XLOOKUP($B$1&\"|\"&$B$2&\"|\"&A25,Capacity_DB!$A:$A,Capacity_DB!$L:$L,0)),0))","v":0},{"$f":"IF(OR($B25=\"\",$B25=\"N/A\"),\"\",IFERROR(_xlfn.SINGLE(_xlfn.XLOOKUP($B$1&\"|\"&$B$2&\"|\"&A25,Capacity_DB!$A:$A,Capacity_DB!$M:$M,0)),0))","v":0},{"$f":"IF(OR($B25=\"\",$B25=\"N/A\"),\"\",IFERROR(_xlfn.SINGLE(_xlfn.XLOOKUP($B$1&\"|\"&$B$2&\"|\"&A25,Capacity_DB!$A:$A,Capacity_DB!$N:$N,0)),0))","v":0},{"$f":"IF(OR($B25=\"\",$B25=\"N/A\"),\"\",IFERROR(_xlfn.SINGLE(_xlfn.XLOOKUP($B$1&\"|\"&$B$2&\"|\"&A25,Capacity_DB!$A:$A,Capacity_DB!$O:$O,0)),0))","v":0},{"$f":"IF(OR($B25=\"\",$B25=\"N/A\"),\"\",IFERROR(_xlfn.SINGLE(_xlfn.XLOOKUP($B$1&\"|\"&$B$2&\"|\"&A25,Capacity_DB!$A:$A,Capacity_DB!$P:$P,0)),0))","v":0},{"$f":"IF(OR($B25=\"\",$B25=\"N/A\"),\"\",IFERROR(_xlfn.SINGLE(_xlfn.XLOOKUP($B$1&\"|\"&$B$2&\"|\"&A25,Capacity_DB!$A:$A,Capacity_DB!$Q:$Q,0)),0))","v":0},{"$f":"IF(OR($B25=\"\",$B25=\"N/A\"),\"\",IFERROR(_xlfn.SINGLE(_xlfn.XLOOKUP($B$1&\"|\"&$B$2&\"|\"&A25,Capacity_DB!$A:$A,Capacity_DB!$R:$R,0)),0))","v":0},{"$f":"IF(OR($B25=\"\",$B25=\"N/A\"),\"\",IFERROR(_xlfn.SINGLE(_xlfn.XLOOKUP($B$1&\"|\"&$B$2&\"|\"&A25,Capacity_DB!$A:$A,Capacity_DB!$S:$S,0)),0))","v":0},{"$f":"IF(OR($B25=\"\",$B25=\"N/A\"),\"\",IFERROR(_xlfn.SINGLE(_xlfn.XLOOKUP($B$1&\"|\"&$B$2&\"|\"&A25,Capacity_DB!$A:$A,Capacity_DB!$T:$T,0)),0))","v":0},{"$f":"IF(OR($B25=\"\",$B25=\"N/A\"),\"\",IFERROR(_xlfn.SINGLE(_xlfn.XLOOKUP($B$1&\"|\"&$B$2&\"|\"&A25,Capacity_DB!$A:$A,Capacity_DB!$U:$U,0)),0))","v":0},{"$f":"IF(OR($B25=\"\",$B25=\"N/A\"),\"\",IFERROR(_xlfn.SINGLE(_xlfn.XLOOKUP($B$1&\"|\"&$B$2&\"|\"&A25,Capacity_DB!$A:$A,Capacity_DB!$V:$V,0)),0))","v":0},{"$f":"IF(OR($B25=\"\",$B25=\"N/A\"),\"\",IFERROR(_xlfn.SINGLE(_xlfn.XLOOKUP($B$1&\"|\"&$B$2&\"|\"&A25,Capacity_DB!$A:$A,Capacity_DB!$W:$W,0)),0))","v":0},{"$f":"IF(OR($B25=\"\",$B25=\"N/A\"),\"\",IFERROR(_xlfn.SINGLE(_xlfn.XLOOKUP($B$1&\"|\"&$B$2&\"|\"&A25,Capacity_DB!$A:$A,Capacity_DB!$X:$X,0)),0))","v":0},{"$f":"IF(OR($B25=\"\",$B25=\"N/A\"),\"\",IFERROR(_xlfn.SINGLE(_xlfn.XLOOKUP($B$1&\"|\"&$B$2&\"|\"&A25,Capacity_DB!$A:$A,Capacity_DB!$Y:$Y,0)),0))","v":0},{"$f":"IF(OR($B25=\"\",$B25=\"N/A\"),\"\",IFERROR(_xlfn.SINGLE(_xlfn.XLOOKUP($B$1&\"|\"&$B$2&\"|\"&A25,Capacity_DB!$A:$A,Capacity_DB!$Z:$Z,0)),0))","v":0},0,329,""]
[19,{"$f":"IFERROR(_xlfn.SINGLE(_xlfn.XLOOKUP($B$1&\"|\"&$B$2&\"|\"&A26,Capacity_DB!$A:$A,Capacity_DB!$E:$E,\"\")),\"\")","v":"BOOTH (E) - CLAIRWOOD (I)"},{"$f":"IF(OR($B26=\"\",$B26=\"N/A\"),\"\",IFERROR(_xlfn.SINGLE(_xlfn.XLOOKUP($B$1&\"|\"&$B$2&\"|\"&A26,Capacity_DB!$A:$A,Capacity_DB!$F:$F,\"\")),\"\"))","v":"DURBAN"},{"$f":"IF(OR($B26=\"\",$B26=\"N/A\"),\"\",IFERROR(_xlfn.SINGLE(_xlfn.XLOOKUP($B$1&\"|\"&$B$2&\"|\"&A26,Capacity_DB!$A:$A,Capacity_DB!$G:$G,\"\")),\"\"))","v":72},47,{"$f":"IF(OR($B26=\"\",$B26=\"N/A\"),\"\",IFERROR(_xlfn.SINGLE(_xlfn.XLOOKUP($B$1&\"|\"&$B$2&\"|\"&A26,Capacity_DB!$A:$A,Capacity_DB!$H:$H,0)),0))","v":0},{"$f":"IF(OR($B26=\"\",$B26=\"N/A\"),\"\",IFERROR(_xlfn.SINGLE(_xlfn.XLOOKUP($B$1&\"|\"&$B$2&\"|\"&A26,Capacity_DB!$A:$A,Capacity_DB!$I:$I,0)),0))","v":0},{"$f":"IF(OR($B26=\"\",$B26=\"N/A\"),\"\",IFERROR(_xlfn.SINGLE(_xlfn.XLOOKUP($B$1&\"|\"&$B$2&\"|\"&A26,Capacity_DB!$A:$A,Capacity_DB!$J:$J,0)),0))","v":0},{"$f":"IF(OR($B26=\"\",$B26=\"N/A\"),\"\",IFERROR(_xlfn.SINGLE(_xlfn.XLOOKUP($B$1&\"|\"&$B$2&\"|\"&A26,Capacity_DB!$A:$A,Capacity_DB!$K:$K,0)),0))","v":0},47,329,{"$f":"IF(OR($B26=\"\",$B26=\"N/A\"),\"\",IFERROR(_xlfn.SINGLE(_xlfn.XLOOKUP($B$1&\"|\"&$B$2&\"|\"&A26,Capacity_DB!$A:$A,Capacity_DB!$L:$L,0)),0))","v":0},{"$f":"IF(OR($B26=\"\",$B26=\"N/A\"),\"\",IFERROR(_xlfn.SINGLE(_xlfn.XLOOKUP($B$1&\"|\"&$B$2&\"|\"&A26,Capacity_DB!$A:$A,Capacity_DB!$M:$M,0)),0))","v":0},{"$f":"IF(OR($B26=\"\",$B26=\"N/A\"),\"\",IFERROR(_xlfn.SINGLE(_xlfn.XLOOKUP($B$1&\"|\"&$B$2&\"|\"&A26,Capacity_DB!$A:$A,Capacity_DB!$N:$N,0)),0))","v":0},{"$f":"IF(OR($B26=\"\",$B26=\"N/A\"),\"\",IFERROR(_xlfn.SINGLE(_xlfn.XLOOKUP($B$1&\"|\"&$B$2&\"|\"&A26,Capacity_DB!$A:$A,Capacity_DB!$O:$O,0)),0))","v":0},{"$f":"IF(OR($B26=\"\",$B26=\"N/A\"),\"\",IFERROR(_xlfn.SINGLE(_xlfn.XLOOKUP($B$1&\"|\"&$B$2&\"|\"&A26,Capacity_DB!$A:$A,Capacity_DB!$P:$P,0)),0))","v":0},{"$f":"IF(OR($B26=\"\",$B26=\"N/A\"),\"\",IFERROR(_xlfn.SINGLE(_xlfn.XLOOKUP($B$1&\"|\"&$B$2&\"|\"&A26,Capacity_DB!$A:$A,Capacity_DB!$Q:$Q,0)),0))","v":0},{"$f":"IF(OR($B26=\"\",$B26=\"N/A\"),\"\",IFERROR(_xlfn.SINGLE(_xlfn.XLOOKUP($B$1&\"|\"&$B$2&\"|\"&A26,Capacity_DB!$A:$A,Capacity_DB!$R:$R,0)),0))","v":0},{"$f":"IF(OR($B26=\"\",$B26=\"N/A\"),\"\",IFERROR(_xlfn.SINGLE(_xlfn.XLOOKUP($B$1&\"|\"&$B$2&\"|\"&A26,Capacity_DB!$A:$A,Capacity_DB!$S:$S,0)),0))","v":0},{"$f":"IF(OR($B26=\"\",$B26=\"N/A\"),\"\",IFERROR(_xlfn.SINGLE(_xlfn.XLOOKUP($B$1&\"|\"&$B$2&\"|\"&A26,Capacity_DB!$A:$A,Capacity_DB!$T:$T,0)),0))","v":0},{"$f":"IF(OR($B26=\"\",$B26=\"N/A\"),\"\",IFERROR(_xlfn.SINGLE(_xlfn.XLOOKUP($B$1&\"|\"&$B$2&\"|\"&A26,Capacity_DB!$A:$A,Capacity_DB!$U:$U,0)),0))","v":0},{"$f":"IF(OR($B26=\"\",$B26=\"N/A\"),\"\",IFERROR(_xlfn.SINGLE(_xlfn.XLOOKUP($B$1&\"|\"&$B$2&\"|\"&A26,Capacity_DB!$A:$A,Capacity_DB!$V:$V,0)),0))","v":0},{"$f":"IF(OR($B26=\"\",$B26=\"N/A\"),\"\",IFERROR(_xlfn.SINGLE(_xlfn.XLOOKUP($B$1&\"|\"&$B$2&\"|\"&A26,Capacity_DB!$A:$A,Capacity_DB!$W:$W,0)),0))","v":0},{"$f":"IF(OR($B26=\"\",$B26=\"N/A\"),\"\",IFERROR(_xlfn.SINGLE(_xlfn.XLOOKUP($B$1&\"|\"&$B$2&\"|\"&A26,Capacity_DB!$A:$A,Capacity_DB!$X:$X,0)),0))","v":0},{"$f":"IF(OR($B26=\"\",$B26=\"N/A\"),\"\",IFERROR(_xlfn.SINGLE(_xlfn.XLOOKUP($B$1&\"|\"&$B$2&\"|\"&A26,Capacity_DB!$A:$A,Capacity_DB!$Y:$Y,0)),0))","v":0},{"$f":"IF(OR($B26=\"\",$B26=\"N/A\"),\"\",IFERROR(_xlfn.SINGLE(_xlfn.XLOOKUP($B$1&\"|\"&$B$2&\"|\"&A26,Capacity_DB!$A:$A,Capacity_DB!$Z:$Z,0)),0))","v":0},0,329,""]
[20,{"$f":"IFERROR(_xlfn.SINGLE(_xlfn.XLOOKUP($B$1&\"|\"&$B$2&\"|\"&A27,Capacity_DB!$A:$A,Capacity_DB!$E:$E,\"\")),\"\")","v":"CLAIRWOOD (E) - JACOBS (I)"},{"$f":"IF(OR($B27=\"\",$B27=\"N/A\"),\"\",IFERROR(_xlfn.SINGLE(_xlfn.XLOOKUP($B$1&\"|\"&$B$2&\"|\"&A27,Capacity_DB!$A:$A,Capacity_DB!$F:$F,\"\")),\"\"))","v":"DURBAN"},{"$f":"IF(OR($B27=\"\",$B27=\"N/A\"),\"\",IFERROR(_xlfn.SINGLE(_xlfn.XLOOKUP($B$1&\"|\"&$B$2&\"|\"&A27,Capacity_DB!$A:$A,Capacity_DB!$G:$G,\"\")),\"\"))","v":72},47,{"$f":"IF(OR($B27=\"\",$B27=\"N/A\"),\"\",IFERROR(_xlfn.SINGLE(_xlfn.XLOOKUP($B$1&\"|\"&$B$2&\"|\"&A27,Capacity_DB!$A:$A,Capacity_DB!$H:$H,0)),0))","v":0},{"$f":"IF(OR($B27=\"\",$B27=\"N/A\"),\"\",IFERROR(_xlfn.SINGLE(_xlfn.XLOOKUP($B$1&\"|\"&$B$2&\"|\"&A27,Capacity_DB!$A:$A,Capacity_DB!$I:$I,0)),0))","v":0},{"$f":"IF(OR($B27=\"\",$B27=\"N/A\"),\"\",IFERROR(_xlfn.SINGLE(_xlfn.XLOOKUP($B$1&\"|\"&$B$2&\"|\"&A27,Capacity_DB!$A:$A,Capacity_DB!$J:$J,0)),0))","v":0},{"$f":"IF(OR($B27=\"\",$B27=\"N/A\"),\"\",IFERROR(_xlfn.SINGLE(_xlfn.XLOOKUP($B$1&\"|\"&$B$2&\"|\"&A27,Capacity_DB!$A:$A,Capacity_DB!$K:$K,0)),0))","v":0},47,329,{"$f":"IF(OR($B27=\"\",$B27=\"N/A\"),\"\",IFERROR(_xlfn.SINGLE(_xlfn.XLOOKUP($B$1&\"|\"&$B$2&\"|\"&A27,Capacity_DB!$A:$A,Capacity_DB!$L:$L,0)),0))","v":0},{"$f":"IF(OR($B27=\"\",$B27=\"N/A\"),\"\",IFERROR(_xlfn.SINGLE(_xlfn.XLOOKUP($B$1&\"|\"&$B$2&\"|\"&A27,Capacity_DB!$A:$A,Capacity_DB!$M:$M,0)),0))","v":0},{"$f":"IF(OR($B27=\"\",$B27=\"N/A\"),\"\",IFERROR(_xlfn.SINGLE(_xlfn.XLOOKUP($B$1&\"|\"&$B$2&\"|\"&A27,Capacity_DB!$A:$A,Capacity_DB!$N:$N,0)),0))","v":0},{"$f":"IF(OR($B27=\"\",$B27=\"N/A\"),\"\",IFERROR(_xlfn.SINGLE(_xlfn.XLOOKUP($B$1&\"|\"&$B$2&\"|\"&A27,Capacity_DB!$A:$A,Capacity_DB!$O:$O,0)),0))","v":0},{"$f":"IF(OR($B27=\"\",$B27=\"N/A\"),\"\",IFERROR(_xlfn.SINGLE(_xlfn.XLOOKUP($B$1&\"|\"&$B$2&\"|\"&A27,Capacity_DB!$A:$A,Capacity_DB!$P:$P,0)),0))","v":0},{"$f":"IF(OR($B27=\"\",$B27=\"N/A\"),\"\",IFERROR(_xlfn.SINGLE(_xlfn.XLOOKUP($B$1&\"|\"&$B$2&\"|\"&A27,Capacity_DB!$A:$A,Capacity_DB!$Q:$Q,0)),0))","v":0},{"$f":"IF(OR($B27=\"\",$B27=\"N/A\"),\"\",IFERROR(_xlfn.SINGLE(_xlfn.XLOOKUP($B$1&\"|\"&$B$2&\"|\"&A27,Capacity_DB!$A:$A,Capacity_DB!$R:$R,0)),0))","v":0},{"$f":"IF(OR($B27=\"\",$B27=\"N/A\"),\"\",IFERROR(_xlfn.SINGLE(_xlfn.XLOOKUP($B$1&\"|\"&$B$2&\"|\"&A27,Capacity_DB!$A:$A,Capacity_DB!$S:$S,0)),0))","v":0},{"$f":"IF(OR($B27=\"\",$B27=\"N/A\"),\"\",IFERROR(_xlfn.SINGLE(_xlfn.XLOOKUP($B$1&\"|\"&$B$2&\"|\"&A27,Capacity_DB!$A:$A,Capacity_DB!$T:$T,0)),0))","v":0},{"$f":"IF(OR($B27=\"\",$B27=\"N/A\"),\"\",IFERROR(_xlfn.SINGLE(_xlfn.XLOOKUP($B$1&\"|\"&$B$2&\"|\"&A27,Capacity_DB!$A:$A,Capacity_DB!$U:$U,0)),0))","v":0},{"$f":"IF(OR($B27=\"\",$B27=\"N/A\"),\"\",IFERROR(_xlfn.SINGLE(_xlfn.XLOOKUP($B$1&\"|\"&$B$2&\"|\"&A27,Capacity_DB!$A:$A,Capacity_DB!$V:$V,0)),0))","v":0},{"$f":"IF(OR($B27=\"\",$B27=\"N/A\"),\"\",IFERROR(_xlfn.SINGLE(_xlfn.XLOOKUP($B$1&\"|\"&$B$2&\"|\"&A27,Capacity_DB!$A:$A,Capacity_DB!$W:$W,0)),0))","v":0},{"$f":"IF(OR($B27=\"\",$B27=\"N/A\"),\"\",IFERROR(_xlfn.SINGLE(_xlfn.XLOOKUP($B$1&\"|\"&$B$2&\"|\"&A27,Capacity_DB!$A:$A,Capacity_DB!$X:$X,0)),0))","v":0},{"$f":"IF(OR($B27=\"\",$B27=\"N/A\"),\"\",IFERROR(_xlfn.SINGLE(_xlfn.XLOOKUP($B$1&\"|\"&$B$2&\"|\"&A27,Capacity_DB!$A:$A,Capacity_DB!$Y:$Y,0)),0))","v":0},{"$f":"IF(OR($B27=\"\",$B27=\"N/A\"),\"\",IFERROR(_xlfn.SINGLE(_xlfn.XLOOKUP($B$1&\"|\"&$B$2&\"|\"&A27,Capacity_DB!$A:$A,Capacity_DB!$Z:$Z,0)),0))","v":0},0,329,""]
[21,{"$f":"IFERROR(_xlfn.SINGLE(_xlfn.XLOOKUP($B$1&\"|\"&$B$2&\"|\"&A28,Capacity_DB!$A:$A,Capacity_DB!$E:$E,\"\")),\"\")","v":"JACOBS (E) - WESTS (I)"},{"$f":"IF(OR($B28=\"\",$B28=\"N/A\"),\"\",IFERROR(_xlfn.SINGLE(_xlfn.XLOOKUP($B$1&\"|\"&$B$2&\"|\"&A28,Capacity_DB!$A:$A,Capacity_DB!$F:$F,\"\")),\"\"))","v":"DURBAN"},{"$f":"IF(OR($B28=\"\",$B28=\"N/A\"),\"\",IFERROR(_xlfn.SINGLE(_xlfn.XLOOKUP($B$1&\"|\"&$B$2&\"|\"&A28,Capacity_DB!$A:$A,Capacity_DB!$G:$G,\"\")),\"\"))","v":72},47,{"$f":"IF(OR($B28=\"\",$B28=\"N/A\"),\"\",IFERROR(_xlfn.SINGLE(_xlfn.XLOOKUP($B$1&\"|\"&$B$2&\"|\"&A28,Capacity_DB!$A:$A,Capacity_DB!$H:$H,0)),0))","v":0},{"$f":"IF(OR($B28=\"\",$B28=\"N/A\"),\"\",IFERROR(_xlfn.SINGLE(_xlfn.XLOOKUP($B$1&\"|\"&$B$2&\"|\"&A28,Capacity_DB!$A:$A,Capacity_DB!$I:$I,0)),0))","v":0},{"$f":"IF(OR($B28=\"\",$B28=\"N/A\"),\"\",IFERROR(_xlfn.SINGLE(_xlfn.XLOOKUP($B$1&\"|\"&$B$2&\"|\"&A28,Capacity_DB!$A:$A,Capacity_DB!$J:$J,0)),0))","v":0},{"$f":"IF(OR($B28=\"\",$B28=\"N/A\"),\"\",IFERROR(_xlfn.SINGLE(_xlfn.XLOOKUP($B$1&\"|\"&$B$2&\"|\"&A28,Capacity_DB!$A:$A,Capacity_DB!$K:$K,0)),0))","v":0},47,329,{"$f":"IF(OR($B28=\"\",$B28=\"N/A\"),\"\",IFERROR(_xlfn.SINGLE(_xlfn.XLOOKUP($B$1&\"|\"&$B$2&\"|\"&A28,Capacity_DB!$A:$A,Capacity_DB!$L:$L,0)),0))","v":0},{"$f":"IF(OR($B28=\"\",$B28=\"N/A\"),\"\",IFERROR(_xlfn.SINGLE(_xlfn.XLOOKUP($B$1&\"|\"&$B$2&\"|\"&A28,Capacity_DB!$A:$A,Capacity_DB!$M:$M,0)),0))","v":0},{"$f":"IF(OR($B28=\"\",$B28=\"N/A\"),\"\",IFERROR(_xlfn.SINGLE(_xlfn.XLOOKUP($B$1&\"|\"&$B$2&\"|\"&A28,Capacity_DB!$A:$A,Capacity_DB!$N:$N,0)),0))","v":0},{"$f":"IF(OR($B28=\"\",$B28=\"N/A\"),\"\",IFERROR(_xlfn.SINGLE(_xlfn.XLOOKUP($B$1&\"|\"&$B$2&\"|\"&A28,Capacity_DB!$A:$A,Capacity_DB!$O:$O,0)),0))","v":0},{"$f":"IF(OR($B28=\"\",$B28=\"N/A\"),\"\",IFERROR(_xlfn.SINGLE(_xlfn.XLOOKUP($B$1&\"|\"&$B$2&\"|\"&A28,Capacity_DB!$A:$A,Capacity_DB!$P:$P,0)),0))","v":0},{"$f":"IF(OR($B28=\"\",$B28=\"N/A\"),\"\",IFERROR(_xlfn.SINGLE(_xlfn.XLOOKUP($B$1&\"|\"&$B$2&\"|\"&A28,Capacity_DB!$A:$A,Capacity_DB!$Q:$Q,0)),0))","v":0},{"$f":"IF(OR($B28=\"\",$B28=\"N/A\"),\"\",IFERROR(_xlfn.SINGLE(_xlfn.XLOOKUP($B$1&\"|\"&$B$2&\"|\"&A28,Capacity_DB!$A:$A,Capacity_DB!$R:$R,0)),0))","v":0},{"$f":"IF(OR($B28=\"\",$B28=\"N/A\"),\"\",IFERROR(_xlfn.SINGLE(_xlfn.XLOOKUP($B$1&\"|\"&$B$2&\"|\"&A28,Capacity_DB!$A:$A,Capacity_DB!$S:$S,0)),0))","v":0},{"$f":"IF(OR($B28=\"\",$B28=\"N/A\"),\"\",IFERROR(_xlfn.SINGLE(_xlfn.XLOOKUP($B$1&\"|\"&$B$2&\"|\"&A28,Capacity_DB!$A:$A,Capacity_DB!$T:$T,0)),0))","v":0},{"$f":"IF(OR($B28=\"\",$B28=\"N/A\"),\"\",IFERROR(_xlfn.SINGLE(_xlfn.XLOOKUP($B$1&\"|\"&$B$2&\"|\"&A28,Capacity_DB!$A:$A,Capacity_DB!$U:$U,0)),0))","v":0},{"$f":"IF(OR($B28=\"\",$B28=\"N/A\"),\"\",IFERROR(_xlfn.SINGLE(_xlfn.XLOOKUP($B$1&\"|\"&$B$2&\"|\"&A28,Capacity_DB!$A:$A,Capacity_DB!$V:$V,0)),0))","v":0},{"$f":"IF(OR($B28=\"\",$B28=\"N/A\"),\"\",IFERROR(_xlfn.SINGLE(_xlfn.XLOOKUP($B$1&\"|\"&$B$2&\"|\"&A28,Capacity_DB!$A:$A,Capacity_DB!$W:$W,0)),0))","v":0},{"$f":"IF(OR($B28=\"\",$B28=\"N/A\"),\"\",IFERROR(_xlfn.SINGLE(_xlfn.XLOOKUP($B$1&\"|\"&$B$2&\"|\"&A28,Capacity_DB!$A:$A,Capacity_DB!$X:$X,0)),0))","v":0},{"$f":"IF(OR($B28=\"\",$B28=\"N/A\"),\"\",IFERROR(_xlfn.SINGLE(_xlfn.XLOOKUP($B$1&\"|\"&$B$2&\"|\"&A28,Capacity_DB!$A:$A,Capacity_DB!$Y:$Y,0)),0))","v":0},{"$f":"IF(OR($B28=\"\",$B28=\"N/A\"),\"\",IFERROR(_xlfn.SINGLE(_xlfn.XLOOKUP($B$1&\"|\"&$B$2&\"|\"&A28,Capacity_DB!$A:$A,Capacity_DB!$Z:$Z,0)),0))","v":0},0,329,""]
[22,{"$f":"IFERROR(_xlfn.SINGLE(_xlfn.XLOOKUP($B$1&\"|\"&$B$2&\"|\"&A29,Capacity_DB!$A:$A,Capacity_DB!$E:$E,\"\")),\"\")","v":"CATO RIDGE (E) - PINETOWN (I)"},{"$f":"IF(OR($B29=\"\",$B29=\"N/A\"),\"\",IFERROR(_xlfn.SINGLE(_xlfn.XLOOKUP($B$1&\"|\"&$B$2&\"|\"&A29,Capacity_DB!$A:$A,Capacity_DB!$F:$F,\"\")),\"\"))","v":"DURBAN (Line Closed)"},{"$f":"IF(OR($B29=\"\",$B29=\"N/A\"),\"\",IFERROR(_xlfn.SINGLE(_xlfn.XLOOKUP($B$1&\"|\"&$B$2&\"|\"&A29,Capacity_DB!$A:$A,Capacity_DB!$G:$G,\"\")),\"\"))","v":15},10,{"$f":"IF(OR($B29=\"\",$B29=\"N/A\"),\"\",IFERROR(_xlfn.SINGLE(_xlfn.XLOOKUP($B$1&\"|\"&$B$2&\"|\"&A29,Capacity_DB!$A:$A,Capacity_DB!$H:$H,0)),0))","v":0},{"$f":"IF(OR($B29=\"\",$B29=\"N/A\"),\"\",IFERROR(_xlfn.SINGLE(_xlfn.XLOOKUP($B$1&\"|\"&$B$2&\"|\"&A29,Capacity_DB!$A:$A,Capacity_DB!$I:$I,0)),0))","v":0},{"$f":"IF(OR($B29=\"\",$B29=\"N/A\"),\"\",IFERROR(_xlfn.SINGLE(_xlfn.XLOOKUP($B$1&\"|\"&$B$2&\"|\"&A29,Capacity_DB!$A:$A,Capacity_DB!$J:$J,0)),0))","v":0},{"$f":"IF(OR($B29=\"\",$B29=\"N/A\"),\"\",IFERROR(_xlfn.SINGLE(_xlfn.XLOOKUP($B$1&\"|\"&$B$2&\"|\"&A29,Capacity_DB!$A:$A,Capacity_DB!$K:$K,0)),0))","v":0},10,0,{"$f":"IF(OR($B29=\"\",$B29=\"N/A\"),\"\",IFERROR(_xlfn.SINGLE(_xlfn.XLOOKUP($B$1&\"|\"&$B$2&\"|\"&A29,Capacity_DB!$A:$A,Capacity_DB!$L:$L,0)),0))","v":0},{"$f":"IF(OR($B29=\"\",$B29=\"N/A\"),\"\",IFERROR(_xlfn.SINGLE(_xlfn.XLOOKUP($B$1&\"|\"&$B$2&\"|\"&A29,Capacity_DB!$A:$A,Capacity_DB!$M:$M,0)),0))","v":0},{"$f":"IF(OR($B29=\"\",$B29=\"N/A\"),\"\",IFERROR(_xlfn.SINGLE(_xlfn.XLOOKUP($B$1&\"|\"&$B$2&\"|\"&A29,Capacity_DB!$A:$A,Capacity_DB!$N:$N,0)),0))","v":0},{"$f":"IF(OR($B29=\"\",$B29=\"N/A\"),\"\",IFERROR(_xlfn.SINGLE(_xlfn.XLOOKUP($B$1&\"|\"&$B$2&\"|\"&A29,Capacity_DB!$A:$A,Capacity_DB!$O:$O,0)),0))","v":0},{"$f":"IF(OR($B29=\"\",$B29=\"N/A\"),\"\",IFERROR(_xlfn.SINGLE(_xlfn.XLOOKUP($B$1&\"|\"&$B$2&\"|\"&A29,Capacity_DB!$A:$A,Capacity_DB!$P:$P,0)),0))","v":0},{"$f":"IF(OR($B29=\"\",$B29=\"N/A\"),\"\",IFERROR(_xlfn.SINGLE(_xlfn.XLOOKUP($B$1&\"|\"&$B$2&\"|\"&A29,Capacity_DB!$A:$A,Capacity_DB!$Q:$Q,0)),0))","v":0},{"$f":"IF(OR($B29=\"\",$B29=\"N/A\"),\"\",IFERROR(_xlfn.SINGLE(_xlfn.XLOOKUP($B$1&\"|\"&$B$2&\"|\"&A29,Capacity_DB!$A:$A,Capacity_DB!$R:$R,0)),0))","v":0},{"$f":"IF(OR($B29=\"\",$B29=\"N/A\"),\"\",IFERROR(_xlfn.SINGLE(_xlfn.XLOOKUP($B$1&\"|\"&$B$2&\"|\"&A29,Capacity_DB!$A:$A,Capacity_DB!$S:$S,0)),0))","v":0},{"$f":"IF(OR($B29=\"\",$B29=\"N/A\"),\"\",IFERROR(_xlfn.SINGLE(_xlfn.XLOOKUP($B$1&\"|\"&$B$2&\"|\"&A29,Capacity_DB!$A:$A,Capacity_DB!$T:$T,0)),0))","v":0},{"$f":"IF(OR($B29=\"\",$B29=\"N/A\"),\"\",IFERROR(_xlfn.SINGLE(_xlfn.XLOOKUP($B$1&\"|\"&$B$2&\"|\"&A29,Capacity_DB!$A:$A,Capacity_DB!$U:$U,0)),0))","v":0},{"$f":"IF(OR($B29=\"\",$B29=\"N/A\"),\"\",IFERROR(_xlfn.SINGLE(_xlfn.XLOOKUP($B$1&\"|\"&$B$2&\"|\"&A29,Capacity_DB!$A:$A,Capacity_DB!$V:$V,0)),0))","v":0},{"$f":"IF(OR($B29=\"\",$B29=\"N/A\"),\"\",IFERROR(_xlfn.SINGLE(_xlfn.XLOOKUP($B$1&\"|\"&$B$2&\"|\"&A29,Capacity_DB!$A:$A,Capacity_DB!$W:$W,0)),0))","v":0},{"$f":"IF(OR($B29=\"\",$B29=\"N/A\"),\"\",IFERROR(_xlfn.SINGLE(_xlfn.XLOOKUP($B$1&\"|\"&$B$2&\"|\"&A29,Capacity_DB!$A:$A,Capacity_DB!$X:$X,0)),0))","v":0},{"$f":"IF(OR($B29=\"\",$B29=\"N/A\"),\"\",IFERROR(_xlfn.SINGLE(_xlfn.XLOOKUP($B$1&\"|\"&$B$2&\"|\"&A29,Capacity_DB!$A:$A,Capacity_DB!$Y:$Y,0)),0))","v":0},{"$f":"IF(OR($B29=\"\",$B29=\"N/A\"),\"\",IFERROR(_xlfn.SINGLE(_xlfn.XLOOKUP($B$1&\"|\"&$B$2&\"|\"&A29,Capacity_DB!$A:$A,Capacity_DB!$Z:$Z,0)),0))","v":0},0,0,""]
[23,{"$f":"IFERROR(_xlfn.SINGLE(_xlfn.XLOOKUP($B$1&\"|\"&$B$2&\"|\"&A30,Capacity_DB!$A:$A,Capacity_DB!$E:$E,\"\")),\"\")","v":"PINETOWN - ROSSBURGH"},{"$f":"IF(OR($B30=\"\",$B30=\"N/A\"),\"\",IFERROR(_xlfn.SINGLE(_xlfn.XLOOKUP($B$1&\"|\"&$B$2&\"|\"&A30,Capacity_DB!$A:$A,Capacity_DB!$F:$F,\"\")),\"\"))","v":"DURBAN"},{"$f":"IF(OR($B30=\"\",$B30=\"N/A\"),\"\",IFERROR(_xlfn.SINGLE(_xlfn.XLOOKUP($B$1&\"|\"&$B$2&\"|\"&A30,Capacity_DB!$A:$A,Capacity_DB!$G:$G,\"\")),\"\"))","v":18},12,{"$f":"IF(OR($B30=\"\",$B30=\"N/A\"),\"\",IFERROR(_xlfn.SINGLE(_xlfn.XLOOKUP($B$1&\"|\"&$B$2&\"|\"&A30,Capacity_DB!$A:$A,Capacity_DB!$H:$H,0)),0))","v":0},{"$f":"IF(OR($B30=\"\",$B30=\"N/A\"),\"\",IFERROR(_xlfn.SINGLE(_xlfn.XLOOKUP($B$1&\"|\"&$B$2&\"|\"&A30,Capacity_DB!$A:$A,Capacity_DB!$I:$I,0)),0))","v":0},{"$f":"IF(OR($B30=\"\",$B30=\"N/A\"),\"\",IFERROR(_xlfn.SINGLE(_xlfn.XLOOKUP($B$1&\"|\"&$B$2&\"|\"&A30,Capacity_DB!$A:$A,Capacity_DB!$J:$J,0)),0))","v":0},{"$f":"IF(OR($B30=\"\",$B30=\"N/A\"),\"\",IFERROR(_xlfn.SINGLE(_xlfn.XLOOKUP($B$1&\"|\"&$B$2&\"|\"&A30,Capacity_DB!$A:$A,Capacity_DB!$K:$K,0)),0))","v":0},12,84,{"$f":"IF(OR($B30=\"\",$B30=\"N/A\"),\"\",IFERROR(_xlfn.SINGLE(_xlfn.XLOOKUP($B$1&\"|\"&$B$2&\"|\"&A30,Capacity_DB!$A:$A,Capacity_DB!$L:$L,0)),0))","v":0},{"$f":"IF(OR($B30=\"\",$B30=\"N/A\"),\"\",IFERROR(_xlfn.SINGLE(_xlfn.XLOOKUP($B$1&\"|\"&$B$2&\"|\"&A30,Capacity_DB!$A:$A,Capacity_DB!$M:$M,0)),0))","v":0},{"$f":"IF(OR($B30=\"\",$B30=\"N/A\"),\"\",IFERROR(_xlfn.SINGLE(_xlfn.XLOOKUP($B$1&\"|\"&$B$2&\"|\"&A30,Capacity_DB!$A:$A,Capacity_DB!$N:$N,0)),0))","v":0},{"$f":"IF(OR($B30=\"\",$B30=\"N/A\"),\"\",IFERROR(_xlfn.SINGLE(_xlfn.XLOOKUP($B$1&\"|\"&$B$2&\"|\"&A30,Capacity_DB!$A:$A,Capacity_DB!$O:$O,0)),0))","v":0},{"$f":"IF(OR($B30=\"\",$B30=\"N/A\"),\"\",IFERROR(_xlfn.SINGLE(_xlfn.XLOOKUP($B$1&\"|\"&$B$2&\"|\"&A30,Capacity_DB!$A:$A,Capacity_DB!$P:$P,0)),0))","v":0},{"$f":"IF(OR($B30=\"\",$B30=\"N/A\"),\"\",IFERROR(_xlfn.SINGLE(_xlfn.XLOOKUP($B$1&\"|\"&$B$2&\"|\"&A30,Capacity_DB!$A:$A,Capacity_DB!$Q:$Q,0)),0))","v":0},{"$f":"IF(OR($B30=\"\",$B30=\"N/A\"),\"\",IFERROR(_xlfn.SINGLE(_xlfn.XLOOKUP($B$1&\"|\"&$B$2&\"|\"&A30,Capacity_DB!$A:$A,Capacity_DB!$R:$R,0)),0))","v":0},{"$f":"IF(OR($B30=\"\",$B30=\"N/A\"),\"\",IFERROR(_xlfn.SINGLE(_xlfn.XLOOKUP($B$1&\"|\"&$B$2&\"|\"&A30,Capacity_DB!$A:$A,Capacity_DB!$S:$S,0)),0))","v":0},{"$f":"IF(OR($B30=\"\",$B30=\"N/A\"),\"\",IFERROR(_xlfn.SINGLE(_xlfn.XLOOKUP($B$1&\"|\"&$B$2&\"|\"&A30,Capacity_DB!$A:$A,Capacity_DB!$T:$T,0)),0))","v":0},{"$f":"IF(OR($B30=\"\",$B30=\"N/A\"),\"\",IFERROR(_xlfn.SINGLE(_xlfn.XLOOKUP($B$1&\"|\"&$B$2&\"|\"&A30,Capacity_DB!$A:$A,Capacity_DB!$U:$U,0)),0))","v":0},{"$f":"IF(OR($B30=\"\",$B30=\"N/A\"),\"\",IFERROR(_xlfn.SINGLE(_xlfn.XLOOKUP($B$1&\"|\"&$B$2&\"|\"&A30,Capacity_DB!$A:$A,Capacity_DB!$V:$V,0)),0))","v":0},{"$f":"IF(OR($B30=\"\",$B30=\"N/A\"),\"\",IFERROR(_xlfn.SINGLE(_xlfn.XLOOKUP($B$1&\"|\"&$B$2&\"|\"&A30,Capacity_DB!$A:$A,Capacity_DB!$W:$W,0)),0))","v":0},{"$f":"IF(OR($B30=\"\",$B30=\"N/A\"),\"\",IFERROR(_xlfn.SINGLE(_xlfn.XLOOKUP($B$1&\"|\"&$B$2&\"|\"&A30,Capacity_DB!$A:$A,Capacity_DB!$X:$X,0)),0))","v":0},{"$f":"IF(OR($B30=\"\",$B30=\"N/A\"),\"\",IFERROR(_xlfn.SINGLE(_xlfn.XLOOKUP($B$1&\"|\"&$B$2&\"|\"&A30,Capacity_DB!$A:$A,Capacity_DB!$Y:$Y,0)),0))","v":0},{"$f":"IF(OR($B30=\"\",$B30=\"N/A\"),\"\",IFERROR(_xlfn.SINGLE(_xlfn.XLOOKUP($B$1&\"|\"&$B$2&\"|\"&A30,Capacity_DB!$A:$A,Capacity_DB!$Z:$Z,0)),0))","v":0},0,84,""]
[24,{"$f":"IFERROR(_xlfn.SINGLE(_xlfn.XLOOKUP($B$1&\"|\"&$B$2&\"|\"&A31,Capacity_DB!$A:$A,Capacity_DB!$E:$E,\"\")),\"\")","v":" JACOBS (E) - MEREBANK (E) "},{"$f":"IF(OR($B31=\"\",$B31=\"N/A\"),\"\",IFERROR(_xlfn.SINGLE(_xlfn.XLOOKUP($B$1&\"|\"&$B$2&\"|\"&A31,Capacity_DB!$A:$A,Capacity_DB!$F:$F,\"\")),\"\"))","v":"DURBAN"},{"$f":"IF(OR($B31=\"\",$B31=\"N/A\"),\"\",IFERROR(_xlfn.SINGLE(_xlfn.XLOOKUP($B$1&\"|\"&$B$2&\"|\"&A31,Capacity_DB!$A:$A,Capacity_DB!$G:$G,\"\")),\"\"))","v":21},14,{"$f":"IF(OR($B31=\"\",$B31=\"N/A\"),\"\",IFERROR(_xlfn.SINGLE(_xlfn.XLOOKUP($B$1&\"|\"&$B$2&\"|\"&A31,Capacity_DB!$A:$A,Capacity_DB!$H:$H,0)),0))","v":0},{"$f":"IF(OR($B31=\"\",$B31=\"N/A\"),\"\",IFERROR(_xlfn.SINGLE(_xlfn.XLOOKUP($B$1&\"|\"&$B$2&\"|\"&A31,Capacity_DB!$A:$A,Capacity_DB!$I:$I,0)),0))","v":0},{"$f":"IF(OR($B31=\"\",$B31=\"N/A\"),\"\",IFERROR(_xlfn.SINGLE(_xlfn.XLOOKUP($B$1&\"|\"&$B$2&\"|\"&A31,Capacity_DB!$A:$A,Capacity_DB!$J:$J,0)),0))","v":0},{"$f":"IF(OR($B31=\"\",$B31=\"N/A\"),\"\",IFERROR(_xlfn.SINGLE(_xlfn.XLOOKUP($B$1&\"|\"&$B$2&\"|\"&A31,Capacity_DB!$A:$A,Capacity_DB!$K:$K,0)),0))","v":0},14,98,{"$f":"IF(OR($B31=\"\",$B31=\"N/A\"),\"\",IFERROR(_xlfn.SINGLE(_xlfn.XLOOKUP($B$1&\"|\"&$B$2&\"|\"&A31,Capacity_DB!$A:$A,Capacity_DB!$L:$L,0)),0))","v":0},{"$f":"IF(OR($B31=\"\",$B31=\"N/A\"),\"\",IFERROR(_xlfn.SINGLE(_xlfn.XLOOKUP($B$1&\"|\"&$B$2&\"|\"&A31,Capacity_DB!$A:$A,Capacity_DB!$M:$M,0)),0))","v":0},{"$f":"IF(OR($B31=\"\",$B31=\"N/A\"),\"\",IFERROR(_xlfn.SINGLE(_xlfn.XLOOKUP($B$1&\"|\"&$B$2&\"|\"&A31,Capacity_DB!$A:$A,Capacity_DB!$N:$N,0)),0))","v":0},{"$f":"IF(OR($B31=\"\",$B31=\"N/A\"),\"\",IFERROR(_xlfn.SINGLE(_xlfn.XLOOKUP($B$1&\"|\"&$B$2&\"|\"&A31,Capacity_DB!$A:$A,Capacity_DB!$O:$O,0)),0))","v":0},{"$f":"IF(OR($B31=\"\",$B31=\"N/A\"),\"\",IFERROR(_xlfn.SINGLE(_xlfn.XLOOKUP($B$1&\"|\"&$B$2&\"|\"&A31,Capacity_DB!$A:$A,Capacity_DB!$P:$P,0)),0))","v":0},{"$f":"IF(OR($B31=\"\",$B31=\"N/A\"),\"\",IFERROR(_xlfn.SINGLE(_xlfn.XLOOKUP($B$1&\"|\"&$B$2&\"|\"&A31,Capacity_DB!$A:$A,Capacity_DB!$Q:$Q,0)),0))","v":0},{"$f":"IF(OR($B31=\"\",$B31=\"N/A\"),\"\",IFERROR(_xlfn.SINGLE(_xlfn.XLOOKUP($B$1&\"|\"&$B$2&\"|\"&A31,Capacity_DB!$A:$A,Capacity_DB!$R:$R,0)),0))","v":0},{"$f":"IF(OR($B31=\"\",$B31=\"N/A\"),\"\",IFERROR(_xlfn.SINGLE(_xlfn.XLOOKUP($B$1&\"|\"&$B$2&\"|\"&A31,Capacity_DB!$A:$A,Capacity_DB!$S:$S,0)),0))","v":0},{"$f":"IF(OR($B31=\"\",$B31=\"N/A\"),\"\",IFERROR(_xlfn.SINGLE(_xlfn.XLOOKUP($B$1&\"|\"&$B$2&\"|\"&A31,Capacity_DB!$A:$A,Capacity_DB!$T:$T,0)),0))","v":0},{"$f":"IF(OR($B31=\"\",$B31=\"N/A\"),\"\",IFERROR(_xlfn.SINGLE(_xlfn.XLOOKUP($B$1&\"|\"&$B$2&\"|\"&A31,Capacity_DB!$A:$A,Capacity_DB!$U:$U,0)),0))","v":0},{"$f":"IF(OR($B31=\"\",$B31=\"N/A\"),\"\",IFERROR(_xlfn.SINGLE(_xlfn.XLOOKUP($B$1&\"|\"&$B$2&\"|\"&A31,Capacity_DB!$A:$A,Capacity_DB!$V:$V,0)),0))","v":0},{"$f":"IF(OR($B31=\"\",$B31=\"N/A\"),\"\",IFERROR(_xlfn.SINGLE(_xlfn.XLOOKUP($B$1&\"|\"&$B$2&\"|\"&A31,Capacity_DB!$A:$A,Capacity_DB!$W:$W,0)),0))","v":0},{"$f":"IF(OR($B31=\"\",$B31=\"N/A\"),\"\",IFERROR(_xlfn.SINGLE(_xlfn.XLOOKUP($B$1&\"|\"&$B$2&\"|\"&A31,Capacity_DB!$A:$A,Capacity_DB!$X:$X,0)),0))","v":0},{"$f":"IF(OR($B31=\"\",$B31=\"N/A\"),\"\",IFERROR(_xlfn.SINGLE(_xlfn.XLOOKUP($B$1&\"|\"&$B$2&\"|\"&A31,Capacity_DB!$A:$A,Capacity_DB!$Y:$Y,0)),0))","v":0},{"$f":"IF(OR($B31=\"\",$B31=\"N/A\"),\"\",IFERROR(_xlfn.SINGLE(_xlfn.XLOOKUP($B$1&\"|\"&$B$2&\"|\"&A31,Capacity_DB!$A:$A,Capacity_DB!$Z:$Z,0)),0))","v":0},0,98,""]
[25,{"$f":"IFERROR(_xlfn.SINGLE(_xlfn.XLOOKUP($B$1&\"|\"&$B$2&\"|\"&A32,Capacity_DB!$A:$A,Capacity_DB!$E:$E,\"\")),\"\")","v":"KELSO (E) - PORT SHEPSTONE (I)"},{"$f":"IF(OR($B32=\"\",$B32=\"N/A\"),\"\",IFERROR(_xlfn.SINGLE(_xlfn.XLOOKUP($B$1&\"|\"&$B$2&\"|\"&A32,Capacity_DB!$A:$A,Capacity_DB!$F:$F,\"\")),\"\"))","v":"DURBAN (Line Closed)"},{"$f":"IF(OR($B32=\"\",$B32=\"N/A\"),\"\",IFERROR(_xlfn.SINGLE(_xlfn.XLOOKUP($B$1&\"|\"&$B$2&\"|\"&A32,Capacity_DB!$A:$A,Capacity_DB!$G:$G,\"\")),\"\"))","v":22},14,{"$f":"IF(OR($B32=\"\",$B32=\"N/A\"),\"\",IFERROR(_xlfn.SINGLE(_xlfn.XLOOKUP($B$1&\"|\"&$B$2&\"|\"&A32,Capacity_DB!$A:$A,Capacity_DB!$H:$H,0)),0))","v":0},{"$f":"IF(OR($B32=\"\",$B32=\"N/A\"),\"\",IFERROR(_xlfn.SINGLE(_xlfn.XLOOKUP($B$1&\"|\"&$B$2&\"|\"&A32,Capacity_DB!$A:$A,Capacity_DB!$I:$I,0)),0))","v":0},{"$f":"IF(OR($B32=\"\",$B32=\"N/A\"),\"\",IFERROR(_xlfn.SINGLE(_xlfn.XLOOKUP($B$1&\"|\"&$B$2&\"|\"&A32,Capacity_DB!$A:$A,Capacity_DB!$J:$J,0)),0))","v":0},{"$f":"IF(OR($B32=\"\",$B32=\"N/A\"),\"\",IFERROR(_xlfn.SINGLE(_xlfn.XLOOKUP($B$1&\"|\"&$B$2&\"|\"&A32,Capacity_DB!$A:$A,Capacity_DB!$K:$K,0)),0))","v":0},14,0,{"$f":"IF(OR($B32=\"\",$B32=\"N/A\"),\"\",IFERROR(_xlfn.SINGLE(_xlfn.XLOOKUP($B$1&\"|\"&$B$2&\"|\"&A32,Capacity_DB!$A:$A,Capacity_DB!$L:$L,0)),0))","v":0},{"$f":"IF(OR($B32=\"\",$B32=\"N/A\"),\"\",IFERROR(_xlfn.SINGLE(_xlfn.XLOOKUP($B$1&\"|\"&$B$2&\"|\"&A32,Capacity_DB!$A:$A,Capacity_DB!$M:$M,0)),0))","v":0},{"$f":"IF(OR($B32=\"\",$B32=\"N/A\"),\"\",IFERROR(_xlfn.SINGLE(_xlfn.XLOOKUP($B$1&\"|\"&$B$2&\"|\"&A32,Capacity_DB!$A:$A,Capacity_DB!$N:$N,0)),0))","v":0},{"$f":"IF(OR($B32=\"\",$B32=\"N/A\"),\"\",IFERROR(_xlfn.SINGLE(_xlfn.XLOOKUP($B$1&\"|\"&$B$2&\"|\"&A32,Capacity_DB!$A:$A,Capacity_DB!$O:$O,0)),0))","v":0},{"$f":"IF(OR($B32=\"\",$B32=\"N/A\"),\"\",IFERROR(_xlfn.SINGLE(_xlfn.XLOOKUP($B$1&\"|\"&$B$2&\"|\"&A32,Capacity_DB!$A:$A,Capacity_DB!$P:$P,0)),0))","v":0},{"$f":"IF(OR($B32=\"\",$B32=\"N/A\"),\"\",IFERROR(_xlfn.SINGLE(_xlfn.XLOOKUP($B$1&\"|\"&$B$2&\"|\"&A32,Capacity_DB!$A:$A,Capacity_DB!$Q:$Q,0)),0))","v":0},{"$f":"IF(OR($B32=\"\",$B32=\"N/A\"),\"\",IFERROR(_xlfn.SINGLE(_xlfn.XLOOKUP($B$1&\"|\"&$B$2&\"|\"&A32,Capacity_DB!$A:$A,Capacity_DB!$R:$R,0)),0))","v":0},{"$f":"IF(OR($B32=\"\",$B32=\"N/A\"),\"\",IFERROR(_xlfn.SINGLE(_xlfn.XLOOKUP($B$1&\"|\"&$B$2&\"|\"&A32,Capacity_DB!$A:$A,Capacity_DB!$S:$S,0)),0))","v":0},{"$f":"IF(OR($B32=\"\",$B32=\"N/A\"),\"\",IFERROR(_xlfn.SINGLE(_xlfn.XLOOKUP($B$1&\"|\"&$B$2&\"|\"&A32,Capacity_DB!$A:$A,Capacity_DB!$T:$T,0)),0))","v":0},{"$f":"IF(OR($B32=\"\",$B32=\"N/A\"),\"\",IFERROR(_xlfn.SINGLE(_xlfn.XLOOKUP($B$1&\"|\"&$B$2&\"|\"&A32,Capacity_DB!$A:$A,Capacity_DB!$U:$U,0)),0))","v":0},{"$f":"IF(OR($B32=\"\",$B32=\"N/A\"),\"\",IFERROR(_xlfn.SINGLE(_xlfn.XLOOKUP($B$1&\"|\"&$B$2&\"|\"&A32,Capacity_DB!$A:$A,Capacity_DB!$V:$V,0)),0))","v":0},{"$f":"IF(OR($B32=\"\",$B32=\"N/A\"),\"\",IFERROR(_xlfn.SINGLE(_xlfn.XLOOKUP($B$1&\"|\"&$B$2&\"|\"&A32,Capacity_DB!$A:$A,Capacity_DB!$W:$W,0)),0))","v":0},{"$f":"IF(OR($B32=\"\",$B32=\"N/A\"),\"\",IFERROR(_xlfn.SINGLE(_xlfn.XLOOKUP($B$1&\"|\"&$B$2&\"|\"&A32,Capacity_DB!$A:$A,Capacity_DB!$X:$X,0)),0))","v":0},{"$f":"IF(OR($B32=\"\",$B32=\"N/A\"),\"\",IFERROR(_xlfn.SINGLE(_xlfn.XLOOKUP($B$1&\"|\"&$B$2&\"|\"&A32,Capacity_DB!$A:$A,Capacity_DB!$Y:$Y,0)),0))","v":0},{"$f":"IF(OR($B32=\"\",$B32=\"N/A\"),\"\",IFERROR(_xlfn.SINGLE(_xlfn.XLOOKUP($B$1&\"|\"&$B$2&\"|\"&A32,Capacity_DB!$A:$A,Capacity_DB!$Z:$Z,0)),0))","v":0},0,0,""]
[26,{"$f":"IFERROR(_xlfn.SINGLE(_xlfn.XLOOKUP($B$1&\"|\"&$B$2&\"|\"&A33,Capacity_DB!$A:$A,Capacity_DB!$E:$E,\"\")),\"\")","v":" DURBAN (E) - UMGENI (I) "},{"$f":"IF(OR($B33=\"\",$B33=\"N/A\"),\"\",IFERROR(_xlfn.SINGLE(_xlfn.XLOOKUP($B$1&\"|\"&$B$2&\"|\"&A33,Capacity_DB!$A:$A,Capacity_DB!$F:$F,\"\")),\"\"))","v":"DURBAN"},{"$f":"IF(OR($B33=\"\",$B33=\"N/A\"),\"\",IFERROR(_xlfn.SINGLE(_xlfn.XLOOKUP($B$1&\"|\"&$B$2&\"|\"&A33,Capacity_DB!$A:$A,Capacity_DB!$G:$G,\"\")),\"\"))","v":72},47,{"$f":"IF(OR($B33=\"\",$B33=\"N/A\"),\"\",IFERROR(_xlfn.SINGLE(_xlfn.XLOOKUP($B$1&\"|\"&$B$2&\"|\"&A33,Capacity_DB!$A:$A,Capacity_DB!$H:$H,0)),0))","v":0},{"$f":"IF(OR($B33=\"\",$B33=\"N/A\"),\"\",IFERROR(_xlfn.SINGLE(_xlfn.XLOOKUP($B$1&\"|\"&$B$2&\"|\"&A33,Capacity_DB!$A:$A,Capacity_DB!$I:$I,0)),0))","v":0},{"$f":"IF(OR($B33=\"\",$B33=\"N/A\"),\"\",IFERROR(_xlfn.SINGLE(_xlfn.XLOOKUP($B$1&\"|\"&$B$2&\"|\"&A33,Capacity_DB!$A:$A,Capacity_DB!$J:$J,0)),0))","v":0},{"$f":"IF(OR($B33=\"\",$B33=\"N/A\"),\"\",IFERROR(_xlfn.SINGLE(_xlfn.XLOOKUP($B$1&\"|\"&$B$2&\"|\"&A33,Capacity_DB!$A:$A,Capacity_DB!$K:$K,0)),0))","v":0},47,329,{"$f":"IF(OR($B33=\"\",$B33=\"N/A\"),\"\",IFERROR(_xlfn.SINGLE(_xlfn.XLOOKUP($B$1&\"|\"&$B$2&\"|\"&A33,Capacity_DB!$A:$A,Capacity_DB!$L:$L,0)),0))","v":0},{"$f":"IF(OR($B33=\"\",$B33=\"N/A\"),\"\",IFERROR(_xlfn.SINGLE(_xlfn.XLOOKUP($B$1&\"|\"&$B$2&\"|\"&A33,Capacity_DB!$A:$A,Capacity_DB!$M:$M,0)),0))","v":0},{"$f":"IF(OR($B33=\"\",$B33=\"N/A\"),\"\",IFERROR(_xlfn.SINGLE(_xlfn.XLOOKUP($B$1&\"|\"&$B$2&\"|\"&A33,Capacity_DB!$A:$A,Capacity_DB!$N:$N,0)),0))","v":0},{"$f":"IF(OR($B33=\"\",$B33=\"N/A\"),\"\",IFERROR(_xlfn.SINGLE(_xlfn.XLOOKUP($B$1&\"|\"&$B$2&\"|\"&A33,Capacity_DB!$A:$A,Capacity_DB!$O:$O,0)),0))","v":0},{"$f":"IF(OR($B33=\"\",$B33=\"N/A\"),\"\",IFERROR(_xlfn.SINGLE(_xlfn.XLOOKUP($B$1&\"|\"&$B$2&\"|\"&A33,Capacity_DB!$A:$A,Capacity_DB!$P:$P,0)),0))","v":0},{"$f":"IF(OR($B33=\"\",$B33=\"N/A\"),\"\",IFERROR(_xlfn.SINGLE(_xlfn.XLOOKUP($B$1&\"|\"&$B$2&\"|\"&A33,Capacity_DB!$A:$A,Capacity_DB!$Q:$Q,0)),0))","v":0},{"$f":"IF(OR($B33=\"\",$B33=\"N/A\"),\"\",IFERROR(_xlfn.SINGLE(_xlfn.XLOOKUP($B$1&\"|\"&$B$2&\"|\"&A33,Capacity_DB!$A:$A,Capacity_DB!$R:$R,0)),0))","v":0},{"$f":"IF(OR($B33=\"\",$B33=\"N/A\"),\"\",IFERROR(_xlfn.SINGLE(_xlfn.XLOOKUP($B$1&\"|\"&$B$2&\"|\"&A33,Capacity_DB!$A:$A,Capacity_DB!$S:$S,0)),0))","v":0},{"$f":"IF(OR($B33=\"\",$B33=\"N/A\"),\"\",IFERROR(_xlfn.SINGLE(_xlfn.XLOOKUP($B$1&\"|\"&$B$2&\"|\"&A33,Capacity_DB!$A:$A,Capacity_DB!$T:$T,0)),0))","v":0},{"$f":"IF(OR($B33=\"\",$B33=\"N/A\"),\"\",IFERROR(_xlfn.SINGLE(_xlfn.XLOOKUP($B$1&\"|\"&$B$2&\"|\"&A33,Capacity_DB!$A:$A,Capacity_DB!$U:$U,0)),0))","v":0},{"$f":"IF(OR($B33=\"\",$B33=\"N/A\"),\"\",IFERROR(_xlfn.SINGLE(_xlfn.XLOOKUP($B$1&\"|\"&$B$2&\"|\"&A33,Capacity_DB!$A:$A,Capacity_DB!$V:$V,0)),0))","v":0},{"$f":"IF(OR($B33=\"\",$B33=\"N/A\"),\"\",IFERROR(_xlfn.SINGLE(_xlfn.XLOOKUP($B$1&\"|\"&$B$2&\"|\"&A33,Capacity_DB!$A:$A,Capacity_DB!$W:$W,0)),0))","v":0},{"$f":"IF(OR($B33=\"\",$B33=\"N/A\"),\"\",IFERROR(_xlfn.SINGLE(_xlfn.XLOOKUP($B$1&\"|\"&$B$2&\"|\"&A33,Capacity_DB!$A:$A,Capacity_DB!$X:$X,0)),0))","v":0},{"$f":"IF(OR($B33=\"\",$B33=\"N/A\"),\"\",IFERROR(_xlfn.SINGLE(_xlfn.XLOOKUP($B$1&\"|\"&$B$2&\"|\"&A33,Capacity_DB!$A:$A,Capacity_DB!$Y:$Y,0)),0))","v":0},{"$f":"IF(OR($B33=\"\",$B33=\"N/A\"),\"\",IFERROR(_xlfn.SINGLE(_xlfn.XLOOKUP($B$1&\"|\"&$B$2&\"|\"&A33,Capacity_DB!$A:$A,Capacity_DB!$Z:$Z,0)),0))","v":0},0,329,""]
[27,{"$f":"IFERROR(_xlfn.SINGLE(_xlfn.XLOOKUP($B$1&\"|\"&$B$2&\"|\"&A34,Capacity_DB!$A:$A,Capacity_DB!$E:$E,\"\")),\"\")","v":"UMGENI (E) - DUFF'S ROAD (E)"},{"$f":"IF(OR($B34=\"\",$B34=\"N/A\"),\"\",IFERROR(_xlfn.SINGLE(_xlfn.XLOOKUP($B$1&\"|\"&$B$2&\"|\"&A34,Capacity_DB!$A:$A,Capacity_DB!$F:$F,\"\")),\"\"))","v":"DURBAN"},{"$f":"IF(OR($B34=\"\",$B34=\"N/A\"),\"\",IFERROR(_xlfn.SINGLE(_xlfn.XLOOKUP($B$1&\"|\"&$B$2&\"|\"&A34,Capacity_DB!$A:$A,Capacity_DB!$G:$G,\"\")),\"\"))","v":72},47,{"$f":"IF(OR($B34=\"\",$B34=\"N/A\"),\"\",IFERROR(_xlfn.SINGLE(_xlfn.XLOOKUP($B$1&\"|\"&$B$2&\"|\"&A34,Capacity_DB!$A:$A,Capacity_DB!$H:$H,0)),0))","v":0},{"$f":"IF(OR($B34=\"\",$B34=\"N/A\"),\"\",IFERROR(_xlfn.SINGLE(_xlfn.XLOOKUP($B$1&\"|\"&$B$2&\"|\"&A34,Capacity_DB!$A:$A,Capacity_DB!$I:$I,0)),0))","v":0},{"$f":"IF(OR($B34=\"\",$B34=\"N/A\"),\"\",IFERROR(_xlfn.SINGLE(_xlfn.XLOOKUP($B$1&\"|\"&$B$2&\"|\"&A34,Capacity_DB!$A:$A,Capacity_DB!$J:$J,0)),0))","v":0},{"$f":"IF(OR($B34=\"\",$B34=\"N/A\"),\"\",IFERROR(_xlfn.SINGLE(_xlfn.XLOOKUP($B$1&\"|\"&$B$2&\"|\"&A34,Capacity_DB!$A:$A,Capacity_DB!$K:$K,0)),0))","v":0},47,329,{"$f":"IF(OR($B34=\"\",$B34=\"N/A\"),\"\",IFERROR(_xlfn.SINGLE(_xlfn.XLOOKUP($B$1&\"|\"&$B$2&\"|\"&A34,Capacity_DB!$A:$A,Capacity_DB!$L:$L,0)),0))","v":0},{"$f":"IF(OR($B34=\"\",$B34=\"N/A\"),\"\",IFERROR(_xlfn.SINGLE(_xlfn.XLOOKUP($B$1&\"|\"&$B$2&\"|\"&A34,Capacity_DB!$A:$A,Capacity_DB!$M:$M,0)),0))","v":0},{"$f":"IF(OR($B34=\"\",$B34=\"N/A\"),\"\",IFERROR(_xlfn.SINGLE(_xlfn.XLOOKUP($B$1&\"|\"&$B$2&\"|\"&A34,Capacity_DB!$A:$A,Capacity_DB!$N:$N,0)),0))","v":0},{"$f":"IF(OR($B34=\"\",$B34=\"N/A\"),\"\",IFERROR(_xlfn.SINGLE(_xlfn.XLOOKUP($B$1&\"|\"&$B$2&\"|\"&A34,Capacity_DB!$A:$A,Capacity_DB!$O:$O,0)),0))","v":0},{"$f":"IF(OR($B34=\"\",$B34=\"N/A\"),\"\",IFERROR(_xlfn.SINGLE(_xlfn.XLOOKUP($B$1&\"|\"&$B$2&\"|\"&A34,Capacity_DB!$A:$A,Capacity_DB!$P:$P,0)),0))","v":0},{"$f":"IF(OR($B34=\"\",$B34=\"N/A\"),\"\",IFERROR(_xlfn.SINGLE(_xlfn.XLOOKUP($B$1&\"|\"&$B$2&\"|\"&A34,Capacity_DB!$A:$A,Capacity_DB!$Q:$Q,0)),0))","v":0},{"$f":"IF(OR($B34=\"\",$B34=\"N/A\"),\"\",IFERROR(_xlfn.SINGLE(_xlfn.XLOOKUP($B$1&\"|\"&$B$2&\"|\"&A34,Capacity_DB!$A:$A,Capacity_DB!$R:$R,0)),0))","v":0},{"$f":"IF(OR($B34=\"\",$B34=\"N/A\"),\"\",IFERROR(_xlfn.SINGLE(_xlfn.XLOOKUP($B$1&\"|\"&$B$2&\"|\"&A34,Capacity_DB!$A:$A,Capacity_DB!$S:$S,0)),0))","v":0},{"$f":"IF(OR($B34=\"\",$B34=\"N/A\"),\"\",IFERROR(_xlfn.SINGLE(_xlfn.XLOOKUP($B$1&\"|\"&$B$2&\"|\"&A34,Capacity_DB!$A:$A,Capacity_DB!$T:$T,0)),0))","v":0},{"$f":"IF(OR($B34=\"\",$B34=\"N/A\"),\"\",IFERROR(_xlfn.SINGLE(_xlfn.XLOOKUP($B$1&\"|\"&$B$2&\"|\"&A34,Capacity_DB!$A:$A,Capacity_DB!$U:$U,0)),0))","v":0},{"$f":"IF(OR($B34=\"\",$B34=\"N/A\"),\"\",IFERROR(_xlfn.SINGLE(_xlfn.XLOOKUP($B$1&\"|\"&$B$2&\"|\"&A34,Capacity_DB!$A:$A,Capacity_DB!$V:$V,0)),0))","v":0},{"$f":"IF(OR($B34=\"\",$B34=\"N/A\"),\"\",IFERROR(_xlfn.SINGLE(_xlfn.XLOOKUP($B$1&\"|\"&$B$2&\"|\"&A34,Capacity_DB!$A:$A,Capacity_DB!$W:$W,0)),0))","v":0},{"$f":"IF(OR($B34=\"\",$B34=\"N/A\"),\"\",IFERROR(_xlfn.SINGLE(_xlfn.XLOOKUP($B$1&\"|\"&$B$2&\"|\"&A34,Capacity_DB!$A:$A,Capacity_DB!$X:$X,0)),0))","v":0},{"$f":"IF(OR($B34=\"\",$B34=\"N/A\"),\"\",IFERROR(_xlfn.SINGLE(_xlfn.XLOOKUP($B$1&\"|\"&$B$2&\"|\"&A34,Capacity_DB!$A:$A,Capacity_DB!$Y:$Y,0)),0))","v":0},{"$f":"IF(OR($B34=\"\",$B34=\"N/A\"),\"\",IFERROR(_xlfn.SINGLE(_xlfn.XLOOKUP($B$1&\"|\"&$B$2&\"|\"&A34,Capacity_DB!$A:$A,Capacity_DB!$Z:$Z,0)),0))","v":0},0,329,""]
[28,{"$f":"IFERROR(_xlfn.SINGLE(_xlfn.XLOOKUP($B$1&\"|\"&$B$2&\"|\"&A35,Capacity_DB!$A:$A,Capacity_DB!$E:$E,\"\")),\"\")","v":"DUFF'S ROAD (E) - STANGER (I)"},{"$f":"IF(OR($B35=\"\",$B35=\"N/A\"),\"\",IFERROR(_xlfn.SINGLE(_xlfn.XLOOKUP($B$1&\"|\"&$B$2&\"|\"&A35,Capacity_DB!$A:$A,Capacity_DB!$F:$F,\"\")),\"\"))","v":"DURBAN"},{"$f":"IF(OR($B35=\"\",$B35=\"N/A\"),\"\",IFERROR(_xlfn.SINGLE(_xlfn.XLOOKUP($B$1&\"|\"&$B$2&\"|\"&A35,Capacity_DB!$A:$A,Capacity_DB!$G:$G,\"\")),\"\"))","v":72},47,{"$f":"IF(OR($B35=\"\",$B35=\"N/A\"),\"\",IFERROR(_xlfn.SINGLE(_xlfn.XLOOKUP($B$1&\"|\"&$B$2&\"|\"&A35,Capacity_DB!$A:$A,Capacity_DB!$H:$H,0)),0))","v":0},{"$f":"IF(OR($B35=\"\",$B35=\"N/A\"),\"\",IFERROR(_xlfn.SINGLE(_xlfn.XLOOKUP($B$1&\"|\"&$B$2&\"|\"&A35,Capacity_DB!$A:$A,Capacity_DB!$I:$I,0)),0))","v":0},{"$f":"IF(OR($B35=\"\",$B35=\"N/A\"),\"\",IFERROR(_xlfn.SINGLE(_xlfn.XLOOKUP($B$1&\"|\"&$B$2&\"|\"&A35,Capacity_DB!$A:$A,Capacity_DB!$J:$J,0)),0))","v":0},{"$f":"IF(OR($B35=\"\",$B35=\"N/A\"),\"\",IFERROR(_xlfn.SINGLE(_xlfn.XLOOKUP($B$1&\"|\"&$B$2&\"|\"&A35,Capacity_DB!$A:$A,Capacity_DB!$K:$K,0)),0))","v":0},47,329,{"$f":"IF(OR($B35=\"\",$B35=\"N/A\"),\"\",IFERROR(_xlfn.SINGLE(_xlfn.XLOOKUP($B$1&\"|\"&$B$2&\"|\"&A35,Capacity_DB!$A:$A,Capacity_DB!$L:$L,0)),0))","v":0},{"$f":"IF(OR($B35=\"\",$B35=\"N/A\"),\"\",IFERROR(_xlfn.SINGLE(_xlfn.XLOOKUP($B$1&\"|\"&$B$2&\"|\"&A35,Capacity_DB!$A:$A,Capacity_DB!$M:$M,0)),0))","v":0},{"$f":"IF(OR($B35=\"\",$B35=\"N/A\"),\"\",IFERROR(_xlfn.SINGLE(_xlfn.XLOOKUP($B$1&\"|\"&$B$2&\"|\"&A35,Capacity_DB!$A:$A,Capacity_DB!$N:$N,0)),0))","v":0},{"$f":"IF(OR($B35=\"\",$B35=\"N/A\"),\"\",IFERROR(_xlfn.SINGLE(_xlfn.XLOOKUP($B$1&\"|\"&$B$2&\"|\"&A35,Capacity_DB!$A:$A,Capacity_DB!$O:$O,0)),0))","v":0},{"$f":"IF(OR($B35=\"\",$B35=\"N/A\"),\"\",IFERROR(_xlfn.SINGLE(_xlfn.XLOOKUP($B$1&\"|\"&$B$2&\"|\"&A35,Capacity_DB!$A:$A,Capacity_DB!$P:$P,0)),0))","v":0},{"$f":"IF(OR($B35=\"\",$B35=\"N/A\"),\"\",IFERROR(_xlfn.SINGLE(_xlfn.XLOOKUP($B$1&\"|\"&$B$2&\"|\"&A35,Capacity_DB!$A:$A,Capacity_DB!$Q:$Q,0)),0))","v":0},{"$f":"IF(OR($B35=\"\",$B35=\"N/A\"),\"\",IFERROR(_xlfn.SINGLE(_xlfn.XLOOKUP($B$1&\"|\"&$B$2&\"|\"&A35,Capacity_DB!$A:$A,Capacity_DB!$R:$R,0)),0))","v":0},{"$f":"IF(OR($B35=\"\",$B35=\"N/A\"),\"\",IFERROR(_xlfn.SINGLE(_xlfn.XLOOKUP($B$1&\"|\"&$B$2&\"|\"&A35,Capacity_DB!$A:$A,Capacity_DB!$S:$S,0)),0))","v":0},{"$f":"IF(OR($B35=\"\",$B35=\"N/A\"),\"\",IFERROR(_xlfn.SINGLE(_xlfn.XLOOKUP($B$1&\"|\"&$B$2&\"|\"&A35,Capacity_DB!$A:$A,Capacity_DB!$T:$T,0)),0))","v":0},{"$f":"IF(OR($B35=\"\",$B35=\"N/A\"),\"\",IFERROR(_xlfn.SINGLE(_xlfn.XLOOKUP($B$1&\"|\"&$B$2&\"|\"&A35,Capacity_DB!$A:$A,Capacity_DB!$U:$U,0)),0))","v":0},{"$f":"IF(OR($B35=\"\",$B35=\"N/A\"),\"\",IFERROR(_xlfn.SINGLE(_xlfn.XLOOKUP($B$1&\"|\"&$B$2&\"|\"&A35,Capacity_DB!$A:$A,Capacity_DB!$V:$V,0)),0))","v":0},{"$f":"IF(OR($B35=\"\",$B35=\"N/A\"),\"\",IFERROR(_xlfn.SINGLE(_xlfn.XLOOKUP($B$1&\"|\"&$B$2&\"|\"&A35,Capacity_DB!$A:$A,Capacity_DB!$W:$W,0)),0))","v":0},{"$f":"IF(OR($B35=\"\",$B35=\"N/A\"),\"\",IFERROR(_xlfn.SINGLE(_xlfn.XLOOKUP($B$1&\"|\"&$B$2&\"|\"&A35,Capacity_DB!$A:$A,Capacity_DB!$X:$X,0)),0))","v":0},{"$f":"IF(OR($B35=\"\",$B35=\"N/A\"),\"\",IFERROR(_xlfn.SINGLE(_xlfn.XLOOKUP($B$1&\"|\"&$B$2&\"|\"&A35,Capacity_DB!$A:$A,Capacity_DB!$Y:$Y,0)),0))","v":0},{"$f":"IF(OR($B35=\"\",$B35=\"N/A\"),\"\",IFERROR(_xlfn.SINGLE(_xlfn.XLOOKUP($B$1&\"|\"&$B$2&\"|\"&A35,Capacity_DB!$A:$A,Capacity_DB!$Z:$Z,0)),0))","v":0},0,329,""]
[29,{"$f":"IFERROR(_xlfn.SINGLE(_xlfn.XLOOKUP($B$1&\"|\"&$B$2&\"|\"&A36,Capacity_DB!$A:$A,Capacity_DB!$E:$E,\"\")),\"\")","v":" CHAILEY (I) - DALTON (E) "},{"$f":"IF(OR($B36=\"\",$B36=\"N/A\"),\"\",IFERROR(_xlfn.SINGLE(_xlfn.XLOOKUP($B$1&\"|\"&$B$2&\"|\"&A36,Capacity_DB!$A:$A,Capacity_DB!$F:$F,\"\")),\"\"))","v":"DURBAN"},{"$f":"IF(OR($B36=\"\",$B36=\"N/A\"),\"\",IFERROR(_xlfn.SINGLE(_xlfn.XLOOKUP($B$1&\"|\"&$B$2&\"|\"&A36,Capacity_DB!$A:$A,Capacity_DB!$G:$G,\"\")),\"\"))","v":11},7,{"$f":"IF(OR($B36=\"\",$B36=\"N/A\"),\"\",IFERROR(_xlfn.SINGLE(_xlfn.XLOOKUP($B$1&\"|\"&$B$2&\"|\"&A36,Capacity_DB!$A:$A,Capacity_DB!$H:$H,0)),0))","v":0},{"$f":"IF(OR($B36=\"\",$B36=\"N/A\"),\"\",IFERROR(_xlfn.SINGLE(_xlfn.XLOOKUP($B$1&\"|\"&$B$2&\"|\"&A36,Capacity_DB!$A:$A,Capacity_DB!$I:$I,0)),0))","v":0},{"$f":"IF(OR($B36=\"\",$B36=\"N/A\"),\"\",IFERROR(_xlfn.SINGLE(_xlfn.XLOOKUP($B$1&\"|\"&$B$2&\"|\"&A36,Capacity_DB!$A:$A,Capacity_DB!$J:$J,0)),0))","v":0},{"$f":"IF(OR($B36=\"\",$B36=\"N/A\"),\"\",IFERROR(_xlfn.SINGLE(_xlfn.XLOOKUP($B$1&\"|\"&$B$2&\"|\"&A36,Capacity_DB!$A:$A,Capacity_DB!$K:$K,0)),0))","v":0},7,49,{"$f":"IF(OR($B36=\"\",$B36=\"N/A\"),\"\",IFERROR(_xlfn.SINGLE(_xlfn.XLOOKUP($B$1&\"|\"&$B$2&\"|\"&A36,Capacity_DB!$A:$A,Capacity_DB!$L:$L,0)),0))","v":0},{"$f":"IF(OR($B36=\"\",$B36=\"N/A\"),\"\",IFERROR(_xlfn.SINGLE(_xlfn.XLOOKUP($B$1&\"|\"&$B$2&\"|\"&A36,Capacity_DB!$A:$A,Capacity_DB!$M:$M,0)),0))","v":0},{"$f":"IF(OR($B36=\"\",$B36=\"N/A\"),\"\",IFERROR(_xlfn.SINGLE(_xlfn.XLOOKUP($B$1&\"|\"&$B$2&\"|\"&A36,Capacity_DB!$A:$A,Capacity_DB!$N:$N,0)),0))","v":0},{"$f":"IF(OR($B36=\"\",$B36=\"N/A\"),\"\",IFERROR(_xlfn.SINGLE(_xlfn.XLOOKUP($B$1&\"|\"&$B$2&\"|\"&A36,Capacity_DB!$A:$A,Capacity_DB!$O:$O,0)),0))","v":0},{"$f":"IF(OR($B36=\"\",$B36=\"N/A\"),\"\",IFERROR(_xlfn.SINGLE(_xlfn.XLOOKUP($B$1&\"|\"&$B$2&\"|\"&A36,Capacity_DB!$A:$A,Capacity_DB!$P:$P,0)),0))","v":0},{"$f":"IF(OR($B36=\"\",$B36=\"N/A\"),\"\",IFERROR(_xlfn.SINGLE(_xlfn.XLOOKUP($B$1&\"|\"&$B$2&\"|\"&A36,Capacity_DB!$A:$A,Capacity_DB!$Q:$Q,0)),0))","v":0},{"$f":"IF(OR($B36=\"\",$B36=\"N/A\"),\"\",IFERROR(_xlfn.SINGLE(_xlfn.XLOOKUP($B$1&\"|\"&$B$2&\"|\"&A36,Capacity_DB!$A:$A,Capacity_DB!$R:$R,0)),0))","v":0},{"$f":"IF(OR($B36=\"\",$B36=\"N/A\"),\"\",IFERROR(_xlfn.SINGLE(_xlfn.XLOOKUP($B$1&\"|\"&$B$2&\"|\"&A36,Capacity_DB!$A:$A,Capacity_DB!$S:$S,0)),0))","v":0},{"$f":"IF(OR($B36=\"\",$B36=\"N/A\"),\"\",IFERROR(_xlfn.SINGLE(_xlfn.XLOOKUP($B$1&\"|\"&$B$2&\"|\"&A36,Capacity_DB!$A:$A,Capacity_DB!$T:$T,0)),0))","v":0},{"$f":"IF(OR($B36=\"\",$B36=\"N/A\"),\"\",IFERROR(_xlfn.SINGLE(_xlfn.XLOOKUP($B$1&\"|\"&$B$2&\"|\"&A36,Capacity_DB!$A:$A,Capacity_DB!$U:$U,0)),0))","v":0},{"$f":"IF(OR($B36=\"\",$B36=\"N/A\"),\"\",IFERROR(_xlfn.SINGLE(_xlfn.XLOOKUP($B$1&\"|\"&$B$2&\"|\"&A36,Capacity_DB!$A:$A,Capacity_DB!$V:$V,0)),0))","v":0},{"$f":"IF(OR($B36=\"\",$B36=\"N/A\"),\"\",IFERROR(_xlfn.SINGLE(_xlfn.XLOOKUP($B$1&\"|\"&$B$2&\"|\"&A36,Capacity_DB!$A:$A,Capacity_DB!$W:$W,0)),0))","v":0},{"$f":"IF(OR($B36=\"\",$B36=\"N/A\"),\"\",IFERROR(_xlfn.SINGLE(_xlfn.XLOOKUP($B$1&\"|\"&$B$2&\"|\"&A36,Capacity_DB!$A:$A,Capacity_DB!$X:$X,0)),0))","v":0},{"$f":"IF(OR($B36=\"\",$B36=\"N/A\"),\"\",IFERROR(_xlfn.SINGLE(_xlfn.XLOOKUP($B$1&\"|\"&$B$2&\"|\"&A36,Capacity_DB!$A:$A,Capacity_DB!$Y:$Y,0)),0))","v":0},{"$f":"IF(OR($B36=\"\",$B36=\"N/A\"),\"\",IFERROR(_xlfn.SINGLE(_xlfn.XLOOKUP($B$1&\"|\"&$B$2&\"|\"&A36,Capacity_DB!$A:$A,Capacity_DB!$Z:$Z,0)),0))","v":0},0,49,"BOTTLENECK: 49"]
[30,{"$f":"IFERROR(_xlfn.SINGLE(_xlfn.XLOOKUP($B$1&\"|\"&$B$2&\"|\"&A37,Capacity_DB!$A:$A,Capacity_DB!$E:$E,\"\")),\"\")","v":"PENTRICH (E) - RICHMOND (NATAL) (I)"},{"$f":"IF(OR($B37=\"\",$B37=\"N/A\"),\"\",IFERROR(_xlfn.SINGLE(_xlfn.XLOOKUP($B$1&\"|\"&$B$2&\"|\"&A37,Capacity_DB!$A:$A,Capacity_DB!$F:$F,\"\")),\"\"))","v":"DURBAN (Line Closed)"},{"$f":"IF(OR($B37=\"\",$B37=\"N/A\"),\"\",IFERROR(_xlfn.SINGLE(_xlfn.XLOOKUP($B$1&\"|\"&$B$2&\"|\"&A37,Capacity_DB!$A:$A,Capacity_DB!$G:$G,\"\")),\"\"))","v":30},20,{"$f":"IF(OR($B37=\"\",$B37=\"N/A\"),\"\",IFERROR(_xlfn.SINGLE(_xlfn.XLOOKUP($B$1&\"|\"&$B$2&\"|\"&A37,Capacity_DB!$A:$A,Capacity_DB!$H:$H,0)),0))","v":0},{"$f":"IF(OR($B37=\"\",$B37=\"N/A\"),\"\",IFERROR(_xlfn.SINGLE(_xlfn.XLOOKUP($B$1&\"|\"&$B$2&\"|\"&A37,Capacity_DB!$A:$A,Capacity_DB!$I:$I,0)),0))","v":0},{"$f":"IF(OR($B37=\"\",$B37=\"N/A\"),\"\",IFERROR(_xlfn.SINGLE(_xlfn.XLOOKUP($B$1&\"|\"&$B$2&\"|\"&A37,Capacity_DB!$A:$A,Capacity_DB!$J:$J,0)),0))","v":0},{"$f":"IF(OR($B37=\"\",$B37=\"N/A\"),\"\",IFERROR(_xlfn.SINGLE(_xlfn.XLOOKUP($B$1&\"|\"&$B$2&\"|\"&A37,Capacity_DB!$A:$A,Capacity_DB!$K:$K,0)),0))","v":0},20,0,{"$f":"IF(OR($B37=\"\",$B37=\"N/A\"),\"\",IFERROR(_xlfn.SINGLE(_xlfn.XLOOKUP($B$1&\"|\"&$B$2&\"|\"&A37,Capacity_DB!$A:$A,Capacity_DB!$L:$L,0)),0))","v":0},{"$f":"IF(OR($B37=\"\",$B37=\"N/A\"),\"\",IFERROR(_xlfn.SINGLE(_xlfn.XLOOKUP($B$1&\"|\"&$B$2&\"|\"&A37,Capacity_DB!$A:$A,Capacity_DB!$M:$M,0)),0))","v":0},{"$f":"IF(OR($B37=\"\",$B37=\"N/A\"),\"\",IFERROR(_xlfn.SINGLE(_xlfn.XLOOKUP($B$1&\"|\"&$B$2&\"|\"&A37,Capacity_DB!$A:$A,Capacity_DB!$N:$N,0)),0))","v":0},{"$f":"IF(OR($B37=\"\",$B37=\"N/A\"),\"\",IFERROR(_xlfn.SINGLE(_xlfn.XLOOKUP($B$1&\"|\"&$B$2&\"|\"&A37,Capacity_DB!$A:$A,Capacity_DB!$O:$O,0)),0))","v":0},{"$f":"IF(OR($B37=\"\",$B37=\"N/A\"),\"\",IFERROR(_xlfn.SINGLE(_xlfn.XLOOKUP($B$1&\"|\"&$B$2&\"|\"&A37,Capacity_DB!$A:$A,Capacity_DB!$P:$P,0)),0))","v":0},{"$f":"IF(OR($B37=\"\",$B37=\"N/A\"),\"\",IFERROR(_xlfn.SINGLE(_xlfn.XLOOKUP($B$1&\"|\"&$B$2&\"|\"&A37,Capacity_DB!$A:$A,Capacity_DB!$Q:$Q,0)),0))","v":0},{"$f":"IF(OR($B37=\"\",$B37=\"N/A\"),\"\",IFERROR(_xlfn.SINGLE(_xlfn.XLOOKUP($B$1&\"|\"&$B$2&\"|\"&A37,Capacity_DB!$A:$A,Capacity_DB!$R:$R,0)),0))","v":0},{"$f":"IF(OR($B37=\"\",$B37=\"N/A\"),\"\",IFERROR(_xlfn.SINGLE(_xlfn.XLOOKUP($B$1&\"|\"&$B$2&\"|\"&A37,Capacity_DB!$A:$A,Capacity_DB!$S:$S,0)),0))","v":0},{"$f":"IF(OR($B37=\"\",$B37=\"N/A\"),\"\",IFERROR(_xlfn.SINGLE(_xlfn.XLOOKUP($B$1&\"|\"&$B$2&\"|\"&A37,Capacity_DB!$A:$A,Capacity_DB!$T:$T,0)),0))","v":0},{"$f":"IF(OR($B37=\"\",$B37=\"N/A\"),\"\",IFERROR(_xlfn.SINGLE(_xlfn.XLOOKUP($B$1&\"|\"&$B$2&\"|\"&A37,Capacity_DB!$A:$A,Capacity_DB!$U:$U,0)),0))","v":0},{"$f":"IF(OR($B37=\"\",$B37=\"N/A\"),\"\",IFERROR(_xlfn.SINGLE(_xlfn.XLOOKUP($B$1&\"|\"&$B$2&\"|\"&A37,Capacity_DB!$A:$A,Capacity_DB!$V:$V,0)),0))","v":0},{"$f":"IF(OR($B37=\"\",$B37=\"N/A\"),\"\",IFERROR(_xlfn.SINGLE(_xlfn.XLOOKUP($B$1&\"|\"&$B$2&\"|\"&A37,Capacity_DB!$A:$A,Capacity_DB!$W:$W,0)),0))","v":0},{"$f":"IF(OR($B37=\"\",$B37=\"N/A\"),\"\",IFERROR(_xlfn.SINGLE(_xlfn.XLOOKUP($B$1&\"|\"&$B$2&\"|\"&A37,Capacity_DB!$A:$A,Capacity_DB!$X:$X,0)),0))","v":0},{"$f":"IF(OR($B37=\"\",$B37=\"N/A\"),\"\",IFERROR(_xlfn.SINGLE(_xlfn.XLOOKUP($B$1&\"|\"&$B$2&\"|\"&A37,Capacity_DB!$A:$A,Capacity_DB!$Y:$Y,0)),0))","v":0},{"$f":"IF(OR($B37=\"\",$B37=\"N/A\"),\"\",IFERROR(_xlfn.SINGLE(_xlfn.XLOOKUP($B$1&\"|\"&$B$2&\"|\"&A37,Capacity_DB!$A:$A,Capacity_DB!$Z:$Z,0)),0))","v":0},0,0,""]
[31,{"$f":"IFERROR(_xlfn.SINGLE(_xlfn.XLOOKUP($B$1&\"|\"&$B$2&\"|\"&A38,Capacity_DB!$A:$A,Capacity_DB!$E:$E,\"\")),\"\")","v":"PIETERMARITZBURG (E) - SCHROEDERS (I)"},{"$f":"IF(OR($B38=\"\",$B38=\"N/A\"),\"\",IFERROR(_xlfn.SINGLE(_xlfn.XLOOKUP($B$1&\"|\"&$B$2&\"|\"&A38,Capacity_DB!$A:$A,Capacity_DB!$F:$F,\"\")),\"\"))","v":"DURBAN"},{"$f":"IF(OR($B38=\"\",$B38=\"N/A\"),\"\",IFERROR(_xlfn.SINGLE(_xlfn.XLOOKUP($B$1&\"|\"&$B$2&\"|\"&A38,Capacity_DB!$A:$A,Capacity_DB!$G:$G,\"\")),\"\"))","v":21},{"$f":"IF(OR(B38=\"\",B38=\"N/A\"),\"\",ROUND(D38*$B$3,0))","v":14},{"$f":"IF(OR($B38=\"\",$B38=\"N/A\"),\"\",IFERROR(_xlfn.SINGLE(_xlfn.XLOOKUP($B$1&\"|\"&$B$2&\"|\"&A38,Capacity_DB!$A:$A,Capacity_DB!$H:$H,0)),0))","v":0},{"$f":"IF(OR($B38=\"\",$B38=\"N/A\"),\"\",IFERROR(_xlfn.SINGLE(_xlfn.XLOOKUP($B$1&\"|\"&$B$2&\"|\"&A38,Capacity_DB!$A:$A,Capacity_DB!$I:$I,0)),0))","v":0},{"$f":"IF(OR($B38=\"\",$B38=\"N/A\"),\"\",IFERROR(_xlfn.SINGLE(_xlfn.XLOOKUP($B$1&\"|\"&$B$2&\"|\"&A38,Capacity_DB!$A:$A,Capacity_DB!$J:$J,0)),0))","v":0},{"$f":"IF(OR($B38=\"\",$B38=\"N/A\"),\"\",IFERROR(_xlfn.SINGLE(_xlfn.XLOOKUP($B$1&\"|\"&$B$2&\"|\"&A38,Capacity_DB!$A:$A,Capacity_DB!$K:$K,0)),0))","v":0},{"$f":"IF(OR(B38=\"\",B38=\"N/A\"),\"\",MAX(0,E38-F38-G38+H38+I38))","v":14},{"$f":"IF(J38=\"\",\"\",IF(ISNUMBER(SEARCH(\"Line Closed\",C38)),0,J38*7))","v":98},{"$f":"IF(OR($B38=\"\",$B38=\"N/A\"),\"\",IFERROR(_xlfn.SINGLE(_xlfn.XLOOKUP($B$1&\"|\"&$B$2&\"|\"&A38,Capacity_DB!$A:$A,Capacity_DB!$L:$L,0)),0))","v":0},{"$f":"IF(OR($B38=\"\",$B38=\"N/A\"),\"\",IFERROR(_xlfn.SINGLE(_xlfn.XLOOKUP($B$1&\"|\"&$B$2&\"|\"&A38,Capacity_DB!$A:$A,Capacity_DB!$M:$M,0)),0))","v":0},{"$f":"IF(OR($B38=\"\",$B38=\"N/A\"),\"\",IFERROR(_xlfn.SINGLE(_xlfn.XLOOKUP($B$1&\"|\"&$B$2&\"|\"&A38,Capacity_DB!$A:$A,Capacity_DB!$N:$N,0)),0))","v":0},{"$f":"IF(OR($B38=\"\",$B38=\"N/A\"),\"\",IFERROR(_xlfn.SINGLE(_xlfn.XLOOKUP($B$1&\"|\"&$B$2&\"|\"&A38,Capacity_DB!$A:$A,Capacity_DB!$O:$O,0)),0))","v":0},{"$f":"IF(OR($B38=\"\",$B38=\"N/A\"),\"\",IFERROR(_xlfn.SINGLE(_xlfn.XLOOKUP($B$1&\"|\"&$B$2&\"|\"&A38,Capacity_DB!$A:$A,Capacity_DB!$P:$P,0)),0))","v":0},{"$f":"IF(OR($B38=\"\",$B38=\"N/A\"),\"\",IFERROR(_xlfn.SINGLE(_xlfn.XLOOKUP($B$1&\"|\"&$B$2&\"|\"&A38,Capacity_DB!$A:$A,Capacity_DB!$Q:$Q,0)),0))","v":0},{"$f":"IF(OR($B38=\"\",$B38=\"N/A\"),\"\",IFERROR(_xlfn.SINGLE(_xlfn.XLOOKUP($B$1&\"|\"&$B$2&\"|\"&A38,Capacity_DB!$A:$A,Capacity_DB!$R:$R,0)),0))","v":0},{"$f":"IF(OR($B38=\"\",$B38=\"N/A\"),\"\",IFERROR(_xlfn.SINGLE(_xlfn.XLOOKUP($B$1&\"|\"&$B$2&\"|\"&A38,Capacity_DB!$A:$A,Capacity_DB!$S:$S,0)),0))","v":0},{"$f":"IF(OR($B38=\"\",$B38=\"N/A\"),\"\",IFERROR(_xlfn.SINGLE(_xlfn.XLOOKUP($B$1&\"|\"&$B$2&\"|\"&A38,Capacity_DB!$A:$A,Capacity_DB!$T:$T,0)),0))","v":0},{"$f":"IF(OR($B38=\"\",$B38=\"N/A\"),\"\",IFERROR(_xlfn.SINGLE(_xlfn.XLOOKUP($B$1&\"|\"&$B$2&\"|\"&A38,Capacity_DB!$A:$A,Capacity_DB!$U:$U,0)),0))","v":0},{"$f":"IF(OR($B38=\"\",$B38=\"N/A\"),\"\",IFERROR(_xlfn.SINGLE(_xlfn.XLOOKUP($B$1&\"|\"&$B$2&\"|\"&A38,Capacity_DB!$A:$A,Capacity_DB!$V:$V,0)),0))","v":0},{"$f":"IF(OR($B38=\"\",$B38=\"N/A\"),\"\",IFERROR(_xlfn.SINGLE(_xlfn.XLOOKUP($B$1&\"|\"&$B$2&\"|\"&A38,Capacity_DB!$A:$A,Capacity_DB!$W:$W,0)),0))","v":0},{"$f":"IF(OR($B38=\"\",$B38=\"N/A\"),\"\",IFERROR(_xlfn.SINGLE(_xlfn.XLOOKUP($B$1&\"|\"&$B$2&\"|\"&A38,Capacity_DB!$A:$A,Capacity_DB!$X:$X,0)),0))","v":0},{"$f":"IF(OR($B38=\"\",$B38=\"N/A\"),\"\",IFERROR(_xlfn.SINGLE(_xlfn.XLOOKUP($B$1&\"|\"&$B$2&\"|\"&A38,Capacity_DB!$A:$A,Capacity_DB!$Y:$Y,0)),0))","v":0},{"$f":"IF(OR($B38=\"\",$B38=\"N/A\"),\"\",IFERROR(_xlfn.SINGLE(_xlfn.XLOOKUP($B$1&\"|\"&$B$2&\"|\"&A38,Capacity_DB!$A:$A,Capacity_DB!$Z:$Z,0)),0))","v":0},0,{"$f":"IF(K38=\"\",\"\",MAX(0,K38-AA38))","v":98},{"$f":"IF(OR(B38=\"\",B38=\"N/A\",ISNUMBER(SEARCH(\"Line Closed\",C38))),\"\",IF(AB38=$B$4,\"BOTTLENECK: \"&TEXT(AB38,\"0\"),\"\"))","v":""}]
[32,{"$f":"IFERROR(_xlfn.SINGLE(_xlfn.XLOOKUP($B$1&\"|\"&$B$2&\"|\"&A39,Capacity_DB!$A:$A,Capacity_DB!$E:$E,\"\")),\"\")","v":"SCHROEDERS (E) - DALTON (I)"},{"$f":"IF(OR($B39=\"\",$B39=\"N/A\"),\"\",IFERROR(_xlfn.SINGLE(_xlfn.XLOOKUP($B$1&\"|\"&$B$2&\"|\"&A39,Capacity_DB!$A:$A,Capacity_DB!$F:$F,\"\")),\"\"))","v":"DURBAN"},{"$f":"IF(OR($B39=\"\",$B39=\"N/A\"),\"\",IFERROR(_xlfn.SINGLE(_xlfn.XLOOKUP($B$1&\"|\"&$B$2&\"|\"&A39,Capacity_DB!$A:$A,Capacity_DB!$G:$G,\"\")),\"\"))","v":33},21,{"$f":"IF(OR($B39=\"\",$B39=\"N/A\"),\"\",IFERROR(_xlfn.SINGLE(_xlfn.XLOOKUP($B$1&\"|\"&$B$2&\"|\"&A39,Capacity_DB!$A:$A,Capacity_DB!$H:$H,0)),0))","v":0},{"$f":"IF(OR($B39=\"\",$B39=\"N/A\"),\"\",IFERROR(_xlfn.SINGLE(_xlfn.XLOOKUP($B$1&\"|\"&$B$2&\"|\"&A39,Capacity_DB!$A:$A,Capacity_DB!$I:$I,0)),0))","v":0},{"$f":"IF(OR($B39=\"\",$B39=\"N/A\"),\"\",IFERROR(_xlfn.SINGLE(_xlfn.XLOOKUP($B$1&\"|\"&$B$2&\"|\"&A39,Capacity_DB!$A:$A,Capacity_DB!$J:$J,0)),0))","v":0},{"$f":"IF(OR($B39=\"\",$B39=\"N/A\"),\"\",IFERROR(_xlfn.SINGLE(_xlfn.XLOOKUP($B$1&\"|\"&$B$2&\"|\"&A39,Capacity_DB!$A:$A,Capacity_DB!$K:$K,0)),0))","v":0},21,147,{"$f":"IF(OR($B39=\"\",$B39=\"N/A\"),\"\",IFERROR(_xlfn.SINGLE(_xlfn.XLOOKUP($B$1&\"|\"&$B$2&\"|\"&A39,Capacity_DB!$A:$A,Capacity_DB!$L:$L,0)),0))","v":0},{"$f":"IF(OR($B39=\"\",$B39=\"N/A\"),\"\",IFERROR(_xlfn.SINGLE(_xlfn.XLOOKUP($B$1&\"|\"&$B$2&\"|\"&A39,Capacity_DB!$A:$A,Capacity_DB!$M:$M,0)),0))","v":0},{"$f":"IF(OR($B39=\"\",$B39=\"N/A\"),\"\",IFERROR(_xlfn.SINGLE(_xlfn.XLOOKUP($B$1&\"|\"&$B$2&\"|\"&A39,Capacity_DB!$A:$A,Capacity_DB!$N:$N,0)),0))","v":0},{"$f":"IF(OR($B39=\"\",$B39=\"N/A\"),\"\",IFERROR(_xlfn.SINGLE(_xlfn.XLOOKUP($B$1&\"|\"&$B$2&\"|\"&A39,Capacity_DB!$A:$A,Capacity_DB!$O:$O,0)),0))","v":0},{"$f":"IF(OR($B39=\"\",$B39=\"N/A\"),\"\",IFERROR(_xlfn.SINGLE(_xlfn.XLOOKUP($B$1&\"|\"&$B$2&\"|\"&A39,Capacity_DB!$A:$A,Capacity_DB!$P:$P,0)),0))","v":0},{"$f":"IF(OR($B39=\"\",$B39=\"N/A\"),\"\",IFERROR(_xlfn.SINGLE(_xlfn.XLOOKUP($B$1&\"|\"&$B$2&\"|\"&A39,Capacity_DB!$A:$A,Capacity_DB!$Q:$Q,0)),0))","v":0},{"$f":"IF(OR($B39=\"\",$B39=\"N/A\"),\"\",IFERROR(_xlfn.SINGLE(_xlfn.XLOOKUP($B$1&\"|\"&$B$2&\"|\"&A39,Capacity_DB!$A:$A,Capacity_DB!$R:$R,0)),0))","v":0},{"$f":"IF(OR($B39=\"\",$B39=\"N/A\"),\"\",IFERROR(_xlfn.SINGLE(_xlfn.XLOOKUP($B$1&\"|\"&$B$2&\"|\"&A39,Capacity_DB!$A:$A,Capacity_DB!$S:$S,0)),0))","v":0},{"$f":"IF(OR($B39=\"\",$B39=\"N/A\"),\"\",IFERROR(_xlfn.SINGLE(_xlfn.XLOOKUP($B$1&\"|\"&$B$2&\"|\"&A39,Capacity_DB!$A:$A,Capacity_DB!$T:$T,0)),0))","v":0},{"$f":"IF(OR($B39=\"\",$B39=\"N/A\"),\"\",IFERROR(_xlfn.SINGLE(_xlfn.XLOOKUP($B$1&\"|\"&$B$2&\"|\"&A39,Capacity_DB!$A:$A,Capacity_DB!$U:$U,0)),0))","v":0},{"$f":"IF(OR($B39=\"\",$B39=\"N/A\"),\"\",IFERROR(_xlfn.SINGLE(_xlfn.XLOOKUP($B$1&\"|\"&$B$2&\"|\"&A39,Capacity_DB!$A:$A,Capacity_DB!$V:$V,0)),0))","v":0},{"$f":"IF(OR($B39=\"\",$B39=\"N/A\"),\"\",IFERROR(_xlfn.SINGLE(_xlfn.XLOOKUP($B$1&\"|\"&$B$2&\"|\"&A39,Capacity_DB!$A:$A,Capacity_DB!$W:$W,0)),0))","v":0},{"$f":"IF(OR($B39=\"\",$B39=\"N/A\"),\"\",IFERROR(_xlfn.SINGLE(_xlfn.XLOOKUP($B$1&\"|\"&$B$2&\"|\"&A39,Capacity_DB!$A:$A,Capacity_DB!$X:$X,0)),0))","v":0},{"$f":"IF(OR($B39=\"\",$B39=\"N/A\"),\"\",IFERROR(_xlfn.SINGLE(_xlfn.XLOOKUP($B$1&\"|\"&$B$2&\"|\"&A39,Capacity_DB!$A:$A,Capacity_DB!$Y:$Y,0)),0))","v":0},{"$f":"IF(OR($B39=\"\",$B39=\"N/A\"),\"\",IFERROR(_xlfn.SINGLE(_xlfn.XLOOKUP($B$1&\"|\"&$B$2&\"|\"&A39,Capacity_DB!$A:$A,Capacity_DB!$Z:$Z,0)),0))","v":0},0,147,""]
[33,{"$f":"IFERROR(_xlfn.SINGLE(_xlfn.XLOOKUP($B$1&\"|\"&$B$2&\"|\"&A40,Capacity_DB!$A:$A,Capacity_DB!$E:$E,\"\")),\"\")","v":"DALTON (E) - GLENSIDE (I)"},{"$f":"IF(OR($B40=\"\",$B40=\"N/A\"),\"\",IFERROR(_xlfn.SINGLE(_xlfn.XLOOKUP($B$1&\"|\"&$B$2&\"|\"&A40,Capacity_DB!$A:$A,Capacity_DB!$F:$F,\"\")),\"\"))","v":"DURBAN"},{"$f":"IF(OR($B40=\"\",$B40=\"N/A\"),\"\",IFERROR(_xlfn.SINGLE(_xlfn.XLOOKUP($B$1&\"|\"&$B$2&\"|\"&A40,Capacity_DB!$A:$A,Capacity_DB!$G:$G,\"\")),\"\"))","v":18},12,{"$f":"IF(OR($B40=\"\",$B40=\"N/A\"),\"\",IFERROR(_xlfn.SINGLE(_xlfn.XLOOKUP($B$1&\"|\"&$B$2&\"|\"&A40,Capacity_DB!$A:$A,Capacity_DB!$H:$H,0)),0))","v":0},{"$f":"IF(OR($B40=\"\",$B40=\"N/A\"),\"\",IFERROR(_xlfn.SINGLE(_xlfn.XLOOKUP($B$1&\"|\"&$B$2&\"|\"&A40,Capacity_DB!$A:$A,Capacity_DB!$I:$I,0)),0))","v":0},{"$f":"IF(OR($B40=\"\",$B40=\"N/A\"),\"\",IFERROR(_xlfn.SINGLE(_xlfn.XLOOKUP($B$1&\"|\"&$B$2&\"|\"&A40,Capacity_DB!$A:$A,Capacity_DB!$J:$J,0)),0))","v":0},{"$f":"IF(OR($B40=\"\",$B40=\"N/A\"),\"\",IFERROR(_xlfn.SINGLE(_xlfn.XLOOKUP($B$1&\"|\"&$B$2&\"|\"&A40,Capacity_DB!$A:$A,Capacity_DB!$K:$K,0)),0))","v":0},12,84,{"$f":"IF(OR($B40=\"\",$B40=\"N/A\"),\"\",IFERROR(_xlfn.SINGLE(_xlfn.XLOOKUP($B$1&\"|\"&$B$2&\"|\"&A40,Capacity_DB!$A:$A,Capacity_DB!$L:$L,0)),0))","v":0},{"$f":"IF(OR($B40=\"\",$B40=\"N/A\"),\"\",IFERROR(_xlfn.SINGLE(_xlfn.XLOOKUP($B$1&\"|\"&$B$2&\"|\"&A40,Capacity_DB!$A:$A,Capacity_DB!$M:$M,0)),0))","v":0},{"$f":"IF(OR($B40=\"\",$B40=\"N/A\"),\"\",IFERROR(_xlfn.SINGLE(_xlfn.XLOOKUP($B$1&\"|\"&$B$2&\"|\"&A40,Capacity_DB!$A:$A,Capacity_DB!$N:$N,0)),0))","v":0},{"$f":"IF(OR($B40=\"\",$B40=\"N/A\"),\"\",IFERROR(_xlfn.SINGLE(_xlfn.XLOOKUP($B$1&\"|\"&$B$2&\"|\"&A40,Capacity_DB!$A:$A,Capacity_DB!$O:$O,0)),0))","v":0},{"$f":"IF(OR($B40=\"\",$B40=\"N/A\"),\"\",IFERROR(_xlfn.SINGLE(_xlfn.XLOOKUP($B$1&\"|\"&$B$2&\"|\"&A40,Capacity_DB!$A:$A,Capacity_DB!$P:$P,0)),0))","v":0},{"$f":"IF(OR($B40=\"\",$B40=\"N/A\"),\"\",IFERROR(_xlfn.SINGLE(_xlfn.XLOOKUP($B$1&\"|\"&$B$2&\"|\"&A40,Capacity_DB!$A:$A,Capacity_DB!$Q:$Q,0)),0))","v":0},{"$f":"IF(OR($B40=\"\",$B40=\"N/A\"),\"\",IFERROR(_xlfn.SINGLE(_xlfn.XLOOKUP($B$1&\"|\"&$B$2&\"|\"&A40,Capacity_DB!$A:$A,Capacity_DB!$R:$R,0)),0))","v":0},{"$f":"IF(OR($B40=\"\",$B40=\"N/A\"),\"\",IFERROR(_xlfn.SINGLE(_xlfn.XLOOKUP($B$1&\"|\"&$B$2&\"|\"&A40,Capacity_DB!$A:$A,Capacity_DB!$S:$S,0)),0))","v":0},{"$f":"IF(OR($B40=\"\",$B40=\"N/A\"),\"\",IFERROR(_xlfn.SINGLE(_xlfn.XLOOKUP($B$1&\"|\"&$B$2&\"|\"&A40,Capacity_DB!$A:$A,Capacity_DB!$T:$T,0)),0))","v":0},{"$f":"IF(OR($B40=\"\",$B40=\"N/A\"),\"\",IFERROR(_xlfn.SINGLE(_xlfn.XLOOKUP($B$1&\"|\"&$B$2&\"|\"&A40,Capacity_DB!$A:$A,Capacity_DB!$U:$U,0)),0))","v":0},{"$f":"IF(OR($B40=\"\",$B40=\"N/A\"),\"\",IFERROR(_xlfn.SINGLE(_xlfn.XLOOKUP($B$1&\"|\"&$B$2&\"|\"&A40,Capacity_DB!$A:$A,Capacity_DB!$V:$V,0)),0))","v":0},{"$f":"IF(OR($B40=\"\",$B40=\"N/A\"),\"\",IFERROR(_xlfn.SINGLE(_xlfn.XLOOKUP($B$1&\"|\"&$B$2&\"|\"&A40,Capacity_DB!$A:$A,Capacity_DB!$W:$W,0)),0))","v":0},{"$f":"IF(OR($B40=\"\",$B40=\"N/A\"),\"\",IFERROR(_xlfn.SINGLE(_xlfn.XLOOKUP($B$1&\"|\"&$B$2&\"|\"&A40,Capacity_DB!$A:$A,Capacity_DB!$X:$X,0)),0))","v":0},{"$f":"IF(OR($B40=\"\",$B40=\"N/A\"),\"\",IFERROR(_xlfn.SINGLE(_xlfn.XLOOKUP($B$1&\"|\"&$B$2&\"|\"&A40,Capacity_DB!$A:$A,Capacity_DB!$Y:$Y,0)),0))","v":0},{"$f":"IF(OR($B40=\"\",$B40=\"N/A\"),\"\",IFERROR(_xlfn.SINGLE(_xlfn.XLOOKUP($B$1&\"|\"&$B$2&\"|\"&A40,Capacity_DB!$A:$A,Capacity_DB!$Z:$Z,0)),0))","v":0},0,84,""]
[34,{"$f":"IFERROR(_xlfn.SINGLE(_xlfn.XLOOKUP($B$1&\"|\"&$B$2&\"|\"&A41,Capacity_DB!$A:$A,Capacity_DB!$E:$E,\"\")),\"\")","v":"SCHROEDERS (E) - BRUYNS HILL (I)"},{"$f":"IF(OR($B41=\"\",$B41=\"N/A\"),\"\",IFERROR(_xlfn.SINGLE(_xlfn.XLOOKUP($B$1&\"|\"&$B$2&\"|\"&A41,Capacity_DB!$A:$A,Capacity_DB!$F:$F,\"\")),\"\"))","v":"DURBAN"},{"$f":"IF(OR($B41=\"\",$B41=\"N/A\"),\"\",IFERROR(_xlfn.SINGLE(_xlfn.XLOOKUP($B$1&\"|\"&$B$2&\"|\"&A41,Capacity_DB!$A:$A,Capacity_DB!$G:$G,\"\")),\"\"))","v":45},29,{"$f":"IF(OR($B41=\"\",$B41=\"N/A\"),\"\",IFERROR(_xlfn.SINGLE(_xlfn.XLOOKUP($B$1&\"|\"&$B$2&\"|\"&A41,Capacity_DB!$A:$A,Capacity_DB!$H:$H,0)),0))","v":0},{"$f":"IF(OR($B41=\"\",$B41=\"N/A\"),\"\",IFERROR(_xlfn.SINGLE(_xlfn.XLOOKUP($B$1&\"|\"&$B$2&\"|\"&A41,Capacity_DB!$A:$A,Capacity_DB!$I:$I,0)),0))","v":0},{"$f":"IF(OR($B41=\"\",$B41=\"N/A\"),\"\",IFERROR(_xlfn.SINGLE(_xlfn.XLOOKUP($B$1&\"|\"&$B$2&\"|\"&A41,Capacity_DB!$A:$A,Capacity_DB!$J:$J,0)),0))","v":0},{"$f":"IF(OR($B41=\"\",$B41=\"N/A\"),\"\",IFERROR(_xlfn.SINGLE(_xlfn.XLOOKUP($B$1&\"|\"&$B$2&\"|\"&A41,Capacity_DB!$A:$A,Capacity_DB!$K:$K,0)),0))","v":0},29,203,{"$f":"IF(OR($B41=\"\",$B41=\"N/A\"),\"\",IFERROR(_xlfn.SINGLE(_xlfn.XLOOKUP($B$1&\"|\"&$B$2&\"|\"&A41,Capacity_DB!$A:$A,Capacity_DB!$L:$L,0)),0))","v":0},{"$f":"IF(OR($B41=\"\",$B41=\"N/A\"),\"\",IFERROR(_xlfn.SINGLE(_xlfn.XLOOKUP($B$1&\"|\"&$B$2&\"|\"&A41,Capacity_DB!$A:$A,Capacity_DB!$M:$M,0)),0))","v":0},{"$f":"IF(OR($B41=\"\",$B41=\"N/A\"),\"\",IFERROR(_xlfn.SINGLE(_xlfn.XLOOKUP($B$1&\"|\"&$B$2&\"|\"&A41,Capacity_DB!$A:$A,Capacity_DB!$N:$N,0)),0))","v":0},{"$f":"IF(OR($B41=\"\",$B41=\"N/A\"),\"\",IFERROR(_xlfn.SINGLE(_xlfn.XLOOKUP($B$1&\"|\"&$B$2&\"|\"&A41,Capacity_DB!$A:$A,Capacity_DB!$O:$O,0)),0))","v":0},{"$f":"IF(OR($B41=\"\",$B41=\"N/A\"),\"\",IFERROR(_xlfn.SINGLE(_xlfn.XLOOKUP($B$1&\"|\"&$B$2&\"|\"&A41,Capacity_DB!$A:$A,Capacity_DB!$P:$P,0)),0))","v":0},{"$f":"IF(OR($B41=\"\",$B41=\"N/A\"),\"\",IFERROR(_xlfn.SINGLE(_xlfn.XLOOKUP($B$1&\"|\"&$B$2&\"|\"&A41,Capacity_DB!$A:$A,Capacity_DB!$Q:$Q,0)),0))","v":0},{"$f":"IF(OR($B41=\"\",$B41=\"N/A\"),\"\",IFERROR(_xlfn.SINGLE(_xlfn.XLOOKUP($B$1&\"|\"&$B$2&\"|\"&A41,Capacity_DB!$A:$A,Capacity_DB!$R:$R,0)),0))","v":0},{"$f":"IF(OR($B41=\"\",$B41=\"N/A\"),\"\",IFERROR(_xlfn.SINGLE(_xlfn.XLOOKUP($B$1&\"|\"&$B$2&\"|\"&A41,Capacity_DB!$A:$A,Capacity_DB!$S:$S,0)),0))","v":0},{"$f":"IF(OR($B41=\"\",$B41=\"N/A\"),\"\",IFERROR(_xlfn.SINGLE(_xlfn.XLOOKUP($B$1&\"|\"&$B$2&\"|\"&A41,Capacity_DB!$A:$A,Capacity_DB!$T:$T,0)),0))","v":0},{"$f":"IF(OR($B41=\"\",$B41=\"N/A\"),\"\",IFERROR(_xlfn.SINGLE(_xlfn.XLOOKUP($B$1&\"|\"&$B$2&\"|\"&A41,Capacity_DB!$A:$A,Capacity_DB!$U:$U,0)),0))","v":0},{"$f":"IF(OR($B41=\"\",$B41=\"N/A\"),\"\",IFERROR(_xlfn.SINGLE(_xlfn.XLOOKUP($B$1&\"|\"&$B$2&\"|\"&A41,Capacity_DB!$A:$A,Capacity_DB!$V:$V,0)),0))","v":0},{"$f":"IF(OR($B41=\"\",$B41=\"N/A\"),\"\",IFERROR(_xlfn.SINGLE(_xlfn.XLOOKUP($B$1&\"|\"&$B$2&\"|\"&A41,Capacity_DB!$A:$A,Capacity_DB!$W:$W,0)),0))","v":0},{"$f":"IF(OR($B41=\"\",$B41=\"N/A\"),\"\",IFERROR(_xlfn.SINGLE(_xlfn.XLOOKUP($B$1&\"|\"&$B$2&\"|\"&A41,Capacity_DB!$A:$A,Capacity_DB!$X:$X,0)),0))","v":0},{"$f":"IF(OR($B41=\"\",$B41=\"N/A\"),\"\",IFERROR(_xlfn.SINGLE(_xlfn.XLOOKUP($B$1&\"|\"&$B$2&\"|\"&A41,Capacity_DB!$A:$A,Capacity_DB!$Y:$Y,0)),0))","v":0},{"$f":"IF(OR($B41=\"\",$B41=\"N/A\"),\"\",IFERROR(_xlfn.SINGLE(_xlfn.XLOOKUP($B$1&\"|\"&$B$2&\"|\"&A41,Capacity_DB!$A:$A,Capacity_DB!$Z:$Z,0)),0))","v":0},0,203,""]
[35,{"$f":"IFERROR(_xlfn.SINGLE(_xlfn.XLOOKUP($B$1&\"|\"&$B$2&\"|\"&A42,Capacity_DB!$A:$A,Capacity_DB!$E:$E,\"\")),\"\")","v":"CHAILEY (E) - KRANSKOP (I)"},{"$f":"IF(OR($B42=\"\",$B42=\"N/A\"),\"\",IFERROR(_xlfn.SINGLE(_xlfn.XLOOKUP($B$1&\"|\"&$B$2&\"|\"&A42,Capacity_DB!$A:$A,Capacity_DB!$F:$F,\"\")),\"\"))","v":"DURBAN"},{"$f":"IF(OR($B42=\"\",$B42=\"N/A\"),\"\",IFERROR(_xlfn.SINGLE(_xlfn.XLOOKUP($B$1&\"|\"&$B$2&\"|\"&A42,Capacity_DB!$A:$A,Capacity_DB!$G:$G,\"\")),\"\"))","v":15},10,{"$f":"IF(OR($B42=\"\",$B42=\"N/A\"),\"\",IFERROR(_xlfn.SINGLE(_xlfn.XLOOKUP($B$1&\"|\"&$B$2&\"|\"&A42,Capacity_DB!$A:$A,Capacity_DB!$H:$H,0)),0))","v":0},{"$f":"IF(OR($B42=\"\",$B42=\"N/A\"),\"\",IFERROR(_xlfn.SINGLE(_xlfn.XLOOKUP($B$1&\"|\"&$B$2&\"|\"&A42,Capacity_DB!$A:$A,Capacity_DB!$I:$I,0)),0))","v":0},{"$f":"IF(OR($B42=\"\",$B42=\"N/A\"),\"\",IFERROR(_xlfn.SINGLE(_xlfn.XLOOKUP($B$1&\"|\"&$B$2&\"|\"&A42,Capacity_DB!$A:$A,Capacity_DB!$J:$J,0)),0))","v":0},{"$f":"IF(OR($B42=\"\",$B42=\"N/A\"),\"\",IFERROR(_xlfn.SINGLE(_xlfn.XLOOKUP($B$1&\"|\"&$B$2&\"|\"&A42,Capacity_DB!$A:$A,Capacity_DB!$K:$K,0)),0))","v":0},10,70,{"$f":"IF(OR($B42=\"\",$B42=\"N/A\"),\"\",IFERROR(_xlfn.SINGLE(_xlfn.XLOOKUP($B$1&\"|\"&$B$2&\"|\"&A42,Capacity_DB!$A:$A,Capacity_DB!$L:$L,0)),0))","v":0},{"$f":"IF(OR($B42=\"\",$B42=\"N/A\"),\"\",IFERROR(_xlfn.SINGLE(_xlfn.XLOOKUP($B$1&\"|\"&$B$2&\"|\"&A42,Capacity_DB!$A:$A,Capacity_DB!$M:$M,0)),0))","v":0},{"$f":"IF(OR($B42=\"\",$B42=\"N/A\"),\"\",IFERROR(_xlfn.SINGLE(_xlfn.XLOOKUP($B$1&\"|\"&$B$2&\"|\"&A42,Capacity_DB!$A:$A,Capacity_DB!$N:$N,0)),0))","v":0},{"$f":"IF(OR($B42=\"\",$B42=\"N/A\"),\"\",IFERROR(_xlfn.SINGLE(_xlfn.XLOOKUP($B$1&\"|\"&$B$2&\"|\"&A42,Capacity_DB!$A:$A,Capacity_DB!$O:$O,0)),0))","v":0},{"$f":"IF(OR($B42=\"\",$B42=\"N/A\"),\"\",IFERROR(_xlfn.SINGLE(_xlfn.XLOOKUP($B$1&\"|\"&$B$2&\"|\"&A42,Capacity_DB!$A:$A,Capacity_DB!$P:$P,0)),0))","v":0},{"$f":"IF(OR($B42=\"\",$B42=\"N/A\"),\"\",IFERROR(_xlfn.SINGLE(_xlfn.XLOOKUP($B$1&\"|\"&$B$2&\"|\"&A42,Capacity_DB!$A:$A,Capacity_DB!$Q:$Q,0)),0))","v":0},{"$f":"IF(OR($B42=\"\",$B42=\"N/A\"),\"\",IFERROR(_xlfn.SINGLE(_xlfn.XLOOKUP($B$1&\"|\"&$B$2&\"|\"&A42,Capacity_DB!$A:$A,Capacity_DB!$R:$R,0)),0))","v":0},{"$f":"IF(OR($B42=\"\",$B42=\"N/A\"),\"\",IFERROR(_xlfn.SINGLE(_xlfn.XLOOKUP($B$1&\"|\"&$B$2&\"|\"&A42,Capacity_DB!$A:$A,Capacity_DB!$S:$S,0)),0))","v":0},{"$f":"IF(OR($B42=\"\",$B42=\"N/A\"),\"\",IFERROR(_xlfn.SINGLE(_xlfn.XLOOKUP($B$1&\"|\"&$B$2&\"|\"&A42,Capacity_DB!$A:$A,Capacity_DB!$T:$T,0)),0))","v":0},{"$f":"IF(OR($B42=\"\",$B42=\"N/A\"),\"\",IFERROR(_xlfn.SINGLE(_xlfn.XLOOKUP($B$1&\"|\"&$B$2&\"|\"&A42,Capacity_DB!$A:$A,Capacity_DB!$U:$U,0)),0))","v":0},{"$f":"IF(OR($B42=\"\",$B42=\"N/A\"),\"\",IFERROR(_xlfn.SINGLE(_xlfn.XLOOKUP($B$1&\"|\"&$B$2&\"|\"&A42,Capacity_DB!$A:$A,Capacity_DB!$V:$V,0)),0))","v":0},{"$f":"IF(OR($B42=\"\",$B42=\"N/A\"),\"\",IFERROR(_xlfn.SINGLE(_xlfn.XLOOKUP($B$1&\"|\"&$B$2&\"|\"&A42,Capacity_DB!$A:$A,Capacity_DB!$W:$W,0)),0))","v":0},{"$f":"IF(OR($B42=\"\",$B42=\"N/A\"),\"\",IFERROR(_xlfn.SINGLE(_xlfn.XLOOKUP($B$1&\"|\"&$B$2&\"|\"&A42,Capacity_DB!$A:$A,Capacity_DB!$X:$X,0)),0))","v":0},{"$f":"IF(OR($B42=\"\",$B42=\"N/A\"),\"\",IFERROR(_xlfn.SINGLE(_xlfn.XLOOKUP($B$1&\"|\"&$B$2&\"|\"&A42,Capacity_DB!$A:$A,Capacity_DB!$Y:$Y,0)),0))","v":0},{"$f":"IF(OR($B42=\"\",$B42=\"N/A\"),\"\",IFERROR(_xlfn.SINGLE(_xlfn.XLOOKUP($B$1&\"|\"&$B$2&\"|\"&A42,Capacity_DB!$A:$A,Capacity_DB!$Z:$Z,0)),0))","v":0},0,70,""]
[36,{"$f":"IFERROR(_xlfn.SINGLE(_xlfn.XLOOKUP($B$1&\"|\"&$B$2&\"|\"&A43,Capacity_DB!$A:$A,Capacity_DB!$E:$E,\"\")),\"\")","v":"CHAILEY (E) - MOUNT ALIDA (I)"},{"$f":"IF(OR($B43=\"\",$B43=\"N/A\"),\"\",IFERROR(_xlfn.SINGLE(_xlfn.XLOOKUP($B$1&\"|\"&$B$2&\"|\"&A43,Capacity_DB!$A:$A,Capacity_DB!$F:$F,\"\")),\"\"))","v":"DURBAN"},{"$f":"IF(OR($B43=\"\",$B43=\"N/A\"),\"\",IFERROR(_xlfn.SINGLE(_xlfn.XLOOKUP($B$1&\"|\"&$B$2&\"|\"&A43,Capacity_DB!$A:$A,Capacity_DB!$G:$G,\"\")),\"\"))","v":72},47,{"$f":"IF(OR($B43=\"\",$B43=\"N/A\"),\"\",IFERROR(_xlfn.SINGLE(_xlfn.XLOOKUP($B$1&\"|\"&$B$2&\"|\"&A43,Capacity_DB!$A:$A,Capacity_DB!$H:$H,0)),0))","v":0},{"$f":"IF(OR($B43=\"\",$B43=\"N/A\"),\"\",IFERROR(_xlfn.SINGLE(_xlfn.XLOOKUP($B$1&\"|\"&$B$2&\"|\"&A43,Capacity_DB!$A:$A,Capacity_DB!$I:$I,0)),0))","v":0},{"$f":"IF(OR($B43=\"\",$B43=\"N/A\"),\"\",IFERROR(_xlfn.SINGLE(_xlfn.XLOOKUP($B$1&\"|\"&$B$2&\"|\"&A43,Capacity_DB!$A:$A,Capacity_DB!$J:$J,0)),0))","v":0},{"$f":"IF(OR($B43=\"\",$B43=\"N/A\"),\"\",IFERROR(_xlfn.SINGLE(_xlfn.XLOOKUP($B$1&\"|\"&$B$2&\"|\"&A43,Capacity_DB!$A:$A,Capacity_DB!$K:$K,0)),0))","v":0},47,329,{"$f":"IF(OR($B43=\"\",$B43=\"N/A\"),\"\",IFERROR(_xlfn.SINGLE(_xlfn.XLOOKUP($B$1&\"|\"&$B$2&\"|\"&A43,Capacity_DB!$A:$A,Capacity_DB!$L:$L,0)),0))","v":0},{"$f":"IF(OR($B43=\"\",$B43=\"N/A\"),\"\",IFERROR(_xlfn.SINGLE(_xlfn.XLOOKUP($B$1&\"|\"&$B$2&\"|\"&A43,Capacity_DB!$A:$A,Capacity_DB!$M:$M,0)),0))","v":0},{"$f":"IF(OR($B43=\"\",$B43=\"N/A\"),\"\",IFERROR(_xlfn.SINGLE(_xlfn.XLOOKUP($B$1&\"|\"&$B$2&\"|\"&A43,Capacity_DB!$A:$A,Capacity_DB!$N:$N,0)),0))","v":0},{"$f":"IF(OR($B43=\"\",$B43=\"N/A\"),\"\",IFERROR(_xlfn.SINGLE(_xlfn.XLOOKUP($B$1&\"|\"&$B$2&\"|\"&A43,Capacity_DB!$A:$A,Capacity_DB!$O:$O,0)),0))","v":0},{"$f":"IF(OR($B43=\"\",$B43=\"N/A\"),\"\",IFERROR(_xlfn.SINGLE(_xlfn.XLOOKUP($B$1&\"|\"&$B$2&\"|\"&A43,Capacity_DB!$A:$A,Capacity_DB!$P:$P,0)),0))","v":0},{"$f":"IF(OR($B43=\"\",$B43=\"N/A\"),\"\",IFERROR(_xlfn.SINGLE(_xlfn.XLOOKUP($B$1&\"|\"&$B$2&\"|\"&A43,Capacity_DB!$A:$A,Capacity_DB!$Q:$Q,0)),0))","v":0},{"$f":"IF(OR($B43=\"\",$B43=\"N/A\"),\"\",IFERROR(_xlfn.SINGLE(_xlfn.XLOOKUP($B$1&\"|\"&$B$2&\"|\"&A43,Capacity_DB!$A:$A,Capacity_DB!$R:$R,0)),0))","v":0},{"$f":"IF(OR($B43=\"\",$B43=\"N/A\"),\"\",IFERROR(_xlfn.SINGLE(_xlfn.XLOOKUP($B$1&\"|\"&$B$2&\"|\"&A43,Capacity_DB!$A:$A,Capacity_DB!$S:$S,0)),0))","v":0},{"$f":"IF(OR($B43=\"\",$B43=\"N/A\"),\"\",IFERROR(_xlfn.SINGLE(_xlfn.XLOOKUP($B$1&\"|\"&$B$2&\"|\"&A43,Capacity_DB!$A:$A,Capacity_DB!$T:$T,0)),0))","v":0},{"$f":"IF(OR($B43=\"\",$B43=\"N/A\"),\"\",IFERROR(_xlfn.SINGLE(_xlfn.XLOOKUP($B$1&\"|\"&$B$2&\"|\"&A43,Capacity_DB!$A:$A,Capacity_DB!$U:$U,0)),0))","v":0},{"$f":"IF(OR($B43=\"\",$B43=\"N/A\"),\"\",IFERROR(_xlfn.SINGLE(_xlfn.XLOOKUP($B$1&\"|\"&$B$2&\"|\"&A43,Capacity_DB!$A:$A,Capacity_DB!$V:$V,0)),0))","v":0},{"$f":"IF(OR($B43=\"\",$B43=\"N/A\"),\"\",IFERROR(_xlfn.SINGLE(_xlfn.XLOOKUP($B$1&\"|\"&$B$2&\"|\"&A43,Capacity_DB!$A:$A,Capacity_DB!$W:$W,0)),0))","v":0},{"$f":"IF(OR($B43=\"\",$B43=\"N/A\"),\"\",IFERROR(_xlfn.SINGLE(_xlfn.XLOOKUP($B$1&\"|\"&$B$2&\"|\"&A43,Capacity_DB!$A:$A,Capacity_DB!$X:$X,0)),0))","v":0},{"$f":"IF(OR($B43=\"\",$B43=\"N/A\"),\"\",IFERROR(_xlfn.SINGLE(_xlfn.XLOOKUP($B$1&\"|\"&$B$2&\"|\"&A43,Capacity_DB!$A:$A,Capacity_DB!$Y:$Y,0)),0))","v":0},{"$f":"IF(OR($B43=\"\",$B43=\"N/A\"),\"\",IFERROR(_xlfn.SINGLE(_xlfn.XLOOKUP($B$1&\"|\"&$B$2&\"|\"&A43,Capacity_DB!$A:$A,Capacity_DB!$Z:$Z,0)),0))","v":0},0,329,""]
[37,{"$f":"IFERROR(_xlfn.SINGLE(_xlfn.XLOOKUP($B$1&\"|\"&$B$2&\"|\"&A44,Capacity_DB!$A:$A,Capacity_DB!$E:$E,\"\")),\"\")","v":"PIETERMARITZBURG (E) - DONNYBROOK (I)"},{"$f":"IF(OR($B44=\"\",$B44=\"N/A\"),\"\",IFERROR(_xlfn.SINGLE(_xlfn.XLOOKUP($B$1&\"|\"&$B$2&\"|\"&A44,Capacity_DB!$A:$A,Capacity_DB!$F:$F,\"\")),\"\"))","v":"DURBAN"},{"$f":"IF(OR($B44=\"\",$B44=\"N/A\"),\"\",IFERROR(_xlfn.SINGLE(_xlfn.XLOOKUP($B$1&\"|\"&$B$2&\"|\"&A44,Capacity_DB!$A:$A,Capacity_DB!$G:$G,\"\")),\"\"))","v":25},16,{"$f":"IF(OR($B44=\"\",$B44=\"N/A\"),\"\",IFERROR(_xlfn.SINGLE(_xlfn.XLOOKUP($B$1&\"|\"&$B$2&\"|\"&A44,Capacity_DB!$A:$A,Capacity_DB!$H:$H,0)),0))","v":0},{"$f":"IF(OR($B44=\"\",$B44=\"N/A\"),\"\",IFERROR(_xlfn.SINGLE(_xlfn.XLOOKUP($B$1&\"|\"&$B$2&\"|\"&A44,Capacity_DB!$A:$A,Capacity_DB!$I:$I,0)),0))","v":0},{"$f":"IF(OR($B44=\"\",$B44=\"N/A\"),\"\",IFERROR(_xlfn.SINGLE(_xlfn.XLOOKUP($B$1&\"|\"&$B$2&\"|\"&A44,Capacity_DB!$A:$A,Capacity_DB!$J:$J,0)),0))","v":0},{"$f":"IF(OR($B44=\"\",$B44=\"N/A\"),\"\",IFERROR(_xlfn.SINGLE(_xlfn.XLOOKUP($B$1&\"|\"&$B$2&\"|\"&A44,Capacity_DB!$A:$A,Capacity_DB!$K:$K,0)),0))","v":0},16,112,{"$f":"IF(OR($B44=\"\",$B44=\"N/A\"),\"\",IFERROR(_xlfn.SINGLE(_xlfn.XLOOKUP($B$1&\"|\"&$B$2&\"|\"&A44,Capacity_DB!$A:$A,Capacity_DB!$L:$L,0)),0))","v":0},{"$f":"IF(OR($B44=\"\",$B44=\"N/A\"),\"\",IFERROR(_xlfn.SINGLE(_xlfn.XLOOKUP($B$1&\"|\"&$B$2&\"|\"&A44,Capacity_DB!$A:$A,Capacity_DB!$M:$M,0)),0))","v":0},{"$f":"IF(OR($B44=\"\",$B44=\"N/A\"),\"\",IFERROR(_xlfn.SINGLE(_xlfn.XLOOKUP($B$1&\"|\"&$B$2&\"|\"&A44,Capacity_DB!$A:$A,Capacity_DB!$N:$N,0)),0))","v":0},{"$f":"IF(OR($B44=\"\",$B44=\"N/A\"),\"\",IFERROR(_xlfn.SINGLE(_xlfn.XLOOKUP($B$1&\"|\"&$B$2&\"|\"&A44,Capacity_DB!$A:$A,Capacity_DB!$O:$O,0)),0))","v":0},{"$f":"IF(OR($B44=\"\",$B44=\"N/A\"),\"\",IFERROR(_xlfn.SINGLE(_xlfn.XLOOKUP($B$1&\"|\"&$B$2&\"|\"&A44,Capacity_DB!$A:$A,Capacity_DB!$P:$P,0)),0))","v":0},{"$f":"IF(OR($B44=\"\",$B44=\"N/A\"),\"\",IFERROR(_xlfn.SINGLE(_xlfn.XLOOKUP($B$1&\"|\"&$B$2&\"|\"&A44,Capacity_DB!$A:$A,Capacity_DB!$Q:$Q,0)),0))","v":0},{"$f":"IF(OR($B44=\"\",$B44=\"N/A\"),\"\",IFERROR(_xlfn.SINGLE(_xlfn.XLOOKUP($B$1&\"|\"&$B$2&\"|\"&A44,Capacity_DB!$A:$A,Capacity_DB!$R:$R,0)),0))","v":0},{"$f":"IF(OR($B44=\"\",$B44=\"N/A\"),\"\",IFERROR(_xlfn.SINGLE(_xlfn.XLOOKUP($B$1&\"|\"&$B$2&\"|\"&A44,Capacity_DB!$A:$A,Capacity_DB!$S:$S,0)),0))","v":0},{"$f":"IF(OR($B44=\"\",$B44=\"N/A\"),\"\",IFERROR(_xlfn.SINGLE(_xlfn.XLOOKUP($B$1&\"|\"&$B$2&\"|\"&A44,Capacity_DB!$A:$A,Capacity_DB!$T:$T,0)),0))","v":0},{"$f":"IF(OR($B44=\"\",$B44=\"N/A\"),\"\",IFERROR(_xlfn.SINGLE(_xlfn.XLOOKUP($B$1&\"|\"&$B$2&\"|\"&A44,Capacity_DB!$A:$A,Capacity_DB!$U:$U,0)),0))","v":0},{"$f":"IF(OR($B44=\"\",$B44=\"N/A\"),\"\",IFERROR(_xlfn.SINGLE(_xlfn.XLOOKUP($B$1&\"|\"&$B$2&\"|\"&A44,Capacity_DB!$A:$A,Capacity_DB!$V:$V,0)),0))","v":0},{"$f":"IF(OR($B44=\"\",$B44=\"N/A\"),\"\",IFERROR(_xlfn.SINGLE(_xlfn.XLOOKUP($B$1&\"|\"&$B$2&\"|\"&A44,Capacity_DB!$A:$A,Capacity_DB!$W:$W,0)),0))","v":0},{"$f":"IF(OR($B44=\"\",$B44=\"N/A\"),\"\",IFERROR(_xlfn.SINGLE(_xlfn.XLOOKUP($B$1&\"|\"&$B$2&\"|\"&A44,Capacity_DB!$A:$A,Capacity_DB!$X:$X,0)),0))","v":0},{"$f":"IF(OR($B44=\"\",$B44=\"N/A\"),\"\",IFERROR(_xlfn.SINGLE(_xlfn.XLOOKUP($B$1&\"|\"&$B$2&\"|\"&A44,Capacity_DB!$A:$A,Capacity_DB!$Y:$Y,0)),0))","v":0},{"$f":"IF(OR($B44=\"\",$B44=\"N/A\"),\"\",IFERROR(_xlfn.SINGLE(_xlfn.XLOOKUP($B$1&\"|\"&$B$2&\"|\"&A44,Capacity_DB!$A:$A,Capacity_DB!$Z:$Z,0)),0))","v":0},0,112,""]
[38,{"$f":"IFERROR(_xlfn.SINGLE(_xlfn.XLOOKUP($B$1&\"|\"&$B$2&\"|\"&A45,Capacity_DB!$A:$A,Capacity_DB!$E:$E,\"\")),\"\")","v":"DONNYBROOK (E) - FRANKLIN (I)"},{"$f":"IF(OR($B45=\"\",$B45=\"N/A\"),\"\",IFERROR(_xlfn.SINGLE(_xlfn.XLOOKUP($B$1&\"|\"&$B$2&\"|\"&A45,Capacity_DB!$A:$A,Capacity_DB!$F:$F,\"\")),\"\"))","v":"DURBAN"},{"$f":"IF(OR($B45=\"\",$B45=\"N/A\"),\"\",IFERROR(_xlfn.SINGLE(_xlfn.XLOOKUP($B$1&\"|\"&$B$2&\"|\"&A45,Capacity_DB!$A:$A,Capacity_DB!$G:$G,\"\")),\"\"))","v":16},10,{"$f":"IF(OR($B45=\"\",$B45=\"N/A\"),\"\",IFERROR(_xlfn.SINGLE(_xlfn.XLOOKUP($B$1&\"|\"&$B$2&\"|\"&A45,Capacity_DB!$A:$A,Capacity_DB!$H:$H,0)),0))","v":0},{"$f":"IF(OR($B45=\"\",$B45=\"N/A\"),\"\",IFERROR(_xlfn.SINGLE(_xlfn.XLOOKUP($B$1&\"|\"&$B$2&\"|\"&A45,Capacity_DB!$A:$A,Capacity_DB!$I:$I,0)),0))","v":0},{"$f":"IF(OR($B45=\"\",$B45=\"N/A\"),\"\",IFERROR(_xlfn.SINGLE(_xlfn.XLOOKUP($B$1&\"|\"&$B$2&\"|\"&A45,Capacity_DB!$A:$A,Capacity_DB!$J:$J,0)),0))","v":0},{"$f":"IF(OR($B45=\"\",$B45=\"N/A\"),\"\",IFERROR(_xlfn.SINGLE(_xlfn.XLOOKUP($B$1&\"|\"&$B$2&\"|\"&A45,Capacity_DB!$A:$A,Capacity_DB!$K:$K,0)),0))","v":0},10,70,{"$f":"IF(OR($B45=\"\",$B45=\"N/A\"),\"\",IFERROR(_xlfn.SINGLE(_xlfn.XLOOKUP($B$1&\"|\"&$B$2&\"|\"&A45,Capacity_DB!$A:$A,Capacity_DB!$L:$L,0)),0))","v":0},{"$f":"IF(OR($B45=\"\",$B45=\"N/A\"),\"\",IFERROR(_xlfn.SINGLE(_xlfn.XLOOKUP($B$1&\"|\"&$B$2&\"|\"&A45,Capacity_DB!$A:$A,Capacity_DB!$M:$M,0)),0))","v":0},{"$f":"IF(OR($B45=\"\",$B45=\"N/A\"),\"\",IFERROR(_xlfn.SINGLE(_xlfn.XLOOKUP($B$1&\"|\"&$B$2&\"|\"&A45,Capacity_DB!$A:$A,Capacity_DB!$N:$N,0)),0))","v":0},{"$f":"IF(OR($B45=\"\",$B45=\"N/A\"),\"\",IFERROR(_xlfn.SINGLE(_xlfn.XLOOKUP($B$1&\"|\"&$B$2&\"|\"&A45,Capacity_DB!$A:$A,Capacity_DB!$O:$O,0)),0))","v":0},{"$f":"IF(OR($B45=\"\",$B45=\"N/A\"),\"\",IFERROR(_xlfn.SINGLE(_xlfn.XLOOKUP($B$1&\"|\"&$B$2&\"|\"&A45,Capacity_DB!$A:$A,Capacity_DB!$P:$P,0)),0))","v":0},{"$f":"IF(OR($B45=\"\",$B45=\"N/A\"),\"\",IFERROR(_xlfn.SINGLE(_xlfn.XLOOKUP($B$1&\"|\"&$B$2&\"|\"&A45,Capacity_DB!$A:$A,Capacity_DB!$Q:$Q,0)),0))","v":0},{"$f":"IF(OR($B45=\"\",$B45=\"N/A\"),\"\",IFERROR(_xlfn.SINGLE(_xlfn.XLOOKUP($B$1&\"|\"&$B$2&\"|\"&A45,Capacity_DB!$A:$A,Capacity_DB!$R:$R,0)),0))","v":0},{"$f":"IF(OR($B45=\"\",$B45=\"N/A\"),\"\",IFERROR(_xlfn.SINGLE(_xlfn.XLOOKUP($B$1&\"|\"&$B$2&\"|\"&A45,Capacity_DB!$A:$A,Capacity_DB!$S:$S,0)),0))","v":0},{"$f":"IF(OR($B45=\"\",$B45=\"N/A\"),\"\",IFERROR(_xlfn.SINGLE(_xlfn.XLOOKUP($B$1&\"|\"&$B$2&\"|\"&A45,Capacity_DB!$A:$A,Capacity_DB!$T:$T,0)),0))","v":0},{"$f":"IF(OR($B45=\"\",$B45=\"N/A\"),\"\",IFERROR(_xlfn.SINGLE(_xlfn.XLOOKUP($B$1&\"|\"&$B$2&\"|\"&A45,Capacity_DB!$A:$A,Capacity_DB!$U:$U,0)),0))","v":0},{"$f":"IF(OR($B45=\"\",$B45=\"N/A\"),\"\",IFERROR(_xlfn.SINGLE(_xlfn.XLOOKUP($B$1&\"|\"&$B$2&\"|\"&A45,Capacity_DB!$A:$A,Capacity_DB!$V:$V,0)),0))","v":0},{"$f":"IF(OR($B45=\"\",$B45=\"N/A\"),\"\",IFERROR(_xlfn.SINGLE(_xlfn.XLOOKUP($B$1&\"|\"&$B$2&\"|\"&A45,Capacity_DB!$A:$A,Capacity_DB!$W:$W,0)),0))","v":0},{"$f":"IF(OR($B45=\"\",$B45=\"N/A\"),\"\",IFERROR(_xlfn.SINGLE(_xlfn.XLOOKUP($B$1&\"|\"&$B$2&\"|\"&A45,Capacity_DB!$A:$A,Capacity_DB!$X:$X,0)),0))","v":0},{"$f":"IF(OR($B45=\"\",$B45=\"N/A\"),\"\",IFERROR(_xlfn.SINGLE(_xlfn.XLOOKUP($B$1&\"|\"&$B$2&\"|\"&A45,Capacity_DB!$A:$A,Capacity_DB!$Y:$Y,0)),0))","v":0},{"$f":"IF(OR($B45=\"\",$B45=\"N/A\"),\"\",IFERROR(_xlfn.SINGLE(_xlfn.XLOOKUP($B$1&\"|\"&$B$2&\"|\"&A45,Capacity_DB!$A:$A,Capacity_DB!$Z:$Z,0)),0))","v":0},0,70,""]
[39,{"$f":"IFERROR(_xlfn.SINGLE(_xlfn.XLOOKUP($B$1&\"|\"&$B$2&\"|\"&A46,Capacity_DB!$A:$A,Capacity_DB!$E:$E,\"\")),\"\")","v":"FRANKLIN (E) - MATATIELE (I)"},{"$f":"IF(OR($B46=\"\",$B46=\"N/A\"),\"\",IFERROR(_xlfn.SINGLE(_xlfn.XLOOKUP($B$1&\"|\"&$B$2&\"|\"&A46,Capacity_DB!$A:$A,Capacity_DB!$F:$F,\"\")),\"\"))","v":"DURBAN"},{"$f":"IF(OR($B46=\"\",$B46=\"N/A\"),\"\",IFERROR(_xlfn.SINGLE(_xlfn.XLOOKUP($B$1&\"|\"&$B$2&\"|\"&A46,Capacity_DB!$A:$A,Capacity_DB!$G:$G,\"\")),\"\"))","v":13},8,{"$f":"IF(OR($B46=\"\",$B46=\"N/A\"),\"\",IFERROR(_xlfn.SINGLE(_xlfn.XLOOKUP($B$1&\"|\"&$B$2&\"|\"&A46,Capacity_DB!$A:$A,Capacity_DB!$H:$H,0)),0))","v":0},{"$f":"IF(OR($B46=\"\",$B46=\"N/A\"),\"\",IFERROR(_xlfn.SINGLE(_xlfn.XLOOKUP($B$1&\"|\"&$B$2&\"|\"&A46,Capacity_DB!$A:$A,Capacity_DB!$I:$I,0)),0))","v":0},{"$f":"IF(OR($B46=\"\",$B46=\"N/A\"),\"\",IFERROR(_xlfn.SINGLE(_xlfn.XLOOKUP($B$1&\"|\"&$B$2&\"|\"&A46,Capacity_DB!$A:$A,Capacity_DB!$J:$J,0)),0))","v":0},{"$f":"IF(OR($B46=\"\",$B46=\"N/A\"),\"\",IFERROR(_xlfn.SINGLE(_xlfn.XLOOKUP($B$1&\"|\"&$B$2&\"|\"&A46,Capacity_DB!$A:$A,Capacity_DB!$K:$K,0)),0))","v":0},8,56,{"$f":"IF(OR($B46=\"\",$B46=\"N/A\"),\"\",IFERROR(_xlfn.SINGLE(_xlfn.XLOOKUP($B$1&\"|\"&$B$2&\"|\"&A46,Capacity_DB!$A:$A,Capacity_DB!$L:$L,0)),0))","v":0},{"$f":"IF(OR($B46=\"\",$B46=\"N/A\"),\"\",IFERROR(_xlfn.SINGLE(_xlfn.XLOOKUP($B$1&\"|\"&$B$2&\"|\"&A46,Capacity_DB!$A:$A,Capacity_DB!$M:$M,0)),0))","v":0},{"$f":"IF(OR($B46=\"\",$B46=\"N/A\"),\"\",IFERROR(_xlfn.SINGLE(_xlfn.XLOOKUP($B$1&\"|\"&$B$2&\"|\"&A46,Capacity_DB!$A:$A,Capacity_DB!$N:$N,0)),0))","v":0},{"$f":"IF(OR($B46=\"\",$B46=\"N/A\"),\"\",IFERROR(_xlfn.SINGLE(_xlfn.XLOOKUP($B$1&\"|\"&$B$2&\"|\"&A46,Capacity_DB!$A:$A,Capacity_DB!$O:$O,0)),0))","v":0},{"$f":"IF(OR($B46=\"\",$B46=\"N/A\"),\"\",IFERROR(_xlfn.SINGLE(_xlfn.XLOOKUP($B$1&\"|\"&$B$2&\"|\"&A46,Capacity_DB!$A:$A,Capacity_DB!$P:$P,0)),0))","v":0},{"$f":"IF(OR($B46=\"\",$B46=\"N/A\"),\"\",IFERROR(_xlfn.SINGLE(_xlfn.XLOOKUP($B$1&\"|\"&$B$2&\"|\"&A46,Capacity_DB!$A:$A,Capacity_DB!$Q:$Q,0)),0))","v":0},{"$f":"IF(OR($B46=\"\",$B46=\"N/A\"),\"\",IFERROR(_xlfn.SINGLE(_xlfn.XLOOKUP($B$1&\"|\"&$B$2&\"|\"&A46,Capacity_DB!$A:$A,Capacity_DB!$R:$R,0)),0))","v":0},{"$f":"IF(OR($B46=\"\",$B46=\"N/A\"),\"\",IFERROR(_xlfn.SINGLE(_xlfn.XLOOKUP($B$1&\"|\"&$B$2&\"|\"&A46,Capacity_DB!$A:$A,Capacity_DB!$S:$S,0)),0))","v":0},{"$f":"IF(OR($B46=\"\",$B46=\"N/A\"),\"\",IFERROR(_xlfn.SINGLE(_xlfn.XLOOKUP($B$1&\"|\"&$B$2&\"|\"&A46,Capacity_DB!$A:$A,Capacity_DB!$T:$T,0)),0))","v":0},{"$f":"IF(OR($B46=\"\",$B46=\"N/A\"),\"\",IFERROR(_xlfn.SINGLE(_xlfn.XLOOKUP($B$1&\"|\"&$B$2&\"|\"&A46,Capacity_DB!$A:$A,Capacity_DB!$U:$U,0)),0))","v":0},{"$f":"IF(OR($B46=\"\",$B46=\"N/A\"),\"\",IFERROR(_xlfn.SINGLE(_xlfn.XLOOKUP($B$1&\"|\"&$B$2&\"|\"&A46,Capacity_DB!$A:$A,Capacity_DB!$V:$V,0)),0))","v":0},{"$f":"IF(OR($B46=\"\",$B46=\"N/A\"),\"\",IFERROR(_xlfn.SINGLE(_xlfn.XLOOKUP($B$1&\"|\"&$B$2&\"|\"&A46,Capacity_DB!$A:$A,Capacity_DB!$W:$W,0)),0))","v":0},{"$f":"IF(OR($B46=\"\",$B46=\"N/A\"),\"\",IFERROR(_xlfn.SINGLE(_xlfn.XLOOKUP($B$1&\"|\"&$B$2&\"|\"&A46,Capacity_DB!$A:$A,Capacity_DB!$X:$X,0)),0))","v":0},{"$f":"IF(OR($B46=\"\",$B46=\"N/A\"),\"\",IFERROR(_xlfn.SINGLE(_xlfn.XLOOKUP($B$1&\"|\"&$B$2&\"|\"&A46,Capacity_DB!$A:$A,Capacity_DB!$Y:$Y,0)),0))","v":0},{"$f":"IF(OR($B46=\"\",$B46=\"N/A\"),\"\",IFERROR(_xlfn.SINGLE(_xlfn.XLOOKUP($B$1&\"|\"&$B$2&\"|\"&A46,Capacity_DB!$A:$A,Capacity_DB!$Z:$Z,0)),0))","v":0},0,56,""]
[40,{"$f":"IFERROR(_xlfn.SINGLE(_xlfn.XLOOKUP($B$1&\"|\"&$B$2&\"|\"&A47,Capacity_DB!$A:$A,Capacity_DB!$E:$E,\"\")),\"\")","v":"DONNYBROOK (E) - UNDERBERG (I)"},{"$f":"IF(OR($B47=\"\",$B47=\"N/A\"),\"\",IFERROR(_xlfn.SINGLE(_xlfn.XLOOKUP($B$1&\"|\"&$B$2&\"|\"&A47,Capacity_DB!$A:$A,Capacity_DB!$F:$F,\"\")),\"\"))","v":"DURBAN"},{"$f":"IF(OR($B47=\"\",$B47=\"N/A\"),\"\",IFERROR(_xlfn.SINGLE(_xlfn.XLOOKUP($B$1&\"|\"&$B$2&\"|\"&A47,Capacity_DB!$A:$A,Capacity_DB!$G:$G,\"\")),\"\"))","v":15},10,{"$f":"IF(OR($B47=\"\",$B47=\"N/A\"),\"\",IFERROR(_xlfn.SINGLE(_xlfn.XLOOKUP($B$1&\"|\"&$B$2&\"|\"&A47,Capacity_DB!$A:$A,Capacity_DB!$H:$H,0)),0))","v":0},{"$f":"IF(OR($B47=\"\",$B47=\"N/A\"),\"\",IFERROR(_xlfn.SINGLE(_xlfn.XLOOKUP($B$1&\"|\"&$B$2&\"|\"&A47,Capacity_DB!$A:$A,Capacity_DB!$I:$I,0)),0))","v":0},{"$f":"IF(OR($B47=\"\",$B47=\"N/A\"),\"\",IFERROR(_xlfn.SINGLE(_xlfn.XLOOKUP($B$1&\"|\"&$B$2&\"|\"&A47,Capacity_DB!$A:$A,Capacity_DB!$J:$J,0)),0))","v":0},{"$f":"IF(OR($B47=\"\",$B47=\"N/A\"),\"\",IFERROR(_xlfn.SINGLE(_xlfn.XLOOKUP($B$1&\"|\"&$B$2&\"|\"&A47,Capacity_DB!$A:$A,Capacity_DB!$K:$K,0)),0))","v":0},10,70,{"$f":"IF(OR($B47=\"\",$B47=\"N/A\"),\"\",IFERROR(_xlfn.SINGLE(_xlfn.XLOOKUP($B$1&\"|\"&$B$2&\"|\"&A47,Capacity_DB!$A:$A,Capacity_DB!$L:$L,0)),0))","v":0},{"$f":"IF(OR($B47=\"\",$B47=\"N/A\"),\"\",IFERROR(_xlfn.SINGLE(_xlfn.XLOOKUP($B$1&\"|\"&$B$2&\"|\"&A47,Capacity_DB!$A:$A,Capacity_DB!$M:$M,0)),0))","v":0},{"$f":"IF(OR($B47=\"\",$B47=\"N/A\"),\"\",IFERROR(_xlfn.SINGLE(_xlfn.XLOOKUP($B$1&\"|\"&$B$2&\"|\"&A47,Capacity_DB!$A:$A,Capacity_DB!$N:$N,0)),0))","v":0},{"$f":"IF(OR($B47=\"\",$B47=\"N/A\"),\"\",IFERROR(_xlfn.SINGLE(_xlfn.XLOOKUP($B$1&\"|\"&$B$2&\"|\"&A47,Capacity_DB!$A:$A,Capacity_DB!$O:$O,0)),0))","v":0},{"$f":"IF(OR($B47=\"\",$B47=\"N/A\"),\"\",IFERROR(_xlfn.SINGLE(_xlfn.XLOOKUP($B$1&\"|\"&$B$2&\"|\"&A47,Capacity_DB!$A:$A,Capacity_DB!$P:$P,0)),0))","v":0},{"$f":"IF(OR($B47=\"\",$B47=\"N/A\"),\"\",IFERROR(_xlfn.SINGLE(_xlfn.XLOOKUP($B$1&\"|\"&$B$2&\"|\"&A47,Capacity_DB!$A:$A,Capacity_DB!$Q:$Q,0)),0))","v":0},{"$f":"IF(OR($B47=\"\",$B47=\"N/A\"),\"\",IFERROR(_xlfn.SINGLE(_xlfn.XLOOKUP($B$1&\"|\"&$B$2&\"|\"&A47,Capacity_DB!$A:$A,Capacity_DB!$R:$R,0)),0))","v":0},{"$f":"IF(OR($B47=\"\",$B47=\"N/A\"),\"\",IFERROR(_xlfn.SINGLE(_xlfn.XLOOKUP($B$1&\"|\"&$B$2&\"|\"&A47,Capacity_DB!$A:$A,Capacity_DB!$S:$S,0)),0))","v":0},{"$f":"IF(OR($B47=\"\",$B47=\"N/A\"),\"\",IFERROR(_xlfn.SINGLE(_xlfn.XLOOKUP($B$1&\"|\"&$B$2&\"|\"&A47,Capacity_DB!$A:$A,Capacity_DB!$T:$T,0)),0))","v":0},{"$f":"IF(OR($B47=\"\",$B47=\"N/A\"),\"\",IFERROR(_xlfn.SINGLE(_xlfn.XLOOKUP($B$1&\"|\"&$B$2&\"|\"&A47,Capacity_DB!$A:$A,Capacity_DB!$U:$U,0)),0))","v":0},{"$f":"IF(OR($B47=\"\",$B47=\"N/A\"),\"\",IFERROR(_xlfn.SINGLE(_xlfn.XLOOKUP($B$1&\"|\"&$B$2&\"|\"&A47,Capacity_DB!$A:$A,Capacity_DB!$V:$V,0)),0))","v":0},{"$f":"IF(OR($B47=\"\",$B47=\"N/A\"),\"\",IFERROR(_xlfn.SINGLE(_xlfn.XLOOKUP($B$1&\"|\"&$B$2&\"|\"&A47,Capacity_DB!$A:$A,Capacity_DB!$W:$W,0)),0))","v":0},{"$f":"IF(OR($B47=\"\",$B47=\"N/A\"),\"\",IFERROR(_xlfn.SINGLE(_xlfn.XLOOKUP($B$1&\"|\"&$B$2&\"|\"&A47,Capacity_DB!$A:$A,Capacity_DB!$X:$X,0)),0))","v":0},{"$f":"IF(OR($B47=\"\",$B47=\"N/A\"),\"\",IFERROR(_xlfn.SINGLE(_xlfn.XLOOKUP($B$1&\"|\"&$B$2&\"|\"&A47,Capacity_DB!$A:$A,Capacity_DB!$Y:$Y,0)),0))","v":0},{"$f":"IF(OR($B47=\"\",$B47=\"N/A\"),\"\",IFERROR(_xlfn.SINGLE(_xlfn.XLOOKUP($B$1&\"|\"&$B$2&\"|\"&A47,Capacity_DB!$A:$A,Capacity_DB!$Z:$Z,0)),0))","v":0},0,70,""]

{"sheet":"Capacity_DB","index":1,"n_rows":1416,"n_cols":26,"rows_kept":1416,"cut":false,"hidden":true,"merged":[]}
["Key","Year","Route","Section Order","Section","Depot","Theoretical Daily Capacity","Train Paths Lost to TSR","Train Paths Lost to MA","Train Paths Infra Recovery","Train Paths Unused & Recovered from TOCs","TOC 1 Allocated Train Paths","TOC 2 Allocated Train Paths","TOC 3 Allocated Train Paths","TOC 4 Allocated Train Paths","TOC 5 Allocated Train Paths","TOC 6 Allocated Train Paths","TOC 7 Allocated Train Paths","TOC 8 Allocated Train Paths","TOC 9 Allocated Train Paths","TOC 10 Allocated Train Paths","TOC 11 Allocated Train Paths","TOC 12 Allocated Train Paths","TOC 13 Allocated Train Paths","TOC 14 Allocated Train Paths","TOC 15 Allocated Train Paths"]
["FY26/27|Eastern Mainline: Rayton to Komatipoort/Richards Bay|1","FY26/27","Eastern Mainline: Rayton to Komatipoort/Richards Bay",1,"RAYTON (I) - WITBANK (E)","WITBANK",19,0,8,0,0,8,0,0,1,4,0,0,0,0,0,0,0,0,0,0]
["FY26/27|Eastern Mainline: Rayton to Komatipoort/Richards Bay|2","FY26/27","Eastern Mainline: Rayton to Komatipoort/Richards Bay",2,"WITBANK (I) - DERWENT (I)","WITBANK",33,1,14,0,0,19,1,0,3,0,0,0,0,0,0,0,0,0,0,0]
["FY26/27|Eastern Mainline: Rayton to Komatipoort/Richards Bay|3","FY26/27","Eastern Mainline: Rayton to Komatipoort/Richards Bay",3,"DERWENT (E) - BELFAST (I)","WITBANK",30,0,14,0,0,27,1,0,5,2,1,0,0,1,0,0,0,0,0,0]
["FY26/27|Eastern Mainline: Rayton to Komatipoort/Richards Bay|4","FY26/27","Eastern Mainline: Rayton to Komatipoort/Richards Bay",4,"STEELPOORT (I) - BELFAST (E)","WITBANK",18,0,5,0,0,13,0,0,0,0,0,0,0,0,0,0,0,0,0,0]
["FY26/27|Eastern Mainline: Rayton to Komatipoort/Richards Bay|5","FY26/27","Eastern Mainline: Rayton to Komatipoort/Richards Bay",5,"BELFAST (E) - GOEDGELUK (I)","WITBANK",13,0,3,0,0,34,1,0,5,2,0,0,1,1,0,0,0,0,0,0]
["FY26/27|Eastern Mainline: Rayton to Komatipoort/Richards Bay|6","FY26/27","Eastern Mainline: Rayton to Komatipoort/Richards Bay",6,"GOEDGELUK (E) - NELSPRUIT (E)","NELSPRUIT",30,1,13,0,0,37,1,0,5,2,0,0,1,1,0,0,0,0,0,0]
["FY26/27|Eastern Mainline: Rayton to Komatipoort/Richards Bay|7","FY26/27","Eastern Mainline: Rayton to Komatipoort/Richards Bay",7,"NELSPRUIT (I) - KAAPMUIDEN (I)","NELSPRUIT",36,1,14,0,0,35,1,0,5,2,0,0,1,1,0,0,0,0,0,0]
["FY26/27|Eastern Mainline: Rayton to Komatipoort/Richards Bay|8","FY26/27","Eastern Mainline: Rayton to Komatipoort/Richards Bay",8,"KAAPMUIDEN (E) - BARBERTON (I)","NELSPRUIT (Line Closed)",15,0,0,0,0,0,0,0,0,0,0,0,0,0,0,0,0,0,0,0]
["FY26/27|Eastern Mainline: Rayton to Komatipoort/Richards Bay|9","FY26/27","Eastern Mainline: Rayton to Komatipoort/Richards Bay",9,"KAAPMUIDEN (E) - KOMATIPOORT (I)","NELSPRUIT",54,0,2,0,0,80,1,0,11,2,1,3,1,1,0,0,0,0,0,0]
["FY26/27|Eastern Mainline: Rayton to Komatipoort/Richards Bay|10","FY26/27","Eastern Mainline: Rayton to Komatipoort/Richards Bay",10,"WITBANK (E) - OGIES (E)","WITBANK",72,0,3,0,0,35,1,0,2,4,0,0,0,0,0,0,0,0,0,0]
["FY26/27|Eastern Mainline: Rayton to Komatipoort/Richards Bay|11","FY26/27","Eastern Mainline: Rayton to Komatipoort/Richards Bay",11,"OGIES (I) - VANDYKSDRIF (I)","ERMELO",72,0,9,0,0,103,0,0,0,4,1,0,0,0,0,0,0,0,0,0]
["FY26/27|Eastern Mainline: Rayton to Komatipoort/Richards Bay|12","FY26/27","Eastern Mainline: Rayton to Komatipoort/Richards Bay",12,"VANDYKSDRIF (E) - BROODSNYERSPLAAS B (I)","ERMELO",72,0,14,0,0,118,0,0,0,4,1,0,0,0,0,0,0,0,0,0]
["FY26/27|Eastern Mainline: Rayton to Komatipoort/Richards Bay|13","FY26/27","Eastern Mainline: Rayton to Komatipoort/Richards Bay",13,"BROODSNYERSPLAAS (E) GELUKPLAAS (E)","ERMELO",72,0,0,0,0,137,0,0,0,4,1,0,0,0,0,0,0,0,0,0]
["FY26/27|Eastern Mainline: Rayton to Komatipoort/Richards Bay|14","FY26/27","Eastern Mainline: Rayton to Komatipoort/Richards Bay",14,"GELUKPLAAS (E) - WONDERFONTEIN (I)","ERMELO",21,1,3,0,0,21,0,0,0,0,0,0,0,0,0,0,0,0,0,0]
["FY26/27|Eastern Mainline: Rayton to Komatipoort/Richards Bay|15","FY26/27","Eastern Mainline: Rayton to Komatipoort/Richards Bay",15,"BROODSNYERSPLAAS (E) -ERMELO (I)","ERMELO",72,0,0,0,0,168,0,0,0,4,1,0,0,0,0,0,0,0,0,0]
["FY26/27|Eastern Mainline: Rayton to Komatipoort/Richards Bay|16","FY26/27","Eastern Mainline: Rayton to Komatipoort/Richards Bay",16,"ERMELO (E) - MAVIRISTAD (I)","VRYHEID",45,0,0,0,0,120,0,0,0,4,1,0,0,0,0,0,0,0,0,0]
["FY26/27|Eastern Mainline: Rayton to Komatipoort/Richards Bay|17","FY26/27","Eastern Mainline: Rayton to Komatipoort/Richards Bay",17,"MAVIRISTAD (E) - PIET RETIEF (I)","VRYHEID",48,0,7,0,0,122,0,0,0,4,1,0,0,0,0,0,0,0,0,0]
["FY26/27|Eastern Mainline: Rayton to Komatipoort/Richards Bay|18","FY26/27","Eastern Mainline: Rayton to Komatipoort/Richards Bay",18,"PIET RETIEF (E)- VRYHEID (I)","VRYHEID",48,0,0,0,0,122,0,0,1,4,1,0,0,0,0,0,0,0,0,0]
["FY26/27|Eastern Mainline: Rayton to Komatipoort/Richards Bay|19","FY26/27","Eastern Mainline: Rayton to Komatipoort/Richards Bay",19,"VRYHEID (E) - HLOBANE (I)","VRYHEID",23,0,0,0,0,0,0,0,0,0,0,0,0,0,0,0,0,0,0,0]
["FY26/27|Eastern Mainline: Rayton to Komatipoort/Richards Bay|20","FY26/27","Eastern Mainline: Rayton to Komatipoort/Richards Bay",20,"VRYHEID-OOS (E) - RICHARDS BAY","VRYHEID",48,0,7,0,0,123,0,0,5,4,1,0,0,0,0,0,0,0,0,0]
["FY27/28|Eastern Mainline: Rayton to Komatipoort/Richards Bay|1","FY27/28","Eastern Mainline: Rayton to Komatipoort/Richards Bay",1,"RAYTON (I) - WITBANK (E)","WITBANK",19]
["FY27/28|Eastern Mainline: Rayton to Komatipoort/Richards Bay|2","FY27/28","Eastern Mainline: Rayton to Komatipoort/Richards Bay",2,"WITBANK (I) - DERWENT (I)","WITBANK",33]
["FY27/28|Eastern Mainline: Rayton to Komatipoort/Richards Bay|3","FY27/28","Eastern Mainline: Rayton to Komatipoort/Richards Bay",3,"DERWENT (E) - BELFAST (I)","WITBANK",30]
["FY27/28|Eastern Mainline: Rayton to Komatipoort/Richards Bay|4","FY27/28","Eastern Mainline: Rayton to Komatipoort/Richards Bay",4,"STEELPOORT (I) - BELFAST (E)","WITBANK",18]
["FY27/28|Eastern Mainline: Rayton to Komatipoort/Richards Bay|5","FY27/28","Eastern Mainline: Rayton to Komatipoort/Richards Bay",5,"BELFAST (E) - GOEDGELUK (I)","WITBANK",13]
["FY27/28|Eastern Mainline: Rayton to Komatipoort/Richards Bay|6","FY27/28","Eastern Mainline: Rayton to Komatipoort/Richards Bay",6,"GOEDGELUK (E) - NELSPRUIT (E)","NELSPRUIT",30]
["FY27/28|Eastern Mainline: Rayton to Komatipoort/Richards Bay|7","FY27/28","Eastern Mainline: Rayton to Komatipoort/Richards Bay",7,"NELSPRUIT (I) - KAAPMUIDEN (I)","NELSPRUIT",36]
["FY27/28|Eastern Mainline: Rayton to Komatipoort/Richards Bay|8","FY27/28","Eastern Mainline: Rayton to Komatipoort/Richards Bay",8,"KAAPMUIDEN (E) - BARBERTON (I)","NELSPRUIT (Line Closed)",15]
["FY27/28|Eastern Mainline: Rayton to Komatipoort/Richards Bay|9","FY27/28","Eastern Mainline: Rayton to Komatipoort/Richards Bay",9,"KAAPMUIDEN (E) - KOMATIPOORT (I)","NELSPRUIT",54]
["FY27/28|Eastern Mainline: Rayton to Komatipoort/Richards Bay|10","FY27/28","Eastern Mainline: Rayton to Komatipoort/Richards Bay",10,"WITBANK (E) - OGIES (E)","WITBANK",72]
["FY27/28|Eastern Mainline: Rayton to Komatipoort/Richards Bay|11","FY27/28","Eastern Mainline: Rayton to Komatipoort/Richards Bay",11,"OGIES (I) - VANDYKSDRIF (I)","ERMELO",72]
["FY27/28|Eastern Mainline: Rayton to Komatipoort/Richards Bay|12","FY27/28","Eastern Mainline: Rayton to Komatipoort/Richards Bay",12,"VANDYKSDRIF (E) - BROODSNYERSPLAAS B (I)","ERMELO",72]
["FY27/28|Eastern Mainline: Rayton to Komatipoort/Richards Bay|13","FY27/28","Eastern Mainline: Rayton to Komatipoort/Richards Bay",13,"BROODSNYERSPLAAS (E) GELUKPLAAS (E)","ERMELO",72]
["FY27/28|Eastern Mainline: Rayton to Komatipoort/Richards Bay|14","FY27/28","Eastern Mainline: Rayton to Komatipoort/Richards Bay",14,"GELUKPLAAS (E) - WONDERFONTEIN (I)","ERMELO",21]
["FY27/28|Eastern Mainline: Rayton to Komatipoort/Richards Bay|15","FY27/28","Eastern Mainline: Rayton to Komatipoort/Richards Bay",15,"BROODSNYERSPLAAS (E) -ERMELO (I)","ERMELO",72]
["FY27/28|Eastern Mainline: Rayton to Komatipoort/Richards Bay|16","FY27/28","Eastern Mainline: Rayton to Komatipoort/Richards Bay",16,"ERMELO (E) - MAVIRISTAD (I)","VRYHEID",45]
["FY27/28|Eastern Mainline: Rayton to Komatipoort/Richards Bay|17","FY27/28","Eastern Mainline: Rayton to Komatipoort/Richards Bay",17,"MAVIRISTAD (E) - PIET RETIEF (I)","VRYHEID",48]
["FY27/28|Eastern Mainline: Rayton to Komatipoort/Richards Bay|18","FY27/28","Eastern Mainline: Rayton to Komatipoort/Richards Bay",18,"PIET RETIEF (E)- VRYHEID (I)","VRYHEID",48]
["FY27/28|Eastern Mainline: Rayton to Komatipoort/Richards Bay|19","FY27/28","Eastern Mainline: Rayton to Komatipoort/Richards Bay",19,"VRYHEID (E) - HLOBANE (I)","VRYHEID",23]
["FY27/28|Eastern Mainline: Rayton to Komatipoort/Richards Bay|20","FY27/28","Eastern Mainline: Rayton to Komatipoort/Richards Bay",20,"VRYHEID-OOS (E) - RICHARDS BAY","VRYHEID",48]
["FY28/29|Eastern Mainline: Rayton to Komatipoort/Richards Bay|1","FY28/29","Eastern Mainline: Rayton to Komatipoort/Richards Bay",1,"RAYTON (I) - WITBANK (E)","WITBANK",19]
["FY28/29|Eastern Mainline: Rayton to Komatipoort/Richards Bay|2","FY28/29","Eastern Mainline: Rayton to Komatipoort/Richards Bay",2,"WITBANK (I) - DERWENT (I)","WITBANK",33]
["FY28/29|Eastern Mainline: Rayton to Komatipoort/Richards Bay|3","FY28/29","Eastern Mainline: Rayton to Komatipoort/Richards Bay",3,"DERWENT (E) - BELFAST (I)","WITBANK",30]
["FY28/29|Eastern Mainline: Rayton to Komatipoort/Richards Bay|4","FY28/29","Eastern Mainline: Rayton to Komatipoort/Richards Bay",4,"STEELPOORT (I) - BELFAST (E)","WITBANK",18]
["FY28/29|Eastern Mainline: Rayton to Komatipoort/Richards Bay|5","FY28/29","Eastern Mainline: Rayton to Komatipoort/Richards Bay",5,"BELFAST (E) - GOEDGELUK (I)","WITBANK",13]
["FY28/29|Eastern Mainline: Rayton to Komatipoort/Richards Bay|6","FY28/29","Eastern Mainline: Rayton to Komatipoort/Richards Bay",6,"GOEDGELUK (E) - NELSPRUIT (E)","NELSPRUIT",30]
["FY28/29|Eastern Mainline: Rayton to Komatipoort/Richards Bay|7","FY28/29","Eastern Mainline: Rayton to Komatipoort/Richards Bay",7,"NELSPRUIT (I) - KAAPMUIDEN (I)","NELSPRUIT",36]
["FY28/29|Eastern Mainline: Rayton to Komatipoort/Richards Bay|8","FY28/29","Eastern Mainline: Rayton to Komatipoort/Richards Bay",8,"KAAPMUIDEN (E) - BARBERTON (I)","NELSPRUIT (Line Closed)",15]
["FY28/29|Eastern Mainline: Rayton to Komatipoort/Richards Bay|9","FY28/29","Eastern Mainline: Rayton to Komatipoort/Richards Bay",9,"KAAPMUIDEN (E) - KOMATIPOORT (I)","NELSPRUIT",54]
["FY28/29|Eastern Mainline: Rayton to Komatipoort/Richards Bay|10","FY28/29","Eastern Mainline: Rayton to Komatipoort/Richards Bay",10,"WITBANK (E) - OGIES (E)","WITBANK",72]
["FY28/29|Eastern Mainline: Rayton to Komatipoort/Richards Bay|11","FY28/29","Eastern Mainline: Rayton to Komatipoort/Richards Bay",11,"OGIES (I) - VANDYKSDRIF (I)","ERMELO",72]
["FY28/29|Eastern Mainline: Rayton to Komatipoort/Richards Bay|12","FY28/29","Eastern Mainline: Rayton to Komatipoort/Richards Bay",12,"VANDYKSDRIF (E) - BROODSNYERSPLAAS B (I)","ERMELO",72]
["FY28/29|Eastern Mainline: Rayton to Komatipoort/Richards Bay|13","FY28/29","Eastern Mainline: Rayton to Komatipoort/Richards Bay",13,"BROODSNYERSPLAAS (E) GELUKPLAAS (E)","ERMELO",72]
["FY28/29|Eastern Mainline: Rayton to Komatipoort/Richards Bay|14","FY28/29","Eastern Mainline: Rayton to Komatipoort/Richards Bay",14,"GELUKPLAAS (E) - WONDERFONTEIN (I)","ERMELO",21]
["FY28/29|Eastern Mainline: Rayton to Komatipoort/Richards Bay|15","FY28/29","Eastern Mainline: Rayton to Komatipoort/Richards Bay",15,"BROODSNYERSPLAAS (E) -ERMELO (I)","ERMELO",72]
["FY28/29|Eastern Mainline: Rayton to Komatipoort/Richards Bay|16","FY28/29","Eastern Mainline: Rayton to Komatipoort/Richards Bay",16,"ERMELO (E) - MAVIRISTAD (I)","VRYHEID",45]
["FY28/29|Eastern Mainline: Rayton to Komatipoort/Richards Bay|17","FY28/29","Eastern Mainline: Rayton to Komatipoort/Richards Bay",17,"MAVIRISTAD (E) - PIET RETIEF (I)","VRYHEID",48]
["FY28/29|Eastern Mainline: Rayton to Komatipoort/Richards Bay|18","FY28/29","Eastern Mainline: Rayton to Komatipoort/Richards Bay",18,"PIET RETIEF (E)- VRYHEID (I)","VRYHEID",48]
["FY28/29|Eastern Mainline: Rayton to Komatipoort/Richards Bay|19","FY28/29","Eastern Mainline: Rayton to Komatipoort/Richards Bay",19,"VRYHEID (E) - HLOBANE (I)","VRYHEID",23]
["FY28/29|Eastern Mainline: Rayton to Komatipoort/Richards Bay|20","FY28/29","Eastern Mainline: Rayton to Komatipoort/Richards Bay",20,"VRYHEID-OOS (E) - RICHARDS BAY","VRYHEID",48]
["FY29/30|Eastern Mainline: Rayton to Komatipoort/Richards Bay|1","FY29/30","Eastern Mainline: Rayton to Komatipoort/Richards Bay",1,"RAYTON (I) - WITBANK (E)","WITBANK",19]
["FY29/30|Eastern Mainline: Rayton to Komatipoort/Richards Bay|2","FY29/30","Eastern Mainline: Rayton to Komatipoort/Richards Bay",2,"WITBANK (I) - DERWENT (I)","WITBANK",33]
["FY29/30|Eastern Mainline: Rayton to Komatipoort/Richards Bay|3","FY29/30","Eastern Mainline: Rayton to Komatipoort/Richards Bay",3,"DERWENT (E) - BELFAST (I)","WITBANK",30]
["FY29/30|Eastern Mainline: Rayton to Komatipoort/Richards Bay|4","FY29/30","Eastern Mainline: Rayton to Komatipoort/Richards Bay",4,"STEELPOORT (I) - BELFAST (E)","WITBANK",18]
["FY29/30|Eastern Mainline: Rayton to Komatipoort/Richards Bay|5","FY29/30","Eastern Mainline: Rayton to Komatipoort/Richards Bay",5,"BELFAST (E) - GOEDGELUK (I)","WITBANK",13]
["FY29/30|Eastern Mainline: Rayton to Komatipoort/Richards Bay|6","FY29/30","Eastern Mainline: Rayton to Komatipoort/Richards Bay",6,"GOEDGELUK (E) - NELSPRUIT (E)","NELSPRUIT",30]
["FY29/30|Eastern Mainline: Rayton to Komatipoort/Richards Bay|7","FY29/30","Eastern Mainline: Rayton to Komatipoort/Richards Bay",7,"NELSPRUIT (I) - KAAPMUIDEN (I)","NELSPRUIT",36]
["FY29/30|Eastern Mainline: Rayton to Komatipoort/Richards Bay|8","FY29/30","Eastern Mainline: Rayton to Komatipoort/Richards Bay",8,"KAAPMUIDEN (E) - BARBERTON (I)","NELSPRUIT (Line Closed)",15]
["FY29/30|Eastern Mainline: Rayton to Komatipoort/Richards Bay|9","FY29/30","Eastern Mainline: Rayton to Komatipoort/Richards Bay",9,"KAAPMUIDEN (E) - KOMATIPOORT (I)","NELSPRUIT",54]
["FY29/30|Eastern Mainline: Rayton to Komatipoort/Richards Bay|10","FY29/30","Eastern Mainline: Rayton to Komatipoort/Richards Bay",10,"WITBANK (E) - OGIES (E)","WITBANK",72]
["FY29/30|Eastern Mainline: Rayton to Komatipoort/Richards Bay|11","FY29/30","Eastern Mainline: Rayton to Komatipoort/Richards Bay",11,"OGIES (I) - VANDYKSDRIF (I)","ERMELO",72]
["FY29/30|Eastern Mainline: Rayton to Komatipoort/Richards Bay|12","FY29/30","Eastern Mainline: Rayton to Komatipoort/Richards Bay",12,"VANDYKSDRIF (E) - BROODSNYERSPLAAS B (I)","ERMELO",72]
["FY29/30|Eastern Mainline: Rayton to Komatipoort/Richards Bay|13","FY29/30","Eastern Mainline: Rayton to Komatipoort/Richards Bay",13,"BROODSNYERSPLAAS (E) GELUKPLAAS (E)","ERMELO",72]
["FY29/30|Eastern Mainline: Rayton to Komatipoort/Richards Bay|14","FY29/30","Eastern Mainline: Rayton to Komatipoort/Richards Bay",14,"GELUKPLAAS (E) - WONDERFONTEIN (I)","ERMELO",21]
["FY29/30|Eastern Mainline: Rayton to Komatipoort/Richards Bay|15","FY29/30","Eastern Mainline: Rayton to Komatipoort/Richards Bay",15,"BROODSNYERSPLAAS (E) -ERMELO (I)","ERMELO",72]
["FY29/30|Eastern Mainline: Rayton to Komatipoort/Richards Bay|16","FY29/30","Eastern Mainline: Rayton to Komatipoort/Richards Bay",16,"ERMELO (E) - MAVIRISTAD (I)","VRYHEID",45]
["FY29/30|Eastern Mainline: Rayton to Komatipoort/Richards Bay|17","FY29/30","Eastern Mainline: Rayton to Komatipoort/Richards Bay",17,"MAVIRISTAD (E) - PIET RETIEF (I)","VRYHEID",48]
["FY29/30|Eastern Mainline: Rayton to Komatipoort/Richards Bay|18","FY29/30","Eastern Mainline: Rayton to Komatipoort/Richards Bay",18,"PIET RETIEF (E)- VRYHEID (I)","VRYHEID",48]
["FY29/30|Eastern Mainline: Rayton to Komatipoort/Richards Bay|19","FY29/30","Eastern Mainline: Rayton to Komatipoort/Richards Bay",19,"VRYHEID (E) - HLOBANE (I)","VRYHEID",23]
["FY29/30|Eastern Mainline: Rayton to Komatipoort/Richards Bay|20","FY29/30","Eastern Mainline: Rayton to Komatipoort/Richards Bay",20,"VRYHEID-OOS (E) - RICHARDS BAY","VRYHEID",48]
["FY30/31|Eastern Mainline: Rayton to Komatipoort/Richards Bay|1","FY30/31","Eastern Mainline: Rayton to Komatipoort/Richards Bay",1,"RAYTON (I) - WITBANK (E)","WITBANK",19]
["FY30/31|Eastern Mainline: Rayton to Komatipoort/Richards Bay|2","FY30/31","Eastern Mainline: Rayton to Komatipoort/Richards Bay",2,"WITBANK (I) - DERWENT (I)","WITBANK",33]
["FY30/31|Eastern Mainline: Rayton to Komatipoort/Richards Bay|3","FY30/31","Eastern Mainline: Rayton to Komatipoort/Richards Bay",3,"DERWENT (E) - BELFAST (I)","WITBANK",30]
["FY30/31|Eastern Mainline: Rayton to Komatipoort/Richards Bay|4","FY30/31","Eastern Mainline: Rayton to Komatipoort/Richards Bay",4,"STEELPOORT (I) - BELFAST (E)","WITBANK",18]
["FY30/31|Eastern Mainline: Rayton to Komatipoort/Richards Bay|5","FY30/31","Eastern Mainline: Rayton to Komatipoort/Richards Bay",5,"BELFAST (E) - GOEDGELUK (I)","WITBANK",13]
["FY30/31|Eastern Mainline: Rayton to Komatipoort/Richards Bay|6","FY30/31","Eastern Mainline: Rayton to Komatipoort/Richards Bay",6,"GOEDGELUK (E) - NELSPRUIT (E)","NELSPRUIT",30]
["FY30/31|Eastern Mainline: Rayton to Komatipoort/Richards Bay|7","FY30/31","Eastern Mainline: Rayton to Komatipoort/Richards Bay",7,"NELSPRUIT (I) - KAAPMUIDEN (I)","NELSPRUIT",36]
["FY30/31|Eastern Mainline: Rayton to Komatipoort/Richards Bay|8","FY30/31","Eastern Mainline: Rayton to Komatipoort/Richards Bay",8,"KAAPMUIDEN (E) - BARBERTON (I)","NELSPRUIT (Line Closed)",15]
["FY30/31|Eastern Mainline: Rayton to Komatipoort/Richards Bay|9","FY30/31","Eastern Mainline: Rayton to Komatipoort/Richards Bay",9,"KAAPMUIDEN (E) - KOMATIPOORT (I)","NELSPRUIT",54]
["FY30/31|Eastern Mainline: Rayton to Komatipoort/Richards Bay|10","FY30/31","Eastern Mainline: Rayton to Komatipoort/Richards Bay",10,"WITBANK (E) - OGIES (E)","WITBANK",72]
["FY30/31|Eastern Mainline: Rayton to Komatipoort/Richards Bay|11","FY30/31","Eastern Mainline: Rayton to Komatipoort/Richards Bay",11,"OGIES (I) - VANDYKSDRIF (I)","ERMELO",72]
["FY30/31|Eastern Mainline: Rayton to Komatipoort/Richards Bay|12","FY30/31","Eastern Mainline: Rayton to Komatipoort/Richards Bay",12,"VANDYKSDRIF (E) - BROODSNYERSPLAAS B (I)","ERMELO",72]
["FY30/31|Eastern Mainline: Rayton to Komatipoort/Richards Bay|13","FY30/31","Eastern Mainline: Rayton to Komatipoort/Richards Bay",13,"BROODSNYERSPLAAS (E) GELUKPLAAS (E)","ERMELO",72]
["FY30/31|Eastern Mainline: Rayton to Komatipoort/Richards Bay|14","FY30/31","Eastern Mainline: Rayton to Komatipoort/Richards Bay",14,"GELUKPLAAS (E) - WONDERFONTEIN (I)","ERMELO",21]
["FY30/31|Eastern Mainline: Rayton to Komatipoort/Richards Bay|15","FY30/31","Eastern Mainline: Rayton to Komatipoort/Richards Bay",15,"BROODSNYERSPLAAS (E) -ERMELO (I)","ERMELO",72]
["FY30/31|Eastern Mainline: Rayton to Komatipoort/Richards Bay|16","FY30/31","Eastern Mainline: Rayton to Komatipoort/Richards Bay",16,"ERMELO (E) - MAVIRISTAD (I)","VRYHEID",45]
["FY30/31|Eastern Mainline: Rayton to Komatipoort/Richards Bay|17","FY30/31","Eastern Mainline: Rayton to Komatipoort/Richards Bay",17,"MAVIRISTAD (E) - PIET RETIEF (I)","VRYHEID",48]
["FY30/31|Eastern Mainline: Rayton to Komatipoort/Richards Bay|18","FY30/31","Eastern Mainline: Rayton to Komatipoort/Richards Bay",18,"PIET RETIEF (E)- VRYHEID (I)","VRYHEID",48]
["FY30/31|Eastern Mainline: Rayton to Komatipoort/Richards Bay|19","FY30/31","Eastern Mainline: Rayton to Komatipoort/Richards Bay",19,"VRYHEID (E) - HLOBANE (I)","VRYHEID",23]
["FY30/31|Eastern Mainline: Rayton to Komatipoort/Richards Bay|20","FY30/31","Eastern Mainline: Rayton to Komatipoort/Richards Bay",20,"VRYHEID-OOS (E) - RICHARDS BAY","VRYHEID",48]
[{"$f":"IF(OR(B102=\"\",C102=\"\",D102=\"\"),\"\",B102&\"|\"&C102&\"|\"&D102)","v":"FY26/27|General Freight & Export Coal: Lephalale to Richards Bay|1"},"FY26/27","General Freight & Export Coal: Lephalale to Richards Bay",1,"ELLISRAS (I) (LEPHALALE) - THABAZIMBI (E)","KOEDOESPOORT",7,0,0,0,0,9,0,0,0,0,0,0,0,0,0,0,0,0,0,0]
["FY26/27|General Freight & Export Coal: Lephalale to Richards Bay|2","FY26/27","General Freight & Export Coal: Lephalale to Richards Bay",2,"THABAZIMBI (I) - RUSTENBURG (I)","KOEDOESPOORT",18,1,0,0,0,12,0,0,0,0,0,0,0,0,0,0,0,0,0,0]
["FY26/27|General Freight & Export Coal: Lephalale to Richards Bay|3","FY26/27","General Freight & Export Coal: Lephalale to Richards Bay",3,"MIDDELWIT (I) - NORTHAM (E)","KOEDOESPOORT",39,0,0,0,0,6,0,0,0,0,0,0,0,0,0,0,0,0,0,0]
["FY26/27|General Freight & Export Coal: Lephalale to Richards Bay|4","FY26/27","General Freight & Export Coal: Lephalale to Richards Bay",4,"RUSTENBURG (E) - PENDORING (E)","KOEDOESPOORT",18,1,0,0,0,22,0,0,0,0,1,0,0,0,0,0,0,0,0,0]
["FY26/27|General Freight & Export Coal: Lephalale to Richards Bay|5","FY26/27","General Freight & Export Coal: Lephalale to Richards Bay",5,"ATLANTA (I) - PENDORING (E)","KOEDOESPOORT",31,0,0,0,0,0,0,0,0,0,0,0,0,0,0,0,0,0,0,0]
["FY26/27|General Freight & Export Coal: Lephalale to Richards Bay|6","FY26/27","General Freight & Export Coal: Lephalale to Richards Bay",6,"PENDORING (I) - PYRAMID SOUTH (I)","KOEDOESPOORT",28,0,7,0,0,24,0,0,0,0,1,0,0,0,0,0,0,0,0,0]
["FY26/27|General Freight & Export Coal: Lephalale to Richards Bay|7","FY26/27","General Freight & Export Coal: Lephalale to Richards Bay",7,"PYRAMID SOUTH (E) - LUD (E) (LEEUFONTEIN)","KOEDOESPOORT",47,6,2,0,0,37,0,0,1,0,1,0,0,0,0,0,0,0,0,0]
["FY26/27|General Freight & Export Coal: Lephalale to Richards Bay|8","FY26/27","General Freight & Export Coal: Lephalale to Richards Bay",8,"LEEUFONTEIN - KATBOSFONTEIN","ISANDO",48,0,8,0,0,37,0,0,1,0,1,0,0,0,0,0,0,0,0,0]
["FY26/27|General Freight & Export Coal: Lephalale to Richards Bay|9","FY26/27","General Freight & Export Coal: Lephalale to Richards Bay",9,"KATBOSFONTEIN - ZESFONTEIN","ISANDO",72,0,22,0,0,12,0,0,1,0,0,0,0,0,0,0,0,0,0,0]
["FY26/27|General Freight & Export Coal: Lephalale to Richards Bay|10","FY26/27","General Freight & Export Coal: Lephalale to Richards Bay",10,"ZESFONTEIN - SLIMESDAM","ISANDO",72,0,15,0,0,23,1,0,0,0,1,0,0,0,0,0,0,0,0,0]
["FY26/27|General Freight & Export Coal: Lephalale to Richards Bay|11","FY26/27","General Freight & Export Coal: Lephalale to Richards Bay",11,"SLIMESDAM (E) - WELGEDAG (E)","ISANDO",72,0,0,0,0,24,1,0,0,9,1,0,0,0,0,0,0,0,0,0]
["FY26/27|General Freight & Export Coal: Lephalale to Richards Bay|12","FY26/27","General Freight & Export Coal: Lephalale to Richards Bay",12,"WELGEDAG (E) - DELMAS (E)","ISANDO",72,0,27,0,0,24,1,0,0,9,1,0,0,0,0,0,0,0,0,0]
["FY26/27|General Freight & Export Coal: Lephalale to Richards Bay|13","FY26/27","General Freight & Export Coal: Lephalale to Richards Bay",13,"DELMAS (I) - OGIES (E)","ISANDO",72,1,31,0,0,24,1,0,0,9,1,0,0,0,0,0,0,0,0,0]
["FY26/27|General Freight & Export Coal: Lephalale to Richards Bay|14","FY26/27","General Freight & Export Coal: Lephalale to Richards Bay",14,"OGIES (I) - VANDYKSDRIF (I)","ERMELO",72,0,9,0,0,103,0,0,0,4,1,0,0,0,0,0,0,0,0,0]
["FY26/27|General Freight & Export Coal: Lephalale to Richards Bay|15","FY26/27","General Freight & Export Coal: Lephalale to Richards Bay",15,"VANDYKSDRIF (E) - BROODSNYERSPLAAS B (I)","ERMELO",72,0,14,0,0,118,0,0,0,4,1,0,0,0,0,0,0,0,0,0]
["FY26/27|General Freight & Export Coal: Lephalale to Richards Bay|16","FY26/27","General Freight & Export Coal: Lephalale to Richards Bay",16,"BROODSNYERSPLAAS (E) GELUKPLAAS (E)","ERMELO",72,0,0,0,0,137,0,0,0,4,1,0,0,0,0,0,0,0,0,0]
["FY26/27|General Freight & Export Coal: Lephalale to Richards Bay|17","FY26/27","General Freight & Export Coal: Lephalale to Richards Bay",17,"BROODSNYERSPLAAS (E) -ERMELO (I)","ERMELO",72,0,0,0,0,168,0,0,0,4,1,0,0,0,0,0,0,0,0,0]
["FY26/27|General Freight & Export Coal: Lephalale to Richards Bay|18","FY26/27","General Freight & Export Coal: Lephalale to Richards Bay",18,"ERMELO (E) - MAVIRISTAD (I)","VRYHEID",45,0,0,0,0,120,0,0,0,4,1,0,0,0,0,0,0,0,0,0]
["FY26/27|General Freight & Export Coal: Lephalale to Richards Bay|19","FY26/27","General Freight & Export Coal: Lephalale to Richards Bay",19,"MAVIRISTAD (E) - PIET RETIEF (I)","VRYHEID",48,0,7,0,0,122,0,0,0,4,1,0,0,0,0,0,0,0,0,0]
["FY26/27|General Freight & Export Coal: Lephalale to Richards Bay|20","FY26/27","General Freight & Export Coal: Lephalale to Richards Bay",20,"PIET RETIEF (E) - VRYHEID (E)","VRYHEID",48,0,0,0,0,122,0,0,1,4,1,0,0,0,0,0,0,0,0,0]
["FY26/27|General Freight & Export Coal: Lephalale to Richards Bay|21","FY26/27","General Freight & Export Coal: Lephalale to Richards Bay",21,"VRYHEID (E) - HLOBANE (I)","VRYHEID",23,0,0,0,0,0,0,0,0,0,0,0,0,0,0,0,0,0,0,0]
["FY26/27|General Freight & Export Coal: Lephalale to Richards Bay|22","FY26/27","General Freight & Export Coal: Lephalale to Richards Bay",22,"VRYHEID-OOS (E) - RICHARDS BAY","VRYHEID",48,0,7,0,0,123,0,0,5,4,1,0,0,0,0,0,0,0,0,0]
["FY26/27|General Freight & Export Coal: Lephalale to Richards Bay|23","FY26/27","General Freight & Export Coal: Lephalale to Richards Bay",23,"TRICHARDT - DAVEL","ERMELO",13,0,0,0,0,10,0,0,0,0,0,0,0,0,0,0,0,0,0,0]
["FY26/27|General Freight & Export Coal: Lephalale to Richards Bay|24","FY26/27","General Freight & Export Coal: Lephalale to Richards Bay",24,"DALO (I) - BREYTEN (E)","ERMELO",18,0,0,0,0,10,0,0,0,0,0,0,0,0,0,0,0,0,0,0]
["FY26/27|General Freight & Export Coal: Lephalale to Richards Bay|25","FY26/27","General Freight & Export Coal: Lephalale to Richards Bay",25,"ERMELO (E) - MACHADODORP (E)","ERMELO",11,0,0,0,0,10,0,0,0,0,0,0,0,0,2,0,0,0,0,0]
["FY26/27|General Freight & Export Coal: Lephalale to Richards Bay|26","FY26/27","General Freight & Export Coal: Lephalale to Richards Bay",26,"LOTHAIR (I) - BUHRMANNSKOP (E)","ERMELO (Line Closed)",13,0,0,0,0,0,0,0,0,0,0,0,0,0,0,0,0,0,0,0]
["FY27/28|General Freight & Export Coal: Lephalale to Richards Bay|1","FY27/28","General Freight & Export Coal: Lephalale to Richards Bay",1,"ELLISRAS (I) (LEPHALALE) - THABAZIMBI (E)","KOEDOESPOORT",7]
["FY27/28|General Freight & Export Coal: Lephalale to Richards Bay|2","FY27/28","General Freight & Export Coal: Lephalale to Richards Bay",2,"THABAZIMBI (I) - RUSTENBURG (I)","KOEDOESPOORT",18]
["FY27/28|General Freight & Export Coal: Lephalale to Richards Bay|3","FY27/28","General Freight & Export Coal: Lephalale to Richards Bay",3,"MIDDELWIT (I) - NORTHAM (E)","KOEDOESPOORT",39]
["FY27/28|General Freight & Export Coal: Lephalale to Richards Bay|4","FY27/28","General Freight & Export Coal: Lephalale to Richards Bay",4,"RUSTENBURG (E) - PENDORING (E)","KOEDOESPOORT",18]
["FY27/28|General Freight & Export Coal: Lephalale to Richards Bay|5","FY27/28","General Freight & Export Coal: Lephalale to Richards Bay",5,"ATLANTA (I) - PENDORING (E)","KOEDOESPOORT",31]
["FY27/28|General Freight & Export Coal: Lephalale to Richards Bay|6","FY27/28","General Freight & Export Coal: Lephalale to Richards Bay",6,"PENDORING (I) - PYRAMID SOUTH (I)","KOEDOESPOORT",28]
["FY27/28|General Freight & Export Coal: Lephalale to Richards Bay|7","FY27/28","General Freight & Export Coal: Lephalale to Richards Bay",7,"PYRAMID SOUTH (E) - LUD (E) (LEEUFONTEIN)","KOEDOESPOORT",47]
["FY27/28|General Freight & Export Coal: Lephalale to Richards Bay|8","FY27/28","General Freight & Export Coal: Lephalale to Richards Bay",8,"LEEUFONTEIN - KATBOSFONTEIN","ISANDO",48]
["FY27/28|General Freight & Export Coal: Lephalale to Richards Bay|9","FY27/28","General Freight & Export Coal: Lephalale to Richards Bay",9,"KATBOSFONTEIN - ZESFONTEIN","ISANDO",72]
["FY27/28|General Freight & Export Coal: Lephalale to Richards Bay|10","FY27/28","General Freight & Export Coal: Lephalale to Richards Bay",10,"ZESFONTEIN - SLIMESDAM","ISANDO",72]
["FY27/28|General Freight & Export Coal: Lephalale to Richards Bay|11","FY27/28","General Freight & Export Coal: Lephalale to Richards Bay",11,"SLIMESDAM (E) - WELGEDAG (E)","ISANDO",72]
["FY27/28|General Freight & Export Coal: Lephalale to Richards Bay|12","FY27/28","General Freight & Export Coal: Lephalale to Richards Bay",12,"WELGEDAG (E) - DELMAS (E)","ISANDO",72]
["FY27/28|General Freight & Export Coal: Lephalale to Richards Bay|13","FY27/28","General Freight & Export Coal: Lephalale to Richards Bay",13,"DELMAS (I) - OGIES (E)","ISANDO",72]
["FY27/28|General Freight & Export Coal: Lephalale to Richards Bay|14","FY27/28","General Freight & Export Coal: Lephalale to Richards Bay",14,"OGIES (I) - VANDYKSDRIF (I)","ERMELO",72]
["FY27/28|General Freight & Export Coal: Lephalale to Richards Bay|15","FY27/28","General Freight & Export Coal: Lephalale to Richards Bay",15,"VANDYKSDRIF (E) - BROODSNYERSPLAAS B (I)","ERMELO",72]
["FY27/28|General Freight & Export Coal: Lephalale to Richards Bay|16","FY27/28","General Freight & Export Coal: Lephalale to Richards Bay",16,"BROODSNYERSPLAAS (E) GELUKPLAAS (E)","ERMELO",72]
["FY27/28|General Freight & Export Coal: Lephalale to Richards Bay|17","FY27/28","General Freight & Export Coal: Lephalale to Richards Bay",17,"BROODSNYERSPLAAS (E) -ERMELO (I)","ERMELO",72]
["FY27/28|General Freight & Export Coal: Lephalale to Richards Bay|18","FY27/28","General Freight & Export Coal: Lephalale to Richards Bay",18,"ERMELO (E) - MAVIRISTAD (I)","VRYHEID",45]
["FY27/28|General Freight & Export Coal: Lephalale to Richards Bay|19","FY27/28","General Freight & Export Coal: Lephalale to Richards Bay",19,"MAVIRISTAD (E) - PIET RETIEF (I)","VRYHEID",48]
["FY27/28|General Freight & Export Coal: Lephalale to Richards Bay|20","FY27/28","General Freight & Export Coal: Lephalale to Richards Bay",20,"PIET RETIEF (E) - VRYHEID (E)","VRYHEID",48]
["FY27/28|General Freight & Export Coal: Lephalale to Richards Bay|21","FY27/28","General Freight & Export Coal: Lephalale to Richards Bay",21,"VRYHEID (E) - HLOBANE (I)","VRYHEID",23]
["FY27/28|General Freight & Export Coal: Lephalale to Richards Bay|22","FY27/28","General Freight & Export Coal: Lephalale to Richards Bay",22,"VRYHEID-OOS (E) - RICHARDS BAY","VRYHEID",48]
["FY27/28|General Freight & Export Coal: Lephalale to Richards Bay|23","FY27/28","General Freight & Export Coal: Lephalale to Richards Bay",23,"TRICHARDT - DAVEL","ERMELO",13]
["FY27/28|General Freight & Export Coal: Lephalale to Richards Bay|24","FY27/28","General Freight & Export Coal: Lephalale to Richards Bay",24,"DALO (I) - BREYTEN (E)","ERMELO",18]
["FY27/28|General Freight & Export Coal: Lephalale to Richards Bay|25","FY27/28","General Freight & Export Coal: Lephalale to Richards Bay",25,"ERMELO (E) - MACHADODORP (E)","ERMELO",11]
["FY27/28|General Freight & Export Coal: Lephalale to Richards Bay|26","FY27/28","General Freight & Export Coal: Lephalale to Richards Bay",26,"LOTHAIR (I) - BUHRMANNSKOP (E)","ERMELO (Line Closed)",13]
["FY28/29|General Freight & Export Coal: Lephalale to Richards Bay|1","FY28/29","General Freight & Export Coal: Lephalale to Richards Bay",1,"ELLISRAS (I) (LEPHALALE) - THABAZIMBI (E)","KOEDOESPOORT",7]
["FY28/29|General Freight & Export Coal: Lephalale to Richards Bay|2","FY28/29","General Freight & Export Coal: Lephalale to Richards Bay",2,"THABAZIMBI (I) - RUSTENBURG (I)","KOEDOESPOORT",18]
["FY28/29|General Freight & Export Coal: Lephalale to Richards Bay|3","FY28/29","General Freight & Export Coal: Lephalale to Richards Bay",3,"MIDDELWIT (I) - NORTHAM (E)","KOEDOESPOORT",39]
["FY28/29|General Freight & Export Coal: Lephalale to Richards Bay|4","FY28/29","General Freight & Export Coal: Lephalale to Richards Bay",4,"RUSTENBURG (E) - PENDORING (E)","KOEDOESPOORT",18]
["FY28/29|General Freight & Export Coal: Lephalale to Richards Bay|5","FY28/29","General Freight & Export Coal: Lephalale to Richards Bay",5,"ATLANTA (I) - PENDORING (E)","KOEDOESPOORT",31]
["FY28/29|General Freight & Export Coal: Lephalale to Richards Bay|6","FY28/29","General Freight & Export Coal: Lephalale to Richards Bay",6,"PENDORING (I) - PYRAMID SOUTH (I)","KOEDOESPOORT",28]
["FY28/29|General Freight & Export Coal: Lephalale to Richards Bay|7","FY28/29","General Freight & Export Coal: Lephalale to Richards Bay",7,"PYRAMID SOUTH (E) - LUD (E) (LEEUFONTEIN)","KOEDOESPOORT",47]
["FY28/29|General Freight & Export Coal: Lephalale to Richards Bay|8","FY28/29","General Freight & Export Coal: Lephalale to Richards Bay",8,"LEEUFONTEIN - KATBOSFONTEIN","ISANDO",48]
["FY28/29|General Freight & Export Coal: Lephalale to Richards Bay|9","FY28/29","General Freight & Export Coal: Lephalale to Richards Bay",9,"KATBOSFONTEIN - ZESFONTEIN","ISANDO",72]
["FY28/29|General Freight & Export Coal: Lephalale to Richards Bay|10","FY28/29","General Freight & Export Coal: Lephalale to Richards Bay",10,"ZESFONTEIN - SLIMESDAM","ISANDO",72]
["FY28/29|General Freight & Export Coal: Lephalale to Richards Bay|11","FY28/29","General Freight & Export Coal: Lephalale to Richards Bay",11,"SLIMESDAM (E) - WELGEDAG (E)","ISANDO",72]
["FY28/29|General Freight & Export Coal: Lephalale to Richards Bay|12","FY28/29","General Freight & Export Coal: Lephalale to Richards Bay",12,"WELGEDAG (E) - DELMAS (E)","ISANDO",72]
[{"$f":"IF(OR(B166=\"\",C166=\"\",D166=\"\"),\"\",B166&\"|\"&C166&\"|\"&D166)","v":"FY28/29|General Freight & Export Coal: Lephalale to Richards Bay|13"},"FY28/29","General Freight & Export Coal: Lephalale to Richards Bay",13,"DELMAS (I) - OGIES (E)","ISANDO",72]
["FY28/29|General Freight & Export Coal: Lephalale to Richards Bay|14","FY28/29","General Freight & Export Coal: Lephalale to Richards Bay",14,"OGIES (I) - VANDYKSDRIF (I)","ERMELO",72]
["FY28/29|General Freight & Export Coal: Lephalale to Richards Bay|15","FY28/29","General Freight & Export Coal: Lephalale to Richards Bay",15,"VANDYKSDRIF (E) - BROODSNYERSPLAAS B (I)","ERMELO",72]
["FY28/29|General Freight & Export Coal: Lephalale to Richards Bay|16","FY28/29","General Freight & Export Coal: Lephalale to Richards Bay",16,"BROODSNYERSPLAAS (E) GELUKPLAAS (E)","ERMELO",72]
["FY28/29|General Freight & Export Coal: Lephalale to Richards Bay|17","FY28/29","General Freight & Export Coal: Lephalale to Richards Bay",17,"BROODSNYERSPLAAS (E) -ERMELO (I)","ERMELO",72]
["FY28/29|General Freight & Export Coal: Lephalale to Richards Bay|18","FY28/29","General Freight & Export Coal: Lephalale to Richards Bay",18,"ERMELO (E) - MAVIRISTAD (I)","VRYHEID",45]
["FY28/29|General Freight & Export Coal: Lephalale to Richards Bay|19","FY28/29","General Freight & Export Coal: Lephalale to Richards Bay",19,"MAVIRISTAD (E) - PIET RETIEF (I)","VRYHEID",48]
["FY28/29|General Freight & Export Coal: Lephalale to Richards Bay|20","FY28/29","General Freight & Export Coal: Lephalale to Richards Bay",20,"PIET RETIEF (E) - VRYHEID (E)","VRYHEID",48]
["FY28/29|General Freight & Export Coal: Lephalale to Richards Bay|21","FY28/29","General Freight & Export Coal: Lephalale to Richards Bay",21,"VRYHEID (E) - HLOBANE (I)","VRYHEID",23]
["FY28/29|General Freight & Export Coal: Lephalale to Richards Bay|22","FY28/29","General Freight & Export Coal: Lephalale to Richards Bay",22,"VRYHEID-OOS (E) - RICHARDS BAY","VRYHEID",48]
["FY28/29|General Freight & Export Coal: Lephalale to Richards Bay|23","FY28/29","General Freight & Export Coal: Lephalale to Richards Bay",23,"TRICHARDT - DAVEL","ERMELO",13]
["FY28/29|General Freight & Export Coal: Lephalale to Richards Bay|24","FY28/29","General Freight & Export Coal: Lephalale to Richards Bay",24,"DALO (I) - BREYTEN (E)","ERMELO",18]
["FY28/29|General Freight & Export Coal: Lephalale to Richards Bay|25","FY28/29","General Freight & Export Coal: Lephalale to Richards Bay",25,"ERMELO (E) - MACHADODORP (E)","ERMELO",11]
["FY28/29|General Freight & Export Coal: Lephalale to Richards Bay|26","FY28/29","General Freight & Export Coal: Lephalale to Richards Bay",26,"LOTHAIR (I) - BUHRMANNSKOP (E)","ERMELO (Line Closed)",13]
["FY29/30|General Freight & Export Coal: Lephalale to Richards Bay|1","FY29/30","General Freight & Export Coal: Lephalale to Richards Bay",1,"ELLISRAS (I) (LEPHALALE) - THABAZIMBI (E)","KOEDOESPOORT",7]
["FY29/30|General Freight & Export Coal: Lephalale to Richards Bay|2","FY29/30","General Freight & Export Coal: Lephalale to Richards Bay",2,"THABAZIMBI (I) - RUSTENBURG (I)","KOEDOESPOORT",18]
["FY29/30|General Freight & Export Coal: Lephalale to Richards Bay|3","FY29/30","General Freight & Export Coal: Lephalale to Richards Bay",3,"MIDDELWIT (I) - NORTHAM (E)","KOEDOESPOORT",39]
["FY29/30|General Freight & Export Coal: Lephalale to Richards Bay|4","FY29/30","General Freight & Export Coal: Lephalale to Richards Bay",4,"RUSTENBURG (E) - PENDORING (E)","KOEDOESPOORT",18]
["FY29/30|General Freight & Export Coal: Lephalale to Richards Bay|5","FY29/30","General Freight & Export Coal: Lephalale to Richards Bay",5,"ATLANTA (I) - PENDORING (E)","KOEDOESPOORT",31]
["FY29/30|General Freight & Export Coal: Lephalale to Richards Bay|6","FY29/30","General Freight & Export Coal: Lephalale to Richards Bay",6,"PENDORING (I) - PYRAMID SOUTH (I)","KOEDOESPOORT",28]
["FY29/30|General Freight & Export Coal: Lephalale to Richards Bay|7","FY29/30","General Freight & Export Coal: Lephalale to Richards Bay",7,"PYRAMID SOUTH (E) - LUD (E) (LEEUFONTEIN)","KOEDOESPOORT",47]
["FY29/30|General Freight & Export Coal: Lephalale to Richards Bay|8","FY29/30","General Freight & Export Coal: Lephalale to Richards Bay",8,"LEEUFONTEIN - KATBOSFONTEIN","ISANDO",48]
["FY29/30|General Freight & Export Coal: Lephalale to Richards Bay|9","FY29/30","General Freight & Export Coal: Lephalale to Richards Bay",9,"KATBOSFONTEIN - ZESFONTEIN","ISANDO",72]
["FY29/30|General Freight & Export Coal: Lephalale to Richards Bay|10","FY29/30","General Freight & Export Coal: Lephalale to Richards Bay",10,"ZESFONTEIN - SLIMESDAM","ISANDO",72]
["FY29/30|General Freight & Export Coal: Lephalale to Richards Bay|11","FY29/30","General Freight & Export Coal: Lephalale to Richards Bay",11,"SLIMESDAM (E) - WELGEDAG (E)","ISANDO",72]
["FY29/30|General Freight & Export Coal: Lephalale to Richards Bay|12","FY29/30","General Freight & Export Coal: Lephalale to Richards Bay",12,"WELGEDAG (E) - DELMAS (E)","ISANDO",72]
["FY29/30|General Freight & Export Coal: Lephalale to Richards Bay|13","FY29/30","General Freight & Export Coal: Lephalale to Richards Bay",13,"DELMAS (I) - OGIES (E)","ISANDO",72]
["FY29/30|General Freight & Export Coal: Lephalale to Richards Bay|14","FY29/30","General Freight & Export Coal: Lephalale to Richards Bay",14,"OGIES (I) - VANDYKSDRIF (I)","ERMELO",72]
["FY29/30|General Freight & Export Coal: Lephalale to Richards Bay|15","FY29/30","General Freight & Export Coal: Lephalale to Richards Bay",15,"VANDYKSDRIF (E) - BROODSNYERSPLAAS B (I)","ERMELO",72]
["FY29/30|General Freight & Export Coal: Lephalale to Richards Bay|16","FY29/30","General Freight & Export Coal: Lephalale to Richards Bay",16,"BROODSNYERSPLAAS (E) GELUKPLAAS (E)","ERMELO",72]
["FY29/30|General Freight & Export Coal: Lephalale to Richards Bay|17","FY29/30","General Freight & Export Coal: Lephalale to Richards Bay",17,"BROODSNYERSPLAAS (E) -ERMELO (I)","ERMELO",72]
["FY29/30|General Freight & Export Coal: Lephalale to Richards Bay|18","FY29/30","General Freight & Export Coal: Lephalale to Richards Bay",18,"ERMELO (E) - MAVIRISTAD (I)","VRYHEID",45]
["FY29/30|General Freight & Export Coal: Lephalale to Richards Bay|19","FY29/30","General Freight & Export Coal: Lephalale to Richards Bay",19,"MAVIRISTAD (E) - PIET RETIEF (I)","VRYHEID",48]
["FY29/30|General Freight & Export Coal: Lephalale to Richards Bay|20","FY29/30","General Freight & Export Coal: Lephalale to Richards Bay",20,"PIET RETIEF (E) - VRYHEID (E)","VRYHEID",48]
["FY29/30|General Freight & Export Coal: Lephalale to Richards Bay|21","FY29/30","General Freight & Export Coal: Lephalale to Richards Bay",21,"VRYHEID (E) - HLOBANE (I)","VRYHEID",23]
["FY29/30|General Freight & Export Coal: Lephalale to Richards Bay|22","FY29/30","General Freight & Export Coal: Lephalale to Richards Bay",22,"VRYHEID-OOS (E) - RICHARDS BAY","VRYHEID",48]
["FY29/30|General Freight & Export Coal: Lephalale to Richards Bay|23","FY29/30","General Freight & Export Coal: Lephalale to Richards Bay",23,"TRICHARDT - DAVEL","ERMELO",13]
["FY29/30|General Freight & Export Coal: Lephalale to Richards Bay|24","FY29/30","General Freight & Export Coal: Lephalale to Richards Bay",24,"DALO (I) - BREYTEN (E)","ERMELO",18]
["FY29/30|General Freight & Export Coal: Lephalale to Richards Bay|25","FY29/30","General Freight & Export Coal: Lephalale to Richards Bay",25,"ERMELO (E) - MACHADODORP (E)","ERMELO",11]
["FY29/30|General Freight & Export Coal: Lephalale to Richards Bay|26","FY29/30","General Freight & Export Coal: Lephalale to Richards Bay",26,"LOTHAIR (I) - BUHRMANNSKOP (E)","ERMELO (Line Closed)",13]
["FY30/31|General Freight & Export Coal: Lephalale to Richards Bay|1","FY30/31","General Freight & Export Coal: Lephalale to Richards Bay",1,"ELLISRAS (I) (LEPHALALE) - THABAZIMBI (E)","KOEDOESPOORT",7]
["FY30/31|General Freight & Export Coal: Lephalale to Richards Bay|2","FY30/31","General Freight & Export Coal: Lephalale to Richards Bay",2,"THABAZIMBI (I) - RUSTENBURG (I)","KOEDOESPOORT",18]
["FY30/31|General Freight & Export Coal: Lephalale to Richards Bay|3","FY30/31","General Freight & Export Coal: Lephalale to Richards Bay",3,"MIDDELWIT (I) - NORTHAM (E)","KOEDOESPOORT",39]
["FY30/31|General Freight & Export Coal: Lephalale to Richards Bay|4","FY30/31","General Freight & Export Coal: Lephalale to Richards Bay",4,"RUSTENBURG (E) - PENDORING (E)","KOEDOESPOORT",18]
["FY30/31|General Freight & Export Coal: Lephalale to Richards Bay|5","FY30/31","General Freight & Export Coal: Lephalale to Richards Bay",5,"ATLANTA (I) - PENDORING (E)","KOEDOESPOORT",31]
["FY30/31|General Freight & Export Coal: Lephalale to Richards Bay|6","FY30/31","General Freight & Export Coal: Lephalale to Richards Bay",6,"PENDORING (I) - PYRAMID SOUTH (I)","KOEDOESPOORT",28]
["FY30/31|General Freight & Export Coal: Lephalale to Richards Bay|7","FY30/31","General Freight & Export Coal: Lephalale to Richards Bay",7,"PYRAMID SOUTH (E) - LUD (E) (LEEUFONTEIN)","KOEDOESPOORT",47]
["FY30/31|General Freight & Export Coal: Lephalale to Richards Bay|8","FY30/31","General Freight & Export Coal: Lephalale to Richards Bay",8,"LEEUFONTEIN - KATBOSFONTEIN","ISANDO",48]
["FY30/31|General Freight & Export Coal: Lephalale to Richards Bay|9","FY30/31","General Freight & Export Coal: Lephalale to Richards Bay",9,"KATBOSFONTEIN - ZESFONTEIN","ISANDO",72]
["FY30/31|General Freight & Export Coal: Lephalale to Richards Bay|10","FY30/31","General Freight & Export Coal: Lephalale to Richards Bay",10,"ZESFONTEIN - SLIMESDAM","ISANDO",72]
["FY30/31|General Freight & Export Coal: Lephalale to Richards Bay|11","FY30/31","General Freight & Export Coal: Lephalale to Richards Bay",11,"SLIMESDAM (E) - WELGEDAG (E)","ISANDO",72]
["FY30/31|General Freight & Export Coal: Lephalale to Richards Bay|12","FY30/31","General Freight & Export Coal: Lephalale to Richards Bay",12,"WELGEDAG (E) - DELMAS (E)","ISANDO",72]
["FY30/31|General Freight & Export Coal: Lephalale to Richards Bay|13","FY30/31","General Freight & Export Coal: Lephalale to Richards Bay",13,"DELMAS (I) - OGIES (E)","ISANDO",72]
["FY30/31|General Freight & Export Coal: Lephalale to Richards Bay|14","FY30/31","General Freight & Export Coal: Lephalale to Richards Bay",14,"OGIES (I) - VANDYKSDRIF (I)","ERMELO",72]
["FY30/31|General Freight & Export Coal: Lephalale to Richards Bay|15","FY30/31","General Freight & Export Coal: Lephalale to Richards Bay",15,"VANDYKSDRIF (E) - BROODSNYERSPLAAS B (I)","ERMELO",72]
["FY30/31|General Freight & Export Coal: Lephalale to Richards Bay|16","FY30/31","General Freight & Export Coal: Lephalale to Richards Bay",16,"BROODSNYERSPLAAS (E) GELUKPLAAS (E)","ERMELO",72]
["FY30/31|General Freight & Export Coal: Lephalale to Richards Bay|17","FY30/31","General Freight & Export Coal: Lephalale to Richards Bay",17,"BROODSNYERSPLAAS (E) -ERMELO (I)","ERMELO",72]
["FY30/31|General Freight & Export Coal: Lephalale to Richards Bay|18","FY30/31","General Freight & Export Coal: Lephalale to Richards Bay",18,"ERMELO (E) - MAVIRISTAD (I)","VRYHEID",45]
["FY30/31|General Freight & Export Coal: Lephalale to Richards Bay|19","FY30/31","General Freight & Export Coal: Lephalale to Richards Bay",19,"MAVIRISTAD (E) - PIET RETIEF (I)","VRYHEID",48]
["FY30/31|General Freight & Export Coal: Lephalale to Richards Bay|20","FY30/31","General Freight & Export Coal: Lephalale to Richards Bay",20,"PIET RETIEF (E) - VRYHEID (E)","VRYHEID",48]
["FY30/31|General Freight & Export Coal: Lephalale to Richards Bay|21","FY30/31","General Freight & Export Coal: Lephalale to Richards Bay",21,"VRYHEID (E) - HLOBANE (I)","VRYHEID",23]
["FY30/31|General Freight & Export Coal: Lephalale to Richards Bay|22","FY30/31","General Freight & Export Coal: Lephalale to Richards Bay",22,"VRYHEID-OOS (E) - RICHARDS BAY","VRYHEID",48]
["FY30/31|General Freight & Export Coal: Lephalale to Richards Bay|23","FY30/31","General Freight & Export Coal: Lephalale to Richards Bay",23,"TRICHARDT - DAVEL","ERMELO",13]
["FY30/31|General Freight & Export Coal: Lephalale to Richards Bay|24","FY30/31","General Freight & Export Coal: Lephalale to Richards Bay",24,"DALO (I) - BREYTEN (E)","ERMELO",18]
[{"$f":"IF(OR(B230=\"\",C230=\"\",D230=\"\"),\"\",B230&\"|\"&C230&\"|\"&D230)","v":"FY30/31|General Freight & Export Coal: Lephalale to Richards Bay|25"},"FY30/31","General Freight & Export Coal: Lephalale to Richards Bay",25,"ERMELO (E) - MACHADODORP (E)","ERMELO",11]
["FY30/31|General Freight & Export Coal: Lephalale to Richards Bay|26","FY30/31","General Freight & Export Coal: Lephalale to Richards Bay",26,"LOTHAIR (I) - BUHRMANNSKOP (E)","ERMELO (Line Closed)",13]
["FY26/27|General Freight: Johannesburg to Cape Town|1","FY26/27","General Freight: Johannesburg to Cape Town",1,"CITY DEEP - JUPITER","VEREENIGING",72,0,15,0,0,44,7,8,0,0,0,0,0,0,0,0,0,0,0,0]
["FY26/27|General Freight: Johannesburg to Cape Town|2","FY26/27","General Freight: Johannesburg to Cape Town",2,"KASERNE WEST - JUPITER","VEREENIGING",72,0,0,0,0,44,7,8,0,0,0,0,0,0,0,0,0,0,0,0]
["FY26/27|General Freight: Johannesburg to Cape Town|3","FY26/27","General Freight: Johannesburg to Cape Town",3,"JUPITER - INDIA","VEREENIGING",72,0,3,0,0,44,7,8,0,0,0,0,0,0,0,0,0,0,0,0]
["FY26/27|General Freight: Johannesburg to Cape Town|4","FY26/27","General Freight: Johannesburg to Cape Town",4,"INDIA (E) - UNION (E)","VEREENIGING",72,0,18,0,0,45,7,8,0,0,0,0,0,0,0,0,0,0,0,0]
["FY26/27|General Freight: Johannesburg to Cape Town|5","FY26/27","General Freight: Johannesburg to Cape Town",5,"UNION (I) - NATALSPRUIT (E)","VEREENIGING",72,0,22,0,0,3,0,0,0,0,0,0,0,0,0,0,0,0,0,0]
["FY26/27|General Freight: Johannesburg to Cape Town|6","FY26/27","General Freight: Johannesburg to Cape Town",6,"NATALSPRUIT (I) - VEREENIGING (E)","VEREENIGING",72,0,25,0,0,28,1,0,1,11,0,0,0,0,0,0,0,0,0,0]
["FY26/27|General Freight: Johannesburg to Cape Town|7","FY26/27","General Freight: Johannesburg to Cape Town",7,"VEREENIGING (E) - HOUTHEUWEL (E)","VEREENIGING",72,0,32,0,0,27,1,0,0,1,0,0,0,0,0,0,0,0,0,0]
["FY26/27|General Freight: Johannesburg to Cape Town|8","FY26/27","General Freight: Johannesburg to Cape Town",8,"HOUTHEUWEL (E) - CACHET (E)","VEREENIGING",72,0,20,0,0,27,1,0,0,1,0,0,0,0,0,0,0,0,0,0]
["FY26/27|General Freight: Johannesburg to Cape Town|9","FY26/27","General Freight: Johannesburg to Cape Town",9,"CACHET (I) - POTCHEFSTROOM (I)","KRUGERSDORP",72,0,0,0,0,27,1,0,0,1,0,0,0,0,0,0,0,0,0,0]
["FY26/27|General Freight: Johannesburg to Cape Town|10","FY26/27","General Freight: Johannesburg to Cape Town",10,"POTCHEFSTROOM (E) - KLERKSDORP (E)","KRUGERSDORP",72,0,29,0,0,20,0,0,0,1,0,0,0,0,0,0,0,0,0,0]
["FY26/27|General Freight: Johannesburg to Cape Town|11","FY26/27","General Freight: Johannesburg to Cape Town",11,"KLERKSDORP (I) - ORKNEY (I)","KRUGERSDORP",72,0,28,0,0,20,0,0,0,1,0,0,0,0,0,0,0,0,0,0]
["FY26/27|General Freight: Johannesburg to Cape Town|12","FY26/27","General Freight: Johannesburg to Cape Town",12,"ORKNEY (E) - VEERTIENSTROME (E)","KRUGERSDORP",23,1,5,0,0,20,0,0,0,1,0,0,0,0,0,0,0,0,0,0]
["FY26/27|General Freight: Johannesburg to Cape Town|13","FY26/27","General Freight: Johannesburg to Cape Town",13,"VEERTIENSTROME (I) - WINDSORTON ROAD (I)","KIMBERLEY NORTH",66,0,0,0,0,20,0,0,0,1,0,0,0,0,0,0,0,0,0,0]
["FY26/27|General Freight: Johannesburg to Cape Town|14","FY26/27","General Freight: Johannesburg to Cape Town",14,"WINDSORTON ROAD (E) - MACFARLANE (I)","KIMBERLEY NORTH",54,0,12,0,0,20,0,0,0,1,0,0,0,0,0,0,0,0,0,0]
["FY26/27|General Freight: Johannesburg to Cape Town|15","FY26/27","General Freight: Johannesburg to Cape Town",15,"MACFARLANE (I) - KAMFERSDAM (E)","KIMBERLEY NORTH",72,38,0,0,0,53,0,1,0,0,0,0,0,0,0,0,0,0,0,0]
["FY26/27|General Freight: Johannesburg to Cape Town|16","FY26/27","General Freight: Johannesburg to Cape Town",16,"KAMFERSDAM (I) - BEACONSFIELD (E)","KIMBERLEY NORTH",72,0,0,0,0,53,0,1,0,0,0,0,0,0,0,0,0,0,0,0]
["FY26/27|General Freight: Johannesburg to Cape Town|17","FY26/27","General Freight: Johannesburg to Cape Town",17,"BEACONSFIELD (I) - BELMONT (I)","KIMBERLEY SOUTH",29,2,0,0,0,0,0,1,0,0,0,0,0,0,0,0,0,0,0,0]
["FY26/27|General Freight: Johannesburg to Cape Town|18","FY26/27","General Freight: Johannesburg to Cape Town",18,"BELMONT (E) - ORANJERIVIER (E)","KIMBERLEY SOUTH",37,3,0,0,0,47,0,1,0,0,0,0,0,0,0,0,0,0,0,0]
["FY26/27|General Freight: Johannesburg to Cape Town|19","FY26/27","General Freight: Johannesburg to Cape Town",19,"ORANJERIVIER (I) - DE AAR (I)","KIMBERLEY SOUTH",27,2,0,0,0,47,0,1,0,0,0,0,0,0,0,0,0,0,0,0]
["FY26/27|General Freight: Johannesburg to Cape Town|20","FY26/27","General Freight: Johannesburg to Cape Town",20,"DE AAR (E) - HUTCHINSON (E)","KIMBERLEY SOUTH",21,0,0,0,0,8,0,0,0,0,0,0,0,0,0,0,0,0,0,0]
["FY26/27|General Freight: Johannesburg to Cape Town|21","FY26/27","General Freight: Johannesburg to Cape Town",21,"HUTCHINSON (I) - THREE SISTERS (I)","KIMBERLEY SOUTH",53,0,0,0,0,8,0,0,0,0,0,0,0,0,0,0,0,0,0,0]
["FY26/27|General Freight: Johannesburg to Cape Town|22","FY26/27","General Freight: Johannesburg to Cape Town",22,"THREE SISTERS (E) - BEAUFORT WEST (I)","KIMBERLEY SOUTH",28,0,0,0,0,8,0,0,0,0,0,0,0,0,0,0,0,0,0,0]
["FY26/27|General Freight: Johannesburg to Cape Town|23","FY26/27","General Freight: Johannesburg to Cape Town",23,"BEAUFORT WEST (E) - TOUWSRIVIER (I)","BELLVILLE",23,0,1,0,0,8,0,0,0,0,0,0,0,0,0,0,0,0,0,0]
["FY26/27|General Freight: Johannesburg to Cape Town|24","FY26/27","General Freight: Johannesburg to Cape Town",24,"TOUWSRIVIER (E) - WORCESTER (I)","BELLVILLE",45,2,9,0,0,8,0,0,0,0,0,0,0,0,0,0,0,0,0,0]
["FY26/27|General Freight: Johannesburg to Cape Town|25","FY26/27","General Freight: Johannesburg to Cape Town",25,"WORCESTER (E) - WOLSELEY (E)","BELLVILLE",29,0,6,0,0,10,0,0,0,0,0,0,0,0,0,0,0,0,0,0]
["FY26/27|General Freight: Johannesburg to Cape Town|26","FY26/27","General Freight: Johannesburg to Cape Town",26,"WOLSELEY (I) - HERMON (I)","BELLVILLE",27,0,0,0,0,10,0,0,0,0,0,0,0,0,0,0,0,0,0,0]
["FY26/27|General Freight: Johannesburg to Cape Town|27","FY26/27","General Freight: Johannesburg to Cape Town",27,"HERMON (E) - WELLINGTON (E)","BELLVILLE",21,0,4,0,0,9,0,0,0,0,0,0,0,0,0,0,0,0,0,0]
["FY26/27|General Freight: Johannesburg to Cape Town|28","FY26/27","General Freight: Johannesburg to Cape Town",28,"WELLINGTON (I) - PAARL (E)","BELLVILLE",72,0,11,0,0,7,0,0,0,0,0,0,0,0,0,0,0,0,0,0]
["FY26/27|General Freight: Johannesburg to Cape Town|29","FY26/27","General Freight: Johannesburg to Cape Town",29,"PAARL (I) - KRAAFONTEIN (E)","BELLVILLE",72,0,0,0,0,7,0,0,0,0,0,0,0,0,0,0,0,0,0,0]
["FY26/27|General Freight: Johannesburg to Cape Town|30","FY26/27","General Freight: Johannesburg to Cape Town",30,"KRAAFONTEIN (I) - BELLVILLE (E)","BELLVILLE",72,0,0,0,0,7,0,0,0,0,0,0,0,0,0,0,0,0,0,0]
["FY27/28|General Freight: Johannesburg to Cape Town|1","FY27/28","General Freight: Johannesburg to Cape Town",1,"CITY DEEP - JUPITER","VEREENIGING",72]
["FY27/28|General Freight: Johannesburg to Cape Town|2","FY27/28","General Freight: Johannesburg to Cape Town",2,"KASERNE WEST - JUPITER","VEREENIGING",72]
["FY27/28|General Freight: Johannesburg to Cape Town|3","FY27/28","General Freight: Johannesburg to Cape Town",3,"JUPITER - INDIA","VEREENIGING",72]
["FY27/28|General Freight: Johannesburg to Cape Town|4","FY27/28","General Freight: Johannesburg to Cape Town",4,"INDIA (E) - UNION (E)","VEREENIGING",72]
["FY27/28|General Freight: Johannesburg to Cape Town|5","FY27/28","General Freight: Johannesburg to Cape Town",5,"UNION (I) - NATALSPRUIT (E)","VEREENIGING",72]
["FY27/28|General Freight: Johannesburg to Cape Town|6","FY27/28","General Freight: Johannesburg to Cape Town",6,"NATALSPRUIT (I) - VEREENIGING (E)","VEREENIGING",72]
["FY27/28|General Freight: Johannesburg to Cape Town|7","FY27/28","General Freight: Johannesburg to Cape Town",7,"VEREENIGING (E) - HOUTHEUWEL (E)","VEREENIGING",72]
["FY27/28|General Freight: Johannesburg to Cape Town|8","FY27/28","General Freight: Johannesburg to Cape Town",8,"HOUTHEUWEL (E) - CACHET (E)","VEREENIGING",72]
["FY27/28|General Freight: Johannesburg to Cape Town|9","FY27/28","General Freight: Johannesburg to Cape Town",9,"CACHET (I) - POTCHEFSTROOM (I)","KRUGERSDORP",72]
["FY27/28|General Freight: Johannesburg to Cape Town|10","FY27/28","General Freight: Johannesburg to Cape Town",10,"POTCHEFSTROOM (E) - KLERKSDORP (E)","KRUGERSDORP",72]
["FY27/28|General Freight: Johannesburg to Cape Town|11","FY27/28","General Freight: Johannesburg to Cape Town",11,"KLERKSDORP (I) - ORKNEY (I)","KRUGERSDORP",72]
["FY27/28|General Freight: Johannesburg to Cape Town|12","FY27/28","General Freight: Johannesburg to Cape Town",12,"ORKNEY (E) - VEERTIENSTROME (E)","KRUGERSDORP",23]
["FY27/28|General Freight: Johannesburg to Cape Town|13","FY27/28","General Freight: Johannesburg to Cape Town",13,"VEERTIENSTROME (I) - WINDSORTON ROAD (I)","KIMBERLEY NORTH",66]
["FY27/28|General Freight: Johannesburg to Cape Town|14","FY27/28","General Freight: Johannesburg to Cape Town",14,"WINDSORTON ROAD (E) - MACFARLANE (I)","KIMBERLEY NORTH",54]
["FY27/28|General Freight: Johannesburg to Cape Town|15","FY27/28","General Freight: Johannesburg to Cape Town",15,"MACFARLANE (I) - KAMFERSDAM (E)","KIMBERLEY NORTH",72]
["FY27/28|General Freight: Johannesburg to Cape Town|16","FY27/28","General Freight: Johannesburg to Cape Town",16,"KAMFERSDAM (I) - BEACONSFIELD (E)","KIMBERLEY NORTH",72]
["FY27/28|General Freight: Johannesburg to Cape Town|17","FY27/28","General Freight: Johannesburg to Cape Town",17,"BEACONSFIELD (I) - BELMONT (I)","KIMBERLEY SOUTH",29]
["FY27/28|General Freight: Johannesburg to Cape Town|18","FY27/28","General Freight: Johannesburg to Cape Town",18,"BELMONT (E) - ORANJERIVIER (E)","KIMBERLEY SOUTH",37]
["FY27/28|General Freight: Johannesburg to Cape Town|19","FY27/28","General Freight: Johannesburg to Cape Town",19,"ORANJERIVIER (I) - DE AAR (I)","KIMBERLEY SOUTH",27]
["FY27/28|General Freight: Johannesburg to Cape Town|20","FY27/28","General Freight: Johannesburg to Cape Town",20,"DE AAR (E) - HUTCHINSON (E)","KIMBERLEY SOUTH",21]
["FY27/28|General Freight: Johannesburg to Cape Town|21","FY27/28","General Freight: Johannesburg to Cape Town",21,"HUTCHINSON (I) - THREE SISTERS (I)","KIMBERLEY SOUTH",53]
["FY27/28|General Freight: Johannesburg to Cape Town|22","FY27/28","General Freight: Johannesburg to Cape Town",22,"THREE SISTERS (E) - BEAUFORT WEST (I)","KIMBERLEY SOUTH",28]
["FY27/28|General Freight: Johannesburg to Cape Town|23","FY27/28","General Freight: Johannesburg to Cape Town",23,"BEAUFORT WEST (E) - TOUWSRIVIER (I)","BELLVILLE",23]
["FY27/28|General Freight: Johannesburg to Cape Town|24","FY27/28","General Freight: Johannesburg to Cape Town",24,"TOUWSRIVIER (E) - WORCESTER (I)","BELLVILLE",45]
["FY27/28|General Freight: Johannesburg to Cape Town|25","FY27/28","General Freight: Johannesburg to Cape Town",25,"WORCESTER (E) - WOLSELEY (E)","BELLVILLE",29]
["FY27/28|General Freight: Johannesburg to Cape Town|26","FY27/28","General Freight: Johannesburg to Cape Town",26,"WOLSELEY (I) - HERMON (I)","BELLVILLE",27]
["FY27/28|General Freight: Johannesburg to Cape Town|27","FY27/28","General Freight: Johannesburg to Cape Town",27,"HERMON (E) - WELLINGTON (E)","BELLVILLE",21]
["FY27/28|General Freight: Johannesburg to Cape Town|28","FY27/28","General Freight: Johannesburg to Cape Town",28,"WELLINGTON (I) - PAARL (E)","BELLVILLE",72]
["FY27/28|General Freight: Johannesburg to Cape Town|29","FY27/28","General Freight: Johannesburg to Cape Town",29,"PAARL (I) - KRAAFONTEIN (E)","BELLVILLE",72]
["FY27/28|General Freight: Johannesburg to Cape Town|30","FY27/28","General Freight: Johannesburg to Cape Town",30,"KRAAFONTEIN (I) - BELLVILLE (E)","BELLVILLE",72]
["FY28/29|General Freight: Johannesburg to Cape Town|1","FY28/29","General Freight: Johannesburg to Cape Town",1,"CITY DEEP - JUPITER","VEREENIGING",72]
["FY28/29|General Freight: Johannesburg to Cape Town|2","FY28/29","General Freight: Johannesburg to Cape Town",2,"KASERNE WEST - JUPITER","VEREENIGING",72]
[{"$f":"IF(OR(B294=\"\",C294=\"\",D294=\"\"),\"\",B294&\"|\"&C294&\"|\"&D294)","v":"FY28/29|General Freight: Johannesburg to Cape Town|3"},"FY28/29","General Freight: Johannesburg to Cape Town",3,"JUPITER - INDIA","VEREENIGING",72]
["FY28/29|General Freight: Johannesburg to Cape Town|4","FY28/29","General Freight: Johannesburg to Cape Town",4,"INDIA (E) - UNION (E)","VEREENIGING",72]
["FY28/29|General Freight: Johannesburg to Cape Town|5","FY28/29","General Freight: Johannesburg to Cape Town",5,"UNION (I) - NATALSPRUIT (E)","VEREENIGING",72]
["FY28/29|General Freight: Johannesburg to Cape Town|6","FY28/29","General Freight: Johannesburg to Cape Town",6,"NATALSPRUIT (I) - VEREENIGING (E)","VEREENIGING",72]
["FY28/29|General Freight: Johannesburg to Cape Town|7","FY28/29","General Freight: Johannesburg to Cape Town",7,"VEREENIGING (E) - HOUTHEUWEL (E)","VEREENIGING",72]
["FY28/29|General Freight: Johannesburg to Cape Town|8","FY28/29","General Freight: Johannesburg to Cape Town",8,"HOUTHEUWEL (E) - CACHET (E)","VEREENIGING",72]
["FY28/29|General Freight: Johannesburg to Cape Town|9","FY28/29","General Freight: Johannesburg to Cape Town",9,"CACHET (I) - POTCHEFSTROOM (I)","KRUGERSDORP",72]
["FY28/29|General Freight: Johannesburg to Cape Town|10","FY28/29","General Freight: Johannesburg to Cape Town",10,"POTCHEFSTROOM (E) - KLERKSDORP (E)","KRUGERSDORP",72]
["FY28/29|General Freight: Johannesburg to Cape Town|11","FY28/29","General Freight: Johannesburg to Cape Town",11,"KLERKSDORP (I) - ORKNEY (I)","KRUGERSDORP",72]
["FY28/29|General Freight: Johannesburg to Cape Town|12","FY28/29","General Freight: Johannesburg to Cape Town",12,"ORKNEY (E) - VEERTIENSTROME (E)","KRUGERSDORP",23]
["FY28/29|General Freight: Johannesburg to Cape Town|13","FY28/29","General Freight: Johannesburg to Cape Town",13,"VEERTIENSTROME (I) - WINDSORTON ROAD (I)","KIMBERLEY NORTH",66]
["FY28/29|General Freight: Johannesburg to Cape Town|14","FY28/29","General Freight: Johannesburg to Cape Town",14,"WINDSORTON ROAD (E) - MACFARLANE (I)","KIMBERLEY NORTH",54]
["FY28/29|General Freight: Johannesburg to Cape Town|15","FY28/29","General Freight: Johannesburg to Cape Town",15,"MACFARLANE (I) - KAMFERSDAM (E)","KIMBERLEY NORTH",72]
["FY28/29|General Freight: Johannesburg to Cape Town|16","FY28/29","General Freight: Johannesburg to Cape Town",16,"KAMFERSDAM (I) - BEACONSFIELD (E)","KIMBERLEY NORTH",72]
["FY28/29|General Freight: Johannesburg to Cape Town|17","FY28/29","General Freight: Johannesburg to Cape Town",17,"BEACONSFIELD (I) - BELMONT (I)","KIMBERLEY SOUTH",29]
["FY28/29|General Freight: Johannesburg to Cape Town|18","FY28/29","General Freight: Johannesburg to Cape Town",18,"BELMONT (E) - ORANJERIVIER (E)","KIMBERLEY SOUTH",37]
["FY28/29|General Freight: Johannesburg to Cape Town|19","FY28/29","General Freight: Johannesburg to Cape Town",19,"ORANJERIVIER (I) - DE AAR (I)","KIMBERLEY SOUTH",27]
["FY28/29|General Freight: Johannesburg to Cape Town|20","FY28/29","General Freight: Johannesburg to Cape Town",20,"DE AAR (E) - HUTCHINSON (E)","KIMBERLEY SOUTH",21]
["FY28/29|General Freight: Johannesburg to Cape Town|21","FY28/29","General Freight: Johannesburg to Cape Town",21,"HUTCHINSON (I) - THREE SISTERS (I)","KIMBERLEY SOUTH",53]
["FY28/29|General Freight: Johannesburg to Cape Town|22","FY28/29","General Freight: Johannesburg to Cape Town",22,"THREE SISTERS (E) - BEAUFORT WEST (I)","KIMBERLEY SOUTH",28]
["FY28/29|General Freight: Johannesburg to Cape Town|23","FY28/29","General Freight: Johannesburg to Cape Town",23,"BEAUFORT WEST (E) - TOUWSRIVIER (I)","BELLVILLE",23]
["FY28/29|General Freight: Johannesburg to Cape Town|24","FY28/29","General Freight: Johannesburg to Cape Town",24,"TOUWSRIVIER (E) - WORCESTER (I)","BELLVILLE",45]
["FY28/29|General Freight: Johannesburg to Cape Town|25","FY28/29","General Freight: Johannesburg to Cape Town",25,"WORCESTER (E) - WOLSELEY (E)","BELLVILLE",29]
["FY28/29|General Freight: Johannesburg to Cape Town|26","FY28/29","General Freight: Johannesburg to Cape Town",26,"WOLSELEY (I) - HERMON (I)","BELLVILLE",27]
["FY28/29|General Freight: Johannesburg to Cape Town|27","FY28/29","General Freight: Johannesburg to Cape Town",27,"HERMON (E) - WELLINGTON (E)","BELLVILLE",21]
["FY28/29|General Freight: Johannesburg to Cape Town|28","FY28/29","General Freight: Johannesburg to Cape Town",28,"WELLINGTON (I) - PAARL (E)","BELLVILLE",72]
["FY28/29|General Freight: Johannesburg to Cape Town|29","FY28/29","General Freight: Johannesburg to Cape Town",29,"PAARL (I) - KRAAFONTEIN (E)","BELLVILLE",72]
["FY28/29|General Freight: Johannesburg to Cape Town|30","FY28/29","General Freight: Johannesburg to Cape Town",30,"KRAAFONTEIN (I) - BELLVILLE (E)","BELLVILLE",72]
["FY29/30|General Freight: Johannesburg to Cape Town|1","FY29/30","General Freight: Johannesburg to Cape Town",1,"CITY DEEP - JUPITER","VEREENIGING",72]
["FY29/30|General Freight: Johannesburg to Cape Town|2","FY29/30","General Freight: Johannesburg to Cape Town",2,"KASERNE WEST - JUPITER","VEREENIGING",72]
["FY29/30|General Freight: Johannesburg to Cape Town|3","FY29/30","General Freight: Johannesburg to Cape Town",3,"JUPITER - INDIA","VEREENIGING",72]
["FY29/30|General Freight: Johannesburg to Cape Town|4","FY29/30","General Freight: Johannesburg to Cape Town",4,"INDIA (E) - UNION (E)","VEREENIGING",72]
["FY29/30|General Freight: Johannesburg to Cape Town|5","FY29/30","General Freight: Johannesburg to Cape Town",5,"UNION (I) - NATALSPRUIT (E)","VEREENIGING",72]
["FY29/30|General Freight: Johannesburg to Cape Town|6","FY29/30","General Freight: Johannesburg to Cape Town",6,"NATALSPRUIT (I) - VEREENIGING (E)","VEREENIGING",72]
["FY29/30|General Freight: Johannesburg to Cape Town|7","FY29/30","General Freight: Johannesburg to Cape Town",7,"VEREENIGING (E) - HOUTHEUWEL (E)","VEREENIGING",72]
["FY29/30|General Freight: Johannesburg to Cape Town|8","FY29/30","General Freight: Johannesburg to Cape Town",8,"HOUTHEUWEL (E) - CACHET (E)","VEREENIGING",72]
["FY29/30|General Freight: Johannesburg to Cape Town|9","FY29/30","General Freight: Johannesburg to Cape Town",9,"CACHET (I) - POTCHEFSTROOM (I)","KRUGERSDORP",72]
["FY29/30|General Freight: Johannesburg to Cape Town|10","FY29/30","General Freight: Johannesburg to Cape Town",10,"POTCHEFSTROOM (E) - KLERKSDORP (E)","KRUGERSDORP",72]
["FY29/30|General Freight: Johannesburg to Cape Town|11","FY29/30","General Freight: Johannesburg to Cape Town",11,"KLERKSDORP (I) - ORKNEY (I)","KRUGERSDORP",72]
["FY29/30|General Freight: Johannesburg to Cape Town|12","FY29/30","General Freight: Johannesburg to Cape Town",12,"ORKNEY (E) - VEERTIENSTROME (E)","KRUGERSDORP",23]
["FY29/30|General Freight: Johannesburg to Cape Town|13","FY29/30","General Freight: Johannesburg to Cape Town",13,"VEERTIENSTROME (I) - WINDSORTON ROAD (I)","KIMBERLEY NORTH",66]
["FY29/30|General Freight: Johannesburg to Cape Town|14","FY29/30","General Freight: Johannesburg to Cape Town",14,"WINDSORTON ROAD (E) - MACFARLANE (I)","KIMBERLEY NORTH",54]
["FY29/30|General Freight: Johannesburg to Cape Town|15","FY29/30","General Freight: Johannesburg to Cape Town",15,"MACFARLANE (I) - KAMFERSDAM (E)","KIMBERLEY NORTH",72]
["FY29/30|General Freight: Johannesburg to Cape Town|16","FY29/30","General Freight: Johannesburg to Cape Town",16,"KAMFERSDAM (I) - BEACONSFIELD (E)","KIMBERLEY NORTH",72]
["FY29/30|General Freight: Johannesburg to Cape Town|17","FY29/30","General Freight: Johannesburg to Cape Town",17,"BEACONSFIELD (I) - BELMONT (I)","KIMBERLEY SOUTH",29]
["FY29/30|General Freight: Johannesburg to Cape Town|18","FY29/30","General Freight: Johannesburg to Cape Town",18,"BELMONT (E) - ORANJERIVIER (E)","KIMBERLEY SOUTH",37]
["FY29/30|General Freight: Johannesburg to Cape Town|19","FY29/30","General Freight: Johannesburg to Cape Town",19,"ORANJERIVIER (I) - DE AAR (I)","KIMBERLEY SOUTH",27]
["FY29/30|General Freight: Johannesburg to Cape Town|20","FY29/30","General Freight: Johannesburg to Cape Town",20,"DE AAR (E) - HUTCHINSON (E)","KIMBERLEY SOUTH",21]
["FY29/30|General Freight: Johannesburg to Cape Town|21","FY29/30","General Freight: Johannesburg to Cape Town",21,"HUTCHINSON (I) - THREE SISTERS (I)","KIMBERLEY SOUTH",53]
["FY29/30|General Freight: Johannesburg to Cape Town|22","FY29/30","General Freight: Johannesburg to Cape Town",22,"THREE SISTERS (E) - BEAUFORT WEST (I)","KIMBERLEY SOUTH",28]
["FY29/30|General Freight: Johannesburg to Cape Town|23","FY29/30","General Freight: Johannesburg to Cape Town",23,"BEAUFORT WEST (E) - TOUWSRIVIER (I)","BELLVILLE",23]
["FY29/30|General Freight: Johannesburg to Cape Town|24","FY29/30","General Freight: Johannesburg to Cape Town",24,"TOUWSRIVIER (E) - WORCESTER (I)","BELLVILLE",45]
["FY29/30|General Freight: Johannesburg to Cape Town|25","FY29/30","General Freight: Johannesburg to Cape Town",25,"WORCESTER (E) - WOLSELEY (E)","BELLVILLE",29]
["FY29/30|General Freight: Johannesburg to Cape Town|26","FY29/30","General Freight: Johannesburg to Cape Town",26,"WOLSELEY (I) - HERMON (I)","BELLVILLE",27]
["FY29/30|General Freight: Johannesburg to Cape Town|27","FY29/30","General Freight: Johannesburg to Cape Town",27,"HERMON (E) - WELLINGTON (E)","BELLVILLE",21]
["FY29/30|General Freight: Johannesburg to Cape Town|28","FY29/30","General Freight: Johannesburg to Cape Town",28,"WELLINGTON (I) - PAARL (E)","BELLVILLE",72]
["FY29/30|General Freight: Johannesburg to Cape Town|29","FY29/30","General Freight: Johannesburg to Cape Town",29,"PAARL (I) - KRAAFONTEIN (E)","BELLVILLE",72]
["FY29/30|General Freight: Johannesburg to Cape Town|30","FY29/30","General Freight: Johannesburg to Cape Town",30,"KRAAFONTEIN (I) - BELLVILLE (E)","BELLVILLE",72]
["FY30/31|General Freight: Johannesburg to Cape Town|1","FY30/31","General Freight: Johannesburg to Cape Town",1,"CITY DEEP - JUPITER","VEREENIGING",72]
["FY30/31|General Freight: Johannesburg to Cape Town|2","FY30/31","General Freight: Johannesburg to Cape Town",2,"KASERNE WEST - JUPITER","VEREENIGING",72]
["FY30/31|General Freight: Johannesburg to Cape Town|3","FY30/31","General Freight: Johannesburg to Cape Town",3,"JUPITER - INDIA","VEREENIGING",72]
["FY30/31|General Freight: Johannesburg to Cape Town|4","FY30/31","General Freight: Johannesburg to Cape Town",4,"INDIA (E) - UNION (E)","VEREENIGING",72]
["FY30/31|General Freight: Johannesburg to Cape Town|5","FY30/31","General Freight: Johannesburg to Cape Town",5,"UNION (I) - NATALSPRUIT (E)","VEREENIGING",72]
["FY30/31|General Freight: Johannesburg to Cape Town|6","FY30/31","General Freight: Johannesburg to Cape Town",6,"NATALSPRUIT (I) - VEREENIGING (E)","VEREENIGING",72]
[{"$f":"IF(OR(B358=\"\",C358=\"\",D358=\"\"),\"\",B358&\"|\"&C358&\"|\"&D358)","v":"FY30/31|General Freight: Johannesburg to Cape Town|7"},"FY30/31","General Freight: Johannesburg to Cape Town",7,"VEREENIGING (E) - HOUTHEUWEL (E)","VEREENIGING",72]
["FY30/31|General Freight: Johannesburg to Cape Town|8","FY30/31","General Freight: Johannesburg to Cape Town",8,"HOUTHEUWEL (E) - CACHET (E)","VEREENIGING",72]
["FY30/31|General Freight: Johannesburg to Cape Town|9","FY30/31","General Freight: Johannesburg to Cape Town",9,"CACHET (I) - POTCHEFSTROOM (I)","KRUGERSDORP",72]
["FY30/31|General Freight: Johannesburg to Cape Town|10","FY30/31","General Freight: Johannesburg to Cape Town",10,"POTCHEFSTROOM (E) - KLERKSDORP (E)","KRUGERSDORP",72]
["FY30/31|General Freight: Johannesburg to Cape Town|11","FY30/31","General Freight: Johannesburg to Cape Town",11,"KLERKSDORP (I) - ORKNEY (I)","KRUGERSDORP",72]
["FY30/31|General Freight: Johannesburg to Cape Town|12","FY30/31","General Freight: Johannesburg to Cape Town",12,"ORKNEY (E) - VEERTIENSTROME (E)","KRUGERSDORP",23]
["FY30/31|General Freight: Johannesburg to Cape Town|13","FY30/31","General Freight: Johannesburg to Cape Town",13,"VEERTIENSTROME (I) - WINDSORTON ROAD (I)","KIMBERLEY NORTH",66]
["FY30/31|General Freight: Johannesburg to Cape Town|14","FY30/31","General Freight: Johannesburg to Cape Town",14,"WINDSORTON ROAD (E) - MACFARLANE (I)","KIMBERLEY NORTH",54]
["FY30/31|General Freight: Johannesburg to Cape Town|15","FY30/31","General Freight: Johannesburg to Cape Town",15,"MACFARLANE (I) - KAMFERSDAM (E)","KIMBERLEY NORTH",72]
["FY30/31|General Freight: Johannesburg to Cape Town|16","FY30/31","General Freight: Johannesburg to Cape Town",16,"KAMFERSDAM (I) - BEACONSFIELD (E)","KIMBERLEY NORTH",72]
["FY30/31|General Freight: Johannesburg to Cape Town|17","FY30/31","General Freight: Johannesburg to Cape Town",17,"BEACONSFIELD (I) - BELMONT (I)","KIMBERLEY SOUTH",29]
["FY30/31|General Freight: Johannesburg to Cape Town|18","FY30/31","General Freight: Johannesburg to Cape Town",18,"BELMONT (E) - ORANJERIVIER (E)","KIMBERLEY SOUTH",37]
["FY30/31|General Freight: Johannesburg to Cape Town|19","FY30/31","General Freight: Johannesburg to Cape Town",19,"ORANJERIVIER (I) - DE AAR (I)","KIMBERLEY SOUTH",27]
["FY30/31|General Freight: Johannesburg to Cape Town|20","FY30/31","General Freight: Johannesburg to Cape Town",20,"DE AAR (E) - HUTCHINSON (E)","KIMBERLEY SOUTH",21]
["FY30/31|General Freight: Johannesburg to Cape Town|21","FY30/31","General Freight: Johannesburg to Cape Town",21,"HUTCHINSON (I) - THREE SISTERS (I)","KIMBERLEY SOUTH",53]
["FY30/31|General Freight: Johannesburg to Cape Town|22","FY30/31","General Freight: Johannesburg to Cape Town",22,"THREE SISTERS (E) - BEAUFORT WEST (I)","KIMBERLEY SOUTH",28]
["FY30/31|General Freight: Johannesburg to Cape Town|23","FY30/31","General Freight: Johannesburg to Cape Town",23,"BEAUFORT WEST (E) - TOUWSRIVIER (I)","BELLVILLE",23]
["FY30/31|General Freight: Johannesburg to Cape Town|24","FY30/31","General Freight: Johannesburg to Cape Town",24,"TOUWSRIVIER (E) - WORCESTER (I)","BELLVILLE",45]
["FY30/31|General Freight: Johannesburg to Cape Town|25","FY30/31","General Freight: Johannesburg to Cape Town",25,"WORCESTER (E) - WOLSELEY (E)","BELLVILLE",29]
["FY30/31|General Freight: Johannesburg to Cape Town|26","FY30/31","General Freight: Johannesburg to Cape Town",26,"WOLSELEY (I) - HERMON (I)","BELLVILLE",27]
["FY30/31|General Freight: Johannesburg to Cape Town|27","FY30/31","General Freight: Johannesburg to Cape Town",27,"HERMON (E) - WELLINGTON (E)","BELLVILLE",21]
["FY30/31|General Freight: Johannesburg to Cape Town|28","FY30/31","General Freight: Johannesburg to Cape Town",28,"WELLINGTON (I) - PAARL (E)","BELLVILLE",72]
["FY30/31|General Freight: Johannesburg to Cape Town|29","FY30/31","General Freight: Johannesburg to Cape Town",29,"PAARL (I) - KRAAFONTEIN (E)","BELLVILLE",72]
["FY30/31|General Freight: Johannesburg to Cape Town|30","FY30/31","General Freight: Johannesburg to Cape Town",30,"KRAAFONTEIN (I) - BELLVILLE (E)","BELLVILLE",72]
["FY26/27|General Freight: Mafikeng to Beaconsfield/Potchefstroom|1","FY26/27","General Freight: Mafikeng to Beaconsfield/Potchefstroom",1,"BOTSWANA BORDER (I) - MAFIKENG (I)","KRUGERSDORP",18,4,0,0,0,10,0,0,0,0,0,0,0,0,0,0,0,0,0,0]
["FY26/27|General Freight: Mafikeng to Beaconsfield/Potchefstroom|2","FY26/27","General Freight: Mafikeng to Beaconsfield/Potchefstroom",2,"MAFIKENG (E) - VRYBURG (E)","KRUGERSDORP",6,0,0,0,0,3,0,0,0,0,0,0,0,0,0,0,0,0,0,0]
["FY26/27|General Freight: Mafikeng to Beaconsfield/Potchefstroom|3","FY26/27","General Freight: Mafikeng to Beaconsfield/Potchefstroom",3,"VRYBURG (I) - PUDIMOE (E)","KRUGERSDORP",21,2,0,0,0,3,0,0,0,0,0,0,0,0,0,0,0,0,0,0]
["FY26/27|General Freight: Mafikeng to Beaconsfield/Potchefstroom|4","FY26/27","General Freight: Mafikeng to Beaconsfield/Potchefstroom",4,"PUDIMOE (I) - VEERTIEN STROME (E)","KRUGERSDORP",15,0,0,0,0,3,0,0,0,0,0,0,0,0,0,0,0,0,0,0]
["FY26/27|General Freight: Mafikeng to Beaconsfield/Potchefstroom|5","FY26/27","General Freight: Mafikeng to Beaconsfield/Potchefstroom",5,"MAFIKENG (E) - KRUGERSDORP (E)","KRUGERSDORP",10,1,0,0,0,10,0,0,0,0,0,0,0,0,0,0,0,0,0,0]
["FY26/27|General Freight: Mafikeng to Beaconsfield/Potchefstroom|6","FY26/27","General Freight: Mafikeng to Beaconsfield/Potchefstroom",6,"KRUGERSDORP ( E ) - BANK (E)","KRUGERSDORP",20,4,1,0,0,11,0,0,0,0,0,0,0,0,0,0,0,0,0,0]
["FY26/27|General Freight: Mafikeng to Beaconsfield/Potchefstroom|7","FY26/27","General Freight: Mafikeng to Beaconsfield/Potchefstroom",7,"BANK (I) - WELVERDIEND (I)","KRUGERSDORP",72,0,2,0,0,11,0,0,0,0,0,0,0,0,0,0,0,0,0,0]
["FY26/27|General Freight: Mafikeng to Beaconsfield/Potchefstroom|8","FY26/27","General Freight: Mafikeng to Beaconsfield/Potchefstroom",8,"WELVERDIEND (E) - CACHET (E)","KRUGERSDORP",27,0,0,0,0,10,0,0,0,0,0,0,0,0,0,0,0,0,0,0]
["FY26/27|General Freight: Mafikeng to Beaconsfield/Potchefstroom|9","FY26/27","General Freight: Mafikeng to Beaconsfield/Potchefstroom",9,"BANK (E) - MIDWAY (E)","VEREENIGING (Line Closed)",25,0,1,0,0,0,0,0,0,0,0,0,0,0,0,0,0,0,0,0]
["FY26/27|General Freight: Mafikeng to Beaconsfield/Potchefstroom|10","FY26/27","General Freight: Mafikeng to Beaconsfield/Potchefstroom",10,"CACHET (I) - POTCHEFSTROOM (I)","KRUGERSDORP",72,0,0,0,0,27,1,0,0,1,0,0,0,0,0,0,0,0,0,0]
["FY26/27|General Freight: Mafikeng to Beaconsfield/Potchefstroom|11","FY26/27","General Freight: Mafikeng to Beaconsfield/Potchefstroom",11,"OTTOSDAL (I) - KLERKSDORP (E)","KRUGERSDORP (Line Closed)",11,0,0,0,0,0,0,0,0,0,0,0,0,0,0,0,0,0,0,0]
["FY26/27|General Freight: Mafikeng to Beaconsfield/Potchefstroom|12","FY26/27","General Freight: Mafikeng to Beaconsfield/Potchefstroom",12,"PUDIMOE (I) - VERMAAS (I)","KRUGERSDORP (Line Closed)",12,0,0,0,0,0,0,0,0,0,0,0,0,0,0,0,0,0,0,0]
["FY26/27|General Freight: Mafikeng to Beaconsfield/Potchefstroom|13","FY26/27","General Freight: Mafikeng to Beaconsfield/Potchefstroom",13,"MAKWASSIE (E) - VERMAAS (E)","KRUGERSDORP (Line Closed)",6,0,0,0,0,0,0,0,0,0,0,0,0,0,0,0,0,0,0,0]
["FY26/27|General Freight: Mafikeng to Beaconsfield/Potchefstroom|14","FY26/27","General Freight: Mafikeng to Beaconsfield/Potchefstroom",14,"VERMAAS (E) - COLIGNY (E)","KRUGERSDORP (Line Closed)",19,0,0,0,0,0,0,0,0,0,0,0,0,0,0,0,0,0,0,0]
["FY26/27|General Freight: Mafikeng to Beaconsfield/Potchefstroom|15","FY26/27","General Freight: Mafikeng to Beaconsfield/Potchefstroom",15,"LICHTENBURG - ANGLO-ALPHA","KRUGERSDORP",72,0,0,0,0,9,0,0,0,0,0,0,0,0,0,0,0,0,0,0]
["FY26/27|General Freight: Mafikeng to Beaconsfield/Potchefstroom|16","FY26/27","General Freight: Mafikeng to Beaconsfield/Potchefstroom",16,"ANGLO-ALPHA - COLIGNY","KRUGERSDORP",24,0,0,0,0,9,0,0,0,0,0,0,0,0,0,0,0,0,0,0]
["FY26/27|General Freight: Mafikeng to Beaconsfield/Potchefstroom|17","FY26/27","General Freight: Mafikeng to Beaconsfield/Potchefstroom",17,"COLIGNY (E) - WELVERDIEND (E)","KRUGERSDORP",22,0,0,0,0,9,0,0,0,0,0,0,0,0,0,0,0,0,0,0]
["FY27/28|General Freight: Mafikeng to Beaconsfield/Potchefstroom|1","FY27/28","General Freight: Mafikeng to Beaconsfield/Potchefstroom",1,"BOTSWANA BORDER (I) - MAFIKENG (I)","KRUGERSDORP",18]
["FY27/28|General Freight: Mafikeng to Beaconsfield/Potchefstroom|2","FY27/28","General Freight: Mafikeng to Beaconsfield/Potchefstroom",2,"MAFIKENG (E) - VRYBURG (E)","KRUGERSDORP",6]
["FY27/28|General Freight: Mafikeng to Beaconsfield/Potchefstroom|3","FY27/28","General Freight: Mafikeng to Beaconsfield/Potchefstroom",3,"VRYBURG (I) - PUDIMOE (E)","KRUGERSDORP",21]
["FY27/28|General Freight: Mafikeng to Beaconsfield/Potchefstroom|4","FY27/28","General Freight: Mafikeng to Beaconsfield/Potchefstroom",4,"PUDIMOE (I) - VEERTIEN STROME (E)","KRUGERSDORP",15]
["FY27/28|General Freight: Mafikeng to Beaconsfield/Potchefstroom|5","FY27/28","General Freight: Mafikeng to Beaconsfield/Potchefstroom",5,"MAFIKENG (E) - KRUGERSDORP (E)","KRUGERSDORP",10]
["FY27/28|General Freight: Mafikeng to Beaconsfield/Potchefstroom|6","FY27/28","General Freight: Mafikeng to Beaconsfield/Potchefstroom",6,"KRUGERSDORP ( E ) - BANK (E)","KRUGERSDORP",20]
["FY27/28|General Freight: Mafikeng to Beaconsfield/Potchefstroom|7","FY27/28","General Freight: Mafikeng to Beaconsfield/Potchefstroom",7,"BANK (I) - WELVERDIEND (I)","KRUGERSDORP",72]
["FY27/28|General Freight: Mafikeng to Beaconsfield/Potchefstroom|8","FY27/28","General Freight: Mafikeng to Beaconsfield/Potchefstroom",8,"WELVERDIEND (E) - CACHET (E)","KRUGERSDORP",27]
["FY27/28|General Freight: Mafikeng to Beaconsfield/Potchefstroom|9","FY27/28","General Freight: Mafikeng to Beaconsfield/Potchefstroom",9,"BANK (E) - MIDWAY (E)","VEREENIGING (Line Closed)",25]
["FY27/28|General Freight: Mafikeng to Beaconsfield/Potchefstroom|10","FY27/28","General Freight: Mafikeng to Beaconsfield/Potchefstroom",10,"CACHET (I) - POTCHEFSTROOM (I)","KRUGERSDORP",72]
["FY27/28|General Freight: Mafikeng to Beaconsfield/Potchefstroom|11","FY27/28","General Freight: Mafikeng to Beaconsfield/Potchefstroom",11,"OTTOSDAL (I) - KLERKSDORP (E)","KRUGERSDORP (Line Closed)",11]
["FY27/28|General Freight: Mafikeng to Beaconsfield/Potchefstroom|12","FY27/28","General Freight: Mafikeng to Beaconsfield/Potchefstroom",12,"PUDIMOE (I) - VERMAAS (I)","KRUGERSDORP (Line Closed)",12]
["FY27/28|General Freight: Mafikeng to Beaconsfield/Potchefstroom|13","FY27/28","General Freight: Mafikeng to Beaconsfield/Potchefstroom",13,"MAKWASSIE (E) - VERMAAS (E)","KRUGERSDORP (Line Closed)",6]
["FY27/28|General Freight: Mafikeng to Beaconsfield/Potchefstroom|14","FY27/28","General Freight: Mafikeng to Beaconsfield/Potchefstroom",14,"VERMAAS (E) - COLIGNY (E)","KRUGERSDORP (Line Closed)",19]
["FY27/28|General Freight: Mafikeng to Beaconsfield/Potchefstroom|15","FY27/28","General Freight: Mafikeng to Beaconsfield/Potchefstroom",15,"LICHTENBURG - ANGLO-ALPHA","KRUGERSDORP",72]
["FY27/28|General Freight: Mafikeng to Beaconsfield/Potchefstroom|16","FY27/28","General Freight: Mafikeng to Beaconsfield/Potchefstroom",16,"ANGLO-ALPHA - COLIGNY","KRUGERSDORP",24]
["FY27/28|General Freight: Mafikeng to Beaconsfield/Potchefstroom|17","FY27/28","General Freight: Mafikeng to Beaconsfield/Potchefstroom",17,"COLIGNY (E) - WELVERDIEND (E)","KRUGERSDORP",22]
["FY28/29|General Freight: Mafikeng to Beaconsfield/Potchefstroom|1","FY28/29","General Freight: Mafikeng to Beaconsfield/Potchefstroom",1,"BOTSWANA BORDER (I) - MAFIKENG (I)","KRUGERSDORP",18]
["FY28/29|General Freight: Mafikeng to Beaconsfield/Potchefstroom|2","FY28/29","General Freight: Mafikeng to Beaconsfield/Potchefstroom",2,"MAFIKENG (E) - VRYBURG (E)","KRUGERSDORP",6]
["FY28/29|General Freight: Mafikeng to Beaconsfield/Potchefstroom|3","FY28/29","General Freight: Mafikeng to Beaconsfield/Potchefstroom",3,"VRYBURG (I) - PUDIMOE (E)","KRUGERSDORP",21]
["FY28/29|General Freight: Mafikeng to Beaconsfield/Potchefstroom|4","FY28/29","General Freight: Mafikeng to Beaconsfield/Potchefstroom",4,"PUDIMOE (I) - VEERTIEN STROME (E)","KRUGERSDORP",15]
["FY28/29|General Freight: Mafikeng to Beaconsfield/Potchefstroom|5","FY28/29","General Freight: Mafikeng to Beaconsfield/Potchefstroom",5,"MAFIKENG (E) - KRUGERSDORP (E)","KRUGERSDORP",10]
["FY28/29|General Freight: Mafikeng to Beaconsfield/Potchefstroom|6","FY28/29","General Freight: Mafikeng to Beaconsfield/Potchefstroom",6,"KRUGERSDORP ( E ) - BANK (E)","KRUGERSDORP",20]
["FY28/29|General Freight: Mafikeng to Beaconsfield/Potchefstroom|7","FY28/29","General Freight: Mafikeng to Beaconsfield/Potchefstroom",7,"BANK (I) - WELVERDIEND (I)","KRUGERSDORP",72]
["FY28/29|General Freight: Mafikeng to Beaconsfield/Potchefstroom|8","FY28/29","General Freight: Mafikeng to Beaconsfield/Potchefstroom",8,"WELVERDIEND (E) - CACHET (E)","KRUGERSDORP",27]
["FY28/29|General Freight: Mafikeng to Beaconsfield/Potchefstroom|9","FY28/29","General Freight: Mafikeng to Beaconsfield/Potchefstroom",9,"BANK (E) - MIDWAY (E)","VEREENIGING (Line Closed)",25]
["FY28/29|General Freight: Mafikeng to Beaconsfield/Potchefstroom|10","FY28/29","General Freight: Mafikeng to Beaconsfield/Potchefstroom",10,"CACHET (I) - POTCHEFSTROOM (I)","KRUGERSDORP",72]
["FY28/29|General Freight: Mafikeng to Beaconsfield/Potchefstroom|11","FY28/29","General Freight: Mafikeng to Beaconsfield/Potchefstroom",11,"OTTOSDAL (I) - KLERKSDORP (E)","KRUGERSDORP (Line Closed)",11]
["FY28/29|General Freight: Mafikeng to Beaconsfield/Potchefstroom|12","FY28/29","General Freight: Mafikeng to Beaconsfield/Potchefstroom",12,"PUDIMOE (I) - VERMAAS (I)","KRUGERSDORP (Line Closed)",12]
["FY28/29|General Freight: Mafikeng to Beaconsfield/Potchefstroom|13","FY28/29","General Freight: Mafikeng to Beaconsfield/Potchefstroom",13,"MAKWASSIE (E) - VERMAAS (E)","KRUGERSDORP (Line Closed)",6]
["FY28/29|General Freight: Mafikeng to Beaconsfield/Potchefstroom|14","FY28/29","General Freight: Mafikeng to Beaconsfield/Potchefstroom",14,"VERMAAS (E) - COLIGNY (E)","KRUGERSDORP (Line Closed)",19]
["FY28/29|General Freight: Mafikeng to Beaconsfield/Potchefstroom|15","FY28/29","General Freight: Mafikeng to Beaconsfield/Potchefstroom",15,"LICHTENBURG - ANGLO-ALPHA","KRUGERSDORP",72]
["FY28/29|General Freight: Mafikeng to Beaconsfield/Potchefstroom|16","FY28/29","General Freight: Mafikeng to Beaconsfield/Potchefstroom",16,"ANGLO-ALPHA - COLIGNY","KRUGERSDORP",24]
["FY28/29|General Freight: Mafikeng to Beaconsfield/Potchefstroom|17","FY28/29","General Freight: Mafikeng to Beaconsfield/Potchefstroom",17,"COLIGNY (E) - WELVERDIEND (E)","KRUGERSDORP",22]
["FY29/30|General Freight: Mafikeng to Beaconsfield/Potchefstroom|1","FY29/30","General Freight: Mafikeng to Beaconsfield/Potchefstroom",1,"BOTSWANA BORDER (I) - MAFIKENG (I)","KRUGERSDORP",18]
["FY29/30|General Freight: Mafikeng to Beaconsfield/Potchefstroom|2","FY29/30","General Freight: Mafikeng to Beaconsfield/Potchefstroom",2,"MAFIKENG (E) - VRYBURG (E)","KRUGERSDORP",6]
["FY29/30|General Freight: Mafikeng to Beaconsfield/Potchefstroom|3","FY29/30","General Freight: Mafikeng to Beaconsfield/Potchefstroom",3,"VRYBURG (I) - PUDIMOE (E)","KRUGERSDORP",21]
["FY29/30|General Freight: Mafikeng to Beaconsfield/Potchefstroom|4","FY29/30","General Freight: Mafikeng to Beaconsfield/Potchefstroom",4,"PUDIMOE (I) - VEERTIEN STROME (E)","KRUGERSDORP",15]
["FY29/30|General Freight: Mafikeng to Beaconsfield/Potchefstroom|5","FY29/30","General Freight: Mafikeng to Beaconsfield/Potchefstroom",5,"MAFIKENG (E) - KRUGERSDORP (E)","KRUGERSDORP",10]
["FY29/30|General Freight: Mafikeng to Beaconsfield/Potchefstroom|6","FY29/30","General Freight: Mafikeng to Beaconsfield/Potchefstroom",6,"KRUGERSDORP ( E ) - BANK (E)","KRUGERSDORP",20]
["FY29/30|General Freight: Mafikeng to Beaconsfield/Potchefstroom|7","FY29/30","General Freight: Mafikeng to Beaconsfield/Potchefstroom",7,"BANK (I) - WELVERDIEND (I)","KRUGERSDORP",72]
["FY29/30|General Freight: Mafikeng to Beaconsfield/Potchefstroom|8","FY29/30","General Freight: Mafikeng to Beaconsfield/Potchefstroom",8,"WELVERDIEND (E) - CACHET (E)","KRUGERSDORP",27]
["FY29/30|General Freight: Mafikeng to Beaconsfield/Potchefstroom|9","FY29/30","General Freight: Mafikeng to Beaconsfield/Potchefstroom",9,"BANK (E) - MIDWAY (E)","VEREENIGING (Line Closed)",25]
["FY29/30|General Freight: Mafikeng to Beaconsfield/Potchefstroom|10","FY29/30","General Freight: Mafikeng to Beaconsfield/Potchefstroom",10,"CACHET (I) - POTCHEFSTROOM (I)","KRUGERSDORP",72]
["FY29/30|General Freight: Mafikeng to Beaconsfield/Potchefstroom|11","FY29/30","General Freight: Mafikeng to Beaconsfield/Potchefstroom",11,"OTTOSDAL (I) - KLERKSDORP (E)","KRUGERSDORP (Line Closed)",11]
["FY29/30|General Freight: Mafikeng to Beaconsfield/Potchefstroom|12","FY29/30","General Freight: Mafikeng to Beaconsfield/Potchefstroom",12,"PUDIMOE (I) - VERMAAS (I)","KRUGERSDORP (Line Closed)",12]
["FY29/30|General Freight: Mafikeng to Beaconsfield/Potchefstroom|13","FY29/30","General Freight: Mafikeng to Beaconsfield/Potchefstroom",13,"MAKWASSIE (E) - VERMAAS (E)","KRUGERSDORP (Line Closed)",6]
["FY29/30|General Freight: Mafikeng to Beaconsfield/Potchefstroom|14","FY29/30","General Freight: Mafikeng to Beaconsfield/Potchefstroom",14,"VERMAAS (E) - COLIGNY (E)","KRUGERSDORP (Line Closed)",19]
["FY29/30|General Freight: Mafikeng to Beaconsfield/Potchefstroom|15","FY29/30","General Freight: Mafikeng to Beaconsfield/Potchefstroom",15,"LICHTENBURG - ANGLO-ALPHA","KRUGERSDORP",72]
["FY29/30|General Freight: Mafikeng to Beaconsfield/Potchefstroom|16","FY29/30","General Freight: Mafikeng to Beaconsfield/Potchefstroom",16,"ANGLO-ALPHA - COLIGNY","KRUGERSDORP",24]
["FY29/30|General Freight: Mafikeng to Beaconsfield/Potchefstroom|17","FY29/30","General Freight: Mafikeng to Beaconsfield/Potchefstroom",17,"COLIGNY (E) - WELVERDIEND (E)","KRUGERSDORP",22]
["FY30/31|General Freight: Mafikeng to Beaconsfield/Potchefstroom|1","FY30/31","General Freight: Mafikeng to Beaconsfield/Potchefstroom",1,"BOTSWANA BORDER (I) - MAFIKENG (I)","KRUGERSDORP",18]
["FY30/31|General Freight: Mafikeng to Beaconsfield/Potchefstroom|2","FY30/31","General Freight: Mafikeng to Beaconsfield/Potchefstroom",2,"MAFIKENG (E) - VRYBURG (E)","KRUGERSDORP",6]
["FY30/31|General Freight: Mafikeng to Beaconsfield/Potchefstroom|3","FY30/31","General Freight: Mafikeng to Beaconsfield/Potchefstroom",3,"VRYBURG (I) - PUDIMOE (E)","KRUGERSDORP",21]
["FY30/31|General Freight: Mafikeng to Beaconsfield/Potchefstroom|4","FY30/31","General Freight: Mafikeng to Beaconsfield/Potchefstroom",4,"PUDIMOE (I) - VEERTIEN STROME (E)","KRUGERSDORP",15]
["FY30/31|General Freight: Mafikeng to Beaconsfield/Potchefstroom|5","FY30/31","General Freight: Mafikeng to Beaconsfield/Potchefstroom",5,"MAFIKENG (E) - KRUGERSDORP (E)","KRUGERSDORP",10]
["FY30/31|General Freight: Mafikeng to Beaconsfield/Potchefstroom|6","FY30/31","General Freight: Mafikeng to Beaconsfield/Potchefstroom",6,"KRUGERSDORP ( E ) - BANK (E)","KRUGERSDORP",20]
["FY30/31|General Freight: Mafikeng to Beaconsfield/Potchefstroom|7","FY30/31","General Freight: Mafikeng to Beaconsfield/Potchefstroom",7,"BANK (I) - WELVERDIEND (I)","KRUGERSDORP",72]
["FY30/31|General Freight: Mafikeng to Beaconsfield/Potchefstroom|8","FY30/31","General Freight: Mafikeng to Beaconsfield/Potchefstroom",8,"WELVERDIEND (E) - CACHET (E)","KRUGERSDORP",27]
["FY30/31|General Freight: Mafikeng to Beaconsfield/Potchefstroom|9","FY30/31","General Freight: Mafikeng to Beaconsfield/Potchefstroom",9,"BANK (E) - MIDWAY (E)","VEREENIGING (Line Closed)",25]
["FY30/31|General Freight: Mafikeng to Beaconsfield/Potchefstroom|10","FY30/31","General Freight: Mafikeng to Beaconsfield/Potchefstroom",10,"CACHET (I) - POTCHEFSTROOM (I)","KRUGERSDORP",72]
["FY30/31|General Freight: Mafikeng to Beaconsfield/Potchefstroom|11","FY30/31","General Freight: Mafikeng to Beaconsfield/Potchefstroom",11,"OTTOSDAL (I) - KLERKSDORP (E)","KRUGERSDORP (Line Closed)",11]
["FY30/31|General Freight: Mafikeng to Beaconsfield/Potchefstroom|12","FY30/31","General Freight: Mafikeng to Beaconsfield/Potchefstroom",12,"PUDIMOE (I) - VERMAAS (I)","KRUGERSDORP (Line Closed)",12]
["FY30/31|General Freight: Mafikeng to Beaconsfield/Potchefstroom|13","FY30/31","General Freight: Mafikeng to Beaconsfield/Potchefstroom",13,"MAKWASSIE (E) - VERMAAS (E)","KRUGERSDORP (Line Closed)",6]
["FY30/31|General Freight: Mafikeng to Beaconsfield/Potchefstroom|14","FY30/31","General Freight: Mafikeng to Beaconsfield/Potchefstroom",14,"VERMAAS (E) - COLIGNY (E)","KRUGERSDORP (Line Closed)",19]
["FY30/31|General Freight: Mafikeng to Beaconsfield/Potchefstroom|15","FY30/31","General Freight: Mafikeng to Beaconsfield/Potchefstroom",15,"LICHTENBURG - ANGLO-ALPHA","KRUGERSDORP",72]
["FY30/31|General Freight: Mafikeng to Beaconsfield/Potchefstroom|16","FY30/31","General Freight: Mafikeng to Beaconsfield/Potchefstroom",16,"ANGLO-ALPHA - COLIGNY","KRUGERSDORP",24]
["FY30/31|General Freight: Mafikeng to Beaconsfield/Potchefstroom|17","FY30/31","General Freight: Mafikeng to Beaconsfield/Potchefstroom",17,"COLIGNY (E) - WELVERDIEND (E)","KRUGERSDORP",22]
[{"$f":"IF(OR(B467=\"\",C467=\"\",D467=\"\"),\"\",B467&\"|\"&C467&\"|\"&D467)","v":"FY26/27|General Freight: Musina - Pyramid South/Hoedspruit|1"},"FY26/27","General Freight: Musina - Pyramid South/Hoedspruit",1,"BEIT BRIDGE (I) - GROENBULT (E)","POLOKWANE",15,0,0,0,0,1,0,0,4,0,0,0,0,0,0,0,0,0,0,0]
["FY26/27|General Freight: Musina - Pyramid South/Hoedspruit|2","FY26/27","General Freight: Musina - Pyramid South/Hoedspruit",2,"GROENBULT (E) - HOEDSPRUIT (E)","POLOKWANE",13,0,0,0,0,0,0,0,3,0,0,0,0,0,0,0,0,0,0,0]
["FY26/27|General Freight: Musina - Pyramid South/Hoedspruit|3","FY26/27","General Freight: Musina - Pyramid South/Hoedspruit",3,"GROENBULT (I) - PIETERSBURG/POLOKWANE (E)","POLOKWANE",22,0,0,0,0,1,0,0,1,0,0,0,0,0,0,0,0,0,0,0]
["FY26/27|General Freight: Musina - Pyramid South/Hoedspruit|4","FY26/27","General Freight: Musina - Pyramid South/Hoedspruit",4,"PIETERSBURG/POLOKWANE (I) - PIENAARSRIVIER (E)","POLOKWANE",24,0,11,0,0,2,0,0,1,0,0,0,0,0,0,0,0,0,0,0]
["FY26/27|General Freight: Musina - Pyramid South/Hoedspruit|5","FY26/27","General Freight: Musina - Pyramid South/Hoedspruit",5,"PIENAARSRIVIER (I) - PYRAMID (E)","POLOKWANE",72,0,40,0,0,3,0,0,1,0,0,0,0,0,0,0,0,0,0,0]
["FY27/28|General Freight: Musina - Pyramid South/Hoedspruit|1","FY27/28","General Freight: Musina - Pyramid South/Hoedspruit",1,"BEIT BRIDGE (I) - GROENBULT (E)","POLOKWANE",15]
["FY27/28|General Freight: Musina - Pyramid South/Hoedspruit|2","FY27/28","General Freight: Musina - Pyramid South/Hoedspruit",2,"GROENBULT (E) - HOEDSPRUIT (E)","POLOKWANE",13]
["FY27/28|General Freight: Musina - Pyramid South/Hoedspruit|3","FY27/28","General Freight: Musina - Pyramid South/Hoedspruit",3,"GROENBULT (I) - PIETERSBURG/POLOKWANE (E)","POLOKWANE",22]
["FY27/28|General Freight: Musina - Pyramid South/Hoedspruit|4","FY27/28","General Freight: Musina - Pyramid South/Hoedspruit",4,"PIETERSBURG/POLOKWANE (I) - PIENAARSRIVIER (E)","POLOKWANE",24]
["FY27/28|General Freight: Musina - Pyramid South/Hoedspruit|5","FY27/28","General Freight: Musina - Pyramid South/Hoedspruit",5,"PIENAARSRIVIER (I) - PYRAMID (E)","POLOKWANE",72]
["FY28/29|General Freight: Musina - Pyramid South/Hoedspruit|1","FY28/29","General Freight: Musina - Pyramid South/Hoedspruit",1,"BEIT BRIDGE (I) - GROENBULT (E)","POLOKWANE",15]
["FY28/29|General Freight: Musina - Pyramid South/Hoedspruit|2","FY28/29","General Freight: Musina - Pyramid South/Hoedspruit",2,"GROENBULT (E) - HOEDSPRUIT (E)","POLOKWANE",13]
["FY28/29|General Freight: Musina - Pyramid South/Hoedspruit|3","FY28/29","General Freight: Musina - Pyramid South/Hoedspruit",3,"GROENBULT (I) - PIETERSBURG/POLOKWANE (E)","POLOKWANE",22]
["FY28/29|General Freight: Musina - Pyramid South/Hoedspruit|4","FY28/29","General Freight: Musina - Pyramid South/Hoedspruit",4,"PIETERSBURG/POLOKWANE (I) - PIENAARSRIVIER (E)","POLOKWANE",24]
["FY28/29|General Freight: Musina - Pyramid South/Hoedspruit|5","FY28/29","General Freight: Musina - Pyramid South/Hoedspruit",5,"PIENAARSRIVIER (I) - PYRAMID (E)","POLOKWANE",72]
["FY29/30|General Freight: Musina - Pyramid South/Hoedspruit|1","FY29/30","General Freight: Musina - Pyramid South/Hoedspruit",1,"BEIT BRIDGE (I) - GROENBULT (E)","POLOKWANE",15]
["FY29/30|General Freight: Musina - Pyramid South/Hoedspruit|2","FY29/30","General Freight: Musina - Pyramid South/Hoedspruit",2,"GROENBULT (E) - HOEDSPRUIT (E)","POLOKWANE",13]
["FY29/30|General Freight: Musina - Pyramid South/Hoedspruit|3","FY29/30","General Freight: Musina - Pyramid South/Hoedspruit",3,"GROENBULT (I) - PIETERSBURG/POLOKWANE (E)","POLOKWANE",22]
["FY29/30|General Freight: Musina - Pyramid South/Hoedspruit|4","FY29/30","General Freight: Musina - Pyramid South/Hoedspruit",4,"PIETERSBURG/POLOKWANE (I) - PIENAARSRIVIER (E)","POLOKWANE",24]
["FY29/30|General Freight: Musina - Pyramid South/Hoedspruit|5","FY29/30","General Freight: Musina - Pyramid South/Hoedspruit",5,"PIENAARSRIVIER (I) - PYRAMID (E)","POLOKWANE",72]
["FY30/31|General Freight: Musina - Pyramid South/Hoedspruit|1","FY30/31","General Freight: Musina - Pyramid South/Hoedspruit",1,"BEIT BRIDGE (I) - GROENBULT (E)","POLOKWANE",15]
["FY30/31|General Freight: Musina - Pyramid South/Hoedspruit|2","FY30/31","General Freight: Musina - Pyramid South/Hoedspruit",2,"GROENBULT (E) - HOEDSPRUIT (E)","POLOKWANE",13]
["FY30/31|General Freight: Musina - Pyramid South/Hoedspruit|3","FY30/31","General Freight: Musina - Pyramid South/Hoedspruit",3,"GROENBULT (I) - PIETERSBURG/POLOKWANE (E)","POLOKWANE",22]
["FY30/31|General Freight: Musina - Pyramid South/Hoedspruit|4","FY30/31","General Freight: Musina - Pyramid South/Hoedspruit",4,"PIETERSBURG/POLOKWANE (I) - PIENAARSRIVIER (E)","POLOKWANE",24]
["FY30/31|General Freight: Musina - Pyramid South/Hoedspruit|5","FY30/31","General Freight: Musina - Pyramid South/Hoedspruit",5,"PIENAARSRIVIER (I) - PYRAMID (E)","POLOKWANE",72]
["FY26/27|General Freight: Vereeniging/Danskraal to East London|1","FY26/27","General Freight: Vereeniging/Danskraal to East London",1,"VEREENIGING (E) - VILJOENSDRIF (E)","VEREENIGING",72,0,0,0,0,17,0,0,0,0,0,0,0,0,0,0,0,0,0,0]
["FY26/27|General Freight: Vereeniging/Danskraal to East London|2","FY26/27","General Freight: Vereeniging/Danskraal to East London",2,"VILJOENSDRIF (I) - SASOLBURG (E)","VEREENIGING",72,0,37,0,0,17,0,0,0,0,0,0,0,0,0,0,0,0,0,0]
["FY26/27|General Freight: Vereeniging/Danskraal to East London|3","FY26/27","General Freight: Vereeniging/Danskraal to East London",3,"SASOLBURG (E) - DOVER (I)","BLOEMFONTEIN",72,7,0,0,0,3,0,0,0,0,0,0,0,0,0,0,0,0,0,0]
["FY26/27|General Freight: Vereeniging/Danskraal to East London|4","FY26/27","General Freight: Vereeniging/Danskraal to East London",4,"DOVER (I) - WESTLEIGH (E)","LADYSMITH",72,14,0,0,0,3,0,0,0,0,0,0,0,0,0,0,0,0,0,0]
["FY26/27|General Freight: Vereeniging/Danskraal to East London|5","FY26/27","General Freight: Vereeniging/Danskraal to East London",5,"WESTLEIGH (I) - KROONSTAD (E)","LADYSMITH",72,0,0,0,0,3,0,0,0,0,0,0,0,0,0,0,0,0,0,0]
["FY26/27|General Freight: Vereeniging/Danskraal to East London|6","FY26/27","General Freight: Vereeniging/Danskraal to East London",6,"KROONSTAD (E) - WHITES (I)","LADYSMITH",72,0,24,0,0,4,0,0,0,0,0,0,0,0,0,0,0,0,0,0]
["FY26/27|General Freight: Vereeniging/Danskraal to East London|7","FY26/27","General Freight: Vereeniging/Danskraal to East London",7,"WHITES (E) - THEUNISSEN (E)","BLOEMFONTEIN",72,10,14,0,0,4,0,0,0,0,0,0,0,0,0,0,0,0,0,0]
["FY26/27|General Freight: Vereeniging/Danskraal to East London|8","FY26/27","General Freight: Vereeniging/Danskraal to East London",8,"THEUNISSEN (I) - BLOEMFONTEIN (E)","BLOEMFONTEIN",72,0,16,0,0,4,0,0,0,0,0,0,0,0,0,0,0,0,0,0]
["FY26/27|General Freight: Vereeniging/Danskraal to East London|9","FY26/27","General Freight: Vereeniging/Danskraal to East London",9,"BEACONSFIELD (E) - HAMILTON (E)","KIMBERLEY NORTH",8,0,0,0,0,8,0,0,0,0,0,0,0,0,0,0,0,0,0,0]
["FY26/27|General Freight: Vereeniging/Danskraal to East London|10","FY26/27","General Freight: Vereeniging/Danskraal to East London",10,"BLOEMFONTEIN (E) - HAMILTON (E)","BLOEMFONTEIN",72,0,0,0,0,6,0,0,0,0,0,0,0,0,0,0,0,0,0,0]
["FY26/27|General Freight: Vereeniging/Danskraal to East London|11","FY26/27","General Freight: Vereeniging/Danskraal to East London",11,"HAMILTON (E) - SPRINGFONTEIN (E)","BLOEMFONTEIN",19,0,0,0,0,8,0,0,0,0,0,0,0,0,0,0,0,0,0,0]
["FY26/27|General Freight: Vereeniging/Danskraal to East London|12","FY26/27","General Freight: Vereeniging/Danskraal to East London",12,"SPRINGFONTEIN (E) - DREUNBERG (E)","EAST LONDON",18,0,0,0,0,6,0,0,0,0,0,0,0,0,0,0,0,0,0,0]
["FY26/27|General Freight: Vereeniging/Danskraal to East London|13","FY26/27","General Freight: Vereeniging/Danskraal to East London",13,"DREUNBERG (E) - STORMBERG (E)","EAST LONDON",12,0,0,0,0,6,0,0,0,0,0,0,0,0,0,0,0,0,0,0]
["FY26/27|General Freight: Vereeniging/Danskraal to East London|14","FY26/27","General Freight: Vereeniging/Danskraal to East London",14,"STORMBERG (E) - STERKSTROOM (E)","EAST LONDON",9,0,0,0,0,6,0,0,0,0,0,0,0,0,0,0,0,0,0,0]
["FY26/27|General Freight: Vereeniging/Danskraal to East London|15","FY26/27","General Freight: Vereeniging/Danskraal to East London",15,"STERKSTROOM (E) - QUEENSTOWN (E)","EAST LONDON",11,0,0,0,0,6,0,0,0,0,0,0,0,0,0,0,0,0,0,0]
["FY26/27|General Freight: Vereeniging/Danskraal to East London|16","FY26/27","General Freight: Vereeniging/Danskraal to East London",16,"QUEENSTOWN (E) - IMVANI (I)","EAST LONDON",21,2,0,0,0,6,0,0,0,0,0,0,0,0,0,0,0,0,0,0]
["FY26/27|General Freight: Vereeniging/Danskraal to East London|17","FY26/27","General Freight: Vereeniging/Danskraal to East London",17,"IMVANI (E) - CATHCART (E)","EAST LONDON",13,1,0,0,0,6,0,0,0,0,0,0,0,0,0,0,0,0,0,0]
["FY26/27|General Freight: Vereeniging/Danskraal to East London|18","FY26/27","General Freight: Vereeniging/Danskraal to East London",18,"CATHCART (I) - AMABELE (E)","EAST LONDON",12,0,0,0,0,6,0,0,0,0,0,0,0,0,0,0,0,0,0,0]
["FY26/27|General Freight: Vereeniging/Danskraal to East London|19","FY26/27","General Freight: Vereeniging/Danskraal to East London",19,"AMABELE (E) - BLANEY (E)","EAST LONDON",14,0,0,0,0,6,0,0,0,0,0,0,0,0,0,0,0,0,0,0]
["FY26/27|General Freight: Vereeniging/Danskraal to East London|20","FY26/27","General Freight: Vereeniging/Danskraal to East London",20,"BLANEY (E) - EAST LONDON (E)","EAST LONDON",72,0,14,0,0,6,0,0,0,0,0,0,0,0,0,0,0,0,0,0]
["FY26/27|General Freight: Vereeniging/Danskraal to East London|21","FY26/27","General Freight: Vereeniging/Danskraal to East London",21,"SPRINGFONTEIN (E) - NOUPOORT  (E)","EAST LONDON",12,0,0,0,0,3,0,0,0,0,0,0,0,0,0,0,0,0,0,0]
["FY26/27|General Freight: Vereeniging/Danskraal to East London|22","FY26/27","General Freight: Vereeniging/Danskraal to East London",22,"DREUNBERG (E) - ALIWAL NORTH (I)","EAST LONDON (Line Closed)",17,0,11,0,0,0,0,0,0,0,0,0,0,0,0,0,0,0,0,0]
["FY26/27|General Freight: Vereeniging/Danskraal to East London|23","FY26/27","General Freight: Vereeniging/Danskraal to East London",23,"ALIWAL NORTH (I) - BARKLY EAST (I)","EAST LONDON (Line Closed)",16,0,10,0,0,0,0,0,0,0,0,0,0,0,0,0,0,0,0,0]
["FY26/27|General Freight: Vereeniging/Danskraal to East London|24","FY26/27","General Freight: Vereeniging/Danskraal to East London",24,"STORMBERG (E) - SCHOOMBEE (I)","EAST LONDON (Line Closed)",14,0,9,0,0,0,0,0,0,0,0,0,0,0,0,0,0,0,0,0]
["FY26/27|General Freight: Vereeniging/Danskraal to East London|25","FY26/27","General Freight: Vereeniging/Danskraal to East London",25,"SCHOOMBEE (E) - ROSMEAD (E)","EAST LONDON (Line Closed)",23,0,15,0,0,0,0,0,0,0,0,0,0,0,0,0,0,0,0,0]
["FY26/27|General Freight: Vereeniging/Danskraal to East London|26","FY26/27","General Freight: Vereeniging/Danskraal to East London",26,"SCHOOMBEE (E) - HOFMEYER (I)","EAST LONDON (Line Closed)",39,0,25,0,0,0,0,0,0,0,0,0,0,0,0,0,0,0,0,0]
["FY26/27|General Freight: Vereeniging/Danskraal to East London|27","FY26/27","General Freight: Vereeniging/Danskraal to East London",27,"STERKSTROOM (I) - MACLEAR (I)","EAST LONDON (Line Closed)",10,0,7,0,0,0,0,0,0,0,0,0,0,0,0,0,0,0,0,0]
["FY26/27|General Freight: Vereeniging/Danskraal to East London|28","FY26/27","General Freight: Vereeniging/Danskraal to East London",28,"AMABELE (I) - UMTATA (I)","EAST LONDON (Line Closed)",18,0,12,0,0,0,0,0,0,0,0,0,0,0,0,0,0,0,0,0]
["FY26/27|General Freight: Vereeniging/Danskraal to East London|29","FY26/27","General Freight: Vereeniging/Danskraal to East London",29,"BLANEY (E) - FORT BEAUFORT (E)","EAST LONDON",17,0,0,0,0,0,0,0,0,0,0,0,0,0,0,0,0,0,0,0]
["FY26/27|General Freight: Vereeniging/Danskraal to East London|30","FY26/27","General Freight: Vereeniging/Danskraal to East London",30,"FORT BEAUFORT (E) - COOKHOUSE (E)","EAST LONDON",15,0,0,0,0,0,0,0,0,0,0,0,0,0,0,0,0,0,0,0]
["FY26/27|General Freight: Vereeniging/Danskraal to East London|31","FY26/27","General Freight: Vereeniging/Danskraal to East London",31,"DANSKRAAL-SUID (S) - HARRISMITH (E)","LADYSMITH",14,2,0,0,0,4,0,0,0,0,0,0,0,0,0,0,0,0,0,0]
["FY26/27|General Freight: Vereeniging/Danskraal to East London|32","FY26/27","General Freight: Vereeniging/Danskraal to East London",32,"HARRISMITH (E) - WARDEN (I)","LADYSMITH",21,0,0,0,0,2,0,0,0,0,0,0,0,0,0,0,0,0,0,0]
["FY26/27|General Freight: Vereeniging/Danskraal to East London|33","FY26/27","General Freight: Vereeniging/Danskraal to East London",33,"HARRISMITH (I) - BETHLEHEM (E)","LADYSMITH",20,0,1,0,0,4,0,0,0,0,0,0,0,0,0,0,0,0,0,0]
["FY26/27|General Freight: Vereeniging/Danskraal to East London|34","FY26/27","General Freight: Vereeniging/Danskraal to East London",34,"BETHLEHEM (E) - VILLIERS (E)","LADYSMITH",18,0,0,0,0,2,0,0,0,0,0,0,0,0,0,0,0,0,0,0]
["FY26/27|General Freight: Vereeniging/Danskraal to East London|35","FY26/27","General Freight: Vereeniging/Danskraal to East London",35,"VILLIERS (E) - BALFOUR (E)","HEIDELBERG",28,0,0,0,0,2,0,0,0,0,0,0,0,0,0,0,0,0,0,0]
["FY26/27|General Freight: Vereeniging/Danskraal to East London|36","FY26/27","General Freight: Vereeniging/Danskraal to East London",36,"FIRHAM (E) - VREDE (I)","HEIDELBERG (Line Closed)",30,0,19,0,0,0,0,0,0,0,0,0,0,0,0,0,0,0,0,0]
["FY26/27|General Freight: Vereeniging/Danskraal to East London|37","FY26/27","General Freight: Vereeniging/Danskraal to East London",37,"BETHLEHEM (E) - ARLINGTON (E)","LADYSMITH",19,0,0,0,0,4,0,0,0,0,0,0,0,0,0,0,0,0,0,0]
["FY26/27|General Freight: Vereeniging/Danskraal to East London|38","FY26/27","General Freight: Vereeniging/Danskraal to East London",38,"ARLINGTON (I) - GUNHILL (I)","LADYSMITH",27,0,0,0,0,4,0,0,0,0,0,0,0,0,0,0,0,0,0,0]
["FY26/27|General Freight: Vereeniging/Danskraal to East London|39","FY26/27","General Freight: Vereeniging/Danskraal to East London",39,"GUNHILL SOUTH (I) - KROONSTAD (E)","LADYSMITH",12,0,0,0,0,4,0,0,0,0,0,0,0,0,0,0,0,0,0,0]
["FY27/28|General Freight: Vereeniging/Danskraal to East London|1","FY27/28","General Freight: Vereeniging/Danskraal to East London",1,"VEREENIGING (E) - VILJOENSDRIF (E)","VEREENIGING",72]
["FY27/28|General Freight: Vereeniging/Danskraal to East London|2","FY27/28","General Freight: Vereeniging/Danskraal to East London",2,"VILJOENSDRIF (I) - SASOLBURG (E)","VEREENIGING",72]
["FY27/28|General Freight: Vereeniging/Danskraal to East London|3","FY27/28","General Freight: Vereeniging/Danskraal to East London",3,"SASOLBURG (E) - DOVER (I)","BLOEMFONTEIN",72]
["FY27/28|General Freight: Vereeniging/Danskraal to East London|4","FY27/28","General Freight: Vereeniging/Danskraal to East London",4,"DOVER (I) - WESTLEIGH (E)","LADYSMITH",72]
["FY27/28|General Freight: Vereeniging/Danskraal to East London|5","FY27/28","General Freight: Vereeniging/Danskraal to East London",5,"WESTLEIGH (I) - KROONSTAD (E)","LADYSMITH",72]
["FY27/28|General Freight: Vereeniging/Danskraal to East London|6","FY27/28","General Freight: Vereeniging/Danskraal to East London",6,"KROONSTAD (E) - WHITES (I)","LADYSMITH",72]
["FY27/28|General Freight: Vereeniging/Danskraal to East London|7","FY27/28","General Freight: Vereeniging/Danskraal to East London",7,"WHITES (E) - THEUNISSEN (E)","BLOEMFONTEIN",72]
["FY27/28|General Freight: Vereeniging/Danskraal to East London|8","FY27/28","General Freight: Vereeniging/Danskraal to East London",8,"THEUNISSEN (I) - BLOEMFONTEIN (E)","BLOEMFONTEIN",72]
["FY27/28|General Freight: Vereeniging/Danskraal to East London|9","FY27/28","General Freight: Vereeniging/Danskraal to East London",9,"BEACONSFIELD (E) - HAMILTON (E)","KIMBERLEY NORTH",8]
["FY27/28|General Freight: Vereeniging/Danskraal to East London|10","FY27/28","General Freight: Vereeniging/Danskraal to East London",10,"BLOEMFONTEIN (E) - HAMILTON (E)","BLOEMFONTEIN",72]
["FY27/28|General Freight: Vereeniging/Danskraal to East London|11","FY27/28","General Freight: Vereeniging/Danskraal to East London",11,"HAMILTON (E) - SPRINGFONTEIN (E)","BLOEMFONTEIN",19]
["FY27/28|General Freight: Vereeniging/Danskraal to East London|12","FY27/28","General Freight: Vereeniging/Danskraal to East London",12,"SPRINGFONTEIN (E) - DREUNBERG (E)","EAST LONDON",18]
["FY27/28|General Freight: Vereeniging/Danskraal to East London|13","FY27/28","General Freight: Vereeniging/Danskraal to East London",13,"DREUNBERG (E) - STORMBERG (E)","EAST LONDON",12]
["FY27/28|General Freight: Vereeniging/Danskraal to East London|14","FY27/28","General Freight: Vereeniging/Danskraal to East London",14,"STORMBERG (E) - STERKSTROOM (E)","EAST LONDON",9]
["FY27/28|General Freight: Vereeniging/Danskraal to East London|15","FY27/28","General Freight: Vereeniging/Danskraal to East London",15,"STERKSTROOM (E) - QUEENSTOWN (E)","EAST LONDON",11]
["FY27/28|General Freight: Vereeniging/Danskraal to East London|16","FY27/28","General Freight: Vereeniging/Danskraal to East London",16,"QUEENSTOWN (E) - IMVANI (I)","EAST LONDON",21]
["FY27/28|General Freight: Vereeniging/Danskraal to East London|17","FY27/28","General Freight: Vereeniging/Danskraal to East London",17,"IMVANI (E) - CATHCART (E)","EAST LONDON",13]
["FY27/28|General Freight: Vereeniging/Danskraal to East London|18","FY27/28","General Freight: Vereeniging/Danskraal to East London",18,"CATHCART (I) - AMABELE (E)","EAST LONDON",12]
["FY27/28|General Freight: Vereeniging/Danskraal to East London|19","FY27/28","General Freight: Vereeniging/Danskraal to East London",19,"AMABELE (E) - BLANEY (E)","EAST LONDON",14]
["FY27/28|General Freight: Vereeniging/Danskraal to East London|20","FY27/28","General Freight: Vereeniging/Danskraal to East London",20,"BLANEY (E) - EAST LONDON (E)","EAST LONDON",72]
["FY27/28|General Freight: Vereeniging/Danskraal to East London|21","FY27/28","General Freight: Vereeniging/Danskraal to East London",21,"SPRINGFONTEIN (E) - NOUPOORT  (E)","EAST LONDON",12]
["FY27/28|General Freight: Vereeniging/Danskraal to East London|22","FY27/28","General Freight: Vereeniging/Danskraal to East London",22,"DREUNBERG (E) - ALIWAL NORTH (I)","EAST LONDON (Line Closed)",17]
["FY27/28|General Freight: Vereeniging/Danskraal to East London|23","FY27/28","General Freight: Vereeniging/Danskraal to East London",23,"ALIWAL NORTH (I) - BARKLY EAST (I)","EAST LONDON (Line Closed)",16]
["FY27/28|General Freight: Vereeniging/Danskraal to East London|24","FY27/28","General Freight: Vereeniging/Danskraal to East London",24,"STORMBERG (E) - SCHOOMBEE (I)","EAST LONDON (Line Closed)",14]
["FY27/28|General Freight: Vereeniging/Danskraal to East London|25","FY27/28","General Freight: Vereeniging/Danskraal to East London",25,"SCHOOMBEE (E) - ROSMEAD (E)","EAST LONDON (Line Closed)",23]
["FY27/28|General Freight: Vereeniging/Danskraal to East London|26","FY27/28","General Freight: Vereeniging/Danskraal to East London",26,"SCHOOMBEE (E) - HOFMEYER (I)","EAST LONDON (Line Closed)",39]
["FY27/28|General Freight: Vereeniging/Danskraal to East London|27","FY27/28","General Freight: Vereeniging/Danskraal to East London",27,"STERKSTROOM (I) - MACLEAR (I)","EAST LONDON (Line Closed)",10]
["FY27/28|General Freight: Vereeniging/Danskraal to East London|28","FY27/28","General Freight: Vereeniging/Danskraal to East London",28,"AMABELE (I) - UMTATA (I)","EAST LONDON (Line Closed)",18]
["FY27/28|General Freight: Vereeniging/Danskraal to East London|29","FY27/28","General Freight: Vereeniging/Danskraal to East London",29,"BLANEY (E) - FORT BEAUFORT (E)","EAST LONDON",17]
["FY27/28|General Freight: Vereeniging/Danskraal to East London|30","FY27/28","General Freight: Vereeniging/Danskraal to East London",30,"FORT BEAUFORT (E) - COOKHOUSE (E)","EAST LONDON",15]
["FY27/28|General Freight: Vereeniging/Danskraal to East London|31","FY27/28","General Freight: Vereeniging/Danskraal to East London",31,"DANSKRAAL-SUID (S) - HARRISMITH (E)","LADYSMITH",14]
["FY27/28|General Freight: Vereeniging/Danskraal to East London|32","FY27/28","General Freight: Vereeniging/Danskraal to East London",32,"HARRISMITH (E) - WARDEN (I)","LADYSMITH",21]
["FY27/28|General Freight: Vereeniging/Danskraal to East London|33","FY27/28","General Freight: Vereeniging/Danskraal to East London",33,"HARRISMITH (I) - BETHLEHEM (E)","LADYSMITH",20]
["FY27/28|General Freight: Vereeniging/Danskraal to East London|34","FY27/28","General Freight: Vereeniging/Danskraal to East London",34,"BETHLEHEM (E) - VILLIERS (E)","LADYSMITH",18]
["FY27/28|General Freight: Vereeniging/Danskraal to East London|35","FY27/28","General Freight: Vereeniging/Danskraal to East London",35,"VILLIERS (E) - BALFOUR (E)","HEIDELBERG",28]
["FY27/28|General Freight: Vereeniging/Danskraal to East London|36","FY27/28","General Freight: Vereeniging/Danskraal to East London",36,"FIRHAM (E) - VREDE (I)","HEIDELBERG (Line Closed)",30]
["FY27/28|General Freight: Vereeniging/Danskraal to East London|37","FY27/28","General Freight: Vereeniging/Danskraal to East London",37,"BETHLEHEM (E) - ARLINGTON (E)","LADYSMITH",24]
["FY27/28|General Freight: Vereeniging/Danskraal to East London|38","FY27/28","General Freight: Vereeniging/Danskraal to East London",38,"ARLINGTON (I) - GUNHILL (I)","LADYSMITH",21]
["FY27/28|General Freight: Vereeniging/Danskraal to East London|39","FY27/28","General Freight: Vereeniging/Danskraal to East London",39,"GUNHILL SOUTH (I) - KROONSTAD (E)","LADYSMITH",22]
["FY28/29|General Freight: Vereeniging/Danskraal to East London|1","FY28/29","General Freight: Vereeniging/Danskraal to East London",1,"VEREENIGING (E) - VILJOENSDRIF (E)","VEREENIGING",72]
["FY28/29|General Freight: Vereeniging/Danskraal to East London|2","FY28/29","General Freight: Vereeniging/Danskraal to East London",2,"VILJOENSDRIF (I) - SASOLBURG (E)","VEREENIGING",72]
["FY28/29|General Freight: Vereeniging/Danskraal to East London|3","FY28/29","General Freight: Vereeniging/Danskraal to East London",3,"SASOLBURG (E) - DOVER (I)","BLOEMFONTEIN",72]
["FY28/29|General Freight: Vereeniging/Danskraal to East London|4","FY28/29","General Freight: Vereeniging/Danskraal to East London",4,"DOVER (I) - WESTLEIGH (E)","LADYSMITH",72]
["FY28/29|General Freight: Vereeniging/Danskraal to East London|5","FY28/29","General Freight: Vereeniging/Danskraal to East London",5,"WESTLEIGH (I) - KROONSTAD (E)","LADYSMITH",72]
["FY28/29|General Freight: Vereeniging/Danskraal to East London|6","FY28/29","General Freight: Vereeniging/Danskraal to East London",6,"KROONSTAD (E) - WHITES (I)","LADYSMITH",72]
["FY28/29|General Freight: Vereeniging/Danskraal to East London|7","FY28/29","General Freight: Vereeniging/Danskraal to East London",7,"WHITES (E) - THEUNISSEN (E)","BLOEMFONTEIN",72]
["FY28/29|General Freight: Vereeniging/Danskraal to East London|8","FY28/29","General Freight: Vereeniging/Danskraal to East London",8,"THEUNISSEN (I) - BLOEMFONTEIN (E)","BLOEMFONTEIN",72]
["FY28/29|General Freight: Vereeniging/Danskraal to East London|9","FY28/29","General Freight: Vereeniging/Danskraal to East London",9,"BEACONSFIELD (E) - HAMILTON (E)","KIMBERLEY NORTH",8]
["FY28/29|General Freight: Vereeniging/Danskraal to East London|10","FY28/29","General Freight: Vereeniging/Danskraal to East London",10,"BLOEMFONTEIN (E) - HAMILTON (E)","BLOEMFONTEIN",72]
["FY28/29|General Freight: Vereeniging/Danskraal to East London|11","FY28/29","General Freight: Vereeniging/Danskraal to East London",11,"HAMILTON (E) - SPRINGFONTEIN (E)","BLOEMFONTEIN",19]
["FY28/29|General Freight: Vereeniging/Danskraal to East London|12","FY28/29","General Freight: Vereeniging/Danskraal to East London",12,"SPRINGFONTEIN (E) - DREUNBERG (E)","EAST LONDON",18]
["FY28/29|General Freight: Vereeniging/Danskraal to East London|13","FY28/29","General Freight: Vereeniging/Danskraal to East London",13,"DREUNBERG (E) - STORMBERG (E)","EAST LONDON",12]
["FY28/29|General Freight: Vereeniging/Danskraal to East London|14","FY28/29","General Freight: Vereeniging/Danskraal to East London",14,"STORMBERG (E) - STERKSTROOM (E)","EAST LONDON",9]
["FY28/29|General Freight: Vereeniging/Danskraal to East London|15","FY28/29","General Freight: Vereeniging/Danskraal to East London",15,"STERKSTROOM (E) - QUEENSTOWN (E)","EAST LONDON",11]
["FY28/29|General Freight: Vereeniging/Danskraal to East London|16","FY28/29","General Freight: Vereeniging/Danskraal to East London",16,"QUEENSTOWN (E) - IMVANI (I)","EAST LONDON",21]
["FY28/29|General Freight: Vereeniging/Danskraal to East London|17","FY28/29","General Freight: Vereeniging/Danskraal to East London",17,"IMVANI (E) - CATHCART (E)","EAST LONDON",13]
["FY28/29|General Freight: Vereeniging/Danskraal to East London|18","FY28/29","General Freight: Vereeniging/Danskraal to East London",18,"CATHCART (I) - AMABELE (E)","EAST LONDON",12]
["FY28/29|General Freight: Vereeniging/Danskraal to East London|19","FY28/29","General Freight: Vereeniging/Danskraal to East London",19,"AMABELE (E) - BLANEY (E)","EAST LONDON",14]
["FY28/29|General Freight: Vereeniging/Danskraal to East London|20","FY28/29","General Freight: Vereeniging/Danskraal to East London",20,"BLANEY (E) - EAST LONDON (E)","EAST LONDON",72]
["FY28/29|General Freight: Vereeniging/Danskraal to East London|21","FY28/29","General Freight: Vereeniging/Danskraal to East London",21,"SPRINGFONTEIN (E) - NOUPOORT  (E)","EAST LONDON",12]
["FY28/29|General Freight: Vereeniging/Danskraal to East London|22","FY28/29","General Freight: Vereeniging/Danskraal to East London",22,"DREUNBERG (E) - ALIWAL NORTH (I)","EAST LONDON (Line Closed)",17]
["FY28/29|General Freight: Vereeniging/Danskraal to East London|23","FY28/29","General Freight: Vereeniging/Danskraal to East London",23,"ALIWAL NORTH (I) - BARKLY EAST (I)","EAST LONDON (Line Closed)",16]
["FY28/29|General Freight: Vereeniging/Danskraal to East London|24","FY28/29","General Freight: Vereeniging/Danskraal to East London",24,"STORMBERG (E) - SCHOOMBEE (I)","EAST LONDON (Line Closed)",14]
["FY28/29|General Freight: Vereeniging/Danskraal to East London|25","FY28/29","General Freight: Vereeniging/Danskraal to East London",25,"SCHOOMBEE (E) - ROSMEAD (E)","EAST LONDON (Line Closed)",23]
["FY28/29|General Freight: Vereeniging/Danskraal to East London|26","FY28/29","General Freight: Vereeniging/Danskraal to East London",26,"SCHOOMBEE (E) - HOFMEYER (I)","EAST LONDON (Line Closed)",39]
["FY28/29|General Freight: Vereeniging/Danskraal to East London|27","FY28/29","General Freight: Vereeniging/Danskraal to East London",27,"STERKSTROOM (I) - MACLEAR (I)","EAST LONDON (Line Closed)",10]
["FY28/29|General Freight: Vereeniging/Danskraal to East London|28","FY28/29","General Freight: Vereeniging/Danskraal to East London",28,"AMABELE (I) - UMTATA (I)","EAST LONDON (Line Closed)",18]
["FY28/29|General Freight: Vereeniging/Danskraal to East London|29","FY28/29","General Freight: Vereeniging/Danskraal to East London",29,"BLANEY (E) - FORT BEAUFORT (E)","EAST LONDON",17]
["FY28/29|General Freight: Vereeniging/Danskraal to East London|30","FY28/29","General Freight: Vereeniging/Danskraal to East London",30,"FORT BEAUFORT (E) - COOKHOUSE (E)","EAST LONDON",15]
["FY28/29|General Freight: Vereeniging/Danskraal to East London|31","FY28/29","General Freight: Vereeniging/Danskraal to East London",31,"DANSKRAAL-SUID (S) - HARRISMITH (E)","LADYSMITH",14]
["FY28/29|General Freight: Vereeniging/Danskraal to East London|32","FY28/29","General Freight: Vereeniging/Danskraal to East London",32,"HARRISMITH (E) - WARDEN (I)","LADYSMITH",21]
["FY28/29|General Freight: Vereeniging/Danskraal to East London|33","FY28/29","General Freight: Vereeniging/Danskraal to East London",33,"HARRISMITH (I) - BETHLEHEM (E)","LADYSMITH",20]
["FY28/29|General Freight: Vereeniging/Danskraal to East London|34","FY28/29","General Freight: Vereeniging/Danskraal to East London",34,"BETHLEHEM (E) - VILLIERS (E)","LADYSMITH",18]
["FY28/29|General Freight: Vereeniging/Danskraal to East London|35","FY28/29","General Freight: Vereeniging/Danskraal to East London",35,"VILLIERS (E) - BALFOUR (E)","HEIDELBERG",28]
["FY28/29|General Freight: Vereeniging/Danskraal to East London|36","FY28/29","General Freight: Vereeniging/Danskraal to East London",36,"FIRHAM (E) - VREDE (I)","HEIDELBERG (Line Closed)",30]
["FY28/29|General Freight: Vereeniging/Danskraal to East London|37","FY28/29","General Freight: Vereeniging/Danskraal to East London",37,"BETHLEHEM (E) - ARLINGTON (E)","LADYSMITH",24]
["FY28/29|General Freight: Vereeniging/Danskraal to East London|38","FY28/29","General Freight: Vereeniging/Danskraal to East London",38,"ARLINGTON (I) - GUNHILL (I)","LADYSMITH",21]
["FY28/29|General Freight: Vereeniging/Danskraal to East London|39","FY28/29","General Freight: Vereeniging/Danskraal to East London",39,"GUNHILL SOUTH (I) - KROONSTAD (E)","LADYSMITH",22]
["FY29/30|General Freight: Vereeniging/Danskraal to East London|1","FY29/30","General Freight: Vereeniging/Danskraal to East London",1,"VEREENIGING (E) - VILJOENSDRIF (E)","VEREENIGING",72]
["FY29/30|General Freight: Vereeniging/Danskraal to East London|2","FY29/30","General Freight: Vereeniging/Danskraal to East London",2,"VILJOENSDRIF (I) - SASOLBURG (E)","VEREENIGING",72]
["FY29/30|General Freight: Vereeniging/Danskraal to East London|3","FY29/30","General Freight: Vereeniging/Danskraal to East London",3,"SASOLBURG (E) - DOVER (I)","BLOEMFONTEIN",72]
["FY29/30|General Freight: Vereeniging/Danskraal to East London|4","FY29/30","General Freight: Vereeniging/Danskraal to East London",4,"DOVER (I) - WESTLEIGH (E)","LADYSMITH",72]
["FY29/30|General Freight: Vereeniging/Danskraal to East London|5","FY29/30","General Freight: Vereeniging/Danskraal to East London",5,"WESTLEIGH (I) - KROONSTAD (E)","LADYSMITH",72]
["FY29/30|General Freight: Vereeniging/Danskraal to East London|6","FY29/30","General Freight: Vereeniging/Danskraal to East London",6,"KROONSTAD (E) - WHITES (I)","LADYSMITH",72]
["FY29/30|General Freight: Vereeniging/Danskraal to East London|7","FY29/30","General Freight: Vereeniging/Danskraal to East London",7,"WHITES (E) - THEUNISSEN (E)","BLOEMFONTEIN",72]
["FY29/30|General Freight: Vereeniging/Danskraal to East London|8","FY29/30","General Freight: Vereeniging/Danskraal to East London",8,"THEUNISSEN (I) - BLOEMFONTEIN (E)","BLOEMFONTEIN",72]
["FY29/30|General Freight: Vereeniging/Danskraal to East London|9","FY29/30","General Freight: Vereeniging/Danskraal to East London",9,"BEACONSFIELD (E) - HAMILTON (E)","KIMBERLEY NORTH",8]
["FY29/30|General Freight: Vereeniging/Danskraal to East London|10","FY29/30","General Freight: Vereeniging/Danskraal to East London",10,"BLOEMFONTEIN (E) - HAMILTON (E)","BLOEMFONTEIN",72]
["FY29/30|General Freight: Vereeniging/Danskraal to East London|11","FY29/30","General Freight: Vereeniging/Danskraal to East London",11,"HAMILTON (E) - SPRINGFONTEIN (E)","BLOEMFONTEIN",19]
["FY29/30|General Freight: Vereeniging/Danskraal to East London|12","FY29/30","General Freight: Vereeniging/Danskraal to East London",12,"SPRINGFONTEIN (E) - DREUNBERG (E)","EAST LONDON",18]
["FY29/30|General Freight: Vereeniging/Danskraal to East London|13","FY29/30","General Freight: Vereeniging/Danskraal to East London",13,"DREUNBERG (E) - STORMBERG (E)","EAST LONDON",12]
["FY29/30|General Freight: Vereeniging/Danskraal to East London|14","FY29/30","General Freight: Vereeniging/Danskraal to East London",14,"STORMBERG (E) - STERKSTROOM (E)","EAST LONDON",9]
["FY29/30|General Freight: Vereeniging/Danskraal to East London|15","FY29/30","General Freight: Vereeniging/Danskraal to East London",15,"STERKSTROOM (E) - QUEENSTOWN (E)","EAST LONDON",11]
["FY29/30|General Freight: Vereeniging/Danskraal to East London|16","FY29/30","General Freight: Vereeniging/Danskraal to East London",16,"QUEENSTOWN (E) - IMVANI (I)","EAST LONDON",21]
["FY29/30|General Freight: Vereeniging/Danskraal to East London|17","FY29/30","General Freight: Vereeniging/Danskraal to East London",17,"IMVANI (E) - CATHCART (E)","EAST LONDON",13]
["FY29/30|General Freight: Vereeniging/Danskraal to East London|18","FY29/30","General Freight: Vereeniging/Danskraal to East London",18,"CATHCART (I) - AMABELE (E)","EAST LONDON",12]
["FY29/30|General Freight: Vereeniging/Danskraal to East London|19","FY29/30","General Freight: Vereeniging/Danskraal to East London",19,"AMABELE (E) - BLANEY (E)","EAST LONDON",14]
["FY29/30|General Freight: Vereeniging/Danskraal to East London|20","FY29/30","General Freight: Vereeniging/Danskraal to East London",20,"BLANEY (E) - EAST LONDON (E)","EAST LONDON",72]
["FY29/30|General Freight: Vereeniging/Danskraal to East London|21","FY29/30","General Freight: Vereeniging/Danskraal to East London",21,"SPRINGFONTEIN (E) - NOUPOORT  (E)","EAST LONDON",12]
["FY29/30|General Freight: Vereeniging/Danskraal to East London|22","FY29/30","General Freight: Vereeniging/Danskraal to East London",22,"DREUNBERG (E) - ALIWAL NORTH (I)","EAST LONDON (Line Closed)",17]
["FY29/30|General Freight: Vereeniging/Danskraal to East London|23","FY29/30","General Freight: Vereeniging/Danskraal to East London",23,"ALIWAL NORTH (I) - BARKLY EAST (I)","EAST LONDON (Line Closed)",16]
["FY29/30|General Freight: Vereeniging/Danskraal to East London|24","FY29/30","General Freight: Vereeniging/Danskraal to East London",24,"STORMBERG (E) - SCHOOMBEE (I)","EAST LONDON (Line Closed)",14]
["FY29/30|General Freight: Vereeniging/Danskraal to East London|25","FY29/30","General Freight: Vereeniging/Danskraal to East London",25,"SCHOOMBEE (E) - ROSMEAD (E)","EAST LONDON (Line Closed)",23]
["FY29/30|General Freight: Vereeniging/Danskraal to East London|26","FY29/30","General Freight: Vereeniging/Danskraal to East London",26,"SCHOOMBEE (E) - HOFMEYER (I)","EAST LONDON (Line Closed)",39]
["FY29/30|General Freight: Vereeniging/Danskraal to East London|27","FY29/30","General Freight: Vereeniging/Danskraal to East London",27,"STERKSTROOM (I) - MACLEAR (I)","EAST LONDON (Line Closed)",10]
["FY29/30|General Freight: Vereeniging/Danskraal to East London|28","FY29/30","General Freight: Vereeniging/Danskraal to East London",28,"AMABELE (I) - UMTATA (I)","EAST LONDON (Line Closed)",18]
["FY29/30|General Freight: Vereeniging/Danskraal to East London|29","FY29/30","General Freight: Vereeniging/Danskraal to East London",29,"BLANEY (E) - FORT BEAUFORT (E)","EAST LONDON",17]
["FY29/30|General Freight: Vereeniging/Danskraal to East London|30","FY29/30","General Freight: Vereeniging/Danskraal to East London",30,"FORT BEAUFORT (E) - COOKHOUSE (E)","EAST LONDON",15]
["FY29/30|General Freight: Vereeniging/Danskraal to East London|31","FY29/30","General Freight: Vereeniging/Danskraal to East London",31,"DANSKRAAL-SUID (S) - HARRISMITH (E)","LADYSMITH",14]
["FY29/30|General Freight: Vereeniging/Danskraal to East London|32","FY29/30","General Freight: Vereeniging/Danskraal to East London",32,"HARRISMITH (E) - WARDEN (I)","LADYSMITH",21]
["FY29/30|General Freight: Vereeniging/Danskraal to East London|33","FY29/30","General Freight: Vereeniging/Danskraal to East London",33,"HARRISMITH (I) - BETHLEHEM (E)","LADYSMITH",20]
["FY29/30|General Freight: Vereeniging/Danskraal to East London|34","FY29/30","General Freight: Vereeniging/Danskraal to East London",34,"BETHLEHEM (E) - VILLIERS (E)","LADYSMITH",18]
["FY29/30|General Freight: Vereeniging/Danskraal to East London|35","FY29/30","General Freight: Vereeniging/Danskraal to East London",35,"VILLIERS (E) - BALFOUR (E)","HEIDELBERG",28]
["FY29/30|General Freight: Vereeniging/Danskraal to East London|36","FY29/30","General Freight: Vereeniging/Danskraal to East London",36,"FIRHAM (E) - VREDE (I)","HEIDELBERG (Line Closed)",30]
["FY29/30|General Freight: Vereeniging/Danskraal to East London|37","FY29/30","General Freight: Vereeniging/Danskraal to East London",37,"BETHLEHEM (E) - ARLINGTON (E)","LADYSMITH",24]
["FY29/30|General Freight: Vereeniging/Danskraal to East London|38","FY29/30","General Freight: Vereeniging/Danskraal to East London",38,"ARLINGTON (I) - GUNHILL (I)","LADYSMITH",21]
["FY29/30|General Freight: Vereeniging/Danskraal to East London|39","FY29/30","General Freight: Vereeniging/Danskraal to East London",39,"GUNHILL SOUTH (I) - KROONSTAD (E)","LADYSMITH",22]
["FY30/31|General Freight: Vereeniging/Danskraal to East London|1","FY30/31","General Freight: Vereeniging/Danskraal to East London",1,"VEREENIGING (E) - VILJOENSDRIF (E)","VEREENIGING",72]
["FY30/31|General Freight: Vereeniging/Danskraal to East London|2","FY30/31","General Freight: Vereeniging/Danskraal to East London",2,"VILJOENSDRIF (I) - SASOLBURG (E)","VEREENIGING",72]
["FY30/31|General Freight: Vereeniging/Danskraal to East London|3","FY30/31","General Freight: Vereeniging/Danskraal to East London",3,"SASOLBURG (E) - DOVER (I)","BLOEMFONTEIN",72]
["FY30/31|General Freight: Vereeniging/Danskraal to East London|4","FY30/31","General Freight: Vereeniging/Danskraal to East London",4,"DOVER (I) - WESTLEIGH (E)","LADYSMITH",72]
["FY30/31|General Freight: Vereeniging/Danskraal to East London|5","FY30/31","General Freight: Vereeniging/Danskraal to East London",5,"WESTLEIGH (I) - KROONSTAD (E)","LADYSMITH",72]
["FY30/31|General Freight: Vereeniging/Danskraal to East London|6","FY30/31","General Freight: Vereeniging/Danskraal to East London",6,"KROONSTAD (E) - WHITES (I)","LADYSMITH",72]
["FY30/31|General Freight: Vereeniging/Danskraal to East London|7","FY30/31","General Freight: Vereeniging/Danskraal to East London",7,"WHITES (E) - THEUNISSEN (E)","BLOEMFONTEIN",72]
["FY30/31|General Freight: Vereeniging/Danskraal to East London|8","FY30/31","General Freight: Vereeniging/Danskraal to East London",8,"THEUNISSEN (I) - BLOEMFONTEIN (E)","BLOEMFONTEIN",72]
["FY30/31|General Freight: Vereeniging/Danskraal to East London|9","FY30/31","General Freight: Vereeniging/Danskraal to East London",9,"BEACONSFIELD (E) - HAMILTON (E)","KIMBERLEY NORTH",8]
["FY30/31|General Freight: Vereeniging/Danskraal to East London|10","FY30/31","General Freight: Vereeniging/Danskraal to East London",10,"BLOEMFONTEIN (E) - HAMILTON (E)","BLOEMFONTEIN",72]
["FY30/31|General Freight: Vereeniging/Danskraal to East London|11","FY30/31","General Freight: Vereeniging/Danskraal to East London",11,"HAMILTON (E) - SPRINGFONTEIN (E)","BLOEMFONTEIN",19]
["FY30/31|General Freight: Vereeniging/Danskraal to East London|12","FY30/31","General Freight: Vereeniging/Danskraal to East London",12,"SPRINGFONTEIN (E) - DREUNBERG (E)","EAST LONDON",18]
["FY30/31|General Freight: Vereeniging/Danskraal to East London|13","FY30/31","General Freight: Vereeniging/Danskraal to East London",13,"DREUNBERG (E) - STORMBERG (E)","EAST LONDON",12]
["FY30/31|General Freight: Vereeniging/Danskraal to East London|14","FY30/31","General Freight: Vereeniging/Danskraal to East London",14,"STORMBERG (E) - STERKSTROOM (E)","EAST LONDON",9]
["FY30/31|General Freight: Vereeniging/Danskraal to East London|15","FY30/31","General Freight: Vereeniging/Danskraal to East London",15,"STERKSTROOM (E) - QUEENSTOWN (E)","EAST LONDON",11]
["FY30/31|General Freight: Vereeniging/Danskraal to East London|16","FY30/31","General Freight: Vereeniging/Danskraal to East London",16,"QUEENSTOWN (E) - IMVANI (I)","EAST LONDON",21]
["FY30/31|General Freight: Vereeniging/Danskraal to East London|17","FY30/31","General Freight: Vereeniging/Danskraal to East London",17,"IMVANI (E) - CATHCART (E)","EAST LONDON",13]
["FY30/31|General Freight: Vereeniging/Danskraal to East London|18","FY30/31","General Freight: Vereeniging/Danskraal to East London",18,"CATHCART (I) - AMABELE (E)","EAST LONDON",12]
["FY30/31|General Freight: Vereeniging/Danskraal to East London|19","FY30/31","General Freight: Vereeniging/Danskraal to East London",19,"AMABELE (E) - BLANEY (E)","EAST LONDON",14]
["FY30/31|General Freight: Vereeniging/Danskraal to East London|20","FY30/31","General Freight: Vereeniging/Danskraal to East London",20,"BLANEY (E) - EAST LONDON (E)","EAST LONDON",72]
["FY30/31|General Freight: Vereeniging/Danskraal to East London|21","FY30/31","General Freight: Vereeniging/Danskraal to East London",21,"SPRINGFONTEIN (E) - NOUPOORT  (E)","EAST LONDON",12]
["FY30/31|General Freight: Vereeniging/Danskraal to East London|22","FY30/31","General Freight: Vereeniging/Danskraal to East London",22,"DREUNBERG (E) - ALIWAL NORTH (I)","EAST LONDON (Line Closed)",17]
["FY30/31|General Freight: Vereeniging/Danskraal to East London|23","FY30/31","General Freight: Vereeniging/Danskraal to East London",23,"ALIWAL NORTH (I) - BARKLY EAST (I)","EAST LONDON (Line Closed)",16]
["FY30/31|General Freight: Vereeniging/Danskraal to East London|24","FY30/31","General Freight: Vereeniging/Danskraal to East London",24,"STORMBERG (E) - SCHOOMBEE (I)","EAST LONDON (Line Closed)",14]
["FY30/31|General Freight: Vereeniging/Danskraal to East London|25","FY30/31","General Freight: Vereeniging/Danskraal to East London",25,"SCHOOMBEE (E) - ROSMEAD (E)","EAST LONDON (Line Closed)",23]
["FY30/31|General Freight: Vereeniging/Danskraal to East London|26","FY30/31","General Freight: Vereeniging/Danskraal to East London",26,"SCHOOMBEE (E) - HOFMEYER (I)","EAST LONDON (Line Closed)",39]
["FY30/31|General Freight: Vereeniging/Danskraal to East London|27","FY30/31","General Freight: Vereeniging/Danskraal to East London",27,"STERKSTROOM (I) - MACLEAR (I)","EAST LONDON (Line Closed)",10]
["FY30/31|General Freight: Vereeniging/Danskraal to East London|28","FY30/31","General Freight: Vereeniging/Danskraal to East London",28,"AMABELE (I) - UMTATA (I)","EAST LONDON (Line Closed)",18]
["FY30/31|General Freight: Vereeniging/Danskraal to East London|29","FY30/31","General Freight: Vereeniging/Danskraal to East London",29,"BLANEY (E) - FORT BEAUFORT (E)","EAST LONDON",17]
["FY30/31|General Freight: Vereeniging/Danskraal to East London|30","FY30/31","General Freight: Vereeniging/Danskraal to East London",30,"FORT BEAUFORT (E) - COOKHOUSE (E)","EAST LONDON",15]
["FY30/31|General Freight: Vereeniging/Danskraal to East London|31","FY30/31","General Freight: Vereeniging/Danskraal to East London",31,"DANSKRAAL-SUID (S) - HARRISMITH (E)","LADYSMITH",14]
["FY30/31|General Freight: Vereeniging/Danskraal to East London|32","FY30/31","General Freight: Vereeniging/Danskraal to East London",32,"HARRISMITH (E) - WARDEN (I)","LADYSMITH",21]
["FY30/31|General Freight: Vereeniging/Danskraal to East London|33","FY30/31","General Freight: Vereeniging/Danskraal to East London",33,"HARRISMITH (I) - BETHLEHEM (E)","LADYSMITH",20]
["FY30/31|General Freight: Vereeniging/Danskraal to East London|34","FY30/31","General Freight: Vereeniging/Danskraal to East London",34,"BETHLEHEM (E) - VILLIERS (E)","LADYSMITH",18]
["FY30/31|General Freight: Vereeniging/Danskraal to East London|35","FY30/31","General Freight: Vereeniging/Danskraal to East London",35,"VILLIERS (E) - BALFOUR (E)","HEIDELBERG",28]
["FY30/31|General Freight: Vereeniging/Danskraal to East London|36","FY30/31","General Freight: Vereeniging/Danskraal to East London",36,"FIRHAM (E) - VREDE (I)","HEIDELBERG (Line Closed)",30]
["FY30/31|General Freight: Vereeniging/Danskraal to East London|37","FY30/31","General Freight: Vereeniging/Danskraal to East London",37,"BETHLEHEM (E) - ARLINGTON (E)","LADYSMITH",24]
["FY30/31|General Freight: Vereeniging/Danskraal to East London|38","FY30/31","General Freight: Vereeniging/Danskraal to East London",38,"ARLINGTON (I) - GUNHILL (I)","LADYSMITH",21]
["FY30/31|General Freight: Vereeniging/Danskraal to East London|39","FY30/31","General Freight: Vereeniging/Danskraal to East London",39,"GUNHILL SOUTH (I) - KROONSTAD (E)","LADYSMITH",22]
[{"$f":"IF(OR(B687=\"\",C687=\"\",D687=\"\"),\"\",B687&\"|\"&C687&\"|\"&D687)","v":"FY26/27|Magnetite|1"},"FY26/27","Magnetite",1,"PHALABORWA - HOEDSPRUIT","NELSPRUIT",16,0,0,0,0,45,0,0,3,0,1,3,0,0,0,0,0,0,0,0]
["FY26/27|Magnetite|2","FY26/27","Magnetite",2,"HOEDSPRUIT - KAAPMUIDEN","NELSPRUIT",15,0,0,0,0,45,0,0,6,0,1,3,0,0,0,0,0,0,0,0]
["FY26/27|Magnetite|3","FY26/27","Magnetite",3,"KAAPMUIDEN (E) - KOMATIPOORT (I)","NELSPRUIT",54,0,2,0,0,80,1,0,11,2,1,3,1,1,0,0,0,0,0,0]
["FY26/27|Magnetite|4","FY26/27","Magnetite",4,"GOLELA - EMPANGENI","EMPANGENI",14,0,1,0,0,26,0,0,3,0,1,1,0,0,0,0,0,0,0,0]
["FY27/28|Magnetite|1","FY27/28","Magnetite",1,"PHALABORWA - HOEDSPRUIT","NELSPRUIT",16]
["FY27/28|Magnetite|2","FY27/28","Magnetite",2,"HOEDSPRUIT - KAAPMUIDEN","NELSPRUIT",15]
["FY27/28|Magnetite|3","FY27/28","Magnetite",3,"KAAPMUIDEN (E) - KOMATIPOORT (I)","NELSPRUIT",54]
["FY27/28|Magnetite|4","FY27/28","Magnetite",4,"GOLELA - EMPANGENI","EMPANGENI",14]
["FY28/29|Magnetite|1","FY28/29","Magnetite",1,"PHALABORWA - HOEDSPRUIT","NELSPRUIT",16]
["FY28/29|Magnetite|2","FY28/29","Magnetite",2,"HOEDSPRUIT - KAAPMUIDEN","NELSPRUIT",15]
["FY28/29|Magnetite|3","FY28/29","Magnetite",3,"KAAPMUIDEN (E) - KOMATIPOORT (I)","NELSPRUIT",54]
["FY28/29|Magnetite|4","FY28/29","Magnetite",4,"GOLELA - EMPANGENI","EMPANGENI",14]
["FY29/30|Magnetite|1","FY29/30","Magnetite",1,"PHALABORWA - HOEDSPRUIT","NELSPRUIT",16]
["FY29/30|Magnetite|2","FY29/30","Magnetite",2,"HOEDSPRUIT - KAAPMUIDEN","NELSPRUIT",15]
["FY29/30|Magnetite|3","FY29/30","Magnetite",3,"KAAPMUIDEN (E) - KOMATIPOORT (I)","NELSPRUIT",54]
["FY29/30|Magnetite|4","FY29/30","Magnetite",4,"GOLELA - EMPANGENI","EMPANGENI",14]
["FY30/31|Magnetite|1","FY30/31","Magnetite",1,"PHALABORWA - HOEDSPRUIT","NELSPRUIT",16]
["FY30/31|Magnetite|2","FY30/31","Magnetite",2,"HOEDSPRUIT - KAAPMUIDEN","NELSPRUIT",15]
["FY30/31|Magnetite|3","FY30/31","Magnetite",3,"KAAPMUIDEN (E) - KOMATIPOORT (I)","NELSPRUIT",54]
["FY30/31|Magnetite|4","FY30/31","Magnetite",4,"GOLELA - EMPANGENI","EMPANGENI",14]
["FY26/27|Manganese|1","FY26/27","Manganese",1,"HOTAZEL - SISHEN","KIMBERLEY NORTH",16,0,0,0,0,50,0,0,0,0,1,0,0,0,0,0,0,0,0,0]
["FY26/27|Manganese|2","FY26/27","Manganese",2,"SISHEN (I) - LOHATLHA(E)","KIMBERLEY NORTH",24,0,2,0,0,58,0,0,0,0,1,0,0,0,0,0,0,0,0,0]
["FY26/27|Manganese|3","FY26/27","Manganese",3,"LOHATLHA (I) - POSTMASBURG (I)","KIMBERLEY NORTH",41,0,13,0,0,49,0,0,0,0,1,0,0,0,0,0,0,0,0,0]
["FY26/27|Manganese|4","FY26/27","Manganese",4,"POSTMASBURG (E) - LIME ACRES (I)","KIMBERLEY NORTH",22,0,0,0,0,53,0,0,0,0,1,0,0,0,0,0,0,0,0,0]
["FY26/27|Manganese|5","FY26/27","Manganese",5,"LIME ACRES (E) - KOOPMANSFONTEIN (I)","KIMBERLEY NORTH",33,0,5,0,0,55,0,0,0,0,1,0,0,0,0,0,0,0,0,0]
["FY26/27|Manganese|6","FY26/27","Manganese",6,"KOOPMANSFONTEIN (E) - KNEUKEL (E)","KIMBERLEY NORTH",50,0,5,0,0,55,0,0,0,0,1,0,0,0,0,0,0,0,0,0]
["FY26/27|Manganese|7","FY26/27","Manganese",7,"KNEUKEL (I) - ULCO (I)","KIMBERLEY NORTH",55,0,0,0,0,56,0,0,0,0,1,0,0,0,0,0,0,0,0,0]
["FY26/27|Manganese|8","FY26/27","Manganese",8,"ULCO (E) - FIELDSVIEW (I)","KIMBERLEY NORTH",25,0,1,0,0,61,0,0,0,0,1,0,0,0,0,0,0,0,0,0]
["FY26/27|Manganese|9","FY26/27","Manganese",9,"FIELDSVIEW (I) - MACFARLANE (E)","KIMBERLEY NORTH",72,0,3,0,0,68,0,0,0,0,1,0,0,0,0,0,0,0,0,0]
["FY26/27|Manganese|10","FY26/27","Manganese",10,"MACFARLANE (I) - KAMFERSDAM (E)","KIMBERLEY NORTH",72,38,0,0,0,53,0,0,0,0,1,0,0,0,0,0,0,0,0,0]
["FY26/27|Manganese|11","FY26/27","Manganese",11,"KAMFERSDAM (I) - BEACONSFIELD (E)","KIMBERLEY NORTH",72,0,3,0,0,53,0,0,0,0,1,0,0,0,0,0,0,0,0,0]
["FY26/27|Manganese|12","FY26/27","Manganese",12,"BEACONSFIELD (I) - BELMONT (I)","KIMBERLEY SOUTH",29,2,0,0,0,47,0,0,0,0,1,0,0,0,0,0,0,0,0,0]
[{"$f":"IF(OR(B719=\"\",C719=\"\",D719=\"\"),\"\",B719&\"|\"&C719&\"|\"&D719)","v":"FY26/27|Manganese|13"},"FY26/27","Manganese",13,"BELMONT (E) - ORANJERIVIER (E)","KIMBERLEY SOUTH",37,3,0,0,0,47,0,0,0,0,1,0,0,0,0,0,0,0,0,0]
["FY26/27|Manganese|14","FY26/27","Manganese",14,"ORANJERIVIER (I) - DE AAR (I)","KIMBERLEY SOUTH",27,2,0,0,0,47,0,0,0,0,1,0,0,0,0,0,0,0,0,0]
["FY26/27|Manganese|15","FY26/27","Manganese",15,"DE AAR (E) - NOUPOORT (E)","PORT ELIZABETH",11,0,0,0,0,39,0,0,0,0,1,0,0,0,0,0,0,0,0,0]
["FY26/27|Manganese|16","FY26/27","Manganese",16,"NOUPOORT (I) - ROSMEAD (I)","PORT ELIZABETH",18,0,2,0,0,41,0,0,0,0,1,0,0,0,0,0,0,0,0,0]
["FY26/27|Manganese|17","FY26/27","Manganese",17,"ROSMEAD (E) - COOKHOUSE (I)","PORT ELIZABETH",13,1,0,0,0,41,0,0,0,0,1,0,0,0,0,0,0,0,0,0]
["FY26/27|Manganese|18","FY26/27","Manganese",18,"COOKHOUSE (E) - ALICEDALE (I)","PORT ELIZABETH",11,0,0,0,0,41,0,0,0,0,1,0,0,0,0,0,0,0,0,0]
["FY26/27|Manganese|19","FY26/27","Manganese",19,"ALICEDALE (E) - ADDO (I)","PORT ELIZABETH",23,1,0,0,0,41,0,0,0,0,1,0,0,0,0,0,0,0,0,0]
["FY26/27|Manganese|20","FY26/27","Manganese",20,"ADDO (E) - SWARTKOPS (E)","PORT ELIZABETH",36,0,0,0,0,41,0,0,0,0,1,0,0,0,0,0,0,0,0,0]
["FY26/27|Manganese|21","FY26/27","Manganese",21,"SWARTKOPS (I) - PORT ELIZABETH (I)","PORT ELIZABETH",25,0,2,0,0,41,0,0,0,0,1,0,0,0,0,0,0,0,0,0]
["FY27/28|Manganese|1","FY27/28","Manganese",1,"HOTAZEL - SISHEN","KIMBERLEY NORTH",16]
["FY27/28|Manganese|2","FY27/28","Manganese",2,"SISHEN (I) - LOHATLHA(E)","KIMBERLEY NORTH",24]
["FY27/28|Manganese|3","FY27/28","Manganese",3,"LOHATLHA (I) - POSTMASBURG (I)","KIMBERLEY NORTH",41]
["FY27/28|Manganese|4","FY27/28","Manganese",4,"POSTMASBURG (E) - LIME ACRES (I)","KIMBERLEY NORTH",22]
["FY27/28|Manganese|5","FY27/28","Manganese",5,"LIME ACRES (E) - KOOPMANSFONTEIN (I)","KIMBERLEY NORTH",33]
["FY27/28|Manganese|6","FY27/28","Manganese",6,"KOOPMANSFONTEIN (E) - KNEUKEL (E)","KIMBERLEY NORTH",50]
["FY27/28|Manganese|7","FY27/28","Manganese",7,"KNEUKEL (I) - ULCO (I)","KIMBERLEY NORTH",55]
["FY27/28|Manganese|8","FY27/28","Manganese",8,"ULCO (E) - FIELDSVIEW (I)","KIMBERLEY NORTH",25]
["FY27/28|Manganese|9","FY27/28","Manganese",9,"FIELDSVIEW (I) - MACFARLANE (E)","KIMBERLEY NORTH",72]
["FY27/28|Manganese|10","FY27/28","Manganese",10,"MACFARLANE (I) - KAMFERSDAM (E)","KIMBERLEY NORTH",72]
["FY27/28|Manganese|11","FY27/28","Manganese",11,"KAMFERSDAM (I) - BEACONSFIELD (E)","KIMBERLEY NORTH",72]
["FY27/28|Manganese|12","FY27/28","Manganese",12,"BEACONSFIELD (I) - BELMONT (I)","KIMBERLEY SOUTH",29]
["FY27/28|Manganese|13","FY27/28","Manganese",13,"BELMONT (E) - ORANJERIVIER (E)","KIMBERLEY SOUTH",37]
["FY27/28|Manganese|14","FY27/28","Manganese",14,"ORANJERIVIER (I) - DE AAR (I)","KIMBERLEY SOUTH",27]
["FY27/28|Manganese|15","FY27/28","Manganese",15,"DE AAR (E) - NOUPOORT (E)","PORT ELIZABETH",11]
["FY27/28|Manganese|16","FY27/28","Manganese",16,"NOUPOORT (I) - ROSMEAD (I)","PORT ELIZABETH",18]
["FY27/28|Manganese|17","FY27/28","Manganese",17,"ROSMEAD (E) - COOKHOUSE (I)","PORT ELIZABETH",13]
["FY27/28|Manganese|18","FY27/28","Manganese",18,"COOKHOUSE (E) - ALICEDALE (I)","PORT ELIZABETH",11]
["FY27/28|Manganese|19","FY27/28","Manganese",19,"ALICEDALE (E) - ADDO (I)","PORT ELIZABETH",23]
["FY27/28|Manganese|20","FY27/28","Manganese",20,"ADDO (E) - SWARTKOPS (E)","PORT ELIZABETH",36]
["FY27/28|Manganese|21","FY27/28","Manganese",21,"SWARTKOPS (I) - PORT ELIZABETH (I)","PORT ELIZABETH",25]
["FY28/29|Manganese|1","FY28/29","Manganese",1,"HOTAZEL - SISHEN","KIMBERLEY NORTH",16]
["FY28/29|Manganese|2","FY28/29","Manganese",2,"SISHEN (I) - LOHATLHA(E)","KIMBERLEY NORTH",24]
[{"$f":"IF(OR(B751=\"\",C751=\"\",D751=\"\"),\"\",B751&\"|\"&C751&\"|\"&D751)","v":"FY28/29|Manganese|3"},"FY28/29","Manganese",3,"LOHATLHA (I) - POSTMASBURG (I)","KIMBERLEY NORTH",41]
["FY28/29|Manganese|4","FY28/29","Manganese",4,"POSTMASBURG (E) - LIME ACRES (I)","KIMBERLEY NORTH",22]
["FY28/29|Manganese|5","FY28/29","Manganese",5,"LIME ACRES (E) - KOOPMANSFONTEIN (I)","KIMBERLEY NORTH",33]
["FY28/29|Manganese|6","FY28/29","Manganese",6,"KOOPMANSFONTEIN (E) - KNEUKEL (E)","KIMBERLEY NORTH",50]
["FY28/29|Manganese|7","FY28/29","Manganese",7,"KNEUKEL (I) - ULCO (I)","KIMBERLEY NORTH",55]
["FY28/29|Manganese|8","FY28/29","Manganese",8,"ULCO (E) - FIELDSVIEW (I)","KIMBERLEY NORTH",25]
["FY28/29|Manganese|9","FY28/29","Manganese",9,"FIELDSVIEW (I) - MACFARLANE (E)","KIMBERLEY NORTH",72]
["FY28/29|Manganese|10","FY28/29","Manganese",10,"MACFARLANE (I) - KAMFERSDAM (E)","KIMBERLEY NORTH",72]
["FY28/29|Manganese|11","FY28/29","Manganese",11,"KAMFERSDAM (I) - BEACONSFIELD (E)","KIMBERLEY NORTH",72]
["FY28/29|Manganese|12","FY28/29","Manganese",12,"BEACONSFIELD (I) - BELMONT (I)","KIMBERLEY SOUTH",29]
["FY28/29|Manganese|13","FY28/29","Manganese",13,"BELMONT (E) - ORANJERIVIER (E)","KIMBERLEY SOUTH",37]
["FY28/29|Manganese|14","FY28/29","Manganese",14,"ORANJERIVIER (I) - DE AAR (I)","KIMBERLEY SOUTH",27]
["FY28/29|Manganese|15","FY28/29","Manganese",15,"DE AAR (E) - NOUPOORT (E)","PORT ELIZABETH",11]
["FY28/29|Manganese|16","FY28/29","Manganese",16,"NOUPOORT (I) - ROSMEAD (I)","PORT ELIZABETH",18]
["FY28/29|Manganese|17","FY28/29","Manganese",17,"ROSMEAD (E) - COOKHOUSE (I)","PORT ELIZABETH",13]
["FY28/29|Manganese|18","FY28/29","Manganese",18,"COOKHOUSE (E) - ALICEDALE (I)","PORT ELIZABETH",11]
["FY28/29|Manganese|19","FY28/29","Manganese",19,"ALICEDALE (E) - ADDO (I)","PORT ELIZABETH",23]
["FY28/29|Manganese|20","FY28/29","Manganese",20,"ADDO (E) - SWARTKOPS (E)","PORT ELIZABETH",36]
["FY28/29|Manganese|21","FY28/29","Manganese",21,"SWARTKOPS (I) - PORT ELIZABETH (I)","PORT ELIZABETH",25]
["FY29/30|Manganese|1","FY29/30","Manganese",1,"HOTAZEL - SISHEN","KIMBERLEY NORTH",16]
["FY29/30|Manganese|2","FY29/30","Manganese",2,"SISHEN (I) - LOHATLHA(E)","KIMBERLEY NORTH",24]
["FY29/30|Manganese|3","FY29/30","Manganese",3,"LOHATLHA (I) - POSTMASBURG (I)","KIMBERLEY NORTH",41]
["FY29/30|Manganese|4","FY29/30","Manganese",4,"POSTMASBURG (E) - LIME ACRES (I)","KIMBERLEY NORTH",22]
["FY29/30|Manganese|5","FY29/30","Manganese",5,"LIME ACRES (E) - KOOPMANSFONTEIN (I)","KIMBERLEY NORTH",33]
["FY29/30|Manganese|6","FY29/30","Manganese",6,"KOOPMANSFONTEIN (E) - KNEUKEL (E)","KIMBERLEY NORTH",50]
["FY29/30|Manganese|7","FY29/30","Manganese",7,"KNEUKEL (I) - ULCO (I)","KIMBERLEY NORTH",55]
["FY29/30|Manganese|8","FY29/30","Manganese",8,"ULCO (E) - FIELDSVIEW (I)","KIMBERLEY NORTH",25]
["FY29/30|Manganese|9","FY29/30","Manganese",9,"FIELDSVIEW (I) - MACFARLANE (E)","KIMBERLEY NORTH",72]
["FY29/30|Manganese|10","FY29/30","Manganese",10,"MACFARLANE (I) - KAMFERSDAM (E)","KIMBERLEY NORTH",72]
["FY29/30|Manganese|11","FY29/30","Manganese",11,"KAMFERSDAM (I) - BEACONSFIELD (E)","KIMBERLEY NORTH",72]
["FY29/30|Manganese|12","FY29/30","Manganese",12,"BEACONSFIELD (I) - BELMONT (I)","KIMBERLEY SOUTH",29]
["FY29/30|Manganese|13","FY29/30","Manganese",13,"BELMONT (E) - ORANJERIVIER (E)","KIMBERLEY SOUTH",37]
[{"$f":"IF(OR(B783=\"\",C783=\"\",D783=\"\"),\"\",B783&\"|\"&C783&\"|\"&D783)","v":"FY29/30|Manganese|14"},"FY29/30","Manganese",14,"ORANJERIVIER (I) - DE AAR (I)","KIMBERLEY SOUTH",27]
["FY29/30|Manganese|15","FY29/30","Manganese",15,"DE AAR (E) - NOUPOORT (E)","PORT ELIZABETH",11]
["FY29/30|Manganese|16","FY29/30","Manganese",16,"NOUPOORT (I) - ROSMEAD (I)","PORT ELIZABETH",18]
["FY29/30|Manganese|17","FY29/30","Manganese",17,"ROSMEAD (E) - COOKHOUSE (I)","PORT ELIZABETH",13]
["FY29/30|Manganese|18","FY29/30","Manganese",18,"COOKHOUSE (E) - ALICEDALE (I)","PORT ELIZABETH",11]
["FY29/30|Manganese|19","FY29/30","Manganese",19,"ALICEDALE (E) - ADDO (I)","PORT ELIZABETH",23]
["FY29/30|Manganese|20","FY29/30","Manganese",20,"ADDO (E) - SWARTKOPS (E)","PORT ELIZABETH",36]
["FY29/30|Manganese|21","FY29/30","Manganese",21,"SWARTKOPS (I) - PORT ELIZABETH (I)","PORT ELIZABETH",25]
["FY30/31|Manganese|1","FY30/31","Manganese",1,"HOTAZEL - SISHEN","KIMBERLEY NORTH",16]
["FY30/31|Manganese|2","FY30/31","Manganese",2,"SISHEN (I) - LOHATLHA(E)","KIMBERLEY NORTH",24]
["FY30/31|Manganese|3","FY30/31","Manganese",3,"LOHATLHA (I) - POSTMASBURG (I)","KIMBERLEY NORTH",41]
["FY30/31|Manganese|4","FY30/31","Manganese",4,"POSTMASBURG (E) - LIME ACRES (I)","KIMBERLEY NORTH",22]
["FY30/31|Manganese|5","FY30/31","Manganese",5,"LIME ACRES (E) - KOOPMANSFONTEIN (I)","KIMBERLEY NORTH",33]
["FY30/31|Manganese|6","FY30/31","Manganese",6,"KOOPMANSFONTEIN (E) - KNEUKEL (E)","KIMBERLEY NORTH",50]
["FY30/31|Manganese|7","FY30/31","Manganese",7,"KNEUKEL (I) - ULCO (I)","KIMBERLEY NORTH",55]
["FY30/31|Manganese|8","FY30/31","Manganese",8,"ULCO (E) - FIELDSVIEW (I)","KIMBERLEY NORTH",25]
["FY30/31|Manganese|9","FY30/31","Manganese",9,"FIELDSVIEW (I) - MACFARLANE (E)","KIMBERLEY NORTH",72]
["FY30/31|Manganese|10","FY30/31","Manganese",10,"MACFARLANE (I) - KAMFERSDAM (E)","KIMBERLEY NORTH",72]
["FY30/31|Manganese|11","FY30/31","Manganese",11,"KAMFERSDAM (I) - BEACONSFIELD (E)","KIMBERLEY NORTH",72]
["FY30/31|Manganese|12","FY30/31","Manganese",12,"BEACONSFIELD (I) - BELMONT (I)","KIMBERLEY SOUTH",29]
["FY30/31|Manganese|13","FY30/31","Manganese",13,"BELMONT (E) - ORANJERIVIER (E)","KIMBERLEY SOUTH",37]
["FY30/31|Manganese|14","FY30/31","Manganese",14,"ORANJERIVIER (I) - DE AAR (I)","KIMBERLEY SOUTH",27]
["FY30/31|Manganese|15","FY30/31","Manganese",15,"DE AAR (E) - NOUPOORT (E)","PORT ELIZABETH",11]
["FY30/31|Manganese|16","FY30/31","Manganese",16,"NOUPOORT (I) - ROSMEAD (I)","PORT ELIZABETH",18]
["FY30/31|Manganese|17","FY30/31","Manganese",17,"ROSMEAD (E) - COOKHOUSE (I)","PORT ELIZABETH",13]
["FY30/31|Manganese|18","FY30/31","Manganese",18,"COOKHOUSE (E) - ALICEDALE (I)","PORT ELIZABETH",11]
["FY30/31|Manganese|19","FY30/31","Manganese",19,"ALICEDALE (E) - ADDO (I)","PORT ELIZABETH",23]
["FY30/31|Manganese|20","FY30/31","Manganese",20,"ADDO (E) - SWARTKOPS (E)","PORT ELIZABETH",36]
["FY30/31|Manganese|21","FY30/31","Manganese",21,"SWARTKOPS (I) - PORT ELIZABETH (I)","PORT ELIZABETH",25]
["FY26/27|General Freight: Johannesburg to Durban|1","FY26/27","General Freight: Johannesburg to Durban",1,"CITY DEEP - JUPITER","VEREENIGING",72,0,15,0,0,44,7,8,0,0,0,0,0,0,0,0,0]
[{"$f":"IF(OR(B813=\"\",C813=\"\",D813=\"\"),\"\",B813&\"|\"&C813&\"|\"&D813)","v":"FY26/27|General Freight: Johannesburg to Durban|2"},"FY26/27","General Freight: Johannesburg to Durban",2,"KASERNE WEST - JUPITER","VEREENIGING",72,0,0,0,0,44,7,8,0,0,0,0,0,0,0,0,0]
["FY26/27|General Freight: Johannesburg to Durban|3","FY26/27","General Freight: Johannesburg to Durban",3,"JUPITER - INDIA","VEREENIGING",72,0,7,0,0,53,7,8,0,0,0,0,0]
["FY26/27|General Freight: Johannesburg to Durban|4","FY26/27","General Freight: Johannesburg to Durban",4,"INDIA (E) - UNION (E)","VEREENIGING",72,0,18,0,0,45,7,8,0,0,0,0,0,0,0,0,0]
["FY26/27|General Freight: Johannesburg to Durban|5","FY26/27","General Freight: Johannesburg to Durban",5,"UNIONKM3 (E)-ROOIKOP (E)","VEREENIGING",72,7,22,0,0,55,7,8,0,0,0,0,0]
["FY26/27|General Freight: Johannesburg to Durban|6","FY26/27","General Freight: Johannesburg to Durban",6,"ROOIKOP (I) - RIETVALLEI (E)","VEREENIGING",42,0,9,0,0,45,7,8,0,0,0,0,0,0,0,0,0]
["FY26/27|General Freight: Johannesburg to Durban|7","FY26/27","General Freight: Johannesburg to Durban",7,"RIETVALLEI (I) - VOORUITSIG (E )","HEIDELBERG",72,0,0,0,0,79,7,8,0,0,0,0,0,0,0,0,0,0]
["FY26/27|General Freight: Johannesburg to Durban|8","FY26/27","General Freight: Johannesburg to Durban",8,"VOORUITSIG (E) - CLAVIS (I)","HEIDELBERG",72,0,0,0,0,79,7,8,0,0,0,0,0,0,0,0,0,0]
["FY26/27|General Freight: Johannesburg to Durban|9","FY26/27","General Freight: Johannesburg to Durban",9,"CLAVIS(E) - NEWCASTLE (I)","HEIDELBERG",72,0,14,0,0,79,7,8,0,0,0,0,0,0,0,0,0,0]
["FY26/27|General Freight: Johannesburg to Durban|10","FY26/27","General Freight: Johannesburg to Durban",10,"NEWCASTLE (E) - ALCOCKSPRUIT (E)","HEIDELBERG",72,0,0,0,0,81,7,8,1,0,0,0,0,0,0,0,0,0]
["FY26/27|General Freight: Johannesburg to Durban|11","FY26/27","General Freight: Johannesburg to Durban",11,"ALCOCKSPRUIT (I) - GLENCOE (I)","HEIDELBERG",72,0,0,0,0,81,7,8,1,0,0,0,0,0,0,0,0,0]
["FY26/27|General Freight: Johannesburg to Durban|12","FY26/27","General Freight: Johannesburg to Durban",12,"GLENCOE (E) - VRYHEID (I)","LADYSMITH",14,0,2,0,0,1,0,0,2,0,0,0,0,0,0,0,0,0]
["FY26/27|General Freight: Johannesburg to Durban|13","FY26/27","General Freight: Johannesburg to Durban",13,"GLENCOE (E) - DANSKRAAL-NOORD (I)","LADYSMITH",72,0,25,0,0,81,7,8,0,0,0,0,0,0,0,0,0,0]
["FY26/27|General Freight: Johannesburg to Durban|14","FY26/27","General Freight: Johannesburg to Durban",14,"DANSKRAAL-NOORD (E) - ESTCOURT (I)","LADYSMITH",72,0,23,0,0,81,7,8,0,0,0,0,0,0,0,0,0,0]
["FY26/27|General Freight: Johannesburg to Durban|15","FY26/27","General Freight: Johannesburg to Durban",15,"ESTCOURT (E) - RUSHBROOK (E)","LADYSMITH",72,0,23,0,0,86,7,8,0,0,0,0,0,0,0,0,0,0]
["FY26/27|General Freight: Johannesburg to Durban|16","FY26/27","General Freight: Johannesburg to Durban",16,"RUSHBROOK (I) - UMLAAS ROAD (I)","LADYSMITH",72,3,19,0,0,86,7,8,0,0,0,0,0,0,0,0,0,0]
["FY26/27|General Freight: Johannesburg to Durban|17","FY26/27","General Freight: Johannesburg to Durban",17,"UMLAAS ROAD (E) - CATO RIDGE (I)","DURBAN",72,0,0,0,0,86,7,8,0,0,0,0,0,0,0,0,0,0]
["FY26/27|General Freight: Johannesburg to Durban|18","FY26/27","General Freight: Johannesburg to Durban",18,"CATO RIDGE (E) - BOOTH (I)","DURBAN",72,0,20,0,0,90,7,8,0,0,0,0,0,0,0,14,0,35]
["FY26/27|General Freight: Johannesburg to Durban|19","FY26/27","General Freight: Johannesburg to Durban",19,"BOOTH (E) - CLAIRWOOD (I)","DURBAN",72,7.8000000000000043,0.19999999999999574,0,0,90,7,8,0,0,0,0,0,0,0,14,0,0]
["FY26/27|General Freight: Johannesburg to Durban|20","FY26/27","General Freight: Johannesburg to Durban",20,"CLAIRWOOD (E) - JACOBS (I)","DURBAN",72,0,12,0,0,85,7,8,0,0,0,0,0,0,0,14,0,0]
["FY26/27|General Freight: Johannesburg to Durban|21","FY26/27","General Freight: Johannesburg to Durban",21,"JACOBS (E) - WESTS (I)","DURBAN",72,0,0,0,0,85,7,8,0,0,0,0,0,0,0,14,0,0]
["FY26/27|General Freight: Johannesburg to Durban|22","FY26/27","General Freight: Johannesburg to Durban",22,"CATO RIDGE (E) - PINETOWN (I)","DURBAN (Line Closed)",15,0,10,0,0,0,0,0,0,0,0,0,0,0,0,0,0,0]
["FY26/27|General Freight: Johannesburg to Durban|23","FY26/27","General Freight: Johannesburg to Durban",23,"PINETOWN - ROSSBURGH","DURBAN",18,0,0,0,0,0,0,0,0,0,0,0,0,0,0,0,0,0]
["FY26/27|General Freight: Johannesburg to Durban|24","FY26/27","General Freight: Johannesburg to Durban",24," JACOBS (E) - MEREBANK (E) ","DURBAN",21,0,0,0,0,5,0,0,0,0,0,0,0,0,0,0,0,0]
["FY26/27|General Freight: Johannesburg to Durban|25","FY26/27","General Freight: Johannesburg to Durban",25,"KELSO (E) - PORT SHEPSTONE (I)","DURBAN (Line Closed)",22,0,14,0,0,0,0,0,0,0,0,0,0,0,0,0,0,0]
["FY26/27|General Freight: Johannesburg to Durban|26","FY26/27","General Freight: Johannesburg to Durban",26," DURBAN (E) - UMGENI (I) ","DURBAN",72,0,23,0,0,4,0,0,2,0,0,0,0,0,0,0,0,0]
["FY26/27|General Freight: Johannesburg to Durban|27","FY26/27","General Freight: Johannesburg to Durban",27,"UMGENI (E) - DUFF'S ROAD (E)","DURBAN",72,0,40,0,0,4,0,0,2,0,0,0,0,0,0,0,0,0]
["FY26/27|General Freight: Johannesburg to Durban|28","FY26/27","General Freight: Johannesburg to Durban",28,"DUFF'S ROAD (E) - STANGER (I)","DURBAN",72,29,0,0,0,4,0,0,2,0,0,0,0,0,0,0,0,0]
["FY26/27|General Freight: Johannesburg to Durban|29","FY26/27","General Freight: Johannesburg to Durban",29," CHAILEY (I) - DALTON (E) ","DURBAN",11,0.18534190711581289,-0.18534190711581289,0,0,0,0,0,0,0,0,0,0,0,0,0,0,0]
["FY26/27|General Freight: Johannesburg to Durban|30","FY26/27","General Freight: Johannesburg to Durban",30,"PENTRICH (E) - RICHMOND (NATAL) (I)","DURBAN (Line Closed)",30,0,20,0,0,0,0,0,0,0,0,0,0,0,0,0,0,0]
["FY26/27|General Freight: Johannesburg to Durban|31","FY26/27","General Freight: Johannesburg to Durban",31,"PIETERMARITZBURG (E) - SCHROEDERS (I)","DURBAN",21,0,0,0,0,0,0,0,0,0,0,0,0,0,0,0,0,0]
["FY26/27|General Freight: Johannesburg to Durban|32","FY26/27","General Freight: Johannesburg to Durban",32,"SCHROEDERS (E) - DALTON (I)","DURBAN",33,0,0,0,0,0,0,0,0,0,0,0,0,0,0,0,0,0]
["FY26/27|General Freight: Johannesburg to Durban|33","FY26/27","General Freight: Johannesburg to Durban",33,"DALTON (E) - GLENSIDE (I)","DURBAN",18,0,0,0,0,0,0,0,0,0,0,0,0,0,0,0,0,0]
["FY26/27|General Freight: Johannesburg to Durban|34","FY26/27","General Freight: Johannesburg to Durban",34,"SCHROEDERS (E) - BRUYNS HILL (I)","DURBAN",45,0,0,0,0,0,0,0,0,0,0,0,0,0,0,0,0,0]
["FY26/27|General Freight: Johannesburg to Durban|35","FY26/27","General Freight: Johannesburg to Durban",35,"CHAILEY (E) - KRANSKOP (I)","DURBAN",14,0,0,0,0,0,0,0,0,0,0,0,0,0,0,0,0,0]
["FY26/27|General Freight: Johannesburg to Durban|36","FY26/27","General Freight: Johannesburg to Durban",36,"CHAILEY (E) - MOUNT ALIDA (I)","DURBAN",72,0,0,0,0,0,0,0,0,0,0,0,0,0,0,0,0,0]
["FY26/27|General Freight: Johannesburg to Durban|37","FY26/27","General Freight: Johannesburg to Durban",37,"PIETERMARITZBURG (E) - DONNYBROOK (I)","DURBAN",25,0,0,0,0,0,0,0,0,0,0,0,0,0,0,0,0,0]
["FY26/27|General Freight: Johannesburg to Durban|38","FY26/27","General Freight: Johannesburg to Durban",38,"DONNYBROOK (E) - FRANKLIN (I)","DURBAN",15,0,0,0,0,0,0,0,0,0,0,0,0,0,0,0,0,0]
["FY26/27|General Freight: Johannesburg to Durban|39","FY26/27","General Freight: Johannesburg to Durban",39,"FRANKLIN (E) - MATATIELE (I)","DURBAN",12,0,0,0,0,0,0,0,0,0,0,0,0,0,0,0,0,0]
["FY26/27|General Freight: Johannesburg to Durban|40","FY26/27","General Freight: Johannesburg to Durban",40,"DONNYBROOK (E) - UNDERBERG (I)","DURBAN",15,0,0,0,0,0,0,0,0,0,0,0,0,0,0,0,0,0]
["FY26/27|General Freight: Johannesburg to Durban|41","FY26/27","General Freight: Johannesburg to Durban",41,"BAYHEAD (E) - BAYHEAD EXCLUSIVE (E)","DURBAN",50,0,0,0,0,0,0,0,0,0,0,0,0,0,0,0,0,0]
["FY27/28|General Freight: Johannesburg to Durban|1","FY27/28","General Freight: Johannesburg to Durban",1,"CITY DEEP - JUPITER","VEREENIGING",72]
["FY27/28|General Freight: Johannesburg to Durban|2","FY27/28","General Freight: Johannesburg to Durban",2,"KASERNE WEST - JUPITER","VEREENIGING",72]
["FY27/28|General Freight: Johannesburg to Durban|3","FY27/28","General Freight: Johannesburg to Durban",3,"JUPITER - INDIA","VEREENIGING",72]
["FY27/28|General Freight: Johannesburg to Durban|4","FY27/28","General Freight: Johannesburg to Durban",4,"INDIA (E) - UNION (E)","VEREENIGING",72]
["FY27/28|General Freight: Johannesburg to Durban|5","FY27/28","General Freight: Johannesburg to Durban",5,"UNIONKM3 (E)-ROOIKOP (E)","VEREENIGING",72]
["FY27/28|General Freight: Johannesburg to Durban|6","FY27/28","General Freight: Johannesburg to Durban",6,"ROOIKOP (I) - RIETVALLEI (E)","VEREENIGING",42]
["FY27/28|General Freight: Johannesburg to Durban|7","FY27/28","General Freight: Johannesburg to Durban",7,"RIETVALLEI (I) - VOORUITSIG (E )","HEIDELBERG",72]
["FY27/28|General Freight: Johannesburg to Durban|8","FY27/28","General Freight: Johannesburg to Durban",8,"VOORUITSIG (E) - CLAVIS (I)","HEIDELBERG",72]
["FY27/28|General Freight: Johannesburg to Durban|9","FY27/28","General Freight: Johannesburg to Durban",9,"CLAVIS(E) - NEWCASTLE (I)","HEIDELBERG",72]
["FY27/28|General Freight: Johannesburg to Durban|10","FY27/28","General Freight: Johannesburg to Durban",10,"NEWCASTLE (E) - ALCOCKSPRUIT (E)","HEIDELBERG",72]
["FY27/28|General Freight: Johannesburg to Durban|11","FY27/28","General Freight: Johannesburg to Durban",11,"ALCOCKSPRUIT (I) - GLENCOE (I)","HEIDELBERG",72]
["FY27/28|General Freight: Johannesburg to Durban|12","FY27/28","General Freight: Johannesburg to Durban",12,"GLENCOE (E) - VRYHEID (I)","LADYSMITH",14]
["FY27/28|General Freight: Johannesburg to Durban|13","FY27/28","General Freight: Johannesburg to Durban",13,"GLENCOE (E) - DANSKRAAL-NOORD (I)","LADYSMITH",72]
["FY27/28|General Freight: Johannesburg to Durban|14","FY27/28","General Freight: Johannesburg to Durban",14,"DANSKRAAL-NOORD (E) - ESTCOURT (I)","LADYSMITH",72]
["FY27/28|General Freight: Johannesburg to Durban|15","FY27/28","General Freight: Johannesburg to Durban",15,"ESTCOURT (E) - RUSHBROOK (E)","LADYSMITH",72]
["FY27/28|General Freight: Johannesburg to Durban|16","FY27/28","General Freight: Johannesburg to Durban",16,"RUSHBROOK (I) - UMLAAS ROAD (I)","LADYSMITH",72]
["FY27/28|General Freight: Johannesburg to Durban|17","FY27/28","General Freight: Johannesburg to Durban",17,"UMLAAS ROAD (E) - CATO RIDGE (I)","DURBAN",72]
["FY27/28|General Freight: Johannesburg to Durban|18","FY27/28","General Freight: Johannesburg to Durban",18,"CATO RIDGE (E) - BOOTH (I)","DURBAN",72]
["FY27/28|General Freight: Johannesburg to Durban|19","FY27/28","General Freight: Johannesburg to Durban",19,"BOOTH (E) - CLAIRWOOD (I)","DURBAN",72]
["FY27/28|General Freight: Johannesburg to Durban|20","FY27/28","General Freight: Johannesburg to Durban",20,"CLAIRWOOD (E) - JACOBS (I)","DURBAN",72]
["FY27/28|General Freight: Johannesburg to Durban|21","FY27/28","General Freight: Johannesburg to Durban",21,"JACOBS (E) - WESTS (I)","DURBAN",72]
["FY27/28|General Freight: Johannesburg to Durban|22","FY27/28","General Freight: Johannesburg to Durban",22,"CATO RIDGE (E) - PINETOWN (I)","DURBAN (Line Closed)",15]
["FY27/28|General Freight: Johannesburg to Durban|23","FY27/28","General Freight: Johannesburg to Durban",23,"PINETOWN - ROSSBURGH","DURBAN",18]
["FY27/28|General Freight: Johannesburg to Durban|24","FY27/28","General Freight: Johannesburg to Durban",24," JACOBS (E) - MEREBANK (E) ","DURBAN",21]
[{"$f":"IF(OR(B877=\"\",C877=\"\",D877=\"\"),\"\",B877&\"|\"&C877&\"|\"&D877)","v":"FY27/28|General Freight: Johannesburg to Durban|25"},"FY27/28","General Freight: Johannesburg to Durban",25,"KELSO (E) - PORT SHEPSTONE (I)","DURBAN (Line Closed)",22]
["FY27/28|General Freight: Johannesburg to Durban|26","FY27/28","General Freight: Johannesburg to Durban",26," DURBAN (E) - UMGENI (I) ","DURBAN",72]
["FY27/28|General Freight: Johannesburg to Durban|27","FY27/28","General Freight: Johannesburg to Durban",27,"UMGENI (E) - DUFF'S ROAD (E)","DURBAN",72]
["FY27/28|General Freight: Johannesburg to Durban|28","FY27/28","General Freight: Johannesburg to Durban",28,"DUFF'S ROAD (E) - STANGER (I)","DURBAN",72]
["FY27/28|General Freight: Johannesburg to Durban|29","FY27/28","General Freight: Johannesburg to Durban",29," CHAILEY (I) - DALTON (E) ","DURBAN",11]
["FY27/28|General Freight: Johannesburg to Durban|30","FY27/28","General Freight: Johannesburg to Durban",30,"PENTRICH (E) - RICHMOND (NATAL) (I)","DURBAN (Line Closed)",30]
["FY27/28|General Freight: Johannesburg to Durban|31","FY27/28","General Freight: Johannesburg to Durban",31,"PIETERMARITZBURG (E) - SCHROEDERS (I)","DURBAN",21]
["FY27/28|General Freight: Johannesburg to Durban|32","FY27/28","General Freight: Johannesburg to Durban",32,"SCHROEDERS (E) - DALTON (I)","DURBAN",33]
["FY27/28|General Freight: Johannesburg to Durban|33","FY27/28","General Freight: Johannesburg to Durban",33,"DALTON (E) - GLENSIDE (I)","DURBAN",18]
["FY27/28|General Freight: Johannesburg to Durban|34","FY27/28","General Freight: Johannesburg to Durban",34,"SCHROEDERS (E) - BRUYNS HILL (I)","DURBAN",45]
["FY27/28|General Freight: Johannesburg to Durban|35","FY27/28","General Freight: Johannesburg to Durban",35,"CHAILEY (E) - KRANSKOP (I)","DURBAN",15]
["FY27/28|General Freight: Johannesburg to Durban|36","FY27/28","General Freight: Johannesburg to Durban",36,"CHAILEY (E) - MOUNT ALIDA (I)","DURBAN",72]
["FY27/28|General Freight: Johannesburg to Durban|37","FY27/28","General Freight: Johannesburg to Durban",37,"PIETERMARITZBURG (E) - DONNYBROOK (I)","DURBAN",25]
["FY27/28|General Freight: Johannesburg to Durban|38","FY27/28","General Freight: Johannesburg to Durban",38,"DONNYBROOK (E) - FRANKLIN (I)","DURBAN",16]
["FY27/28|General Freight: Johannesburg to Durban|39","FY27/28","General Freight: Johannesburg to Durban",39,"FRANKLIN (E) - MATATIELE (I)","DURBAN",13]
["FY27/28|General Freight: Johannesburg to Durban|40","FY27/28","General Freight: Johannesburg to Durban",40,"DONNYBROOK (E) - UNDERBERG (I)","DURBAN",15]
["FY27/28|General Freight: Johannesburg to Durban|41","FY27/28","General Freight: Johannesburg to Durban",41,"BAYHEAD (E) - BAYHEAD EXCLUSIVE (E)","DURBAN",50]
["FY28/29|General Freight: Johannesburg to Durban|1","FY28/29","General Freight: Johannesburg to Durban",1,"CITY DEEP - JUPITER","VEREENIGING",72]
["FY28/29|General Freight: Johannesburg to Durban|2","FY28/29","General Freight: Johannesburg to Durban",2,"KASERNE WEST - JUPITER","VEREENIGING",72]
["FY28/29|General Freight: Johannesburg to Durban|3","FY28/29","General Freight: Johannesburg to Durban",3,"JUPITER - INDIA","VEREENIGING",72]
["FY28/29|General Freight: Johannesburg to Durban|4","FY28/29","General Freight: Johannesburg to Durban",4,"INDIA (E) - UNION (E)","VEREENIGING",72]
["FY28/29|General Freight: Johannesburg to Durban|5","FY28/29","General Freight: Johannesburg to Durban",5,"UNIONKM3 (E)-ROOIKOP (E)","VEREENIGING",72]
["FY28/29|General Freight: Johannesburg to Durban|6","FY28/29","General Freight: Johannesburg to Durban",6,"ROOIKOP (I) - RIETVALLEI (E)","VEREENIGING",42]
["FY28/29|General Freight: Johannesburg to Durban|7","FY28/29","General Freight: Johannesburg to Durban",7,"RIETVALLEI (I) - VOORUITSIG (E )","HEIDELBERG",72]
["FY28/29|General Freight: Johannesburg to Durban|8","FY28/29","General Freight: Johannesburg to Durban",8,"VOORUITSIG (E) - CLAVIS (I)","HEIDELBERG",72]
["FY28/29|General Freight: Johannesburg to Durban|9","FY28/29","General Freight: Johannesburg to Durban",9,"CLAVIS(E) - NEWCASTLE (I)","HEIDELBERG",72]
["FY28/29|General Freight: Johannesburg to Durban|10","FY28/29","General Freight: Johannesburg to Durban",10,"NEWCASTLE (E) - ALCOCKSPRUIT (E)","HEIDELBERG",72]
["FY28/29|General Freight: Johannesburg to Durban|11","FY28/29","General Freight: Johannesburg to Durban",11,"ALCOCKSPRUIT (I) - GLENCOE (I)","HEIDELBERG",72]
["FY28/29|General Freight: Johannesburg to Durban|12","FY28/29","General Freight: Johannesburg to Durban",12,"GLENCOE (E) - VRYHEID (I)","LADYSMITH",14]
["FY28/29|General Freight: Johannesburg to Durban|13","FY28/29","General Freight: Johannesburg to Durban",13,"GLENCOE (E) - DANSKRAAL-NOORD (I)","LADYSMITH",72]
["FY28/29|General Freight: Johannesburg to Durban|14","FY28/29","General Freight: Johannesburg to Durban",14,"DANSKRAAL-NOORD (E) - ESTCOURT (I)","LADYSMITH",72]
["FY28/29|General Freight: Johannesburg to Durban|15","FY28/29","General Freight: Johannesburg to Durban",15,"ESTCOURT (E) - RUSHBROOK (E)","LADYSMITH",72]
["FY28/29|General Freight: Johannesburg to Durban|16","FY28/29","General Freight: Johannesburg to Durban",16,"RUSHBROOK (I) - UMLAAS ROAD (I)","LADYSMITH",72]
["FY28/29|General Freight: Johannesburg to Durban|17","FY28/29","General Freight: Johannesburg to Durban",17,"UMLAAS ROAD (E) - CATO RIDGE (I)","DURBAN",72]
["FY28/29|General Freight: Johannesburg to Durban|18","FY28/29","General Freight: Johannesburg to Durban",18,"CATO RIDGE (E) - BOOTH (I)","DURBAN",72]
["FY28/29|General Freight: Johannesburg to Durban|19","FY28/29","General Freight: Johannesburg to Durban",19,"BOOTH (E) - CLAIRWOOD (I)","DURBAN",72]
["FY28/29|General Freight: Johannesburg to Durban|20","FY28/29","General Freight: Johannesburg to Durban",20,"CLAIRWOOD (E) - JACOBS (I)","DURBAN",72]
["FY28/29|General Freight: Johannesburg to Durban|21","FY28/29","General Freight: Johannesburg to Durban",21,"JACOBS (E) - WESTS (I)","DURBAN",72]
["FY28/29|General Freight: Johannesburg to Durban|22","FY28/29","General Freight: Johannesburg to Durban",22,"CATO RIDGE (E) - PINETOWN (I)","DURBAN (Line Closed)",15]
["FY28/29|General Freight: Johannesburg to Durban|23","FY28/29","General Freight: Johannesburg to Durban",23,"PINETOWN - ROSSBURGH","DURBAN",18]
["FY28/29|General Freight: Johannesburg to Durban|24","FY28/29","General Freight: Johannesburg to Durban",24," JACOBS (E) - MEREBANK (E) ","DURBAN",21]
["FY28/29|General Freight: Johannesburg to Durban|25","FY28/29","General Freight: Johannesburg to Durban",25,"KELSO (E) - PORT SHEPSTONE (I)","DURBAN (Line Closed)",22]
["FY28/29|General Freight: Johannesburg to Durban|26","FY28/29","General Freight: Johannesburg to Durban",26," DURBAN (E) - UMGENI (I) ","DURBAN",72]
["FY28/29|General Freight: Johannesburg to Durban|27","FY28/29","General Freight: Johannesburg to Durban",27,"UMGENI (E) - DUFF'S ROAD (E)","DURBAN",72]
["FY28/29|General Freight: Johannesburg to Durban|28","FY28/29","General Freight: Johannesburg to Durban",28,"DUFF'S ROAD (E) - STANGER (I)","DURBAN",72]
["FY28/29|General Freight: Johannesburg to Durban|29","FY28/29","General Freight: Johannesburg to Durban",29," CHAILEY (I) - DALTON (E) ","DURBAN",11]
["FY28/29|General Freight: Johannesburg to Durban|30","FY28/29","General Freight: Johannesburg to Durban",30,"PENTRICH (E) - RICHMOND (NATAL) (I)","DURBAN (Line Closed)",30]
["FY28/29|General Freight: Johannesburg to Durban|31","FY28/29","General Freight: Johannesburg to Durban",31,"PIETERMARITZBURG (E) - SCHROEDERS (I)","DURBAN",21]
["FY28/29|General Freight: Johannesburg to Durban|32","FY28/29","General Freight: Johannesburg to Durban",32,"SCHROEDERS (E) - DALTON (I)","DURBAN",33]
["FY28/29|General Freight: Johannesburg to Durban|33","FY28/29","General Freight: Johannesburg to Durban",33,"DALTON (E) - GLENSIDE (I)","DURBAN",18]
["FY28/29|General Freight: Johannesburg to Durban|34","FY28/29","General Freight: Johannesburg to Durban",34,"SCHROEDERS (E) - BRUYNS HILL (I)","DURBAN",45]
["FY28/29|General Freight: Johannesburg to Durban|35","FY28/29","General Freight: Johannesburg to Durban",35,"CHAILEY (E) - KRANSKOP (I)","DURBAN",15]
["FY28/29|General Freight: Johannesburg to Durban|36","FY28/29","General Freight: Johannesburg to Durban",36,"CHAILEY (E) - MOUNT ALIDA (I)","DURBAN",72]
["FY28/29|General Freight: Johannesburg to Durban|37","FY28/29","General Freight: Johannesburg to Durban",37,"PIETERMARITZBURG (E) - DONNYBROOK (I)","DURBAN",25]
["FY28/29|General Freight: Johannesburg to Durban|38","FY28/29","General Freight: Johannesburg to Durban",38,"DONNYBROOK (E) - FRANKLIN (I)","DURBAN",16]
["FY28/29|General Freight: Johannesburg to Durban|39","FY28/29","General Freight: Johannesburg to Durban",39,"FRANKLIN (E) - MATATIELE (I)","DURBAN",13]
["FY28/29|General Freight: Johannesburg to Durban|40","FY28/29","General Freight: Johannesburg to Durban",40,"DONNYBROOK (E) - UNDERBERG (I)","DURBAN",15]
["FY28/29|General Freight: Johannesburg to Durban|41","FY28/29","General Freight: Johannesburg to Durban",41,"BAYHEAD (E) - BAYHEAD EXCLUSIVE (E)","DURBAN",50]
["FY29/30|General Freight: Johannesburg to Durban|1","FY29/30","General Freight: Johannesburg to Durban",1,"CITY DEEP - JUPITER","VEREENIGING",72]
["FY29/30|General Freight: Johannesburg to Durban|2","FY29/30","General Freight: Johannesburg to Durban",2,"KASERNE WEST - JUPITER","VEREENIGING",72]
["FY29/30|General Freight: Johannesburg to Durban|3","FY29/30","General Freight: Johannesburg to Durban",3,"JUPITER - INDIA","VEREENIGING",72]
["FY29/30|General Freight: Johannesburg to Durban|4","FY29/30","General Freight: Johannesburg to Durban",4,"INDIA (E) - UNION (E)","VEREENIGING",72]
["FY29/30|General Freight: Johannesburg to Durban|5","FY29/30","General Freight: Johannesburg to Durban",5,"UNIONKM3 (E)-ROOIKOP (E)","VEREENIGING",72]
["FY29/30|General Freight: Johannesburg to Durban|6","FY29/30","General Freight: Johannesburg to Durban",6,"ROOIKOP (I) - RIETVALLEI (E)","VEREENIGING",42]
[{"$f":"IF(OR(B941=\"\",C941=\"\",D941=\"\"),\"\",B941&\"|\"&C941&\"|\"&D941)","v":"FY29/30|General Freight: Johannesburg to Durban|7"},"FY29/30","General Freight: Johannesburg to Durban",7,"RIETVALLEI (I) - VOORUITSIG (E )","HEIDELBERG",72]
["FY29/30|General Freight: Johannesburg to Durban|8","FY29/30","General Freight: Johannesburg to Durban",8,"VOORUITSIG (E) - CLAVIS (I)","HEIDELBERG",72]
["FY29/30|General Freight: Johannesburg to Durban|9","FY29/30","General Freight: Johannesburg to Durban",9,"CLAVIS(E) - NEWCASTLE (I)","HEIDELBERG",72]
["FY29/30|General Freight: Johannesburg to Durban|10","FY29/30","General Freight: Johannesburg to Durban",10,"NEWCASTLE (E) - ALCOCKSPRUIT (E)","HEIDELBERG",72]
["FY29/30|General Freight: Johannesburg to Durban|11","FY29/30","General Freight: Johannesburg to Durban",11,"ALCOCKSPRUIT (I) - GLENCOE (I)","HEIDELBERG",72]
["FY29/30|General Freight: Johannesburg to Durban|12","FY29/30","General Freight: Johannesburg to Durban",12,"GLENCOE (E) - VRYHEID (I)","LADYSMITH",14]
["FY29/30|General Freight: Johannesburg to Durban|13","FY29/30","General Freight: Johannesburg to Durban",13,"GLENCOE (E) - DANSKRAAL-NOORD (I)","LADYSMITH",72]
["FY29/30|General Freight: Johannesburg to Durban|14","FY29/30","General Freight: Johannesburg to Durban",14,"DANSKRAAL-NOORD (E) - ESTCOURT (I)","LADYSMITH",72]
["FY29/30|General Freight: Johannesburg to Durban|15","FY29/30","General Freight: Johannesburg to Durban",15,"ESTCOURT (E) - RUSHBROOK (E)","LADYSMITH",72]
["FY29/30|General Freight: Johannesburg to Durban|16","FY29/30","General Freight: Johannesburg to Durban",16,"RUSHBROOK (I) - UMLAAS ROAD (I)","LADYSMITH",72]
["FY29/30|General Freight: Johannesburg to Durban|17","FY29/30","General Freight: Johannesburg to Durban",17,"UMLAAS ROAD (E) - CATO RIDGE (I)","DURBAN",72]
["FY29/30|General Freight: Johannesburg to Durban|18","FY29/30","General Freight: Johannesburg to Durban",18,"CATO RIDGE (E) - BOOTH (I)","DURBAN",72]
["FY29/30|General Freight: Johannesburg to Durban|19","FY29/30","General Freight: Johannesburg to Durban",19,"BOOTH (E) - CLAIRWOOD (I)","DURBAN",72]
["FY29/30|General Freight: Johannesburg to Durban|20","FY29/30","General Freight: Johannesburg to Durban",20,"CLAIRWOOD (E) - JACOBS (I)","DURBAN",72]
["FY29/30|General Freight: Johannesburg to Durban|21","FY29/30","General Freight: Johannesburg to Durban",21,"JACOBS (E) - WESTS (I)","DURBAN",72]
["FY29/30|General Freight: Johannesburg to Durban|22","FY29/30","General Freight: Johannesburg to Durban",22,"CATO RIDGE (E) - PINETOWN (I)","DURBAN (Line Closed)",15]
["FY29/30|General Freight: Johannesburg to Durban|23","FY29/30","General Freight: Johannesburg to Durban",23,"PINETOWN - ROSSBURGH","DURBAN",18]
["FY29/30|General Freight: Johannesburg to Durban|24","FY29/30","General Freight: Johannesburg to Durban",24," JACOBS (E) - MEREBANK (E) ","DURBAN",21]
["FY29/30|General Freight: Johannesburg to Durban|25","FY29/30","General Freight: Johannesburg to Durban",25,"KELSO (E) - PORT SHEPSTONE (I)","DURBAN (Line Closed)",22]
["FY29/30|General Freight: Johannesburg to Durban|26","FY29/30","General Freight: Johannesburg to Durban",26," DURBAN (E) - UMGENI (I) ","DURBAN",72]
["FY29/30|General Freight: Johannesburg to Durban|27","FY29/30","General Freight: Johannesburg to Durban",27,"UMGENI (E) - DUFF'S ROAD (E)","DURBAN",72]
["FY29/30|General Freight: Johannesburg to Durban|28","FY29/30","General Freight: Johannesburg to Durban",28,"DUFF'S ROAD (E) - STANGER (I)","DURBAN",72]
["FY29/30|General Freight: Johannesburg to Durban|29","FY29/30","General Freight: Johannesburg to Durban",29," CHAILEY (I) - DALTON (E) ","DURBAN",11]
["FY29/30|General Freight: Johannesburg to Durban|30","FY29/30","General Freight: Johannesburg to Durban",30,"PENTRICH (E) - RICHMOND (NATAL) (I)","DURBAN (Line Closed)",30]
["FY29/30|General Freight: Johannesburg to Durban|31","FY29/30","General Freight: Johannesburg to Durban",31,"PIETERMARITZBURG (E) - SCHROEDERS (I)","DURBAN",21]
["FY29/30|General Freight: Johannesburg to Durban|32","FY29/30","General Freight: Johannesburg to Durban",32,"SCHROEDERS (E) - DALTON (I)","DURBAN",33]
["FY29/30|General Freight: Johannesburg to Durban|33","FY29/30","General Freight: Johannesburg to Durban",33,"DALTON (E) - GLENSIDE (I)","DURBAN",18]
["FY29/30|General Freight: Johannesburg to Durban|34","FY29/30","General Freight: Johannesburg to Durban",34,"SCHROEDERS (E) - BRUYNS HILL (I)","DURBAN",45]
["FY29/30|General Freight: Johannesburg to Durban|35","FY29/30","General Freight: Johannesburg to Durban",35,"CHAILEY (E) - KRANSKOP (I)","DURBAN",15]
["FY29/30|General Freight: Johannesburg to Durban|36","FY29/30","General Freight: Johannesburg to Durban",36,"CHAILEY (E) - MOUNT ALIDA (I)","DURBAN",72]
["FY29/30|General Freight: Johannesburg to Durban|37","FY29/30","General Freight: Johannesburg to Durban",37,"PIETERMARITZBURG (E) - DONNYBROOK (I)","DURBAN",25]
["FY29/30|General Freight: Johannesburg to Durban|38","FY29/30","General Freight: Johannesburg to Durban",38,"DONNYBROOK (E) - FRANKLIN (I)","DURBAN",16]
["FY29/30|General Freight: Johannesburg to Durban|39","FY29/30","General Freight: Johannesburg to Durban",39,"FRANKLIN (E) - MATATIELE (I)","DURBAN",13]
["FY29/30|General Freight: Johannesburg to Durban|40","FY29/30","General Freight: Johannesburg to Durban",40,"DONNYBROOK (E) - UNDERBERG (I)","DURBAN",15]
["FY29/30|General Freight: Johannesburg to Durban|41","FY29/30","General Freight: Johannesburg to Durban",41,"BAYHEAD (E) - BAYHEAD EXCLUSIVE (E)","DURBAN",50]
["FY30/31|General Freight: Johannesburg to Durban|1","FY30/31","General Freight: Johannesburg to Durban",1,"CITY DEEP - JUPITER","VEREENIGING",72]
["FY30/31|General Freight: Johannesburg to Durban|2","FY30/31","General Freight: Johannesburg to Durban",2,"KASERNE WEST - JUPITER","VEREENIGING",72]
["FY30/31|General Freight: Johannesburg to Durban|3","FY30/31","General Freight: Johannesburg to Durban",3,"JUPITER - INDIA","VEREENIGING",72]
["FY30/31|General Freight: Johannesburg to Durban|4","FY30/31","General Freight: Johannesburg to Durban",4,"INDIA (E) - UNION (E)","VEREENIGING",72]
["FY30/31|General Freight: Johannesburg to Durban|5","FY30/31","General Freight: Johannesburg to Durban",5,"UNIONKM3 (E)-ROOIKOP (E)","VEREENIGING",72]
["FY30/31|General Freight: Johannesburg to Durban|6","FY30/31","General Freight: Johannesburg to Durban",6,"ROOIKOP (I) - RIETVALLEI (E)","VEREENIGING",42]
["FY30/31|General Freight: Johannesburg to Durban|7","FY30/31","General Freight: Johannesburg to Durban",7,"RIETVALLEI (I) - VOORUITSIG (E )","HEIDELBERG",72]
["FY30/31|General Freight: Johannesburg to Durban|8","FY30/31","General Freight: Johannesburg to Durban",8,"VOORUITSIG (E) - CLAVIS (I)","HEIDELBERG",72]
["FY30/31|General Freight: Johannesburg to Durban|9","FY30/31","General Freight: Johannesburg to Durban",9,"CLAVIS(E) - NEWCASTLE (I)","HEIDELBERG",72]
["FY30/31|General Freight: Johannesburg to Durban|10","FY30/31","General Freight: Johannesburg to Durban",10,"NEWCASTLE (E) - ALCOCKSPRUIT (E)","HEIDELBERG",72]
["FY30/31|General Freight: Johannesburg to Durban|11","FY30/31","General Freight: Johannesburg to Durban",11,"ALCOCKSPRUIT (I) - GLENCOE (I)","HEIDELBERG",72]
["FY30/31|General Freight: Johannesburg to Durban|12","FY30/31","General Freight: Johannesburg to Durban",12,"GLENCOE (E) - VRYHEID (I)","LADYSMITH",14]
["FY30/31|General Freight: Johannesburg to Durban|13","FY30/31","General Freight: Johannesburg to Durban",13,"GLENCOE (E) - DANSKRAAL-NOORD (I)","LADYSMITH",72]
["FY30/31|General Freight: Johannesburg to Durban|14","FY30/31","General Freight: Johannesburg to Durban",14,"DANSKRAAL-NOORD (E) - ESTCOURT (I)","LADYSMITH",72]
["FY30/31|General Freight: Johannesburg to Durban|15","FY30/31","General Freight: Johannesburg to Durban",15,"ESTCOURT (E) - RUSHBROOK (E)","LADYSMITH",72]
["FY30/31|General Freight: Johannesburg to Durban|16","FY30/31","General Freight: Johannesburg to Durban",16,"RUSHBROOK (I) - UMLAAS ROAD (I)","LADYSMITH",72]
["FY30/31|General Freight: Johannesburg to Durban|17","FY30/31","General Freight: Johannesburg to Durban",17,"UMLAAS ROAD (E) - CATO RIDGE (I)","DURBAN",72]
["FY30/31|General Freight: Johannesburg to Durban|18","FY30/31","General Freight: Johannesburg to Durban",18,"CATO RIDGE (E) - BOOTH (I)","DURBAN",72]
["FY30/31|General Freight: Johannesburg to Durban|19","FY30/31","General Freight: Johannesburg to Durban",19,"BOOTH (E) - CLAIRWOOD (I)","DURBAN",72]
["FY30/31|General Freight: Johannesburg to Durban|20","FY30/31","General Freight: Johannesburg to Durban",20,"CLAIRWOOD (E) - JACOBS (I)","DURBAN",72]
["FY30/31|General Freight: Johannesburg to Durban|21","FY30/31","General Freight: Johannesburg to Durban",21,"JACOBS (E) - WESTS (I)","DURBAN",72]
["FY30/31|General Freight: Johannesburg to Durban|22","FY30/31","General Freight: Johannesburg to Durban",22,"CATO RIDGE (E) - PINETOWN (I)","DURBAN (Line Closed)",15]
["FY30/31|General Freight: Johannesburg to Durban|23","FY30/31","General Freight: Johannesburg to Durban",23,"PINETOWN - ROSSBURGH","DURBAN",18]
["FY30/31|General Freight: Johannesburg to Durban|24","FY30/31","General Freight: Johannesburg to Durban",24," JACOBS (E) - MEREBANK (E) ","DURBAN",21]
["FY30/31|General Freight: Johannesburg to Durban|25","FY30/31","General Freight: Johannesburg to Durban",25,"KELSO (E) - PORT SHEPSTONE (I)","DURBAN (Line Closed)",22]
["FY30/31|General Freight: Johannesburg to Durban|26","FY30/31","General Freight: Johannesburg to Durban",26," DURBAN (E) - UMGENI (I) ","DURBAN",72]
["FY30/31|General Freight: Johannesburg to Durban|27","FY30/31","General Freight: Johannesburg to Durban",27,"UMGENI (E) - DUFF'S ROAD (E)","DURBAN",72]
["FY30/31|General Freight: Johannesburg to Durban|28","FY30/31","General Freight: Johannesburg to Durban",28,"DUFF'S ROAD (E) - STANGER (I)","DURBAN",72]
["FY30/31|General Freight: Johannesburg to Durban|29","FY30/31","General Freight: Johannesburg to Durban",29," CHAILEY (I) - DALTON (E) ","DURBAN",11]
[{"$f":"IF(OR(B1005=\"\",C1005=\"\",D1005=\"\"),\"\",B1005&\"|\"&C1005&\"|\"&D1005)","v":"FY30/31|General Freight: Johannesburg to Durban|30"},"FY30/31","General Freight: Johannesburg to Durban",30,"PENTRICH (E) - RICHMOND (NATAL) (I)","DURBAN (Line Closed)",30]
["FY30/31|General Freight: Johannesburg to Durban|31","FY30/31","General Freight: Johannesburg to Durban",31,"PIETERMARITZBURG (E) - SCHROEDERS (I)","DURBAN",21]
["FY30/31|General Freight: Johannesburg to Durban|32","FY30/31","General Freight: Johannesburg to Durban",32,"SCHROEDERS (E) - DALTON (I)","DURBAN",33]
["FY30/31|General Freight: Johannesburg to Durban|33","FY30/31","General Freight: Johannesburg to Durban",33,"DALTON (E) - GLENSIDE (I)","DURBAN",18]
["FY30/31|General Freight: Johannesburg to Durban|34","FY30/31","General Freight: Johannesburg to Durban",34,"SCHROEDERS (E) - BRUYNS HILL (I)","DURBAN",45]
["FY30/31|General Freight: Johannesburg to Durban|35","FY30/31","General Freight: Johannesburg to Durban",35,"CHAILEY (E) - KRANSKOP (I)","DURBAN",15]
["FY30/31|General Freight: Johannesburg to Durban|36","FY30/31","General Freight: Johannesburg to Durban",36,"CHAILEY (E) - MOUNT ALIDA (I)","DURBAN",72]
["FY30/31|General Freight: Johannesburg to Durban|37","FY30/31","General Freight: Johannesburg to Durban",37,"PIETERMARITZBURG (E) - DONNYBROOK (I)","DURBAN",25]
["FY30/31|General Freight: Johannesburg to Durban|38","FY30/31","General Freight: Johannesburg to Durban",38,"DONNYBROOK (E) - FRANKLIN (I)","DURBAN",16]
["FY30/31|General Freight: Johannesburg to Durban|39","FY30/31","General Freight: Johannesburg to Durban",39,"FRANKLIN (E) - MATATIELE (I)","DURBAN",13]
["FY30/31|General Freight: Johannesburg to Durban|40","FY30/31","General Freight: Johannesburg to Durban",40,"DONNYBROOK (E) - UNDERBERG (I)","DURBAN",15]
["FY30/31|General Freight: Johannesburg to Durban|41","FY30/31","General Freight: Johannesburg to Durban",41,"BAYHEAD (E) - BAYHEAD EXCLUSIVE (E)","DURBAN",50]
[{"$f":"IF(OR(B1017=\"\",C1017=\"\",D1017=\"\"),\"\",B1017&\"|\"&C1017&\"|\"&D1017)","v":"FY26/27|Ore|1"},"FY26/27","Ore",1,"HOTAZEL - SISHEN ","KIMBERLEY NORTH",16,0,0,0,0,50,0,0,0,0,1,0,0,0,0,0,0,0]
[{"$f":"IF(OR(B1018=\"\",C1018=\"\",D1018=\"\"),\"\",B1018&\"|\"&C1018&\"|\"&D1018)","v":"FY26/27|Ore|2"},"FY26/27","Ore",2,"SISHEN - HALFWEG","SALDANHA",12,1,0,0,0,41,0,0,0,0,0,0,0,0,0,0,0,2]
["FY26/27|Ore|3","FY26/27","Ore",3,"HALFWEG - LOOP 4","SALDANHA",12,1,0,0,0,41,0,0,0,0,0,0,0,0,0,0,0,2]
["FY26/27|Ore|4","FY26/27","Ore",4,"LOOP 4 - SALDANHA","SALDANHA",12,1,0,0,0,41,0,0,0,0,0,0,0,0,0,0,0,2]
["FY27/28|Ore|1","FY27/28","Ore",1,"HOTAZEL - SISHEN ","KIMBERLEY NORTH",16]
["FY27/28|Ore|2","FY27/28","Ore",2,"SISHEN - HALFWEG","SALDANHA",12]
["FY27/28|Ore|3","FY27/28","Ore",3,"HALFWEG - LOOP 4","SALDANHA",12]
["FY27/28|Ore|4","FY27/28","Ore",4,"LOOP 4 - SALDANHA","SALDANHA",12]
["FY28/29|Ore|1","FY28/29","Ore",1,"HOTAZEL - SISHEN ","KIMBERLEY NORTH",16]
["FY28/29|Ore|2","FY28/29","Ore",2,"SISHEN - HALFWEG","SALDANHA",12]
["FY28/29|Ore|3","FY28/29","Ore",3,"HALFWEG - LOOP 4","SALDANHA",12]
["FY28/29|Ore|4","FY28/29","Ore",4,"LOOP 4 - SALDANHA","SALDANHA",12]
["FY29/30|Ore|1","FY29/30","Ore",1,"HOTAZEL - SISHEN ","KIMBERLEY NORTH",16]
["FY29/30|Ore|2","FY29/30","Ore",2,"SISHEN - HALFWEG","SALDANHA",12]
["FY29/30|Ore|3","FY29/30","Ore",3,"HALFWEG - LOOP 4","SALDANHA",12]
["FY29/30|Ore|4","FY29/30","Ore",4,"LOOP 4 - SALDANHA","SALDANHA",12]
["FY30/31|Ore|1","FY30/31","Ore",1,"HOTAZEL - SISHEN ","KIMBERLEY NORTH",16]
["FY30/31|Ore|2","FY30/31","Ore",2,"SISHEN - HALFWEG","SALDANHA",12]
["FY30/31|Ore|3","FY30/31","Ore",3,"HALFWEG - LOOP 4","SALDANHA",12]
["FY30/31|Ore|4","FY30/31","Ore",4,"LOOP 4 - SALDANHA","SALDANHA",12]
[{"$f":"IF(OR(B1037=\"\",C1037=\"\",D1037=\"\"),\"\",B1037&\"|\"&C1037&\"|\"&D1037)","v":""}]
[""]
[""]
[""]
[""]
[""]
[""]
[""]
[""]
[""]
[""]
[""]
[""]
[""]
[""]
[""]
[""]
[""]
[""]
[""]
[""]
[""]
[""]
[""]
[""]
[""]
[""]
[""]
[""]
[""]
[""]
[""]
[""]
[""]
[""]
[""]
[""]
[""]
[""]
[""]
[""]
[""]
[""]
[""]
[""]
[""]
[""]
[""]
[""]
[""]
[""]
[""]
[""]
[""]
[""]
[""]
[""]
[""]
[""]
[""]
[""]
[""]
[""]
[""]
[{"$f":"IF(OR(B1101=\"\",C1101=\"\",D1101=\"\"),\"\",B1101&\"|\"&C1101&\"|\"&D1101)","v":""}]
[""]
[""]
[""]
[""]
[""]
[""]
[""]
[""]
[""]
[""]
[""]
[""]
[""]
[""]
[""]
[""]
[""]
[""]
[""]
[""]
[""]
[""]
[""]
[""]
[""]
[""]
[""]
[""]
[""]
[""]
[""]
[""]
[""]
[""]
[""]
[""]
[""]
[""]
[""]
[""]
[""]
[""]
[""]
[""]
[""]
[""]
[""]
[""]
[""]
[""]
[""]
[""]
[""]
[""]
[""]
[""]
[""]
[""]
[""]
[""]
[""]
[""]
[""]
[{"$f":"IF(OR(B1165=\"\",C1165=\"\",D1165=\"\"),\"\",B1165&\"|\"&C1165&\"|\"&D1165)","v":""}]
[""]
[""]
[""]
[""]
[""]
[""]
[""]
[""]
[""]
[""]
[""]
[""]
[""]
[""]
[""]
[""]
[""]
[""]
[""]
[""]
[""]
[""]
[""]
[""]
[""]
[""]
[""]
[""]
[""]
[""]
[""]
[""]
[""]
[""]
[""]
[""]
[""]
[""]
[""]
[""]
[""]
[""]
[""]
[""]
[""]
[""]
[""]
[""]
[""]
[""]
[""]
[""]
[""]
[""]
[""]
[""]
[""]
[""]
[""]
[""]
[""]
[""]
[""]
[{"$f":"IF(OR(B1229=\"\",C1229=\"\",D1229=\"\"),\"\",B1229&\"|\"&C1229&\"|\"&D1229)","v":""}]
[""]
[""]
[""]
[""]
[""]
[""]
[""]
[""]
[""]
[""]
[""]
[""]
[""]
[""]
[""]
[""]
[""]
[""]
[""]
[""]
[""]
[""]
[""]
[""]
[""]
[""]
[""]
[""]
[""]
[""]
[""]
[""]
[""]
[""]
[""]
[""]
[""]
[""]
[""]
[""]
[""]
[""]
[""]
[""]
[""]
[""]
[""]
[""]
[""]
[""]
[""]
[""]
[""]
[""]
[""]
[""]
[""]
[""]
[""]
[""]
[""]
[""]
[""]
[{"$f":"IF(OR(B1293=\"\",C1293=\"\",D1293=\"\"),\"\",B1293&\"|\"&C1293&\"|\"&D1293)","v":""}]
[""]
[""]
[""]
[""]
[""]
[""]
[""]
[""]
[""]
[""]
[""]
[""]
[""]
[""]
[""]
[""]
[""]
[""]
[""]
[""]
[""]
[""]
[""]
[""]
[""]
[""]
[""]
[""]
[""]
[""]
[""]
[""]
[""]
[""]
[""]
[""]
[""]
[""]
[""]
[""]
[""]
[""]
[""]
[""]
[""]
[""]
[""]
[""]
[""]
[""]
[""]
[""]
[""]
[""]
[""]
[""]
[""]
[""]
[""]
[""]
[""]
[""]
[""]
[{"$f":"IF(OR(B1357=\"\",C1357=\"\",D1357=\"\"),\"\",B1357&\"|\"&C1357&\"|\"&D1357)","v":""}]
[""]
[""]
[""]
[""]
[""]
[""]
[""]
[""]
[""]
[""]
[""]
[""]
[""]
[""]
[""]
[""]
[""]
[""]
[""]
[""]
[""]
[""]
[""]
[""]
[""]
[""]
[""]
[""]
[""]
[""]
[""]
[""]
[""]
[""]
[""]
[""]
[""]
[""]
[""]
[""]
[""]
[""]
[""]
[""]
[""]
[""]
[""]
[""]
[""]
[""]
[""]
[""]
[""]
[""]
[""]
[""]
[""]
[""]
[""]

{"sheet":"Lists","index":2,"n_rows":11,"n_cols":2,"rows_kept":11,"cut":false,"hidden":true,"merged":[]}
["Financial Years","Routes"]
["FY26/27","General Freight: Johannesburg to Durban"]
["FY27/28","General Freight: Johannesburg to Cape Town"]
["FY28/29","Manganese"]
["FY29/30","Magnetite"]
["FY30/31","General Freight & Export Coal: Lephalale to Richards Bay"]
[null,"General Freight: Musina - Pyramid South/Hoedspruit"]
[null,"Eastern Mainline: Rayton to Komatipoort/Richards Bay"]
[null,"General Freight: Mafikeng to Beaconsfield/Potchefstroom"]
[null,"General Freight: Vereeniging/Danskraal to East London"]
[null,"Ore"]